Workbook

Sheet Taules (hidden)
B1: RF | C1: JP | D1: CP | E1: RP | F1: JPP | G1: CPP | H1: RPP | I1: JPPP | J1: CPPP
A2: 1 | B2: 1 | C2: 0 | D2: 0 | E2: 0 | F2: 0 | G2: 0 | H2: 0 | I2: 0 | J2: 0
A3: 2 | B3: 2 | C3: 0 | D3: 0 | E3: 0 | F3: 0 | G3: 0 | H3: 0 | I3: 0 | J3: 0
A4: 3 | B4: 3 | C4: 0 | D4: 0 | E4: 0 | F4: 0 | G4: 0 | H4: 0 | I4: 0 | J4: 0
A5: 4 | B5: 4 | C5: 0 | D5: 0 | E5: 0 | F5: 0 | G5: 0 | H5: 0 | I5: 0 | J5: 0
A6: 5 | B6: 5 | C6: 0 | D6: 0 | E6: 0 | F6: 0 | G6: 0 | H6: 0 | I6: 0 | J6: 0
A7: 6 | B7: 6 | C7: 0 | D7: 0 | E7: 0 | F7: 0 | G7: 0 | H7: 0 | I7: 0 | J7: 0
A8: 7 | B8: 7 | C8: 0 | D8: 0 | E8: 0 | F8: 0 | G8: 0 | H8: 0 | I8: 0 | J8: 0
A9: 8 | B9: 8 | C9: 0 | D9: 0 | E9: 0 | F9: 0 | G9: 0 | H9: 0 | I9: 0 | J9: 0
A10: 9 | B10: 9 | C10: 0 | D10: 0 | E10: 0 | F10: 0 | G10: 0 | H10: 0 | I10: 0 | J10: 0
A11: 10 | B11: 10 | C11: 0 | D11: 0 | E11: 0 | F11: 0 | G11: 0 | H11: 0 | I11: 0 | J11: 0
A12: 11 | B12: 11 | C12: 0 | D12: 0 | E12: 0 | F12: 0 | G12: 0 | H12: 0 | I12: 0 | J12: 0
A13: 12 | B13: 12 | C13: 0 | D13: 0 | E13: 0 | F13: 0 | G13: 0 | H13: 0 | I13: 0 | J13: 0
A14: 13 | B14: 13 | C14: 0 | D14: 0 | E14: 0 | F14: 0 | G14: 0 | H14: 0 | I14: 0 | J14: 0
A15: 14 | B15: 14 | C15: 0 | D15: 0 | E15: 0 | F15: 0 | G15: 0 | H15: 0 | I15: 0 | J15: 0
A16: 15 | B16: 15 | C16: 0 | D16: 0 | E16: 0 | F16: 0 | G16: 0 | H16: 0 | I16: 0 | J16: 0
A17: 16 | B17: 16 | C17: 0 | D17: 0 | E17: 0 | F17: 0 | G17: 0 | H17: 0 | I17: 0 | J17: 0
A18: 17 | B18: 17 | C18: 0 | D18: 0 | E18: 0 | F18: 0 | G18: 0 | H18: 0 | I18: 0 | J18: 0
A19: 18 | B19: 18 | C19: 0 | D19: 0 | E19: 0 | F19: 0 | G19: 0 | H19: 0 | I19: 0 | J19: 0
A20: 19 | B20: 19 | C20: 0 | D20: 0 | E20: 0 | F20: 0 | G20: 0 | H20: 0 | I20: 0 | J20: 0
A21: 20 | B21: 20 | C21: 0 | D21: 0 | E21: 0 | F21: 0 | G21: 0 | H21: 0 | I21: 0 | J21: 0
A22: 21 | B22: 21 | C22: 0 | D22: 0 | E22: 0 | F22: 0 | G22: 0 | H22: 0 | I22: 0 | J22: 0
A23: 22 | B23: 22 | C23: 0 | D23: 0 | E23: 0 | F23: 0 | G23: 0 | H23: 0 | I23: 0 | J23: 0
A24: 23 | B24: 23 | C24: 0 | D24: 0 | E24: 0 | F24: 0 | G24: 0 | H24: 0 | I24: 0 | J24: 0
A25: 24 | B25: 24 | C25: 0 | D25: 0 | E25: 0 | F25: 0 | G25: 0 | H25: 0 | I25: 0 | J25: 0
A26: 25 | B26: 25 | C26: 0 | D26: 0 | E26: 0 | F26: 0 | G26: 0 | H26: 0 | I26: 0 | J26: 0
A27: 26 | B27: 26 | C27: 0 | D27: 0 | E27: 0 | F27: 0 | G27: 0 | H27: 0 | I27: 0 | J27: 0
A28: 27 | B28: 27 | C28: 0 | D28: 0 | E28: 0 | F28: 0 | G28: 0 | H28: 0 | I28: 0 | J28: 0
A29: 28 | B29: 28 | C29: 0 | D29: 0 | E29: 0 | F29: 0 | G29: 0 | H29: 0 | I29: 0 | J29: 0
A30: 29 | B30: 29 | C30: 0 | D30: 0 | E30: 0 | F30: 0 | G30: 0 | H30: 0 | I30: 0 | J30: 0
A31: 30 | B31: 30 | C31: 0 | D31: 0 | E31: 0 | F31: 0 | G31: 0 | H31: 0 | I31: 0 | J31: 0
A32: 31 | B32: 31 | C32: 0 | D32: 0 | E32: 0 | F32: 0 | G32: 0 | H32: 0 | I32: 0 | J32: 0
A33: 32 | B33: 32 | C33: 0 | D33: 0 | E33: 0 | F33: 0 | G33: 0 | H33: 0 | I33: 0 | J33: 0
A34: 33 | B34: 18 | C34: =A34-B34 -> 15 | D34: =32-B34 -> 14 | E34: 0 | F34: 0 | G34: 0 | H34: 0 | I34: 0 | J34: 0
A35: 34 | B35: 16 | C35: =A35-B35 -> 18 | D35: =32-B35 -> 16 | E35: 0 | F35: 0 | G35: 0 | H35: 0 | I35: 0 | J35: 0
A36: 35 | B36: 17 | C36: 18 | D36: 15 | E36: 0 | F36: 0 | G36: 0 | H36: 0 | I36: 0 | J36: 0
A37: 36 | B37: 18 | C37: 18 | D37: 14 | E37: 0 | F37: 0 | G37: 0 | H37: 0 | I37: 0 | J37: 0
A38: 37 | B38: 16 | C38: 21 | D38: 16 | E38: 0 | F38: 0 | G38: 0 | H38: 0 | I38: 0 | J38: 0
A39: 38 | B39: 17 | C39: 21 | D39: 15 | E39: 0 | F39: 0 | G39: 0 | H39: 0 | I39: 0 | J39: 0
A40: 39 | B40: 18 | C40: 21 | D40: 14 | E40: 0 | F40: 0 | G40: 0 | H40: 0 | I40: 0 | J40: 0
A41: 40 | B41: 16 | C41: 24 | D41: 16 | E41: 0 | F41: 0 | G41: 0 | H41: 0 | I41: 0 | J41: 0
A42: 41 | B42: 17 | C42: 24 | D42: 15 | E42: 0 | F42: 0 | G42: 0 | H42: 0 | I42: 0 | J42: 0
A43: 42 | B43: 18 | C43: 24 | D43: 14 | E43: 0 | F43: 0 | G43: 0 | H43: 0 | I43: 0 | J43: 0
A44: 43 | B44: 16 | C44: 27 | D44: 16 | E44: 0 | F44: 0 | G44: 0 | H44: 0 | I44: 0 | J44: 0
A45: 44 | B45: 17 | C45: 27 | D45: 15 | E45: 0 | F45: 0 | G45: 0 | H45: 0 | I45: 0 | J45: 0
A46: 45 | B46: 18 | C46: 27 | D46: 14 | E46: 0 | F46: 0 | G46: 0 | H46: 0 | I46: 0 | J46: 0
A47: 46 | B47: 16 | C47: 30 | D47: 16 | E47: 0 | F47: 0 | G47: 0 | H47: 0 | I47: 0 | J47: 0
A48: 47 | B48: 17 | C48: 30 | D48: 15 | E48: 0 | F48: 0 | G48: 0 | H48: 0 | I48: 0 | J48: 0
A49: 48 | B49: 18 | C49: 30 | D49: 14 | E49: 0 | F49: 0 | G49: 0 | H49: 0 | I49: 0 | J49: 0
A50: 49 | B50: 16 | C50: 33 | D50: 16 | E50: 0 | F50: 0 | G50: 0 | H50: 0 | I50: 0 | J50: 0
A51: 50 | B51: 17 | C51: 33 | D51: 15 | E51: 0 | F51: 0 | G51: 0 | H51: 0 | I51: 0 | J51: 0
A52: 51 | B52: 18 | C52: 33 | D52: 14 | E52: 0 | F52: 0 | G52: 0 | H52: 0 | I52: 0 | J52: 0
A53: 52 | B53: 16 | C53: 36 | D53: 16 | E53: 0 | F53: 0 | G53: 0 | H53: 0 | I53: 0 | J53: 0
A54: 53 | B54: 17 | C54: 36 | D54: 15 | E54: 0 | F54: 0 | G54: 0 | H54: 0 | I54: 0 | J54: 0
A55: 54 | B55: 18 | C55: 36 | D55: 14 | E55: 0 | F55: 0 | G55: 0 | H55: 0 | I55: 0 | J55: 0
A56: 55 | B56: 16 | C56: 39 | D56: 16 | E56: 0 | F56: 0 | G56: 0 | H56: 0 | I56: 0 | J56: 0
A57: 56 | B57: 17 | C57: 39 | D57: 15 | E57: 0 | F57: 0 | G57: 0 | H57: 0 | I57: 0 | J57: 0
A58: 57 | B58: 18 | C58: 39 | D58: 14 | E58: 0 | F58: 0 | G58: 0 | H58: 0 | I58: 0 | J58: 0
A59: 58 | B59: 16 | C59: 42 | D59: 16 | E59: 0 | F59: 0 | G59: 0 | H59: 0 | I59: 0 | J59: 0
A60: 59 | B60: 17 | C60: 42 | D60: 15 | E60: 0 | F60: 0 | G60: 0 | H60: 0 | I60: 0 | J60: 0
A61: 60 | B61: 18 | C61: 42 | D61: 14 | E61: 0 | F61: 0 | G61: 0 | H61: 0 | I61: 0 | J61: 0
A62: 61 | B62: 16 | C62: 45 | D62: 16 | E62: 0 | F62: 0 | G62: 0 | H62: 0 | I62: 0 | J62: 0
A63: 62 | B63: 17 | C63: 45 | D63: 15 | E63: 0 | F63: 0 | G63: 0 | H63: 0 | I63: 0 | J63: 0
A64: 63 | B64: 18 | C64: 45 | D64: 14 | E64: 0 | F64: 0 | G64: 0 | H64: 0 | I64: 0 | J64: 0
A65: 64 | B65: 16 | C65: 48 | D65: 16 | E65: 0 | F65: 0 | G65: 0 | H65: 0 | I65: 0 | J65: 0
A66: 65 | B66: 16 | C66: 48 | D66: 16 | E66: 37 | F66: =A66-B66-E66 -> 12 | G66: =C66-E66 -> 11 | H66: 0 | I66: 0 | J66: 0
A67: 66 | B67: 16 | C67: 48 | D67: 16 | E67: 38 | F67: 12 | G67: 10 | H67: 0 | I67: 0 | J67: 0
A68: 67 | B68: 16 | C68: 48 | D68: 16 | E68: 39 | F68: 12 | G68: 9 | H68: 0 | I68: 0 | J68: 0
A69: 68 | B69: 16 | C69: 48 | D69: 16 | E69: 40 | F69: 12 | G69: 8 | H69: 0 | I69: 0 | J69: 0
A70: 69 | B70: 16 | C70: 48 | D70: 16 | E70: 41 | F70: 12 | G70: 7 | H70: 0 | I70: 0 | J70: 0
A71: 70 | B71: 16 | C71: 48 | D71: 16 | E71: 42 | F71: 12 | G71: 6 | H71: 0 | I71: 0 | J71: 0
A72: 71 | B72: 16 | C72: 48 | D72: 16 | E72: 43 | F72: 12 | G72: 5 | H72: 0 | I72: 0 | J72: 0
A73: 72 | B73: 16 | C73: 48 | D73: 16 | E73: 44 | F73: 12 | G73: 4 | H73: 0 | I73: 0 | J73: 0
A74: 73 | B74: 16 | C74: 48 | D74: 16 | E74: 42 | F74: 15 | G74: 6 | H74: 0 | I74: 0 | J74: 0
A75: 74 | B75: 16 | C75: 48 | D75: 16 | E75: 43 | F75: 15 | G75: 5 | H75: 0 | I75: 0 | J75: 0
A76: 75 | B76: 16 | C76: 48 | D76: 16 | E76: 41 | F76: 18 | G76: 7 | H76: 0 | I76: 0 | J76: 0
A77: 76 | B77: 16 | C77: 48 | D77: 16 | E77: 42 | F77: 18 | G77: 6 | H77: 0 | I77: 0 | J77: 0
A78: 77 | B78: 16 | C78: 48 | D78: 16 | E78: 40 | F78: 21 | G78: 8 | H78: 0 | I78: 0 | J78: 0
A79: 78 | B79: 16 | C79: 48 | D79: 16 | E79: 41 | F79: 21 | G79: 7 | H79: 0 | I79: 0 | J79: 0
A80: 79 | B80: 16 | C80: 48 | D80: 16 | E80: 39 | F80: 24 | G80: 9 | H80: 0 | I80: 0 | J80: 0
A81: 80 | B81: 16 | C81: 48 | D81: 16 | E81: 40 | F81: 24 | G81: 8 | H81: 0 | I81: 0 | J81: 0
A82: 81 | B82: 16 | C82: 48 | D82: 16 | E82: 38 | F82: 27 | G82: 10 | H82: 0 | I82: 0 | J82: 0
A83: 82 | B83: 16 | C83: 48 | D83: 16 | E83: 39 | F83: =A83-B83-E83 -> 27 | G83: =C83-E83 -> 9 | H83: 0 | I83: 0 | J83: 0
A84: 83 | B84: 16 | C84: 48 | D84: 16 | E84: 37 | F84: =A84-B84-E84 -> 30 | G84: =C84-E84 -> 11 | H84: 0 | I84: 0 | J84: 0
A85: 84 | B85: 16 | C85: 48 | D85: 16 | E85: 38 | F85: 30 | G85: 10 | H85: 0 | I85: 0 | J85: 0
A86: 85 | B86: 16 | C86: 48 | D86: 16 | E86: 36 | F86: 33 | G86: 12 | H86: 0 | I86: 0 | J86: 0
A87: 86 | B87: 16 | C87: 48 | D87: 16 | E87: 37 | F87: 33 | G87: 11 | H87: 0 | I87: 0 | J87: 0
A88: 87 | B88: 16 | C88: 48 | D88: 16 | E88: 35 | F88: 36 | G88: 13 | H88: 0 | I88: 0 | J88: 0
A89: 88 | B89: 16 | C89: 48 | D89: 16 | E89: 36 | F89: 36 | G89: 12 | H89: 0 | I89: 0 | J89: 0
A90: 89 | B90: 16 | C90: 48 | D90: 16 | E90: 34 | F90: 39 | G90: 14 | H90: 0 | I90: 0 | J90: 0
A91: 90 | B91: 16 | C91: 48 | D91: 16 | E91: 35 | F91: 39 | G91: 13 | H91: 0 | I91: 0 | J91: 0
A92: 91 | B92: 16 | C92: 48 | D92: 16 | E92: 33 | F92: 42 | G92: 15 | H92: 0 | I92: 0 | J92: 0
A93: 92 | B93: 16 | C93: 48 | D93: 16 | E93: 34 | F93: 42 | G93: 14 | H93: 0 | I93: 0 | J93: 0
A94: 93 | B94: 16 | C94: 48 | D94: 16 | E94: 32 | F94: 45 | G94: 16 | H94: 0 | I94: 0 | J94: 0
A95: 94 | B95: 16 | C95: 48 | D95: 16 | E95: 33 | F95: 45 | G95: 15 | H95: 0 | I95: 0 | J95: 0
A96: 95 | B96: 16 | C96: 48 | D96: 16 | E96: 34 | F96: 45 | G96: 14 | H96: 0 | I96: 0 | J96: 0
A97: 96 | B97: 16 | C97: 48 | D97: 16 | E97: 32 | F97: 48 | G97: 16 | H97: 0 | I97: 0 | J97: 0
A98: 97 | B98: 16 | C98: 48 | D98: 16 | E98: 32 | F98: 48 | G98: 16 | H98: 37 | I98: =A98-B98-E98-H98 -> 12 | J98: =F98-H98 -> 11
A99: 98 | B99: 16 | C99: 48 | D99: 16 | E99: 32 | F99: 48 | G99: 16 | H99: 38 | I99: =A99-B99-E99-H99 -> 12 | J99: =F99-H99 -> 10
A100: 99 | B100: 16 | C100: 48 | D100: 16 | E100: 32 | F100: 48 | G100: 16 | H100: 39 | I100: 12 | J100: 9
A101: 100 | B101: 16 | C101: 48 | D101: 16 | E101: 32 | F101: 48 | G101: 16 | H101: 40 | I101: 12 | J101: 8
A102: 101 | B102: 16 | C102: 48 | D102: 16 | E102: 32 | F102: 48 | G102: 16 | H102: 41 | I102: 12 | J102: 7
A103: 102 | B103: 16 | C103: 48 | D103: 16 | E103: 32 | F103: 48 | G103: 16 | H103: 42 | I103: 12 | J103: 6
A104: 103 | B104: 16 | C104: 48 | D104: 16 | E104: 32 | F104: 48 | G104: 16 | H104: 43 | I104: 12 | J104: 5
A105: 104 | B105: 16 | C105: 48 | D105: 16 | E105: 32 | F105: 48 | G105: 16 | H105: 44 | I105: 12 | J105: 4
A106: 105 | B106: 16 | C106: 48 | D106: 16 | E106: 32 | F106: 48 | G106: 16 | H106: 42 | I106: 15 | J106: 6
A107: 106 | B107: 16 | C107: 48 | D107: 16 | E107: 32 | F107: 48 | G107: 16 | H107: 43 | I107: 15 | J107: 5
A108: 107 | B108: 16 | C108: 48 | D108: 16 | E108: 32 | F108: 48 | G108: 16 | H108: 41 | I108: 18 | J108: 7
A109: 108 | B109: 16 | C109: 48 | D109: 16 | E109: 32 | F109: 48 | G109: 16 | H109: 42 | I109: 18 | J109: 6
A110: 109 | B110: 16 | C110: 48 | D110: 16 | E110: 32 | F110: 48 | G110: 16 | H110: 40 | I110: 21 | J110: 8
A111: 110 | B111: 16 | C111: 48 | D111: 16 | E111: 32 | F111: 48 | G111: 16 | H111: 41 | I111: 21 | J111: 7
A112: 111 | B112: 16 | C112: 48 | D112: 16 | E112: 32 | F112: 48 | G112: 16 | H112: 39 | I112: 24 | J112: 9
A113: 112 | B113: 16 | C113: 48 | D113: 16 | E113: 32 | F113: 48 | G113: 16 | H113: 40 | I113: 24 | J113: 8
A114: 113 | B114: 16 | C114: 48 | D114: 16 | E114: 32 | F114: 48 | G114: 16 | H114: 38 | I114: 27 | J114: 10
A115: 114 | B115: 16 | C115: 48 | D115: 16 | E115: 32 | F115: 48 | G115: 16 | H115: 39 | I115: 27 | J115: 9
A116: 115 | B116: 16 | C116: 48 | D116: 16 | E116: 32 | F116: 48 | G116: 16 | H116: 37 | I116: 30 | J116: 11
A117: 116 | B117: 16 | C117: 48 | D117: 16 | E117: 32 | F117: 48 | G117: 16 | H117: 38 | I117: 30 | J117: 10
A118: 117 | B118: 16 | C118: 48 | D118: 16 | E118: 32 | F118: 48 | G118: 16 | H118: 36 | I118: 33 | J118: 12
A119: 118 | B119: 16 | C119: 48 | D119: 16 | E119: 32 | F119: 48 | G119: 16 | H119: 37 | I119: 33 | J119: 11
A120: 119 | B120: 16 | C120: 48 | D120: 16 | E120: 32 | F120: 48 | G120: 16 | H120: 35 | I120: 36 | J120: 13
A121: 120 | B121: 16 | C121: 48 | D121: 16 | E121: 32 | F121: 48 | G121: 16 | H121: 36 | I121: 36 | J121: 12
A122: 121 | B122: 16 | C122: 48 | D122: 16 | E122: 32 | F122: 48 | G122: 16 | H122: 34 | I122: 39 | J122: 14
A123: 122 | B123: 16 | C123: 48 | D123: 16 | E123: 32 | F123: 48 | G123: 16 | H123: 35 | I123: 39 | J123: 13
A124: 123 | B124: 16 | C124: 48 | D124: 16 | E124: 32 | F124: 48 | G124: 16 | H124: 33 | I124: 42 | J124: 15
A125: 124 | B125: 16 | C125: 48 | D125: 16 | E125: 32 | F125: 48 | G125: 16 | H125: 34 | I125: 42 | J125: 14
A126: 125 | B126: 16 | C126: 48 | D126: 16 | E126: 32 | F126: 48 | G126: 16 | H126: 32 | I126: 45 | J126: 16
A127: 126 | B127: 16 | C127: 48 | D127: 16 | E127: 32 | F127: 48 | G127: 16 | H127: 33 | I127: 45 | J127: 15
A128: 127 | B128: 16 | C128: 48 | D128: 16 | E128: 32 | F128: 48 | G128: 16 | H128: 34 | I128: 45 | J128: 14
A129: 128 | B129: 16 | C129: 48 | D129: 16 | E129: 32 | F129: 48 | G129: 16 | H129: 32 | I129: 48 | J129: 16

Sheet Clubs (hidden)
A1: CLUB | B1: DIRECCIÓ | C1: TELÈFON | D1: EMAIL
A2: B.C.GRANOLLERS | B2: C/ Girona, 222 (Pavelló Bàsket) - Granollers | C2: 938 443 554 | D2: billargranollers@hotmail.com
A3: B.LA UNIÓ CORAL | B3: Pg. Bertrand, 13 - Sant Feliu de Llobregat | C3: 936 661 138 | D3: billaruniocoral@hotmail.com
A4: C.B.2000 CERDANYOLA | B4: Avda. Guiera, 6 - Cerdanyola del Vallès | C4: 656 851 126 | D4: cbillar2000@gmail.com
A5: C.B.ALBA | B5: C/ Sant Pau, 13 - Badalona | C5: 933 843 405 | D5: billaralba@gmail.com
A6: C.B.BANYOLES | B6: C/ L'abeurador, 10 - Banyoles | C6: 972 572 045 | D6: frnavarra55@gmail.com
A7: C.B.BARCELONA | B7: Gran Via Corts Catalanes, 595 (sot. club comedia) - Barcelona | C7: 933 173 641 | D7: clubbillarbarcelona@gmail.com
A8: C.B.BLANES | B8: Pça. d'Espanya, 5 (baixos Casino de Blanes) - Blanes | C8: 972 337 152 | D8: c.billarblanes@gmail.com
A9: C.B.CANET DE MAR | B9: Rial de Can Goday, S/N (Costat camp futbol) - Canet de Mar | C9: 678 080 889 | D9: clubbillarcanet@gmail.com
A10: C.B.L'AMISTAT MOLLERUSSA | B10: C/ Ferrer i Busquets, 90 - Mollerussa | C10: 609 891 435 | D10: billaramistat@gmail.com
A11: C.B.LLEIDA | B11: Avda. Navarra, S/N (camp d'esports) - Lleida | C11: 973 225 305 | D11: clubbillarlleida@hotmail.com
A12: C.B.LLIÇÀ D'AMUNT | B12: C/ Folch i Torres, 117 ¨Els Galliners¨ - Lliçà d'Amunt | C12: 649 492 354 | D12: bllicadamunt@gmail.com
A13: C.B.LLINARS | B13: C/ Ravalet, 17 - Llinars del Vallès | C13: 639 129 325 | D13: jvila@billarllinars.com
A14: C.B.MANRESA | B14: Ptge. Dipòsits Vells, 4 - Manresa | C14: 938 736 051 | D14: clubbillarmanresa@hotmail.com
A15: C.B.MATADEPERA | B15: C/ Antoni Genescà, 3, 1er - Matadepera | C15: 635 401 315 | D15: cbmatadepera@gmail.com
A16: C.B.MATARÓ | B16: Pg. Carles Padrós, 12 (Pav. Mun. Josep Mora) - Mataró | C16: 937 964 557 | D16: cbillarmataro@gmail.com
A17: C.B.MOLLET | B17: Rda. Can Fàbregas, 1 (Pavelló Municipal) - Mollet del Vellès | C17: 935 704 718 | D17: clubbillarmollet@yahoo.es
A18: C.B.MONFORTE | B18: C/ Sant Antoni Maria Claret, 373 - Barcelona | C18: 933 181 019 | D18: monfortebillares@gmail.com
A19: C.B.MONT-ROIG | B19: C/ Vinyols, 7 - Mont-Roig del Camp | C19: 630 038 843 | D19: billarmontroig@gmail.com
A20: C.B.MONTMELÓ | B20: C/ Federico García Lorca, 14 - Montmeló | C20: 935 720 144 | D20: billarmontmelo@live.com
A21: C.B.OLESA | B21: Pça. Països Catalans, 2 - Olesa de Montserrat | C21: 937 082 202 | D21: billarolesa@gmail.com
A22: C.B.PRAT | B22: C/ Lo Gaiter del Llobregat, 24 - El Prat de Llobregat | C22: 671 438 701 | D22: CLUBBILLARPRAT@GMAIL.COM
A23: C.B.PREMIÀ | B23: C/ Sant Antoni, 60, 2on - Premià de Mar | C23: 659 364 776 | D23: premiabillar@gmail.com
A24: C.B.PUNT D'ATAC | B24: C/ Capella, 6 - Torredembarra | C24: 649 859 147 | D24: puntdatac@gmail.com
A25: C.B.SANT ADRIÀ | B25: C/ Dr. Barraquer, 6 - Sant Adrià de Besòs | C25: 933 814 898 | D25: clubbillarsantadria@gmail.com
A26: C.B.SANT BOI | B26: C/ Jaume I, 52 - Sant Boi de Llobregat | C26: 932 229 624 | D26: cbsantboi@gmail.com
A27: C.B.SANT FELIU | B27: Centre Cívic "La Fonteta" 08182 Sant Feliu de Codines | C27: 938 662 570 | D27: jordihuguet.2548@gmail.com
A28: C.B.SANTS | B28: Rector Triadó, 53, bajos interior - 08014 Barcelona | C28: 934 245 301 | D28: clubbillarsants@gmail.com
A29: C.B.TARRAGONA | B29: Pça. Imperial Tarraco, 1 (sot. estació autobusos) - Tarragona | C29: 977 227 795 | D29: clubbillartarragona@gmail.com
A30: C.B.VIC | B30: C/ Arquebisbe Alemany, 24 Baixos - Vic | C30: 650 985 280 | D30: c.billar.vic@gmail.com
A31: C.B.VILANOVA | B31: Rda. Ibèrica, 66 (pav. Isaac Gálvez) - Vilanova i la Geltrú | C31: 938 143 450 | D31: club.billar.vilanova@gmail.com
A32: DANY'ELLS C.B. | B32: Rda. Can Fàbregas, 2 Local 3 - Mollet del Vallés | C32: 935 791 674 | D32: danyellscb@gmail.com
A33: S.B. EL CASINET MASNOU | B33: C/ Barcelona, 46 - El Masnou | C33: 935 554 514 | D33: elcasinet1950@yahoo.es
A34: S.B. GEiEG | B34: C/ Esglèssia de Sant Miquel, 18 (GEIEG Palau) - Girona | C34: 690 053 022 | D34: sbgeieg@gmail.com
A35: S.B.CORAL COLÓN | B35: Avda. Once de Setembre, 125 - Sabadell | C35: 931 535 538 | D35: billar@coralcolon.net
A36: S.B.F.MOLINS | B36: Pg. del terraplé, 49 - Molins de Rei | C36: 608 490 279 | D36: bfmolins@gmail.com
A37: S.B.LA COLMENA | B37: C/ Francesc Vinyes, 5 - Sta. Coloma de Gramanet | C37: 619 965 755 | D37: billarcolmena@hotmail.com
A38: S.B.LA GRAN PENYA | B38: Rbla. Principal, 52 - Vilanova i la Geltrú | C38: 616 545 700 | D38: s.billar.la.gran.penya@gmail.com
A39: S.B.P.E.CENTELLES | B39: C/ Sant Joan, 25 2on - Centelles | C39: 651 127 799 | D39: billarcentelles@gmail.com
A40: S.E.CASAL CERVERA | B40: Pça. Santa Anna, 2 - Cervera | C40: 629 606 663 | D40: billarcervera@hotmail.com

Sheet Inici
A2: =MID(CELL("nombrearchivo"),FIND("[",CELL("nombrearchivo"))+1,FIND("]",CELL("nombrearchivo"))-FIND("[",CELL("nombrearchivo"))-1) -> Plantilla Open 3B 4 taules_V05.xlsm | B2: INTRODUIR EN MAIÚSCULES EL NOM DE L'OPEN | G2: Anar a:
G3: Participants
B4: DADES DE L'OPEN | G4: Rànquing Inicial
G5: Organigrama
C6: Club organitzador: | G6: Horaris
C8: Adreça: | D8: =IFERROR(VLOOKUP($D$6,Clubs!$A$2:$D$51,2,FALSE),"") -> 
C10: Telèfon de contacte: | D10: =IFERROR(VLOOKUP($D$6,Clubs!$A$2:$D$51,3,FALSE),"") -> 
C12: Correu electrònic: | D12: =IFERROR(VLOOKUP($D$6,Clubs!$A$2:$D$51,4,FALSE),"") -> 
C14: Data de la final:
D25: =IF(Clubs!A2="","",Clubs!A2) -> B.C.GRANOLLERS
D26: =IF(Clubs!A3="","",Clubs!A3) -> B.LA UNIÓ CORAL
D27: =IF(Clubs!A4="","",Clubs!A4) -> C.B.2000 CERDANYOLA
D28: =IF(Clubs!A5="","",Clubs!A5) -> C.B.ALBA
D29: =IF(Clubs!A6="","",Clubs!A6) -> C.B.BANYOLES
D30: =IF(Clubs!A7="","",Clubs!A7) -> C.B.BARCELONA
D31: =IF(Clubs!A8="","",Clubs!A8) -> C.B.BLANES
D32: =IF(Clubs!A9="","",Clubs!A9) -> C.B.CANET DE MAR
D33: =IF(Clubs!A10="","",Clubs!A10) -> C.B.L'AMISTAT MOLLERUSSA
D34: =IF(Clubs!A11="","",Clubs!A11) -> C.B.LLEIDA
D35: =IF(Clubs!A12="","",Clubs!A12) -> C.B.LLIÇÀ D'AMUNT
D36: =IF(Clubs!A13="","",Clubs!A13) -> C.B.LLINARS
D37: =IF(Clubs!A14="","",Clubs!A14) -> C.B.MANRESA
D38: =IF(Clubs!A15="","",Clubs!A15) -> C.B.MATADEPERA
D39: =IF(Clubs!A16="","",Clubs!A16) -> C.B.MATARÓ
D40: =IF(Clubs!A17="","",Clubs!A17) -> C.B.MOLLET
D41: =IF(Clubs!A18="","",Clubs!A18) -> C.B.MONFORTE
D42: =IF(Clubs!A19="","",Clubs!A19) -> C.B.MONT-ROIG
D43: =IF(Clubs!A20="","",Clubs!A20) -> C.B.MONTMELÓ
D44: =IF(Clubs!A21="","",Clubs!A21) -> C.B.OLESA
D45: =IF(Clubs!A22="","",Clubs!A22) -> C.B.PRAT
D46: =IF(Clubs!A23="","",Clubs!A23) -> C.B.PREMIÀ
D47: =IF(Clubs!A24="","",Clubs!A24) -> C.B.PUNT D'ATAC
D48: =IF(Clubs!A25="","",Clubs!A25) -> C.B.SANT ADRIÀ
D49: =IF(Clubs!A26="","",Clubs!A26) -> C.B.SANT BOI
D50: =IF(Clubs!A27="","",Clubs!A27) -> C.B.SANT FELIU
D51: =IF(Clubs!A28="","",Clubs!A28) -> C.B.SANTS
D52: =IF(Clubs!A29="","",Clubs!A29) -> C.B.TARRAGONA
D53: =IF(Clubs!A30="","",Clubs!A30) -> C.B.VIC
D54: =IF(Clubs!A31="","",Clubs!A31) -> C.B.VILANOVA
D55: =IF(Clubs!A32="","",Clubs!A32) -> DANY'ELLS C.B.
D56: =IF(Clubs!A33="","",Clubs!A33) -> S.B. EL CASINET MASNOU
D57: =IF(Clubs!A34="","",Clubs!A34) -> S.B. GEiEG
D58: =IF(Clubs!A35="","",Clubs!A35) -> S.B.CORAL COLÓN
D59: =IF(Clubs!A36="","",Clubs!A36) -> S.B.F.MOLINS
D60: =IF(Clubs!A37="","",Clubs!A37) -> S.B.LA COLMENA
D61: =IF(Clubs!A38="","",Clubs!A38) -> S.B.LA GRAN PENYA
D62: =IF(Clubs!A39="","",Clubs!A39) -> S.B.P.E.CENTELLES
D63: =IF(Clubs!A40="","",Clubs!A40) -> S.E.CASAL CERVERA
D64: =IF(Clubs!A41="","",Clubs!A41) -> 
D65: =IF(Clubs!A42="","",Clubs!A42) -> 
D66: =IF(Clubs!A43="","",Clubs!A43) -> 
D67: =IF(Clubs!A44="","",Clubs!A44) -> 
D68: =IF(Clubs!A45="","",Clubs!A45) -> 
D69: =IF(Clubs!A46="","",Clubs!A46) -> 
D70: =IF(Clubs!A47="","",Clubs!A47) -> 
D71: =IF(Clubs!A48="","",Clubs!A48) -> 
D72: =IF(Clubs!A49="","",Clubs!A49) -> 
D73: =IF(Clubs!A50="","",Clubs!A50) -> 
D74: =IF(Clubs!A51="","",Clubs!A51) -> 
D75: =IF(Clubs!A52="","",Clubs!A52) -> 

Sheet Participants
B2: =IF(Inici!B2="INTRODUIR EN MAIÚSCULES EL NOM DE L'OPEN","Introduiu el nom de l'Open a la pantalla d'Inici!!!",Inici!B2) -> Introduiu el nom de l'Open a la pantalla d'Inici!!! | I2: Anar a: | J2: Inici
I3: Rànquing Inicial
B4: INTRODUCCIÓ DE PARTICIPANTS DE L'OPEN | I4: Organigrama
I5: Horaris
B6: Ompliu únicament els espais en groc. En cas de que un jugador no tingui rànquing català, introduir el registre existent de la seva mitjana general i definir el seu rànquing con a definitiu, per tal d'establir la seva posició al rànquing inicial. Màxim nombre de jugadors: 128
B10: Posició | C10: Jugador | D10: Club | E10: Rànquing | F10: Tipus Rànquing | G10: Punts/mitjana
B11: =IF(C11="","",1) -> 1 | C11: JUGADOR 1 | D11: CLUB JUGADOR 1 | E11: 1 | F11: Definitiu | G11: 1000
B12: =IF(C12="","",B11+1) -> 2 | C12: JUGADOR 2 | D12: CLUB JUGADOR 2 | E12: 2 | F12: Definitiu | G12: =G11-1 -> 999
B13: =IF(C13="","",B12+1) -> 3 | C13: JUGADOR 3 | D13: CLUB JUGADOR 3 | E13: 3 | F13: Definitiu | G13: 998
B14: 4 | C14: JUGADOR 4 | D14: CLUB JUGADOR 4 | E14: 4 | F14: Definitiu | G14: 997
B15: 5 | C15: JUGADOR 5 | D15: CLUB JUGADOR 5 | E15: 5 | F15: Definitiu | G15: 996
B16: 6 | C16: JUGADOR 6 | D16: CLUB JUGADOR 6 | E16: 6 | F16: Definitiu | G16: 995
B17: 7 | C17: JUGADOR 7 | D17: CLUB JUGADOR 7 | E17: 7 | F17: Definitiu | G17: 994
B18: 8 | C18: JUGADOR 8 | D18: CLUB JUGADOR 8 | E18: 8 | F18: Definitiu | G18: 993
B19: 9 | C19: JUGADOR 9 | D19: CLUB JUGADOR 9 | E19: 9 | F19: Definitiu | G19: 992
B20: 10 | C20: JUGADOR 10 | D20: CLUB JUGADOR 10 | E20: 10 | F20: Definitiu | G20: 991
B21: 11 | C21: JUGADOR 11 | D21: CLUB JUGADOR 11 | E21: 11 | F21: Definitiu | G21: 990
B22: 12 | C22: JUGADOR 12 | D22: CLUB JUGADOR 12 | E22: 12 | F22: Definitiu | G22: 989
B23: 13 | C23: JUGADOR 13 | D23: CLUB JUGADOR 13 | E23: 13 | F23: Definitiu | G23: 988
B24: 14 | C24: JUGADOR 14 | D24: CLUB JUGADOR 14 | E24: 14 | F24: Definitiu | G24: 987
B25: 15 | C25: JUGADOR 15 | D25: CLUB JUGADOR 15 | E25: 15 | F25: Definitiu | G25: 986
B26: 16 | C26: JUGADOR 16 | D26: CLUB JUGADOR 16 | E26: 16 | F26: Definitiu | G26: 985
B27: 17 | C27: JUGADOR 17 | D27: CLUB JUGADOR 17 | E27: 17 | F27: Definitiu | G27: 984
B28: 18 | C28: JUGADOR 18 | D28: CLUB JUGADOR 18 | E28: 18 | F28: Definitiu | G28: 983
B29: 19 | C29: JUGADOR 19 | D29: CLUB JUGADOR 19 | E29: 19 | F29: Definitiu | G29: 982
B30: 20 | C30: JUGADOR 20 | D30: CLUB JUGADOR 20 | E30: 20 | F30: Definitiu | G30: 981
B31: 21 | C31: JUGADOR 21 | D31: CLUB JUGADOR 21 | E31: 21 | F31: Definitiu | G31: 980
B32: 22 | C32: JUGADOR 22 | D32: CLUB JUGADOR 22 | E32: 22 | F32: Definitiu | G32: 979
B33: 23 | C33: JUGADOR 23 | D33: CLUB JUGADOR 23 | E33: 23 | F33: Definitiu | G33: 978
B34: 24 | C34: JUGADOR 24 | D34: CLUB JUGADOR 24 | E34: 24 | F34: Definitiu | G34: 977
B35: 25 | C35: JUGADOR 25 | D35: CLUB JUGADOR 25 | E35: 25 | F35: Definitiu | G35: 976
B36: 26 | C36: JUGADOR 26 | D36: CLUB JUGADOR 26 | E36: 26 | F36: Definitiu | G36: 975
B37: 27 | C37: JUGADOR 27 | D37: CLUB JUGADOR 27 | E37: 27 | F37: Definitiu | G37: 974
B38: 28 | C38: JUGADOR 28 | D38: CLUB JUGADOR 28 | E38: 28 | F38: Definitiu | G38: 973
B39: 29 | C39: JUGADOR 29 | D39: CLUB JUGADOR 29 | E39: 29 | F39: Definitiu | G39: 972
B40: 30 | C40: JUGADOR 30 | D40: CLUB JUGADOR 30 | E40: 30 | F40: Definitiu | G40: 971
B41: 31 | C41: JUGADOR 31 | D41: CLUB JUGADOR 31 | E41: 31 | F41: Definitiu | G41: 970
B42: 32 | C42: JUGADOR 32 | D42: CLUB JUGADOR 32 | E42: 32 | F42: Definitiu | G42: 969
B43: 33 | C43: JUGADOR 33 | D43: CLUB JUGADOR 33 | E43: 33 | F43: Definitiu | G43: 968
B44: 34 | C44: JUGADOR 34 | D44: CLUB JUGADOR 34 | E44: 34 | F44: Definitiu | G44: 967
B45: 35 | C45: JUGADOR 35 | D45: CLUB JUGADOR 35 | E45: 35 | F45: Definitiu | G45: 966
B46: 36 | C46: JUGADOR 36 | D46: CLUB JUGADOR 36 | E46: 36 | F46: Definitiu | G46: 965
B47: 37 | C47: JUGADOR 37 | D47: CLUB JUGADOR 37 | E47: 37 | F47: Definitiu | G47: 964
B48: 38 | C48: JUGADOR 38 | D48: CLUB JUGADOR 38 | E48: 38 | F48: Definitiu | G48: 963
B49: 39 | C49: JUGADOR 39 | D49: CLUB JUGADOR 39 | E49: 39 | F49: Definitiu | G49: 962
B50: 40 | C50: JUGADOR 40 | D50: CLUB JUGADOR 40 | E50: 40 | F50: Definitiu | G50: 961
B51: 41 | C51: JUGADOR 41 | D51: CLUB JUGADOR 41 | E51: 41 | F51: Definitiu | G51: 960
B52: 42 | C52: JUGADOR 42 | D52: CLUB JUGADOR 42 | E52: 42 | F52: Definitiu | G52: 959
B77: =IF(C77="","",B76+1) -> 
C172: Total jugadors | D172: =128-(COUNTBLANK(B11:B138)) -> 42 | F172: Definitiu
F173: Provisional

Sheet Rànquing Inicial
B2: =IF(Inici!B2="INTRODUIR EN MAIÚSCULES EL NOM DE L'OPEN","Introduiu el nom de l'Open a la pantalla d'Inici!!!",Inici!B2) -> Introduiu el nom de l'Open a la pantalla d'Inici!!! | I2: ANAR A PÀGINA | J2: P-P-PRÈVIA | K2: P-PRÈVIA | L2: PRÈVIA | M2: FASE FINAL
I3: Rànquing Inicial | J3: Grups PPP | K3: Grups PP | L3: Grups P | M3: Setzens | N3: Vuitens
I4: Organigrama | J4: Result PPP | K4: Result PP | L4: Result P | M4: Class SF | N4: Quarts/SF/F
I5: Horaris | J5: Classif PPP | K5: Classif PP | L5: Classif P
B8: RÀNQUING INICIAL | I8: Inici | J8: Participants
B10: Posició | C10: Jugador | D10: Club | E10: Rànquing | F10: Tipus Rànquing | G10: Punts/mitjana
B11: =IF(C11="","",1) -> 1 | C11: =IFERROR(VLOOKUP(1,Participants!$B$11:$G$138,2,FALSE),"") -> JUGADOR 1 | D11: =IFERROR(VLOOKUP(C11,Participants!$C$11:$G$138,2,FALSE),"") -> CLUB JUGADOR 1 | E11: =IFERROR(VLOOKUP(C11,Participants!$C$11:$G$138,3,FALSE),"") -> 1 | F11: =IFERROR(VLOOKUP(C11,Participants!$C$11:$G$138,4,FALSE),"") -> Definitiu | G11: =IFERROR(VLOOKUP(C11,Participants!$C$11:$G$138,5,FALSE),"") -> 1000
B12: =IF(C12="","",B11+1) -> 2 | C12: =IFERROR(VLOOKUP(2,Participants!$B$11:$G$138,2,FALSE),"") -> JUGADOR 2 | D12: =IFERROR(VLOOKUP(C12,Participants!$C$11:$G$138,2,FALSE),"") -> CLUB JUGADOR 2 | E12: =IFERROR(VLOOKUP(C12,Participants!$C$11:$G$138,3,FALSE),"") -> 2 | F12: =IFERROR(VLOOKUP(C12,Participants!$C$11:$G$138,4,FALSE),"") -> Definitiu | G12: =IFERROR(VLOOKUP(C12,Participants!$C$11:$G$138,5,FALSE),"") -> 999
B13: =IF(C13="","",B12+1) -> 3 | C13: =IFERROR(VLOOKUP(3,Participants!$B$11:$G$138,2,FALSE),"") -> JUGADOR 3 | D13: =IFERROR(VLOOKUP(C13,Participants!$C$11:$G$138,2,FALSE),"") -> CLUB JUGADOR 3 | E13: =IFERROR(VLOOKUP(C13,Participants!$C$11:$G$138,3,FALSE),"") -> 3 | F13: =IFERROR(VLOOKUP(C13,Participants!$C$11:$G$138,4,FALSE),"") -> Definitiu | G13: =IFERROR(VLOOKUP(C13,Participants!$C$11:$G$138,5,FALSE),"") -> 998
B14: =IF(C14="","",B13+1) -> 4 | C14: =IFERROR(VLOOKUP(4,Participants!$B$11:$G$138,2,FALSE),"") -> JUGADOR 4 | D14: =IFERROR(VLOOKUP(C14,Participants!$C$11:$G$138,2,FALSE),"") -> CLUB JUGADOR 4 | E14: =IFERROR(VLOOKUP(C14,Participants!$C$11:$G$138,3,FALSE),"") -> 4 | F14: =IFERROR(VLOOKUP(C14,Participants!$C$11:$G$138,4,FALSE),"") -> Definitiu | G14: =IFERROR(VLOOKUP(C14,Participants!$C$11:$G$138,5,FALSE),"") -> 997
B15: 5 | C15: =IFERROR(VLOOKUP(5,Participants!$B$11:$G$138,2,FALSE),"") -> JUGADOR 5 | D15: =IFERROR(VLOOKUP(C15,Participants!$C$11:$G$138,2,FALSE),"") -> CLUB JUGADOR 5 | E15: =IFERROR(VLOOKUP(C15,Participants!$C$11:$G$138,3,FALSE),"") -> 5 | F15: =IFERROR(VLOOKUP(C15,Participants!$C$11:$G$138,4,FALSE),"") -> Definitiu | G15: =IFERROR(VLOOKUP(C15,Participants!$C$11:$G$138,5,FALSE),"") -> 996
B16: 6 | C16: =IFERROR(VLOOKUP(6,Participants!$B$11:$G$138,2,FALSE),"") -> JUGADOR 6 | D16: =IFERROR(VLOOKUP(C16,Participants!$C$11:$G$138,2,FALSE),"") -> CLUB JUGADOR 6 | E16: =IFERROR(VLOOKUP(C16,Participants!$C$11:$G$138,3,FALSE),"") -> 6 | F16: =IFERROR(VLOOKUP(C16,Participants!$C$11:$G$138,4,FALSE),"") -> Definitiu | G16: =IFERROR(VLOOKUP(C16,Participants!$C$11:$G$138,5,FALSE),"") -> 995
B17: 7 | C17: =IFERROR(VLOOKUP(7,Participants!$B$11:$G$138,2,FALSE),"") -> JUGADOR 7 | D17: =IFERROR(VLOOKUP(C17,Participants!$C$11:$G$138,2,FALSE),"") -> CLUB JUGADOR 7 | E17: =IFERROR(VLOOKUP(C17,Participants!$C$11:$G$138,3,FALSE),"") -> 7 | F17: =IFERROR(VLOOKUP(C17,Participants!$C$11:$G$138,4,FALSE),"") -> Definitiu | G17: =IFERROR(VLOOKUP(C17,Participants!$C$11:$G$138,5,FALSE),"") -> 994
B18: 8 | C18: =IFERROR(VLOOKUP(8,Participants!$B$11:$G$138,2,FALSE),"") -> JUGADOR 8 | D18: =IFERROR(VLOOKUP(C18,Participants!$C$11:$G$138,2,FALSE),"") -> CLUB JUGADOR 8 | E18: =IFERROR(VLOOKUP(C18,Participants!$C$11:$G$138,3,FALSE),"") -> 8 | F18: =IFERROR(VLOOKUP(C18,Participants!$C$11:$G$138,4,FALSE),"") -> Definitiu | G18: =IFERROR(VLOOKUP(C18,Participants!$C$11:$G$138,5,FALSE),"") -> 993
B19: 9 | C19: =IFERROR(VLOOKUP(9,Participants!$B$11:$G$138,2,FALSE),"") -> JUGADOR 9 | D19: =IFERROR(VLOOKUP(C19,Participants!$C$11:$G$138,2,FALSE),"") -> CLUB JUGADOR 9 | E19: =IFERROR(VLOOKUP(C19,Participants!$C$11:$G$138,3,FALSE),"") -> 9 | F19: =IFERROR(VLOOKUP(C19,Participants!$C$11:$G$138,4,FALSE),"") -> Definitiu | G19: =IFERROR(VLOOKUP(C19,Participants!$C$11:$G$138,5,FALSE),"") -> 992
B20: 10 | C20: =IFERROR(VLOOKUP(10,Participants!$B$11:$G$138,2,FALSE),"") -> JUGADOR 10 | D20: =IFERROR(VLOOKUP(C20,Participants!$C$11:$G$138,2,FALSE),"") -> CLUB JUGADOR 10 | E20: =IFERROR(VLOOKUP(C20,Participants!$C$11:$G$138,3,FALSE),"") -> 10 | F20: =IFERROR(VLOOKUP(C20,Participants!$C$11:$G$138,4,FALSE),"") -> Definitiu | G20: =IFERROR(VLOOKUP(C20,Participants!$C$11:$G$138,5,FALSE),"") -> 991
B21: 11 | C21: =IFERROR(VLOOKUP(11,Participants!$B$11:$G$138,2,FALSE),"") -> JUGADOR 11 | D21: =IFERROR(VLOOKUP(C21,Participants!$C$11:$G$138,2,FALSE),"") -> CLUB JUGADOR 11 | E21: =IFERROR(VLOOKUP(C21,Participants!$C$11:$G$138,3,FALSE),"") -> 11 | F21: =IFERROR(VLOOKUP(C21,Participants!$C$11:$G$138,4,FALSE),"") -> Definitiu | G21: =IFERROR(VLOOKUP(C21,Participants!$C$11:$G$138,5,FALSE),"") -> 990
B22: 12 | C22: =IFERROR(VLOOKUP(12,Participants!$B$11:$G$138,2,FALSE),"") -> JUGADOR 12 | D22: =IFERROR(VLOOKUP(C22,Participants!$C$11:$G$138,2,FALSE),"") -> CLUB JUGADOR 12 | E22: =IFERROR(VLOOKUP(C22,Participants!$C$11:$G$138,3,FALSE),"") -> 12 | F22: =IFERROR(VLOOKUP(C22,Participants!$C$11:$G$138,4,FALSE),"") -> Definitiu | G22: =IFERROR(VLOOKUP(C22,Participants!$C$11:$G$138,5,FALSE),"") -> 989
B23: 13 | C23: =IFERROR(VLOOKUP(13,Participants!$B$11:$G$138,2,FALSE),"") -> JUGADOR 13 | D23: =IFERROR(VLOOKUP(C23,Participants!$C$11:$G$138,2,FALSE),"") -> CLUB JUGADOR 13 | E23: =IFERROR(VLOOKUP(C23,Participants!$C$11:$G$138,3,FALSE),"") -> 13 | F23: =IFERROR(VLOOKUP(C23,Participants!$C$11:$G$138,4,FALSE),"") -> Definitiu | G23: =IFERROR(VLOOKUP(C23,Participants!$C$11:$G$138,5,FALSE),"") -> 988
B24: 14 | C24: =IFERROR(VLOOKUP(14,Participants!$B$11:$G$138,2,FALSE),"") -> JUGADOR 14 | D24: =IFERROR(VLOOKUP(C24,Participants!$C$11:$G$138,2,FALSE),"") -> CLUB JUGADOR 14 | E24: =IFERROR(VLOOKUP(C24,Participants!$C$11:$G$138,3,FALSE),"") -> 14 | F24: =IFERROR(VLOOKUP(C24,Participants!$C$11:$G$138,4,FALSE),"") -> Definitiu | G24: =IFERROR(VLOOKUP(C24,Participants!$C$11:$G$138,5,FALSE),"") -> 987
B25: 15 | C25: =IFERROR(VLOOKUP(15,Participants!$B$11:$G$138,2,FALSE),"") -> JUGADOR 15 | D25: =IFERROR(VLOOKUP(C25,Participants!$C$11:$G$138,2,FALSE),"") -> CLUB JUGADOR 15 | E25: =IFERROR(VLOOKUP(C25,Participants!$C$11:$G$138,3,FALSE),"") -> 15 | F25: =IFERROR(VLOOKUP(C25,Participants!$C$11:$G$138,4,FALSE),"") -> Definitiu | G25: =IFERROR(VLOOKUP(C25,Participants!$C$11:$G$138,5,FALSE),"") -> 986
B26: 16 | C26: =IFERROR(VLOOKUP(16,Participants!$B$11:$G$138,2,FALSE),"") -> JUGADOR 16 | D26: =IFERROR(VLOOKUP(C26,Participants!$C$11:$G$138,2,FALSE),"") -> CLUB JUGADOR 16 | E26: =IFERROR(VLOOKUP(C26,Participants!$C$11:$G$138,3,FALSE),"") -> 16 | F26: =IFERROR(VLOOKUP(C26,Participants!$C$11:$G$138,4,FALSE),"") -> Definitiu | G26: =IFERROR(VLOOKUP(C26,Participants!$C$11:$G$138,5,FALSE),"") -> 985
B27: 17 | C27: =IFERROR(VLOOKUP(17,Participants!$B$11:$G$138,2,FALSE),"") -> JUGADOR 17 | D27: =IFERROR(VLOOKUP(C27,Participants!$C$11:$G$138,2,FALSE),"") -> CLUB JUGADOR 17 | E27: =IFERROR(VLOOKUP(C27,Participants!$C$11:$G$138,3,FALSE),"") -> 17 | F27: =IFERROR(VLOOKUP(C27,Participants!$C$11:$G$138,4,FALSE),"") -> Definitiu | G27: =IFERROR(VLOOKUP(C27,Participants!$C$11:$G$138,5,FALSE),"") -> 984
B28: 18 | C28: =IFERROR(VLOOKUP(18,Participants!$B$11:$G$138,2,FALSE),"") -> JUGADOR 18 | D28: =IFERROR(VLOOKUP(C28,Participants!$C$11:$G$138,2,FALSE),"") -> CLUB JUGADOR 18 | E28: =IFERROR(VLOOKUP(C28,Participants!$C$11:$G$138,3,FALSE),"") -> 18 | F28: =IFERROR(VLOOKUP(C28,Participants!$C$11:$G$138,4,FALSE),"") -> Definitiu | G28: =IFERROR(VLOOKUP(C28,Participants!$C$11:$G$138,5,FALSE),"") -> 983
B29: 19 | C29: =IFERROR(VLOOKUP(19,Participants!$B$11:$G$138,2,FALSE),"") -> JUGADOR 19 | D29: =IFERROR(VLOOKUP(C29,Participants!$C$11:$G$138,2,FALSE),"") -> CLUB JUGADOR 19 | E29: =IFERROR(VLOOKUP(C29,Participants!$C$11:$G$138,3,FALSE),"") -> 19 | F29: =IFERROR(VLOOKUP(C29,Participants!$C$11:$G$138,4,FALSE),"") -> Definitiu | G29: =IFERROR(VLOOKUP(C29,Participants!$C$11:$G$138,5,FALSE),"") -> 982
B30: 20 | C30: =IFERROR(VLOOKUP(20,Participants!$B$11:$G$138,2,FALSE),"") -> JUGADOR 20 | D30: =IFERROR(VLOOKUP(C30,Participants!$C$11:$G$138,2,FALSE),"") -> CLUB JUGADOR 20 | E30: =IFERROR(VLOOKUP(C30,Participants!$C$11:$G$138,3,FALSE),"") -> 20 | F30: =IFERROR(VLOOKUP(C30,Participants!$C$11:$G$138,4,FALSE),"") -> Definitiu | G30: =IFERROR(VLOOKUP(C30,Participants!$C$11:$G$138,5,FALSE),"") -> 981
B31: 21 | C31: =IFERROR(VLOOKUP(21,Participants!$B$11:$G$138,2,FALSE),"") -> JUGADOR 21 | D31: =IFERROR(VLOOKUP(C31,Participants!$C$11:$G$138,2,FALSE),"") -> CLUB JUGADOR 21 | E31: =IFERROR(VLOOKUP(C31,Participants!$C$11:$G$138,3,FALSE),"") -> 21 | F31: =IFERROR(VLOOKUP(C31,Participants!$C$11:$G$138,4,FALSE),"") -> Definitiu | G31: =IFERROR(VLOOKUP(C31,Participants!$C$11:$G$138,5,FALSE),"") -> 980
B32: 22 | C32: =IFERROR(VLOOKUP(22,Participants!$B$11:$G$138,2,FALSE),"") -> JUGADOR 22 | D32: =IFERROR(VLOOKUP(C32,Participants!$C$11:$G$138,2,FALSE),"") -> CLUB JUGADOR 22 | E32: =IFERROR(VLOOKUP(C32,Participants!$C$11:$G$138,3,FALSE),"") -> 22 | F32: =IFERROR(VLOOKUP(C32,Participants!$C$11:$G$138,4,FALSE),"") -> Definitiu | G32: =IFERROR(VLOOKUP(C32,Participants!$C$11:$G$138,5,FALSE),"") -> 979
B33: 23 | C33: =IFERROR(VLOOKUP(23,Participants!$B$11:$G$138,2,FALSE),"") -> JUGADOR 23 | D33: =IFERROR(VLOOKUP(C33,Participants!$C$11:$G$138,2,FALSE),"") -> CLUB JUGADOR 23 | E33: =IFERROR(VLOOKUP(C33,Participants!$C$11:$G$138,3,FALSE),"") -> 23 | F33: =IFERROR(VLOOKUP(C33,Participants!$C$11:$G$138,4,FALSE),"") -> Definitiu | G33: =IFERROR(VLOOKUP(C33,Participants!$C$11:$G$138,5,FALSE),"") -> 978
B34: 24 | C34: =IFERROR(VLOOKUP(24,Participants!$B$11:$G$138,2,FALSE),"") -> JUGADOR 24 | D34: =IFERROR(VLOOKUP(C34,Participants!$C$11:$G$138,2,FALSE),"") -> CLUB JUGADOR 24 | E34: =IFERROR(VLOOKUP(C34,Participants!$C$11:$G$138,3,FALSE),"") -> 24 | F34: =IFERROR(VLOOKUP(C34,Participants!$C$11:$G$138,4,FALSE),"") -> Definitiu | G34: =IFERROR(VLOOKUP(C34,Participants!$C$11:$G$138,5,FALSE),"") -> 977
B35: 25 | C35: =IFERROR(VLOOKUP(25,Participants!$B$11:$G$138,2,FALSE),"") -> JUGADOR 25 | D35: =IFERROR(VLOOKUP(C35,Participants!$C$11:$G$138,2,FALSE),"") -> CLUB JUGADOR 25 | E35: =IFERROR(VLOOKUP(C35,Participants!$C$11:$G$138,3,FALSE),"") -> 25 | F35: =IFERROR(VLOOKUP(C35,Participants!$C$11:$G$138,4,FALSE),"") -> Definitiu | G35: =IFERROR(VLOOKUP(C35,Participants!$C$11:$G$138,5,FALSE),"") -> 976
B36: 26 | C36: =IFERROR(VLOOKUP(26,Participants!$B$11:$G$138,2,FALSE),"") -> JUGADOR 26 | D36: =IFERROR(VLOOKUP(C36,Participants!$C$11:$G$138,2,FALSE),"") -> CLUB JUGADOR 26 | E36: =IFERROR(VLOOKUP(C36,Participants!$C$11:$G$138,3,FALSE),"") -> 26 | F36: =IFERROR(VLOOKUP(C36,Participants!$C$11:$G$138,4,FALSE),"") -> Definitiu | G36: =IFERROR(VLOOKUP(C36,Participants!$C$11:$G$138,5,FALSE),"") -> 975
B37: 27 | C37: =IFERROR(VLOOKUP(27,Participants!$B$11:$G$138,2,FALSE),"") -> JUGADOR 27 | D37: =IFERROR(VLOOKUP(C37,Participants!$C$11:$G$138,2,FALSE),"") -> CLUB JUGADOR 27 | E37: =IFERROR(VLOOKUP(C37,Participants!$C$11:$G$138,3,FALSE),"") -> 27 | F37: =IFERROR(VLOOKUP(C37,Participants!$C$11:$G$138,4,FALSE),"") -> Definitiu | G37: =IFERROR(VLOOKUP(C37,Participants!$C$11:$G$138,5,FALSE),"") -> 974
B38: 28 | C38: =IFERROR(VLOOKUP(28,Participants!$B$11:$G$138,2,FALSE),"") -> JUGADOR 28 | D38: =IFERROR(VLOOKUP(C38,Participants!$C$11:$G$138,2,FALSE),"") -> CLUB JUGADOR 28 | E38: =IFERROR(VLOOKUP(C38,Participants!$C$11:$G$138,3,FALSE),"") -> 28 | F38: =IFERROR(VLOOKUP(C38,Participants!$C$11:$G$138,4,FALSE),"") -> Definitiu | G38: =IFERROR(VLOOKUP(C38,Participants!$C$11:$G$138,5,FALSE),"") -> 973
B39: 29 | C39: =IFERROR(VLOOKUP(29,Participants!$B$11:$G$138,2,FALSE),"") -> JUGADOR 29 | D39: =IFERROR(VLOOKUP(C39,Participants!$C$11:$G$138,2,FALSE),"") -> CLUB JUGADOR 29 | E39: =IFERROR(VLOOKUP(C39,Participants!$C$11:$G$138,3,FALSE),"") -> 29 | F39: =IFERROR(VLOOKUP(C39,Participants!$C$11:$G$138,4,FALSE),"") -> Definitiu | G39: =IFERROR(VLOOKUP(C39,Participants!$C$11:$G$138,5,FALSE),"") -> 972
B40: 30 | C40: =IFERROR(VLOOKUP(30,Participants!$B$11:$G$138,2,FALSE),"") -> JUGADOR 30 | D40: =IFERROR(VLOOKUP(C40,Participants!$C$11:$G$138,2,FALSE),"") -> CLUB JUGADOR 30 | E40: =IFERROR(VLOOKUP(C40,Participants!$C$11:$G$138,3,FALSE),"") -> 30 | F40: =IFERROR(VLOOKUP(C40,Participants!$C$11:$G$138,4,FALSE),"") -> Definitiu | G40: =IFERROR(VLOOKUP(C40,Participants!$C$11:$G$138,5,FALSE),"") -> 971
B41: 31 | C41: =IFERROR(VLOOKUP(31,Participants!$B$11:$G$138,2,FALSE),"") -> JUGADOR 31 | D41: =IFERROR(VLOOKUP(C41,Participants!$C$11:$G$138,2,FALSE),"") -> CLUB JUGADOR 31 | E41: =IFERROR(VLOOKUP(C41,Participants!$C$11:$G$138,3,FALSE),"") -> 31 | F41: =IFERROR(VLOOKUP(C41,Participants!$C$11:$G$138,4,FALSE),"") -> Definitiu | G41: =IFERROR(VLOOKUP(C41,Participants!$C$11:$G$138,5,FALSE),"") -> 970
B42: 32 | C42: =IFERROR(VLOOKUP(32,Participants!$B$11:$G$138,2,FALSE),"") -> JUGADOR 32 | D42: =IFERROR(VLOOKUP(C42,Participants!$C$11:$G$138,2,FALSE),"") -> CLUB JUGADOR 32 | E42: =IFERROR(VLOOKUP(C42,Participants!$C$11:$G$138,3,FALSE),"") -> 32 | F42: =IFERROR(VLOOKUP(C42,Participants!$C$11:$G$138,4,FALSE),"") -> Definitiu | G42: =IFERROR(VLOOKUP(C42,Participants!$C$11:$G$138,5,FALSE),"") -> 969
B43: 33 | C43: =IFERROR(VLOOKUP(33,Participants!$B$11:$G$138,2,FALSE),"") -> JUGADOR 33 | D43: =IFERROR(VLOOKUP(C43,Participants!$C$11:$G$138,2,FALSE),"") -> CLUB JUGADOR 33 | E43: =IFERROR(VLOOKUP(C43,Participants!$C$11:$G$138,3,FALSE),"") -> 33 | F43: =IFERROR(VLOOKUP(C43,Participants!$C$11:$G$138,4,FALSE),"") -> Definitiu | G43: =IFERROR(VLOOKUP(C43,Participants!$C$11:$G$138,5,FALSE),"") -> 968
B44: 34 | C44: =IFERROR(VLOOKUP(34,Participants!$B$11:$G$138,2,FALSE),"") -> JUGADOR 34 | D44: =IFERROR(VLOOKUP(C44,Participants!$C$11:$G$138,2,FALSE),"") -> CLUB JUGADOR 34 | E44: =IFERROR(VLOOKUP(C44,Participants!$C$11:$G$138,3,FALSE),"") -> 34 | F44: =IFERROR(VLOOKUP(C44,Participants!$C$11:$G$138,4,FALSE),"") -> Definitiu | G44: =IFERROR(VLOOKUP(C44,Participants!$C$11:$G$138,5,FALSE),"") -> 967
B45: 35 | C45: =IFERROR(VLOOKUP(35,Participants!$B$11:$G$138,2,FALSE),"") -> JUGADOR 35 | D45: =IFERROR(VLOOKUP(C45,Participants!$C$11:$G$138,2,FALSE),"") -> CLUB JUGADOR 35 | E45: =IFERROR(VLOOKUP(C45,Participants!$C$11:$G$138,3,FALSE),"") -> 35 | F45: =IFERROR(VLOOKUP(C45,Participants!$C$11:$G$138,4,FALSE),"") -> Definitiu | G45: =IFERROR(VLOOKUP(C45,Participants!$C$11:$G$138,5,FALSE),"") -> 966
B46: 36 | C46: =IFERROR(VLOOKUP(36,Participants!$B$11:$G$138,2,FALSE),"") -> JUGADOR 36 | D46: =IFERROR(VLOOKUP(C46,Participants!$C$11:$G$138,2,FALSE),"") -> CLUB JUGADOR 36 | E46: =IFERROR(VLOOKUP(C46,Participants!$C$11:$G$138,3,FALSE),"") -> 36 | F46: =IFERROR(VLOOKUP(C46,Participants!$C$11:$G$138,4,FALSE),"") -> Definitiu | G46: =IFERROR(VLOOKUP(C46,Participants!$C$11:$G$138,5,FALSE),"") -> 965
B47: 37 | C47: =IFERROR(VLOOKUP(37,Participants!$B$11:$G$138,2,FALSE),"") -> JUGADOR 37 | D47: =IFERROR(VLOOKUP(C47,Participants!$C$11:$G$138,2,FALSE),"") -> CLUB JUGADOR 37 | E47: =IFERROR(VLOOKUP(C47,Participants!$C$11:$G$138,3,FALSE),"") -> 37 | F47: =IFERROR(VLOOKUP(C47,Participants!$C$11:$G$138,4,FALSE),"") -> Definitiu | G47: =IFERROR(VLOOKUP(C47,Participants!$C$11:$G$138,5,FALSE),"") -> 964
B48: 38 | C48: =IFERROR(VLOOKUP(38,Participants!$B$11:$G$138,2,FALSE),"") -> JUGADOR 38 | D48: =IFERROR(VLOOKUP(C48,Participants!$C$11:$G$138,2,FALSE),"") -> CLUB JUGADOR 38 | E48: =IFERROR(VLOOKUP(C48,Participants!$C$11:$G$138,3,FALSE),"") -> 38 | F48: =IFERROR(VLOOKUP(C48,Participants!$C$11:$G$138,4,FALSE),"") -> Definitiu | G48: =IFERROR(VLOOKUP(C48,Participants!$C$11:$G$138,5,FALSE),"") -> 963
B49: 39 | C49: =IFERROR(VLOOKUP(39,Participants!$B$11:$G$138,2,FALSE),"") -> JUGADOR 39 | D49: =IFERROR(VLOOKUP(C49,Participants!$C$11:$G$138,2,FALSE),"") -> CLUB JUGADOR 39 | E49: =IFERROR(VLOOKUP(C49,Participants!$C$11:$G$138,3,FALSE),"") -> 39 | F49: =IFERROR(VLOOKUP(C49,Participants!$C$11:$G$138,4,FALSE),"") -> Definitiu | G49: =IFERROR(VLOOKUP(C49,Participants!$C$11:$G$138,5,FALSE),"") -> 962
B50: 40 | C50: =IFERROR(VLOOKUP(40,Participants!$B$11:$G$138,2,FALSE),"") -> JUGADOR 40 | D50: =IFERROR(VLOOKUP(C50,Participants!$C$11:$G$138,2,FALSE),"") -> CLUB JUGADOR 40 | E50: =IFERROR(VLOOKUP(C50,Participants!$C$11:$G$138,3,FALSE),"") -> 40 | F50: =IFERROR(VLOOKUP(C50,Participants!$C$11:$G$138,4,FALSE),"") -> Definitiu | G50: =IFERROR(VLOOKUP(C50,Participants!$C$11:$G$138,5,FALSE),"") -> 961
B51: 41 | C51: =IFERROR(VLOOKUP(41,Participants!$B$11:$G$138,2,FALSE),"") -> JUGADOR 41 | D51: =IFERROR(VLOOKUP(C51,Participants!$C$11:$G$138,2,FALSE),"") -> CLUB JUGADOR 41 | E51: =IFERROR(VLOOKUP(C51,Participants!$C$11:$G$138,3,FALSE),"") -> 41 | F51: =IFERROR(VLOOKUP(C51,Participants!$C$11:$G$138,4,FALSE),"") -> Definitiu | G51: =IFERROR(VLOOKUP(C51,Participants!$C$11:$G$138,5,FALSE),"") -> 960
B52: 42 | C52: =IFERROR(VLOOKUP(42,Participants!$B$11:$G$138,2,FALSE),"") -> JUGADOR 42 | D52: =IFERROR(VLOOKUP(C52,Participants!$C$11:$G$138,2,FALSE),"") -> CLUB JUGADOR 42 | E52: =IFERROR(VLOOKUP(C52,Participants!$C$11:$G$138,3,FALSE),"") -> 42 | F52: =IFERROR(VLOOKUP(C52,Participants!$C$11:$G$138,4,FALSE),"") -> Definitiu | G52: =IFERROR(VLOOKUP(C52,Participants!$C$11:$G$138,5,FALSE),"") -> 959
C53: =IFERROR(VLOOKUP(43,Participants!$B$11:$G$138,2,FALSE),"") ->  | D53: =IFERROR(VLOOKUP(C53,Participants!$C$11:$G$138,2,FALSE),"") ->  | E53: =IFERROR(VLOOKUP(C53,Participants!$C$11:$G$138,3,FALSE),"") ->  | F53: =IFERROR(VLOOKUP(C53,Participants!$C$11:$G$138,4,FALSE),"") ->  | G53: =IFERROR(VLOOKUP(C53,Participants!$C$11:$G$138,5,FALSE),"") -> 
C54: =IFERROR(VLOOKUP(44,Participants!$B$11:$G$138,2,FALSE),"") ->  | D54: =IFERROR(VLOOKUP(C54,Participants!$C$11:$G$138,2,FALSE),"") ->  | E54: =IFERROR(VLOOKUP(C54,Participants!$C$11:$G$138,3,FALSE),"") ->  | F54: =IFERROR(VLOOKUP(C54,Participants!$C$11:$G$138,4,FALSE),"") ->  | G54: =IFERROR(VLOOKUP(C54,Participants!$C$11:$G$138,5,FALSE),"") -> 
C55: =IFERROR(VLOOKUP(45,Participants!$B$11:$G$138,2,FALSE),"") ->  | D55: =IFERROR(VLOOKUP(C55,Participants!$C$11:$G$138,2,FALSE),"") ->  | E55: =IFERROR(VLOOKUP(C55,Participants!$C$11:$G$138,3,FALSE),"") ->  | F55: =IFERROR(VLOOKUP(C55,Participants!$C$11:$G$138,4,FALSE),"") ->  | G55: =IFERROR(VLOOKUP(C55,Participants!$C$11:$G$138,5,FALSE),"") -> 
C56: =IFERROR(VLOOKUP(46,Participants!$B$11:$G$138,2,FALSE),"") ->  | D56: =IFERROR(VLOOKUP(C56,Participants!$C$11:$G$138,2,FALSE),"") ->  | E56: =IFERROR(VLOOKUP(C56,Participants!$C$11:$G$138,3,FALSE),"") ->  | F56: =IFERROR(VLOOKUP(C56,Participants!$C$11:$G$138,4,FALSE),"") ->  | G56: =IFERROR(VLOOKUP(C56,Participants!$C$11:$G$138,5,FALSE),"") -> 
C57: =IFERROR(VLOOKUP(47,Participants!$B$11:$G$138,2,FALSE),"") ->  | D57: =IFERROR(VLOOKUP(C57,Participants!$C$11:$G$138,2,FALSE),"") ->  | E57: =IFERROR(VLOOKUP(C57,Participants!$C$11:$G$138,3,FALSE),"") ->  | F57: =IFERROR(VLOOKUP(C57,Participants!$C$11:$G$138,4,FALSE),"") ->  | G57: =IFERROR(VLOOKUP(C57,Participants!$C$11:$G$138,5,FALSE),"") -> 
C58: =IFERROR(VLOOKUP(48,Participants!$B$11:$G$138,2,FALSE),"") ->  | D58: =IFERROR(VLOOKUP(C58,Participants!$C$11:$G$138,2,FALSE),"") ->  | E58: =IFERROR(VLOOKUP(C58,Participants!$C$11:$G$138,3,FALSE),"") ->  | F58: =IFERROR(VLOOKUP(C58,Participants!$C$11:$G$138,4,FALSE),"") ->  | G58: =IFERROR(VLOOKUP(C58,Participants!$C$11:$G$138,5,FALSE),"") -> 
C59: =IFERROR(VLOOKUP(49,Participants!$B$11:$G$138,2,FALSE),"") ->  | D59: =IFERROR(VLOOKUP(C59,Participants!$C$11:$G$138,2,FALSE),"") ->  | E59: =IFERROR(VLOOKUP(C59,Participants!$C$11:$G$138,3,FALSE),"") ->  | F59: =IFERROR(VLOOKUP(C59,Participants!$C$11:$G$138,4,FALSE),"") ->  | G59: =IFERROR(VLOOKUP(C59,Participants!$C$11:$G$138,5,FALSE),"") -> 
C60: =IFERROR(VLOOKUP(50,Participants!$B$11:$G$138,2,FALSE),"") ->  | D60: =IFERROR(VLOOKUP(C60,Participants!$C$11:$G$138,2,FALSE),"") ->  | E60: =IFERROR(VLOOKUP(C60,Participants!$C$11:$G$138,3,FALSE),"") ->  | F60: =IFERROR(VLOOKUP(C60,Participants!$C$11:$G$138,4,FALSE),"") ->  | G60: =IFERROR(VLOOKUP(C60,Participants!$C$11:$G$138,5,FALSE),"") -> 
C61: =IFERROR(VLOOKUP(51,Participants!$B$11:$G$138,2,FALSE),"") ->  | D61: =IFERROR(VLOOKUP(C61,Participants!$C$11:$G$138,2,FALSE),"") ->  | E61: =IFERROR(VLOOKUP(C61,Participants!$C$11:$G$138,3,FALSE),"") ->  | F61: =IFERROR(VLOOKUP(C61,Participants!$C$11:$G$138,4,FALSE),"") ->  | G61: =IFERROR(VLOOKUP(C61,Participants!$C$11:$G$138,5,FALSE),"") -> 
C62: =IFERROR(VLOOKUP(52,Participants!$B$11:$G$138,2,FALSE),"") ->  | D62: =IFERROR(VLOOKUP(C62,Participants!$C$11:$G$138,2,FALSE),"") ->  | E62: =IFERROR(VLOOKUP(C62,Participants!$C$11:$G$138,3,FALSE),"") ->  | F62: =IFERROR(VLOOKUP(C62,Participants!$C$11:$G$138,4,FALSE),"") ->  | G62: =IFERROR(VLOOKUP(C62,Participants!$C$11:$G$138,5,FALSE),"") -> 
C63: =IFERROR(VLOOKUP(53,Participants!$B$11:$G$138,2,FALSE),"") ->  | D63: =IFERROR(VLOOKUP(C63,Participants!$C$11:$G$138,2,FALSE),"") ->  | E63: =IFERROR(VLOOKUP(C63,Participants!$C$11:$G$138,3,FALSE),"") ->  | F63: =IFERROR(VLOOKUP(C63,Participants!$C$11:$G$138,4,FALSE),"") ->  | G63: =IFERROR(VLOOKUP(C63,Participants!$C$11:$G$138,5,FALSE),"") -> 
C64: =IFERROR(VLOOKUP(54,Participants!$B$11:$G$138,2,FALSE),"") ->  | D64: =IFERROR(VLOOKUP(C64,Participants!$C$11:$G$138,2,FALSE),"") ->  | E64: =IFERROR(VLOOKUP(C64,Participants!$C$11:$G$138,3,FALSE),"") ->  | F64: =IFERROR(VLOOKUP(C64,Participants!$C$11:$G$138,4,FALSE),"") ->  | G64: =IFERROR(VLOOKUP(C64,Participants!$C$11:$G$138,5,FALSE),"") -> 
C65: =IFERROR(VLOOKUP(55,Participants!$B$11:$G$138,2,FALSE),"") ->  | D65: =IFERROR(VLOOKUP(C65,Participants!$C$11:$G$138,2,FALSE),"") ->  | E65: =IFERROR(VLOOKUP(C65,Participants!$C$11:$G$138,3,FALSE),"") ->  | F65: =IFERROR(VLOOKUP(C65,Participants!$C$11:$G$138,4,FALSE),"") ->  | G65: =IFERROR(VLOOKUP(C65,Participants!$C$11:$G$138,5,FALSE),"") -> 
C66: =IFERROR(VLOOKUP(56,Participants!$B$11:$G$138,2,FALSE),"") ->  | D66: =IFERROR(VLOOKUP(C66,Participants!$C$11:$G$138,2,FALSE),"") ->  | E66: =IFERROR(VLOOKUP(C66,Participants!$C$11:$G$138,3,FALSE),"") ->  | F66: =IFERROR(VLOOKUP(C66,Participants!$C$11:$G$138,4,FALSE),"") ->  | G66: =IFERROR(VLOOKUP(C66,Participants!$C$11:$G$138,5,FALSE),"") -> 
C67: =IFERROR(VLOOKUP(57,Participants!$B$11:$G$138,2,FALSE),"") ->  | D67: =IFERROR(VLOOKUP(C67,Participants!$C$11:$G$138,2,FALSE),"") ->  | E67: =IFERROR(VLOOKUP(C67,Participants!$C$11:$G$138,3,FALSE),"") ->  | F67: =IFERROR(VLOOKUP(C67,Participants!$C$11:$G$138,4,FALSE),"") ->  | G67: =IFERROR(VLOOKUP(C67,Participants!$C$11:$G$138,5,FALSE),"") -> 
C68: =IFERROR(VLOOKUP(58,Participants!$B$11:$G$138,2,FALSE),"") ->  | D68: =IFERROR(VLOOKUP(C68,Participants!$C$11:$G$138,2,FALSE),"") ->  | E68: =IFERROR(VLOOKUP(C68,Participants!$C$11:$G$138,3,FALSE),"") ->  | F68: =IFERROR(VLOOKUP(C68,Participants!$C$11:$G$138,4,FALSE),"") ->  | G68: =IFERROR(VLOOKUP(C68,Participants!$C$11:$G$138,5,FALSE),"") -> 
C69: =IFERROR(VLOOKUP(59,Participants!$B$11:$G$138,2,FALSE),"") ->  | D69: =IFERROR(VLOOKUP(C69,Participants!$C$11:$G$138,2,FALSE),"") ->  | E69: =IFERROR(VLOOKUP(C69,Participants!$C$11:$G$138,3,FALSE),"") ->  | F69: =IFERROR(VLOOKUP(C69,Participants!$C$11:$G$138,4,FALSE),"") ->  | G69: =IFERROR(VLOOKUP(C69,Participants!$C$11:$G$138,5,FALSE),"") -> 
C70: =IFERROR(VLOOKUP(60,Participants!$B$11:$G$138,2,FALSE),"") ->  | D70: =IFERROR(VLOOKUP(C70,Participants!$C$11:$G$138,2,FALSE),"") ->  | E70: =IFERROR(VLOOKUP(C70,Participants!$C$11:$G$138,3,FALSE),"") ->  | F70: =IFERROR(VLOOKUP(C70,Participants!$C$11:$G$138,4,FALSE),"") ->  | G70: =IFERROR(VLOOKUP(C70,Participants!$C$11:$G$138,5,FALSE),"") -> 
C71: =IFERROR(VLOOKUP(61,Participants!$B$11:$G$138,2,FALSE),"") ->  | D71: =IFERROR(VLOOKUP(C71,Participants!$C$11:$G$138,2,FALSE),"") ->  | E71: =IFERROR(VLOOKUP(C71,Participants!$C$11:$G$138,3,FALSE),"") ->  | F71: =IFERROR(VLOOKUP(C71,Participants!$C$11:$G$138,4,FALSE),"") ->  | G71: =IFERROR(VLOOKUP(C71,Participants!$C$11:$G$138,5,FALSE),"") -> 
C72: =IFERROR(VLOOKUP(62,Participants!$B$11:$G$138,2,FALSE),"") ->  | D72: =IFERROR(VLOOKUP(C72,Participants!$C$11:$G$138,2,FALSE),"") ->  | E72: =IFERROR(VLOOKUP(C72,Participants!$C$11:$G$138,3,FALSE),"") ->  | F72: =IFERROR(VLOOKUP(C72,Participants!$C$11:$G$138,4,FALSE),"") ->  | G72: =IFERROR(VLOOKUP(C72,Participants!$C$11:$G$138,5,FALSE),"") -> 
C73: =IFERROR(VLOOKUP(63,Participants!$B$11:$G$138,2,FALSE),"") ->  | D73: =IFERROR(VLOOKUP(C73,Participants!$C$11:$G$138,2,FALSE),"") ->  | E73: =IFERROR(VLOOKUP(C73,Participants!$C$11:$G$138,3,FALSE),"") ->  | F73: =IFERROR(VLOOKUP(C73,Participants!$C$11:$G$138,4,FALSE),"") ->  | G73: =IFERROR(VLOOKUP(C73,Participants!$C$11:$G$138,5,FALSE),"") -> 
C74: =IFERROR(VLOOKUP(64,Participants!$B$11:$G$138,2,FALSE),"") ->  | D74: =IFERROR(VLOOKUP(C74,Participants!$C$11:$G$138,2,FALSE),"") ->  | E74: =IFERROR(VLOOKUP(C74,Participants!$C$11:$G$138,3,FALSE),"") ->  | F74: =IFERROR(VLOOKUP(C74,Participants!$C$11:$G$138,4,FALSE),"") ->  | G74: =IFERROR(VLOOKUP(C74,Participants!$C$11:$G$138,5,FALSE),"") -> 
C75: =IFERROR(VLOOKUP(65,Participants!$B$11:$G$138,2,FALSE),"") ->  | D75: =IFERROR(VLOOKUP(C75,Participants!$C$11:$G$138,2,FALSE),"") ->  | E75: =IFERROR(VLOOKUP(C75,Participants!$C$11:$G$138,3,FALSE),"") ->  | F75: =IFERROR(VLOOKUP(C75,Participants!$C$11:$G$138,4,FALSE),"") ->  | G75: =IFERROR(VLOOKUP(C75,Participants!$C$11:$G$138,5,FALSE),"") -> 
C76: =IFERROR(VLOOKUP(66,Participants!$B$11:$G$138,2,FALSE),"") ->  | D76: =IFERROR(VLOOKUP(C76,Participants!$C$11:$G$138,2,FALSE),"") ->  | E76: =IFERROR(VLOOKUP(C76,Participants!$C$11:$G$138,3,FALSE),"") ->  | F76: =IFERROR(VLOOKUP(C76,Participants!$C$11:$G$138,4,FALSE),"") ->  | G76: =IFERROR(VLOOKUP(C76,Participants!$C$11:$G$138,5,FALSE),"") -> 
C77: =IFERROR(VLOOKUP(67,Participants!$B$11:$G$138,2,FALSE),"") ->  | D77: =IFERROR(VLOOKUP(C77,Participants!$C$11:$G$138,2,FALSE),"") ->  | E77: =IFERROR(VLOOKUP(C77,Participants!$C$11:$G$138,3,FALSE),"") ->  | F77: =IFERROR(VLOOKUP(C77,Participants!$C$11:$G$138,4,FALSE),"") ->  | G77: =IFERROR(VLOOKUP(C77,Participants!$C$11:$G$138,5,FALSE),"") -> 
B78: =IF(C78="","",B77+1) ->  | C78: =IFERROR(VLOOKUP(68,Participants!$B$11:$G$138,2,FALSE),"") ->  | D78: =IFERROR(VLOOKUP(C78,Participants!$C$11:$G$138,2,FALSE),"") ->  | E78: =IFERROR(VLOOKUP(C78,Participants!$C$11:$G$138,3,FALSE),"") ->  | F78: =IFERROR(VLOOKUP(C78,Participants!$C$11:$G$138,4,FALSE),"") ->  | G78: =IFERROR(VLOOKUP(C78,Participants!$C$11:$G$138,5,FALSE),"") -> 
C79: =IFERROR(VLOOKUP(69,Participants!$B$11:$G$138,2,FALSE),"") ->  | D79: =IFERROR(VLOOKUP(C79,Participants!$C$11:$G$138,2,FALSE),"") ->  | E79: =IFERROR(VLOOKUP(C79,Participants!$C$11:$G$138,3,FALSE),"") ->  | F79: =IFERROR(VLOOKUP(C79,Participants!$C$11:$G$138,4,FALSE),"") ->  | G79: =IFERROR(VLOOKUP(C79,Participants!$C$11:$G$138,5,FALSE),"") -> 
C80: =IFERROR(VLOOKUP(70,Participants!$B$11:$G$138,2,FALSE),"") ->  | D80: =IFERROR(VLOOKUP(C80,Participants!$C$11:$G$138,2,FALSE),"") ->  | E80: =IFERROR(VLOOKUP(C80,Participants!$C$11:$G$138,3,FALSE),"") ->  | F80: =IFERROR(VLOOKUP(C80,Participants!$C$11:$G$138,4,FALSE),"") ->  | G80: =IFERROR(VLOOKUP(C80,Participants!$C$11:$G$138,5,FALSE),"") -> 
C81: =IFERROR(VLOOKUP(71,Participants!$B$11:$G$138,2,FALSE),"") ->  | D81: =IFERROR(VLOOKUP(C81,Participants!$C$11:$G$138,2,FALSE),"") ->  | E81: =IFERROR(VLOOKUP(C81,Participants!$C$11:$G$138,3,FALSE),"") ->  | F81: =IFERROR(VLOOKUP(C81,Participants!$C$11:$G$138,4,FALSE),"") ->  | G81: =IFERROR(VLOOKUP(C81,Participants!$C$11:$G$138,5,FALSE),"") -> 
C82: =IFERROR(VLOOKUP(72,Participants!$B$11:$G$138,2,FALSE),"") ->  | D82: =IFERROR(VLOOKUP(C82,Participants!$C$11:$G$138,2,FALSE),"") ->  | E82: =IFERROR(VLOOKUP(C82,Participants!$C$11:$G$138,3,FALSE),"") ->  | F82: =IFERROR(VLOOKUP(C82,Participants!$C$11:$G$138,4,FALSE),"") ->  | G82: =IFERROR(VLOOKUP(C82,Participants!$C$11:$G$138,5,FALSE),"") -> 
C83: =IFERROR(VLOOKUP(73,Participants!$B$11:$G$138,2,FALSE),"") ->  | D83: =IFERROR(VLOOKUP(C83,Participants!$C$11:$G$138,2,FALSE),"") ->  | E83: =IFERROR(VLOOKUP(C83,Participants!$C$11:$G$138,3,FALSE),"") ->  | F83: =IFERROR(VLOOKUP(C83,Participants!$C$11:$G$138,4,FALSE),"") ->  | G83: =IFERROR(VLOOKUP(C83,Participants!$C$11:$G$138,5,FALSE),"") -> 
C84: =IFERROR(VLOOKUP(74,Participants!$B$11:$G$138,2,FALSE),"") ->  | D84: =IFERROR(VLOOKUP(C84,Participants!$C$11:$G$138,2,FALSE),"") ->  | E84: =IFERROR(VLOOKUP(C84,Participants!$C$11:$G$138,3,FALSE),"") ->  | F84: =IFERROR(VLOOKUP(C84,Participants!$C$11:$G$138,4,FALSE),"") ->  | G84: =IFERROR(VLOOKUP(C84,Participants!$C$11:$G$138,5,FALSE),"") -> 
C85: =IFERROR(VLOOKUP(75,Participants!$B$11:$G$138,2,FALSE),"") ->  | D85: =IFERROR(VLOOKUP(C85,Participants!$C$11:$G$138,2,FALSE),"") ->  | E85: =IFERROR(VLOOKUP(C85,Participants!$C$11:$G$138,3,FALSE),"") ->  | F85: =IFERROR(VLOOKUP(C85,Participants!$C$11:$G$138,4,FALSE),"") ->  | G85: =IFERROR(VLOOKUP(C85,Participants!$C$11:$G$138,5,FALSE),"") -> 
C86: =IFERROR(VLOOKUP(76,Participants!$B$11:$G$138,2,FALSE),"") ->  | D86: =IFERROR(VLOOKUP(C86,Participants!$C$11:$G$138,2,FALSE),"") ->  | E86: =IFERROR(VLOOKUP(C86,Participants!$C$11:$G$138,3,FALSE),"") ->  | F86: =IFERROR(VLOOKUP(C86,Participants!$C$11:$G$138,4,FALSE),"") ->  | G86: =IFERROR(VLOOKUP(C86,Participants!$C$11:$G$138,5,FALSE),"") -> 
C87: =IFERROR(VLOOKUP(77,Participants!$B$11:$G$138,2,FALSE),"") ->  | D87: =IFERROR(VLOOKUP(C87,Participants!$C$11:$G$138,2,FALSE),"") ->  | E87: =IFERROR(VLOOKUP(C87,Participants!$C$11:$G$138,3,FALSE),"") ->  | F87: =IFERROR(VLOOKUP(C87,Participants!$C$11:$G$138,4,FALSE),"") ->  | G87: =IFERROR(VLOOKUP(C87,Participants!$C$11:$G$138,5,FALSE),"") -> 
C88: =IFERROR(VLOOKUP(78,Participants!$B$11:$G$138,2,FALSE),"") ->  | D88: =IFERROR(VLOOKUP(C88,Participants!$C$11:$G$138,2,FALSE),"") ->  | E88: =IFERROR(VLOOKUP(C88,Participants!$C$11:$G$138,3,FALSE),"") ->  | F88: =IFERROR(VLOOKUP(C88,Participants!$C$11:$G$138,4,FALSE),"") ->  | G88: =IFERROR(VLOOKUP(C88,Participants!$C$11:$G$138,5,FALSE),"") -> 
C89: =IFERROR(VLOOKUP(79,Participants!$B$11:$G$138,2,FALSE),"") ->  | D89: =IFERROR(VLOOKUP(C89,Participants!$C$11:$G$138,2,FALSE),"") ->  | E89: =IFERROR(VLOOKUP(C89,Participants!$C$11:$G$138,3,FALSE),"") ->  | F89: =IFERROR(VLOOKUP(C89,Participants!$C$11:$G$138,4,FALSE),"") ->  | G89: =IFERROR(VLOOKUP(C89,Participants!$C$11:$G$138,5,FALSE),"") -> 
C90: =IFERROR(VLOOKUP(80,Participants!$B$11:$G$138,2,FALSE),"") ->  | D90: =IFERROR(VLOOKUP(C90,Participants!$C$11:$G$138,2,FALSE),"") ->  | E90: =IFERROR(VLOOKUP(C90,Participants!$C$11:$G$138,3,FALSE),"") ->  | F90: =IFERROR(VLOOKUP(C90,Participants!$C$11:$G$138,4,FALSE),"") ->  | G90: =IFERROR(VLOOKUP(C90,Participants!$C$11:$G$138,5,FALSE),"") -> 
C91: =IFERROR(VLOOKUP(81,Participants!$B$11:$G$138,2,FALSE),"") ->  | D91: =IFERROR(VLOOKUP(C91,Participants!$C$11:$G$138,2,FALSE),"") ->  | E91: =IFERROR(VLOOKUP(C91,Participants!$C$11:$G$138,3,FALSE),"") ->  | F91: =IFERROR(VLOOKUP(C91,Participants!$C$11:$G$138,4,FALSE),"") ->  | G91: =IFERROR(VLOOKUP(C91,Participants!$C$11:$G$138,5,FALSE),"") -> 
C92: =IFERROR(VLOOKUP(82,Participants!$B$11:$G$138,2,FALSE),"") ->  | D92: =IFERROR(VLOOKUP(C92,Participants!$C$11:$G$138,2,FALSE),"") ->  | E92: =IFERROR(VLOOKUP(C92,Participants!$C$11:$G$138,3,FALSE),"") ->  | F92: =IFERROR(VLOOKUP(C92,Participants!$C$11:$G$138,4,FALSE),"") ->  | G92: =IFERROR(VLOOKUP(C92,Participants!$C$11:$G$138,5,FALSE),"") -> 
C93: =IFERROR(VLOOKUP(83,Participants!$B$11:$G$138,2,FALSE),"") ->  | D93: =IFERROR(VLOOKUP(C93,Participants!$C$11:$G$138,2,FALSE),"") ->  | E93: =IFERROR(VLOOKUP(C93,Participants!$C$11:$G$138,3,FALSE),"") ->  | F93: =IFERROR(VLOOKUP(C93,Participants!$C$11:$G$138,4,FALSE),"") ->  | G93: =IFERROR(VLOOKUP(C93,Participants!$C$11:$G$138,5,FALSE),"") -> 
C94: =IFERROR(VLOOKUP(84,Participants!$B$11:$G$138,2,FALSE),"") ->  | D94: =IFERROR(VLOOKUP(C94,Participants!$C$11:$G$138,2,FALSE),"") ->  | E94: =IFERROR(VLOOKUP(C94,Participants!$C$11:$G$138,3,FALSE),"") ->  | F94: =IFERROR(VLOOKUP(C94,Participants!$C$11:$G$138,4,FALSE),"") ->  | G94: =IFERROR(VLOOKUP(C94,Participants!$C$11:$G$138,5,FALSE),"") -> 
C95: =IFERROR(VLOOKUP(85,Participants!$B$11:$G$138,2,FALSE),"") ->  | D95: =IFERROR(VLOOKUP(C95,Participants!$C$11:$G$138,2,FALSE),"") ->  | E95: =IFERROR(VLOOKUP(C95,Participants!$C$11:$G$138,3,FALSE),"") ->  | F95: =IFERROR(VLOOKUP(C95,Participants!$C$11:$G$138,4,FALSE),"") ->  | G95: =IFERROR(VLOOKUP(C95,Participants!$C$11:$G$138,5,FALSE),"") -> 
C96: =IFERROR(VLOOKUP(86,Participants!$B$11:$G$138,2,FALSE),"") ->  | D96: =IFERROR(VLOOKUP(C96,Participants!$C$11:$G$138,2,FALSE),"") ->  | E96: =IFERROR(VLOOKUP(C96,Participants!$C$11:$G$138,3,FALSE),"") ->  | F96: =IFERROR(VLOOKUP(C96,Participants!$C$11:$G$138,4,FALSE),"") ->  | G96: =IFERROR(VLOOKUP(C96,Participants!$C$11:$G$138,5,FALSE),"") -> 
C97: =IFERROR(VLOOKUP(87,Participants!$B$11:$G$138,2,FALSE),"") ->  | D97: =IFERROR(VLOOKUP(C97,Participants!$C$11:$G$138,2,FALSE),"") ->  | E97: =IFERROR(VLOOKUP(C97,Participants!$C$11:$G$138,3,FALSE),"") ->  | F97: =IFERROR(VLOOKUP(C97,Participants!$C$11:$G$138,4,FALSE),"") ->  | G97: =IFERROR(VLOOKUP(C97,Participants!$C$11:$G$138,5,FALSE),"") -> 
C98: =IFERROR(VLOOKUP(88,Participants!$B$11:$G$138,2,FALSE),"") ->  | D98: =IFERROR(VLOOKUP(C98,Participants!$C$11:$G$138,2,FALSE),"") ->  | E98: =IFERROR(VLOOKUP(C98,Participants!$C$11:$G$138,3,FALSE),"") ->  | F98: =IFERROR(VLOOKUP(C98,Participants!$C$11:$G$138,4,FALSE),"") ->  | G98: =IFERROR(VLOOKUP(C98,Participants!$C$11:$G$138,5,FALSE),"") -> 
C99: =IFERROR(VLOOKUP(89,Participants!$B$11:$G$138,2,FALSE),"") ->  | D99: =IFERROR(VLOOKUP(C99,Participants!$C$11:$G$138,2,FALSE),"") ->  | E99: =IFERROR(VLOOKUP(C99,Participants!$C$11:$G$138,3,FALSE),"") ->  | F99: =IFERROR(VLOOKUP(C99,Participants!$C$11:$G$138,4,FALSE),"") ->  | G99: =IFERROR(VLOOKUP(C99,Participants!$C$11:$G$138,5,FALSE),"") -> 
C100: =IFERROR(VLOOKUP(90,Participants!$B$11:$G$138,2,FALSE),"") ->  | D100: =IFERROR(VLOOKUP(C100,Participants!$C$11:$G$138,2,FALSE),"") ->  | E100: =IFERROR(VLOOKUP(C100,Participants!$C$11:$G$138,3,FALSE),"") ->  | F100: =IFERROR(VLOOKUP(C100,Participants!$C$11:$G$138,4,FALSE),"") ->  | G100: =IFERROR(VLOOKUP(C100,Participants!$C$11:$G$138,5,FALSE),"") -> 
C101: =IFERROR(VLOOKUP(91,Participants!$B$11:$G$138,2,FALSE),"") ->  | D101: =IFERROR(VLOOKUP(C101,Participants!$C$11:$G$138,2,FALSE),"") ->  | E101: =IFERROR(VLOOKUP(C101,Participants!$C$11:$G$138,3,FALSE),"") ->  | F101: =IFERROR(VLOOKUP(C101,Participants!$C$11:$G$138,4,FALSE),"") ->  | G101: =IFERROR(VLOOKUP(C101,Participants!$C$11:$G$138,5,FALSE),"") -> 
C102: =IFERROR(VLOOKUP(92,Participants!$B$11:$G$138,2,FALSE),"") ->  | D102: =IFERROR(VLOOKUP(C102,Participants!$C$11:$G$138,2,FALSE),"") ->  | E102: =IFERROR(VLOOKUP(C102,Participants!$C$11:$G$138,3,FALSE),"") ->  | F102: =IFERROR(VLOOKUP(C102,Participants!$C$11:$G$138,4,FALSE),"") ->  | G102: =IFERROR(VLOOKUP(C102,Participants!$C$11:$G$138,5,FALSE),"") -> 
C103: =IFERROR(VLOOKUP(93,Participants!$B$11:$G$138,2,FALSE),"") ->  | D103: =IFERROR(VLOOKUP(C103,Participants!$C$11:$G$138,2,FALSE),"") ->  | E103: =IFERROR(VLOOKUP(C103,Participants!$C$11:$G$138,3,FALSE),"") ->  | F103: =IFERROR(VLOOKUP(C103,Participants!$C$11:$G$138,4,FALSE),"") ->  | G103: =IFERROR(VLOOKUP(C103,Participants!$C$11:$G$138,5,FALSE),"") -> 
C104: =IFERROR(VLOOKUP(94,Participants!$B$11:$G$138,2,FALSE),"") ->  | D104: =IFERROR(VLOOKUP(C104,Participants!$C$11:$G$138,2,FALSE),"") ->  | E104: =IFERROR(VLOOKUP(C104,Participants!$C$11:$G$138,3,FALSE),"") ->  | F104: =IFERROR(VLOOKUP(C104,Participants!$C$11:$G$138,4,FALSE),"") ->  | G104: =IFERROR(VLOOKUP(C104,Participants!$C$11:$G$138,5,FALSE),"") -> 
C105: =IFERROR(VLOOKUP(95,Participants!$B$11:$G$138,2,FALSE),"") ->  | D105: =IFERROR(VLOOKUP(C105,Participants!$C$11:$G$138,2,FALSE),"") ->  | E105: =IFERROR(VLOOKUP(C105,Participants!$C$11:$G$138,3,FALSE),"") ->  | F105: =IFERROR(VLOOKUP(C105,Participants!$C$11:$G$138,4,FALSE),"") ->  | G105: =IFERROR(VLOOKUP(C105,Participants!$C$11:$G$138,5,FALSE),"") -> 
C106: =IFERROR(VLOOKUP(96,Participants!$B$11:$G$138,2,FALSE),"") ->  | D106: =IFERROR(VLOOKUP(C106,Participants!$C$11:$G$138,2,FALSE),"") ->  | E106: =IFERROR(VLOOKUP(C106,Participants!$C$11:$G$138,3,FALSE),"") ->  | F106: =IFERROR(VLOOKUP(C106,Participants!$C$11:$G$138,4,FALSE),"") ->  | G106: =IFERROR(VLOOKUP(C106,Participants!$C$11:$G$138,5,FALSE),"") -> 
C107: =IFERROR(VLOOKUP(97,Participants!$B$11:$G$138,2,FALSE),"") ->  | D107: =IFERROR(VLOOKUP(C107,Participants!$C$11:$G$138,2,FALSE),"") ->  | E107: =IFERROR(VLOOKUP(C107,Participants!$C$11:$G$138,3,FALSE),"") ->  | F107: =IFERROR(VLOOKUP(C107,Participants!$C$11:$G$138,4,FALSE),"") ->  | G107: =IFERROR(VLOOKUP(C107,Participants!$C$11:$G$138,5,FALSE),"") -> 
C108: =IFERROR(VLOOKUP(98,Participants!$B$11:$G$138,2,FALSE),"") ->  | D108: =IFERROR(VLOOKUP(C108,Participants!$C$11:$G$138,2,FALSE),"") ->  | E108: =IFERROR(VLOOKUP(C108,Participants!$C$11:$G$138,3,FALSE),"") ->  | F108: =IFERROR(VLOOKUP(C108,Participants!$C$11:$G$138,4,FALSE),"") ->  | G108: =IFERROR(VLOOKUP(C108,Participants!$C$11:$G$138,5,FALSE),"") -> 
C109: =IFERROR(VLOOKUP(99,Participants!$B$11:$G$138,2,FALSE),"") ->  | D109: =IFERROR(VLOOKUP(C109,Participants!$C$11:$G$138,2,FALSE),"") ->  | E109: =IFERROR(VLOOKUP(C109,Participants!$C$11:$G$138,3,FALSE),"") ->  | F109: =IFERROR(VLOOKUP(C109,Participants!$C$11:$G$138,4,FALSE),"") ->  | G109: =IFERROR(VLOOKUP(C109,Participants!$C$11:$G$138,5,FALSE),"") -> 
C110: =IFERROR(VLOOKUP(100,Participants!$B$11:$G$138,2,FALSE),"") ->  | D110: =IFERROR(VLOOKUP(C110,Participants!$C$11:$G$138,2,FALSE),"") ->  | E110: =IFERROR(VLOOKUP(C110,Participants!$C$11:$G$138,3,FALSE),"") ->  | F110: =IFERROR(VLOOKUP(C110,Participants!$C$11:$G$138,4,FALSE),"") ->  | G110: =IFERROR(VLOOKUP(C110,Participants!$C$11:$G$138,5,FALSE),"") -> 
C111: =IFERROR(VLOOKUP(101,Participants!$B$11:$G$138,2,FALSE),"") ->  | D111: =IFERROR(VLOOKUP(C111,Participants!$C$11:$G$138,2,FALSE),"") ->  | E111: =IFERROR(VLOOKUP(C111,Participants!$C$11:$G$138,3,FALSE),"") ->  | F111: =IFERROR(VLOOKUP(C111,Participants!$C$11:$G$138,4,FALSE),"") ->  | G111: =IFERROR(VLOOKUP(C111,Participants!$C$11:$G$138,5,FALSE),"") -> 
C112: =IFERROR(VLOOKUP(102,Participants!$B$11:$G$138,2,FALSE),"") ->  | D112: =IFERROR(VLOOKUP(C112,Participants!$C$11:$G$138,2,FALSE),"") ->  | E112: =IFERROR(VLOOKUP(C112,Participants!$C$11:$G$138,3,FALSE),"") ->  | F112: =IFERROR(VLOOKUP(C112,Participants!$C$11:$G$138,4,FALSE),"") ->  | G112: =IFERROR(VLOOKUP(C112,Participants!$C$11:$G$138,5,FALSE),"") -> 
C113: =IFERROR(VLOOKUP(103,Participants!$B$11:$G$138,2,FALSE),"") ->  | D113: =IFERROR(VLOOKUP(C113,Participants!$C$11:$G$138,2,FALSE),"") ->  | E113: =IFERROR(VLOOKUP(C113,Participants!$C$11:$G$138,3,FALSE),"") ->  | F113: =IFERROR(VLOOKUP(C113,Participants!$C$11:$G$138,4,FALSE),"") ->  | G113: =IFERROR(VLOOKUP(C113,Participants!$C$11:$G$138,5,FALSE),"") -> 
C114: =IFERROR(VLOOKUP(104,Participants!$B$11:$G$138,2,FALSE),"") ->  | D114: =IFERROR(VLOOKUP(C114,Participants!$C$11:$G$138,2,FALSE),"") ->  | E114: =IFERROR(VLOOKUP(C114,Participants!$C$11:$G$138,3,FALSE),"") ->  | F114: =IFERROR(VLOOKUP(C114,Participants!$C$11:$G$138,4,FALSE),"") ->  | G114: =IFERROR(VLOOKUP(C114,Participants!$C$11:$G$138,5,FALSE),"") -> 
C115: =IFERROR(VLOOKUP(105,Participants!$B$11:$G$138,2,FALSE),"") ->  | D115: =IFERROR(VLOOKUP(C115,Participants!$C$11:$G$138,2,FALSE),"") ->  | E115: =IFERROR(VLOOKUP(C115,Participants!$C$11:$G$138,3,FALSE),"") ->  | F115: =IFERROR(VLOOKUP(C115,Participants!$C$11:$G$138,4,FALSE),"") ->  | G115: =IFERROR(VLOOKUP(C115,Participants!$C$11:$G$138,5,FALSE),"") -> 
C116: =IFERROR(VLOOKUP(106,Participants!$B$11:$G$138,2,FALSE),"") ->  | D116: =IFERROR(VLOOKUP(C116,Participants!$C$11:$G$138,2,FALSE),"") ->  | E116: =IFERROR(VLOOKUP(C116,Participants!$C$11:$G$138,3,FALSE),"") ->  | F116: =IFERROR(VLOOKUP(C116,Participants!$C$11:$G$138,4,FALSE),"") ->  | G116: =IFERROR(VLOOKUP(C116,Participants!$C$11:$G$138,5,FALSE),"") -> 
C117: =IFERROR(VLOOKUP(107,Participants!$B$11:$G$138,2,FALSE),"") ->  | D117: =IFERROR(VLOOKUP(C117,Participants!$C$11:$G$138,2,FALSE),"") ->  | E117: =IFERROR(VLOOKUP(C117,Participants!$C$11:$G$138,3,FALSE),"") ->  | F117: =IFERROR(VLOOKUP(C117,Participants!$C$11:$G$138,4,FALSE),"") ->  | G117: =IFERROR(VLOOKUP(C117,Participants!$C$11:$G$138,5,FALSE),"") -> 
C118: =IFERROR(VLOOKUP(108,Participants!$B$11:$G$138,2,FALSE),"") ->  | D118: =IFERROR(VLOOKUP(C118,Participants!$C$11:$G$138,2,FALSE),"") ->  | E118: =IFERROR(VLOOKUP(C118,Participants!$C$11:$G$138,3,FALSE),"") ->  | F118: =IFERROR(VLOOKUP(C118,Participants!$C$11:$G$138,4,FALSE),"") ->  | G118: =IFERROR(VLOOKUP(C118,Participants!$C$11:$G$138,5,FALSE),"") -> 
C119: =IFERROR(VLOOKUP(109,Participants!$B$11:$G$138,2,FALSE),"") ->  | D119: =IFERROR(VLOOKUP(C119,Participants!$C$11:$G$138,2,FALSE),"") ->  | E119: =IFERROR(VLOOKUP(C119,Participants!$C$11:$G$138,3,FALSE),"") ->  | F119: =IFERROR(VLOOKUP(C119,Participants!$C$11:$G$138,4,FALSE),"") ->  | G119: =IFERROR(VLOOKUP(C119,Participants!$C$11:$G$138,5,FALSE),"") -> 
C120: =IFERROR(VLOOKUP(110,Participants!$B$11:$G$138,2,FALSE),"") ->  | D120: =IFERROR(VLOOKUP(C120,Participants!$C$11:$G$138,2,FALSE),"") ->  | E120: =IFERROR(VLOOKUP(C120,Participants!$C$11:$G$138,3,FALSE),"") ->  | F120: =IFERROR(VLOOKUP(C120,Participants!$C$11:$G$138,4,FALSE),"") ->  | G120: =IFERROR(VLOOKUP(C120,Participants!$C$11:$G$138,5,FALSE),"") -> 
C121: =IFERROR(VLOOKUP(111,Participants!$B$11:$G$138,2,FALSE),"") ->  | D121: =IFERROR(VLOOKUP(C121,Participants!$C$11:$G$138,2,FALSE),"") ->  | E121: =IFERROR(VLOOKUP(C121,Participants!$C$11:$G$138,3,FALSE),"") ->  | F121: =IFERROR(VLOOKUP(C121,Participants!$C$11:$G$138,4,FALSE),"") ->  | G121: =IFERROR(VLOOKUP(C121,Participants!$C$11:$G$138,5,FALSE),"") -> 
C122: =IFERROR(VLOOKUP(112,Participants!$B$11:$G$138,2,FALSE),"") ->  | D122: =IFERROR(VLOOKUP(C122,Participants!$C$11:$G$138,2,FALSE),"") ->  | E122: =IFERROR(VLOOKUP(C122,Participants!$C$11:$G$138,3,FALSE),"") ->  | F122: =IFERROR(VLOOKUP(C122,Participants!$C$11:$G$138,4,FALSE),"") ->  | G122: =IFERROR(VLOOKUP(C122,Participants!$C$11:$G$138,5,FALSE),"") -> 
C123: =IFERROR(VLOOKUP(113,Participants!$B$11:$G$138,2,FALSE),"") ->  | D123: =IFERROR(VLOOKUP(C123,Participants!$C$11:$G$138,2,FALSE),"") ->  | E123: =IFERROR(VLOOKUP(C123,Participants!$C$11:$G$138,3,FALSE),"") ->  | F123: =IFERROR(VLOOKUP(C123,Participants!$C$11:$G$138,4,FALSE),"") ->  | G123: =IFERROR(VLOOKUP(C123,Participants!$C$11:$G$138,5,FALSE),"") -> 
C124: =IFERROR(VLOOKUP(114,Participants!$B$11:$G$138,2,FALSE),"") ->  | D124: =IFERROR(VLOOKUP(C124,Participants!$C$11:$G$138,2,FALSE),"") ->  | E124: =IFERROR(VLOOKUP(C124,Participants!$C$11:$G$138,3,FALSE),"") ->  | F124: =IFERROR(VLOOKUP(C124,Participants!$C$11:$G$138,4,FALSE),"") ->  | G124: =IFERROR(VLOOKUP(C124,Participants!$C$11:$G$138,5,FALSE),"") -> 
C125: =IFERROR(VLOOKUP(115,Participants!$B$11:$G$138,2,FALSE),"") ->  | D125: =IFERROR(VLOOKUP(C125,Participants!$C$11:$G$138,2,FALSE),"") ->  | E125: =IFERROR(VLOOKUP(C125,Participants!$C$11:$G$138,3,FALSE),"") ->  | F125: =IFERROR(VLOOKUP(C125,Participants!$C$11:$G$138,4,FALSE),"") ->  | G125: =IFERROR(VLOOKUP(C125,Participants!$C$11:$G$138,5,FALSE),"") -> 
C126: =IFERROR(VLOOKUP(116,Participants!$B$11:$G$138,2,FALSE),"") ->  | D126: =IFERROR(VLOOKUP(C126,Participants!$C$11:$G$138,2,FALSE),"") ->  | E126: =IFERROR(VLOOKUP(C126,Participants!$C$11:$G$138,3,FALSE),"") ->  | F126: =IFERROR(VLOOKUP(C126,Participants!$C$11:$G$138,4,FALSE),"") ->  | G126: =IFERROR(VLOOKUP(C126,Participants!$C$11:$G$138,5,FALSE),"") -> 
C127: =IFERROR(VLOOKUP(117,Participants!$B$11:$G$138,2,FALSE),"") ->  | D127: =IFERROR(VLOOKUP(C127,Participants!$C$11:$G$138,2,FALSE),"") ->  | E127: =IFERROR(VLOOKUP(C127,Participants!$C$11:$G$138,3,FALSE),"") ->  | F127: =IFERROR(VLOOKUP(C127,Participants!$C$11:$G$138,4,FALSE),"") ->  | G127: =IFERROR(VLOOKUP(C127,Participants!$C$11:$G$138,5,FALSE),"") -> 
C128: =IFERROR(VLOOKUP(118,Participants!$B$11:$G$138,2,FALSE),"") ->  | D128: =IFERROR(VLOOKUP(C128,Participants!$C$11:$G$138,2,FALSE),"") ->  | E128: =IFERROR(VLOOKUP(C128,Participants!$C$11:$G$138,3,FALSE),"") ->  | F128: =IFERROR(VLOOKUP(C128,Participants!$C$11:$G$138,4,FALSE),"") ->  | G128: =IFERROR(VLOOKUP(C128,Participants!$C$11:$G$138,5,FALSE),"") -> 
C129: =IFERROR(VLOOKUP(119,Participants!$B$11:$G$138,2,FALSE),"") ->  | D129: =IFERROR(VLOOKUP(C129,Participants!$C$11:$G$138,2,FALSE),"") ->  | E129: =IFERROR(VLOOKUP(C129,Participants!$C$11:$G$138,3,FALSE),"") ->  | F129: =IFERROR(VLOOKUP(C129,Participants!$C$11:$G$138,4,FALSE),"") ->  | G129: =IFERROR(VLOOKUP(C129,Participants!$C$11:$G$138,5,FALSE),"") -> 
C130: =IFERROR(VLOOKUP(120,Participants!$B$11:$G$138,2,FALSE),"") ->  | D130: =IFERROR(VLOOKUP(C130,Participants!$C$11:$G$138,2,FALSE),"") ->  | E130: =IFERROR(VLOOKUP(C130,Participants!$C$11:$G$138,3,FALSE),"") ->  | F130: =IFERROR(VLOOKUP(C130,Participants!$C$11:$G$138,4,FALSE),"") ->  | G130: =IFERROR(VLOOKUP(C130,Participants!$C$11:$G$138,5,FALSE),"") -> 
C131: =IFERROR(VLOOKUP(121,Participants!$B$11:$G$138,2,FALSE),"") ->  | D131: =IFERROR(VLOOKUP(C131,Participants!$C$11:$G$138,2,FALSE),"") ->  | E131: =IFERROR(VLOOKUP(C131,Participants!$C$11:$G$138,3,FALSE),"") ->  | F131: =IFERROR(VLOOKUP(C131,Participants!$C$11:$G$138,4,FALSE),"") ->  | G131: =IFERROR(VLOOKUP(C131,Participants!$C$11:$G$138,5,FALSE),"") -> 
C132: =IFERROR(VLOOKUP(122,Participants!$B$11:$G$138,2,FALSE),"") ->  | D132: =IFERROR(VLOOKUP(C132,Participants!$C$11:$G$138,2,FALSE),"") ->  | E132: =IFERROR(VLOOKUP(C132,Participants!$C$11:$G$138,3,FALSE),"") ->  | F132: =IFERROR(VLOOKUP(C132,Participants!$C$11:$G$138,4,FALSE),"") ->  | G132: =IFERROR(VLOOKUP(C132,Participants!$C$11:$G$138,5,FALSE),"") -> 
C133: =IFERROR(VLOOKUP(123,Participants!$B$11:$G$138,2,FALSE),"") ->  | D133: =IFERROR(VLOOKUP(C133,Participants!$C$11:$G$138,2,FALSE),"") ->  | E133: =IFERROR(VLOOKUP(C133,Participants!$C$11:$G$138,3,FALSE),"") ->  | F133: =IFERROR(VLOOKUP(C133,Participants!$C$11:$G$138,4,FALSE),"") ->  | G133: =IFERROR(VLOOKUP(C133,Participants!$C$11:$G$138,5,FALSE),"") -> 
C134: =IFERROR(VLOOKUP(124,Participants!$B$11:$G$138,2,FALSE),"") ->  | D134: =IFERROR(VLOOKUP(C134,Participants!$C$11:$G$138,2,FALSE),"") ->  | E134: =IFERROR(VLOOKUP(C134,Participants!$C$11:$G$138,3,FALSE),"") ->  | F134: =IFERROR(VLOOKUP(C134,Participants!$C$11:$G$138,4,FALSE),"") ->  | G134: =IFERROR(VLOOKUP(C134,Participants!$C$11:$G$138,5,FALSE),"") -> 
C135: =IFERROR(VLOOKUP(125,Participants!$B$11:$G$138,2,FALSE),"") ->  | D135: =IFERROR(VLOOKUP(C135,Participants!$C$11:$G$138,2,FALSE),"") ->  | E135: =IFERROR(VLOOKUP(C135,Participants!$C$11:$G$138,3,FALSE),"") ->  | F135: =IFERROR(VLOOKUP(C135,Participants!$C$11:$G$138,4,FALSE),"") ->  | G135: =IFERROR(VLOOKUP(C135,Participants!$C$11:$G$138,5,FALSE),"") -> 
C136: =IFERROR(VLOOKUP(126,Participants!$B$11:$G$138,2,FALSE),"") ->  | D136: =IFERROR(VLOOKUP(C136,Participants!$C$11:$G$138,2,FALSE),"") ->  | E136: =IFERROR(VLOOKUP(C136,Participants!$C$11:$G$138,3,FALSE),"") ->  | F136: =IFERROR(VLOOKUP(C136,Participants!$C$11:$G$138,4,FALSE),"") ->  | G136: =IFERROR(VLOOKUP(C136,Participants!$C$11:$G$138,5,FALSE),"") -> 
C137: =IFERROR(VLOOKUP(127,Participants!$B$11:$G$138,2,FALSE),"") ->  | D137: =IFERROR(VLOOKUP(C137,Participants!$C$11:$G$138,2,FALSE),"") ->  | E137: =IFERROR(VLOOKUP(C137,Participants!$C$11:$G$138,3,FALSE),"") ->  | F137: =IFERROR(VLOOKUP(C137,Participants!$C$11:$G$138,4,FALSE),"") ->  | G137: =IFERROR(VLOOKUP(C137,Participants!$C$11:$G$138,5,FALSE),"") -> 
C138: =IFERROR(VLOOKUP(128,Participants!$B$11:$G$138,2,FALSE),"") ->  | D138: =IFERROR(VLOOKUP(C138,Participants!$C$11:$G$138,2,FALSE),"") ->  | E138: =IFERROR(VLOOKUP(C138,Participants!$C$11:$G$138,3,FALSE),"") ->  | F138: =IFERROR(VLOOKUP(C138,Participants!$C$11:$G$138,4,FALSE),"") ->  | G138: =IFERROR(VLOOKUP(C138,Participants!$C$11:$G$138,5,FALSE),"") -> 
C141: Total jugadors | D141: =128-(COUNTBLANK(C11:C138)) -> 42
C142: Reservats per a la fase final | D142: =VLOOKUP($D$141,Taules!$A$2:$J$129,2,FALSE) -> 18
C143: Classificats per a la fase final | D143: =VLOOKUP($D$141,Taules!$A$2:$J$129,4,FALSE) -> 14
C144: Juguen la prèvia | D144: =VLOOKUP($D$141,Taules!$A$2:$J$129,3,FALSE) -> 24
C145: Reservats per a la prèvia | D145: =VLOOKUP($D$141,Taules!$A$2:$J$129,5,FALSE) -> 0
C146: Classificats per a la prèvia | D146: =VLOOKUP($D$141,Taules!$A$2:$J$129,7,FALSE) -> 0
C147: Juguen la pre-prèvia | D147: =VLOOKUP($D$141,Taules!$A$2:$J$129,6,FALSE) -> 0
C148: Reservats per a la pre-prèvia | D148: =VLOOKUP($D$141,Taules!$A$2:$J$129,8,FALSE) -> 0
C149: Classificats per a la pre-prèvia | D149: =VLOOKUP(D141,Taules!$A$2:$J$129,10,FALSE) -> 0
C150: Juguen la pre-pre prèvia | D150: =VLOOKUP(D141,Taules!$A$2:$J$129,9,FALSE) -> 0

Sheet Organigrama
B2: =IF(Inici!B2="INTRODUIR EN MAIÚSCULES EL NOM DE L'OPEN","Introduiu el nom de l'Open a la pantalla d'Inici!!!",Inici!B2) -> Introduiu el nom de l'Open a la pantalla d'Inici!!! | S2: ANAR A PÀGINA | T2: P-P-PRÈVIA | U2: P-PRÈVIA | V2: PRÈVIA | W2: FASE FINAL
S3: Rànquing Inicial | T3: Grups PPP | U3: Grups PP | V3: Grups P | W3: Setzens | X3: Vuitens
S4: Organigrama | T4: Result PPP | U4: Result PP | V4: Result P | W4: Class SF | X4: Quarts/SF/F
S5: Horaris | T5: Classif PPP | U5: Classif PP | V5: Classif P
B8: ORGANIGRAMA DE LA COMPETICIÓ | S8: Inici | T8: Participants
B10: =CONCATENATE("Organització: ",Inici!D6," - ",Inici!D8) -> Organització: -
B11: =CONCATENATE("Tf: ",Inici!D10," - ","E-mail: ",Inici!D12) -> Tf: - E-mail:
B13: VESTIMENTA: Polo amb escut del club, pantaló, cinturó, mitjons i calçat negres
B15: Quarts de Final (Q) | G15: Semifinal (SF) | J15: FINAL
B16: 1-V | C16: 2-V | D16: 3-V | E16: 4-V | G16: 1-Q | H16: 2-Q | J16: 1-SF | L16: Fase final (K.O.) 40 caramboles / 50 entrades Fases prèvies: 30 caramboles / 50 entrades
B17: 8-V | C17: 7-V | D17: 6-V | E17: 5-V | G17: 4-Q | H17: 3-Q | J17: 2-SF
B19: Vuitens de Final (V)
B20: 1-S | C20: 2-S | D20: 3-S | E20: 4-S | F20: 5-S | G20: 6-S | H20: 7-S | I20: 8-S
B21: 16-S | C21: 15-S | D21: 14-S | E21: 13-S | F21: 12-S | G21: 11-S | H21: 10-S | I21: 9-S
B23: Setzens de final (S)
B24: 1 | C24: 2 | D24: 3 | E24: 4 | F24: 5 | G24: 6 | H24: 7 | I24: 8 | J24: 9 | K24: 10 | L24: 11 | M24: 12 | N24: 13 | O24: 14 | P24: 15 | Q24: 16
B25: =IF($K$27>0,CONCATENATE($K$27,"-P"),IF(B24="","",32)) -> 14-P | C25: =IF($K$27>1,CONCATENATE($K$27-1,"-P"),IF(C24="","",31)) -> 13-P | D25: =IF($K$27>2,CONCATENATE($K$27-2,"-P"),IF(D24="","",30)) -> 12-P | E25: =IF($K$27>3,CONCATENATE($K$27-3,"-P"),IF(E24="","",29)) -> 11-P | F25: =IF($K$27>4,CONCATENATE($K$27-4,"-P"),IF(F24="","",28)) -> 10-P | G25: =IF($K$27>5,CONCATENATE($K$27-5,"-P"),IF(G24="","",27)) -> 9-P | H25: =IF($K$27>6,CONCATENATE($K$27-6,"-P"),IF(H24="","",26)) -> 8-P | I25: =IF($K$27>7,CONCATENATE($K$27-7,"-P"),IF(I24="","",25)) -> 7-P | J25: =IF($K$27>8,CONCATENATE($K$27-8,"-P"),IF(J24="","",24)) -> 6-P | K25: =IF($K$27>9,CONCATENATE($K$27-9,"-P"),IF(K24="","",23)) -> 5-P | L25: =IF($K$27>10,CONCATENATE($K$27-10,"-P"),IF(L24="","",22)) -> 4-P | M25: =IF($K$27>11,CONCATENATE($K$27-11,"-P"),IF(M24="","",21)) -> 3-P | N25: =IF($K$27>12,CONCATENATE($K$27-12,"-P"),IF(N24="","",20)) -> 2-P | O25: =IF($K$27>13,CONCATENATE($K$27-13,"-P"),IF(O24="","",19)) -> 1-P | P25: =IF($K$27>14,CONCATENATE($K$27-14,"-P"),IF(P24="","",18)) -> 18 | Q25: =IF($K$27>15,CONCATENATE($K$27-15,"-P"),IF(Q24="","",17)) -> 17
B27: PRÈVIA (P) | F27: Nº jugadors: | G27: ='Rànquing Inicial'!D144 -> 24 | J27: Nº classificats: | K27: ='Rànquing Inicial'!D143 -> 14 | O27: Reservats setzens de final: | P27: ='Rànquing Inicial'!D142 -> 18
B28: =IF('Rànquing Inicial'!$D$141<33,"","A") -> A | C28: =IF('Rànquing Inicial'!$D$141<33,"","B") -> B | D28: =IF('Rànquing Inicial'!$D$141<33,"","C") -> C | E28: =IF('Rànquing Inicial'!$D$141<33,"","D") -> D | F28: =IF('Rànquing Inicial'!$D$144>12,"E","") -> E | G28: =IF('Rànquing Inicial'!$D$144>15,"F","") -> F | H28: =IF('Rànquing Inicial'!$D$144>18,"G","") -> G | I28: =IF('Rànquing Inicial'!$D$144>21,"H","") -> H | J28: =IF('Rànquing Inicial'!$D$144>24,"I","") ->  | K28: =IF('Rànquing Inicial'!$D$144>27,"J","") ->  | L28: =IF('Rànquing Inicial'!$D$144>30,"K","") ->  | M28: =IF('Rànquing Inicial'!$D$144>33,"L","") ->  | N28: =IF('Rànquing Inicial'!$D$144>36,"M","") ->  | O28: =IF('Rànquing Inicial'!$D$144>39,"N","") ->  | P28: =IF('Rànquing Inicial'!$D$144>42,"O","") ->  | Q28: =IF('Rànquing Inicial'!$D$144>45,"P","") -> 
B29: =IF('Rànquing Inicial'!D141<33,"",$P$27+1) -> 19 | C29: =IF('Rànquing Inicial'!D141<33,"",$P$27+2) -> 20 | D29: =IF('Rànquing Inicial'!D141<33,"",$P$27+3) -> 21 | E29: =IF('Rànquing Inicial'!D141<33,"",$P$27+4) -> 22 | F29: =IF($G$27<15,"",$P$27+5) -> 23 | G29: =IF($G$27<18,"",$P$27+6) -> 24 | H29: =IF($G$27<21,"",$P$27+7) -> 25 | I29: =IF($G$27<24,"",$P$27+8) -> 26 | J29: =IF($G$27<27,"",$P$27+9) ->  | K29: =IF($G$27<30,"",$P$27+10) ->  | L29: =IF($G$27<33,"",$P$27+11) ->  | M29: =IF($G$27<36,"",$P$27+12) ->  | N29: =IF($G$27<39,"",$P$27+13) ->  | O29: =IF($G$27<42,"",$P$27+14) ->  | P29: =IF($G$27<45,"",$P$27+15) ->  | Q29: =IF($G$27<48,"",$P$27+16) -> 
B30: =IF('Rànquing Inicial'!D141<33,"",C30+1) -> 34 | C30: =IF('Rànquing Inicial'!D141<33,"",D30+1) -> 33 | D30: =IF('Rànquing Inicial'!D141<33,"",E30+1) -> 32 | E30: =IF('Rànquing Inicial'!D141<33,"",IF($G$27=12,$P$27+5,F30+1)) -> 31 | F30: =IF($G$27<15,"",IF($G$27=15,$P$27+6,G30+1)) -> 30 | G30: =IF($G$27<18,"",IF($G$27=18,$P$27+7,H30+1)) -> 29 | H30: =IF($G$27<21,"",IF($G$27=21,$P$27+8,I30+1)) -> 28 | I30: =IF($G$27<24,"",IF($G$27=24,$P$27+9,J30+1)) -> 27 | J30: =IF($G$27<27,"",IF($G$27=27,$P$27+10,K30+1)) ->  | K30: =IF($G$27<30,"",IF($G$27=30,$P$27+11,L30+1)) ->  | L30: =IF($G$27<33,"",IF($G$27=33,$P$27+12,M30+1)) ->  | M30: =IF($G$27<36,"",IF($G$27=36,$P$27+13,N30+1)) ->  | N30: =IF($G$27<39,"",IF($G$27=39,$P$27+14,O30+1)) ->  | O30: =IF($G$27<42,"",IF($G$27=42,$P$27+15,P30+1)) ->  | P30: =IF($G$27<45,"",IF($G$27=45,$P$27+16,Q30+1)) ->  | Q30: =IF($G$27<48,"",$P$27+17) -> 
B31: =IF($K$33>0,CONCATENATE($K$33,"-PP"),IF(B30="","",B30+($G$27/3))) -> 42 | C31: =IF($K$33>1,CONCATENATE($K$33-1,"-PP"),IF(C30="","",C30+($G$27/3))) -> 41 | D31: =IF($K$33>2,CONCATENATE($K$33-2,"-PP"),IF(D30="","",D30+($G$27/3))) -> 40 | E31: =IF($K$33>3,CONCATENATE($K$33-3,"-PP"),IF(E30="","",E30+($G$27/3))) -> 39 | F31: =IF($K$33>4,CONCATENATE($K$33-4,"-PP"),IF(F30="","",F30+($G$27/3))) -> 38 | G31: =IF($K$33>5,CONCATENATE($K$33-5,"-PP"),IF(G30="","",G30+($G$27/3))) -> 37 | H31: =IF($K$33>6,CONCATENATE($K$33-6,"-PP"),IF(H30="","",H30+($G$27/3))) -> 36 | I31: =IF($K$33>7,CONCATENATE($K$33-7,"-PP"),IF(I30="","",I30+($G$27/3))) -> 35 | J31: =IF($K$33>8,CONCATENATE($K$33-8,"-PP"),IF(J30="","",J30+($G$27/3))) ->  | K31: =IF($K$33>9,CONCATENATE($K$33-9,"-PP"),IF(K30="","",K30+($G$27/3))) ->  | L31: =IF($K$33>10,CONCATENATE($K$33-10,"-PP"),IF(L30="","",L30+($G$27/3))) ->  | M31: =IF($K$33>11,CONCATENATE($K$33-11,"-PP"),IF(M30="","",M30+($G$27/3))) ->  | N31: =IF($K$33>12,CONCATENATE($K$33-12,"-PP"),IF(N30="","",N30+($G$27/3))) ->  | O31: =IF($K$33>13,CONCATENATE($K$33-13,"-PP"),IF(O30="","",O30+($G$27/3))) ->  | P31: =IF($K$33>14,CONCATENATE($K$33-14,"-PP"),IF(P30="","",P30+($G$27/3))) ->  | Q31: =IF($K$33>15,CONCATENATE($K$33-15,"-PP"),IF(Q30="","",Q30+($G$27/3))) -> 
B33: PRE-PRÈVIA (PP) | F33: Nº jugadors: | G33: ='Rànquing Inicial'!D147 -> 0 | J33: Nº classificats: | K33: ='Rànquing Inicial'!D146 -> 0 | O33: Reservats fase Prèvia: | P33: ='Rànquing Inicial'!D145 -> 0
B34: =IF('Rànquing Inicial'!$D$141<65,"","Q") ->  | C34: =IF('Rànquing Inicial'!$D$141<65,"","R") ->  | D34: =IF('Rànquing Inicial'!$D$141<65,"","S") ->  | E34: =IF('Rànquing Inicial'!$D$141<65,"","T") ->  | F34: =IF('Rànquing Inicial'!$D$147>12,"U","") ->  | G34: =IF('Rànquing Inicial'!$D$147>15,"V","") ->  | H34: =IF('Rànquing Inicial'!$D$147>18,"W","") ->  | I34: =IF('Rànquing Inicial'!$D$147>21,"X","") ->  | J34: =IF('Rànquing Inicial'!$D$147>24,"Y","") ->  | K34: =IF('Rànquing Inicial'!$D$147>27,"Z","") ->  | L34: =IF('Rànquing Inicial'!$D$147>30,"AA","") ->  | M34: =IF('Rànquing Inicial'!$D$147>33,"AB","") ->  | N34: =IF('Rànquing Inicial'!$D$147>36,"AC","") ->  | O34: =IF('Rànquing Inicial'!$D$147>39,"AD","") ->  | P34: =IF('Rànquing Inicial'!$D$147>42,"AE","") ->  | Q34: =IF('Rànquing Inicial'!$D$147>45,"AF","") -> 
B35: =IF('Rànquing Inicial'!D141<65,"",$P$27+$P$33+1) ->  | C35: =IF('Rànquing Inicial'!D141<65,"",$P$27+$P$33+2) ->  | D35: =IF('Rànquing Inicial'!D141<65,"",$P$27+$P$33+3) ->  | E35: =IF('Rànquing Inicial'!D141<65,"",$P$27+$P$33+4) ->  | F35: =IF($G$33<15,"",$P$27+$P$33+5) ->  | G35: =IF($G$33<18,"",$P$27+$P$33+6) ->  | H35: =IF($G$33<21,"",$P$27+$P$33+7) ->  | I35: =IF($G$33<24,"",$P$27+$P$33+8) ->  | J35: =IF($G$33<27,"",$P$27+$P$33+9) ->  | K35: =IF($G$33<30,"",$P$27+$P$33+10) ->  | L35: =IF($G$33<33,"",$P$27+$P$33+11) ->  | M35: =IF($G$33<36,"",$P$27+$P$33+12) ->  | N35: =IF($G$33<39,"",$P$27+$P$33+13) ->  | O35: =IF($G$33<42,"",$P$27+$P$33+14) ->  | P35: =IF($G$33<45,"",$P$27+$P$33+15) ->  | Q35: =IF($G$33<48,"",$P$27+$P$33+16) -> 
B36: =IF('Rànquing Inicial'!D141<65,"",C36+1) ->  | C36: =IF('Rànquing Inicial'!D141<65,"",D36+1) ->  | D36: =IF('Rànquing Inicial'!D141<65,"",E36+1) ->  | E36: =IF('Rànquing Inicial'!D141<65,"",IF($G$33=12,$P$27+P33+5,F36+1)) ->  | F36: =IF($G$33<15,"",IF($G$33=15,$P$27+$P$33+6,G36+1)) ->  | G36: =IF($G$33<18,"",IF($G$33=18,$P$27+$P$33+7,H36+1)) ->  | H36: =IF($G$33<21,"",IF($G$33=21,$P$27+$P$33+8,I36+1)) ->  | I36: =IF($G$33<24,"",IF($G$33=24,$P$27+$P$33+9,J36+1)) ->  | J36: =IF($G$33<27,"",IF($G$33=27,$P$27+$P$33+10,K36+1)) ->  | K36: =IF($G$33<30,"",IF($G$33=30,$P$27+$P$33+11,L36+1)) ->  | L36: =IF($G$33<33,"",IF($G$33=33,$P$27+$P$33+12,M36+1)) ->  | M36: =IF($G$33<36,"",IF($G$33=36,$P$27+$P$33+13,N36+1)) ->  | N36: =IF($G$33<39,"",IF($G$33=39,$P$27+$P$33+14,O36+1)) ->  | O36: =IF($G$33<42,"",IF($G$33=42,$P$27+$P$33+15,P36+1)) ->  | P36: =IF($G$33<45,"",IF($G$33=45,$P$27+$P$33+16,Q36+1)) ->  | Q36: =IF($G$33<48,"",$P$27+$P$33+17) -> 
B37: =IF($K$39>0,CONCATENATE($K$39,"-PPP"),IF(B36="","",B36+($G$33/3))) ->  | C37: =IF($K$39>1,CONCATENATE($K$39-1,"-PPP"),IF(C36="","",C36+($G$33/3))) ->  | D37: =IF($K$39>2,CONCATENATE($K$39-2,"-PPP"),IF(D36="","",D36+($G$33/3))) ->  | E37: =IF($K$39>3,CONCATENATE($K$39-3,"-PPP"),IF(E36="","",E36+($G$33/3))) ->  | F37: =IF($K$39>4,CONCATENATE($K$39-4,"-PPP"),IF(F36="","",F36+($G$33/3))) ->  | G37: =IF($K$39>5,CONCATENATE($K$39-5,"-PPP"),IF(G36="","",G36+($G$33/3))) ->  | H37: =IF($K$39>6,CONCATENATE($K$39-6,"-PPP"),IF(H36="","",H36+($G$33/3))) ->  | I37: =IF($K$39>7,CONCATENATE($K$39-7,"-PPP"),IF(I36="","",I36+($G$33/3))) ->  | J37: =IF($K$39>8,CONCATENATE($K$39-8,"-PPP"),IF(J36="","",J36+($G$33/3))) ->  | K37: =IF($K$39>9,CONCATENATE($K$39-9,"-PPP"),IF(K36="","",K36+($G$33/3))) ->  | L37: =IF($K$39>10,CONCATENATE($K$39-10,"-PPP"),IF(L36="","",L36+($G$33/3))) ->  | M37: =IF($K$39>11,CONCATENATE($K$39-11,"-PPP"),IF(M36="","",M36+($G$33/3))) ->  | N37: =IF($K$39>12,CONCATENATE($K$39-12,"-PPP"),IF(N36="","",N36+($G$33/3))) ->  | O37: =IF($K$39>13,CONCATENATE($K$39-13,"-PPP"),IF(O36="","",O36+($G$33/3))) ->  | P37: =IF($K$39>14,CONCATENATE($K$39-14,"-PPP"),IF(P36="","",P36+($G$33/3))) ->  | Q37: =IF($K$39>15,CONCATENATE($K$39-15,"-PPP"),IF(Q36="","",Q36+($G$33/3))) -> 
B39: PRE-PRE-PRÈVIA (PPP) | F39: Nº jugadors: | G39: ='Rànquing Inicial'!D150 -> 0 | J39: Nº classificats: | K39: ='Rànquing Inicial'!D149 -> 0 | O39: Reservats fase Pre-Prèvia: | P39: ='Rànquing Inicial'!D148 -> 0
B40: =IF('Rànquing Inicial'!$D$141<97,"","AG") ->  | C40: =IF('Rànquing Inicial'!$D$141<97,"","AH") ->  | D40: =IF('Rànquing Inicial'!$D$141<97,"","AI") ->  | E40: =IF('Rànquing Inicial'!$D$141<97,"","AJ") ->  | F40: =IF('Rànquing Inicial'!$D$150>12,"AK","") ->  | G40: =IF('Rànquing Inicial'!$D$150>15,"AL","") ->  | H40: =IF('Rànquing Inicial'!$D$150>18,"AM","") ->  | I40: =IF('Rànquing Inicial'!$D$150>21,"AN","") ->  | J40: =IF('Rànquing Inicial'!$D$150>24,"AO","") ->  | K40: =IF('Rànquing Inicial'!$D$150>27,"AP","") ->  | L40: =IF('Rànquing Inicial'!$D$150>30,"AQ","") ->  | M40: =IF('Rànquing Inicial'!$D$150>33,"AR","") ->  | N40: =IF('Rànquing Inicial'!$D$150>36,"AS","") ->  | O40: =IF('Rànquing Inicial'!$D$150>39,"AT","") ->  | P40: =IF('Rànquing Inicial'!$D$150>42,"AU","") ->  | Q40: =IF('Rànquing Inicial'!$D$150>45,"AV","") -> 
B41: =IF('Rànquing Inicial'!D141<97,"",$P$27+$P$33+$P$39+1) ->  | C41: =IF('Rànquing Inicial'!D141<97,"",$P$27+$P$33+$P$39+2) ->  | D41: =IF('Rànquing Inicial'!D141<97,"",$P$27+$P$33+$P$39+3) ->  | E41: =IF('Rànquing Inicial'!D141<97,"",$P$27+$P$33+$P$39+4) ->  | F41: =IF($G$39<15,"",$P$27+$P$33+$P$39+5) ->  | G41: =IF($G$39<18,"",$P$27+$P$33+$P$39+6) ->  | H41: =IF($G$39<21,"",$P$27+$P$33+$P$39+7) ->  | I41: =IF($G$39<24,"",$P$27+$P$33+$P$39+8) ->  | J41: =IF($G$39<27,"",$P$27+$P$33+$P$39+9) ->  | K41: =IF($G$39<30,"",$P$27+$P$33+$P$39+10) ->  | L41: =IF($G$39<33,"",$P$27+$P$33+$P$39+11) ->  | M41: =IF($G$39<36,"",$P$27+$P$33+$P$39+12) ->  | N41: =IF($G$39<39,"",$P$27+$P$33+$P$39+13) ->  | O41: =IF($G$39<42,"",$P$27+$P$33+$P$39+14) ->  | P41: =IF($G$39<45,"",$P$27+$P$33+$P$39+15) ->  | Q41: =IF($G$39<48,"",$P$27+$P$33+$P$39+16) -> 
B42: =IF('Rànquing Inicial'!D141<97,"",C42+1) ->  | C42: =IF('Rànquing Inicial'!D141<97,"",D42+1) ->  | D42: =IF('Rànquing Inicial'!D141<97,"",E42+1) ->  | E42: =IF('Rànquing Inicial'!D141<97,"",IF($G$39=12,$P$27+$P$33+$P$39+5,F42+1)) ->  | F42: =IF($G$39<15,"",IF($G$39=15,$P$27+$P$33+$P$39+6,G42+1)) ->  | G42: =IF($G$39<18,"",IF($G$39=18,$P$27+$P$33+$P$39+7,H42+1)) ->  | H42: =IF($G$39<21,"",IF($G$39=21,$P$27+$P$33+$P$39+8,I42+1)) ->  | I42: =IF($G$39<24,"",IF($G$39=24,$P$27+$P$33+$P$39+9,J42+1)) ->  | J42: =IF($G$39<27,"",IF($G$39=27,$P$27+$P$33+$P$39+10,K42+1)) ->  | K42: =IF($G$39<30,"",IF($G$39=30,$P$27+$P$33+$P$39+11,L42+1)) ->  | L42: =IF($G$39<33,"",IF($G$39=33,$P$27+$P$33+$P$39+12,M42+1)) ->  | M42: =IF($G$39<36,"",IF($G$39=36,$P$27+$P$33+$P$39+13,N42+1)) ->  | N42: =IF($G$39<39,"",IF($G$39=39,$P$27+$P$33+$P$39+14,O42+1)) ->  | O42: =IF($G$39<42,"",IF($G$39=42,$P$27+$P$33+$P$39+15,P42+1)) ->  | P42: =IF($G$39<45,"",IF($G$39=45,$P$27+$P$33+$P$39+16,Q42+1)) ->  | Q42: =IF($G$39<48,"",$P$27+$P$33+$P$39+17) -> 
B43: =IF(B42="","",B42+($G$39/3)) -> 

Sheet Horaris
B2: =IF(Inici!B2="INTRODUIR EN MAIÚSCULES EL NOM DE L'OPEN","Introduiu el nom de l'Open a la pantalla d'Inici!!!",Inici!B2) -> Introduiu el nom de l'Open a la pantalla d'Inici!!! | Q2: ANAR A PÀGINA | R2: P-P-PRÈVIA | S2: P-PRÈVIA | T2: PRÈVIA | U2: FASE FINAL
Q3: Rànquing Inicial | R3: Grups PPP | S3: Grups PP | T3: Grups P | U3: Setzens | V3: Vuitens
Q4: Organigrama | R4: Result PPP | S4: Result PP | T4: Result P | U4: Class SF | V4: Quarts/SF/F
Q5: Horaris | R5: Classif PPP | S5: Classif PP | T5: Classif P
B8: HORARIS | Q8: Inici | R8: Participants
D10: DIUMENGE | F10: =IF(Inici!D14="","",Inici!D14) ->  | G10: HORA | H10: BILLAR* | M10: =D10 -> DIUMENGE
H11: 1 | I11: 2 | J11: 3 | K11: 4
F12: FINAL | G12: 16:00:00 | H12: 1 - 2
F14: SEMIFINAL | G14: 12:00:00 | H14: 2 - 3 | I14: 1 - 4
F16: QUARTS DE FINAL | G16: 10:00:00 | H16: 3 - 6 | I16: 4 - 5 | J16: 1 - 8 | K16: 2 - 7
D18: DISSABTE | F18: =IFERROR(F10-1,"") ->  | G18: HORA | H18: BILLAR* | M18: =D18 -> DISSABTE
H19: 1 | I19: 2 | J19: 3 | K19: 4
F20: VUITENS DE FINAL | G20: 20:00:00 | H20: 4 - 13 | I20: 3 - 14 | J20: 2 - 5 | K20: 1 - 16
G21: 18:00:00 | H21: 8 - 9 | I21: 7 - 10 | J21: 6 - 11 | K21: 5 - 12
F23: SETZENS DE FINAL | G23: 15:30:00 | H23: 1 - 32 | I23: 2 - 31 | J23: 3 - 30 | K23: 4 - 29
G24: 13:30:00 | H24: 5 - 28 | I24: 6 - 27 | J24: 7 - 26 | K24: 8 - 25
G25: 11:30:00 | H25: 9 - 24 | I25: 10 - 23 | J25: 11 - 22 | K25: 12 - 21
G26: 09:30:00 | H26: 13 - 20 | I26: 14 - 19 | J26: 15 - 18 | K26: 16 - 17
D27: * Les taules 1 i 2 seran aquelles a les quals es jugaran les semifinals i la taula 1 serà a quella a la qual es jugui la final. El club organitzador haurà d'apatar les rondes de joc de la fase final a aquesta circumstància
D29: DIUMENGE | F29: =IFERROR(F10-7,"") ->  | G29: HORA | H29: BILLAR | M29: =IF(D29="","",D29) -> DIUMENGE
H30: 1 | I30: 2 | J30: 3 | K30: 4
F31: PRÈVIA | G31: 18:00:00 | H31: =IF(Organigrama!$G$27=0,"","A (1-G)") -> A (1-G) | I31: =IF(Organigrama!$G$27=0,"","B (1-G)") -> B (1-G) | J31: =IF(Organigrama!$G$27=0,"","C (1-G)") -> C (1-G) | K31: =IF(Organigrama!$G$27=0,"","D (1-G)") -> D (1-G)
G32: 16:30:00 | H32: =IF(Organigrama!$G$27=0,"","A (1-P)") -> A (1-P) | I32: =IF(Organigrama!$G$27=0,"","B (1-P)") -> B (1-P) | J32: =IF(Organigrama!$G$27=0,"","C (1-P)") -> C (1-P) | K32: =IF(Organigrama!$G$27=0,"","D (1-P)") -> D (1-P)
G33: 15:00:00 | H33: =IF(Organigrama!$G$27=0,"","A (2-3)") -> A (2-3) | I33: =IF(Organigrama!$G$27=0,"","B (2-3)") -> B (2-3) | J33: =IF(Organigrama!$G$27=0,"","C (2-3)") -> C (2-3) | K33: =IF(Organigrama!$G$27=0,"","D (2-3)") -> D (2-3)
G35: 13:00:00 | H35: =IF(Organigrama!$G$27<13,"","E (1-G)") -> E (1-G) | I35: =IF(Organigrama!$G$27<16,"","F (1-G)") -> F (1-G) | J35: =IF(Organigrama!$G$27<19,"","G (1-G)") -> G (1-G) | K35: =IF(Organigrama!$G$27<22,"","H (1-G)") -> H (1-G)
G36: 11:30:00 | H36: =IF(Organigrama!$G$27<13,"","E (1-P)") -> E (1-P) | I36: =IF(Organigrama!$G$27<16,"","F (1-P") -> F (1-P | J36: =IF(Organigrama!$G$27<19,"","G (1-P)") -> G (1-P) | K36: =IF(Organigrama!$G$27<22,"","H (1-P)") -> H (1-P)
G37: 10:00:00 | H37: =IF(Organigrama!$G$27<13,"","E (2-3)") -> E (2-3) | I37: =IF(Organigrama!$G$27<16,"","F (2-3)") -> F (2-3) | J37: =IF(Organigrama!$G$27<19,"","G (2-3)") -> G (2-3) | K37: =IF(Organigrama!$G$27<22,"","H (2-3)") -> H (2-3)
D39: DISSABTE | F39: =IFERROR(F29-1,"") ->  | G39: HORA | H39: BILLAR | M39: =IF(D39="","",D39) -> DISSABTE
H40: 1 | I40: 2 | J40: 3 | K40: 4
F41: PRÈVIA | G41: 18:00:00 | H41: =IF(Organigrama!$G$27<25,"","I (1-G)") ->  | I41: =IF(Organigrama!$G$27<28,"","J (1-G)") ->  | J41: =IF(Organigrama!$G$27<31,"","K (1-G)") ->  | K41: =IF(Organigrama!$G$27<34,"","L (1-G)") -> 
G42: 16:30:00 | H42: =IF(Organigrama!$G$27<25,"","I (1-P)") ->  | I42: =IF(Organigrama!$G$27<28,"","J (1-P)") ->  | J42: =IF(Organigrama!$G$27<31,"","K (1-P)") ->  | K42: =IF(Organigrama!$G$27<34,"","L (1-P)") -> 
G43: 15:00:00 | H43: =IF(Organigrama!$G$27<25,"","I (2-3)") ->  | I43: =IF(Organigrama!$G$27<28,"","J (2-3)") ->  | J43: =IF(Organigrama!$G$27<31,"","K (2-3)") ->  | K43: =IF(Organigrama!$G$27<34,"","L (2-3)") -> 
G45: 13:00:00 | H45: =IF(Organigrama!$G$27<37,"","M (1-G)") ->  | I45: =IF(Organigrama!$G$27<40,"","N (1-G)") ->  | J45: =IF(Organigrama!$G$27<43,"","O (1-G)") ->  | K45: =IF(Organigrama!$G$27<46,"","P (1-G)") -> 
G46: 11:30:00 | H46: =IF(Organigrama!$G$27<37,"","M (1-P)") ->  | I46: =IF(Organigrama!$G$27<40,"","N (1-P)") ->  | J46: =IF(Organigrama!$G$27<43,"","O (1-P)") ->  | K46: =IF(Organigrama!$G$27<46,"","P (1-P)") -> 
G47: 10:00:00 | H47: =IF(Organigrama!$G$27<37,"","M (2-3)") ->  | I47: =IF(Organigrama!$G$27<40,"","N (2-3)") ->  | J47: =IF(Organigrama!$G$27<43,"","O (2-3)") ->  | K47: =IF(Organigrama!$G$27<46,"","P (2-3)") -> 
B49: Es recorda que l’hora oficial de presentació dels jugadors a la sala degudament uniformats és un quart d’hora abans de l’hora de començament del partit per poder tenir dret a l’entrenament de 5 minuts. El jugador que no arribi a l’hora de començament del partit i no doni una raó plausible al director esportiu de la prova, perdrà els punts del partit.
D51: DIUMENGE | F51: =IFERROR(IF(F29="","",F29-7),"") ->  | G51: HORA | H51: BILLAR | M51: =IF(D51="","",D51) -> DIUMENGE
H52: 1 | I52: 2 | J52: 3 | K52: 4
F53: PRE-PRÈVIA | G53: 18:00:00 | H53: =IF(Organigrama!$G$33=0,"","Q (1-G)") ->  | I53: =IF(Organigrama!$G$33=0,"","R (1-G)") ->  | J53: =IF(Organigrama!$G$33=0,"","S (1-G)") ->  | K53: =IF(Organigrama!$G$33=0,"","T (1-G)") -> 
G54: 16:30:00 | H54: =IF(Organigrama!$G$33=0,"","Q (1-P)") ->  | I54: =IF(Organigrama!$G$33=0,"","R (1-P)") ->  | J54: =IF(Organigrama!$G$33=0,"","S (1-P)") ->  | K54: =IF(Organigrama!$G$33=0,"","T (1-P)") -> 
G55: 15:00:00 | H55: =IF(Organigrama!$G$33=0,"","Q (2-3)") ->  | I55: =IF(Organigrama!$G$33=0,"","R (2-3)") ->  | J55: =IF(Organigrama!$G$33=0,"","S (2-3)") ->  | K55: =IF(Organigrama!$G$33=0,"","T (2-3)") -> 
G57: 13:00:00 | H57: =IF(Organigrama!$G$33<13,"","U (1-G)") ->  | I57: =IF(Organigrama!$G$33<16,"","V (1-G)") ->  | J57: =IF(Organigrama!$G$33<19,"","W (1-G)") ->  | K57: =IF(Organigrama!$G$33<22,"","X (1-G)") -> 
G58: 11:30:00 | H58: =IF(Organigrama!$G$33<13,"","U (1-P)") ->  | I58: =IF(Organigrama!$G$33<16,"","V (1-P)") ->  | J58: =IF(Organigrama!$G$33<19,"","W (1-P)") ->  | K58: =IF(Organigrama!$G$33<22,"","X (1-P)") -> 
G59: 10:00:00 | H59: =IF(Organigrama!$G$33<13,"","U (2-3)") ->  | I59: =IF(Organigrama!$G$33<16,"","V (2-3)") ->  | J59: =IF(Organigrama!$G$33<19,"","W (2-3)") ->  | K59: =IF(Organigrama!$G$33<22,"","X (2-3)") -> 
D61: DISSABTE | F61: =IFERROR(IF(F51="","",F51-1),"") ->  | G61: HORA | H61: BILLAR | M61: =IF(D61="","",D61) -> DISSABTE
H62: 1 | I62: 2 | J62: 3 | K62: 4
F63: PRE-PRÈVIA | G63: 18:00:00 | H63: =IF(Organigrama!$G$33<25,"","Y (1-G)") ->  | I63: =IF(Organigrama!$G$33<28,"","Z (1-G)") ->  | J63: =IF(Organigrama!$G$33<31,"","AA (1-G)") ->  | K63: =IF(Organigrama!$G$33<34,"","AB (1-G)") -> 
G64: 16:30:00 | H64: =IF(Organigrama!$G$33<25,"","Y (1-P)") ->  | I64: =IF(Organigrama!$G$33<28,"","Z (1-P)") ->  | J64: =IF(Organigrama!$G$33<31,"","AA (1-P)") ->  | K64: =IF(Organigrama!$G$33<34,"","AB (1-P)") -> 
G65: 15:00:00 | H65: =IF(Organigrama!$G$33<25,"","Y (2-3)") ->  | I65: =IF(Organigrama!$G$33<28,"","Z (2-3)") ->  | J65: =IF(Organigrama!$G$33<31,"","AA (2-3)") ->  | K65: =IF(Organigrama!$G$33<34,"","AB (2-3)") -> 
G67: 13:00:00 | H67: =IF(Organigrama!$G$33<37,"","AC (1-G)") ->  | I67: =IF(Organigrama!$G$33<40,"","AD (1-G)") ->  | J67: =IF(Organigrama!$G$33<43,"","AE (1-G)") ->  | K67: =IF(Organigrama!$G$33<46,"","AF (1-G)") -> 
G68: 11:30:00 | H68: =IF(Organigrama!$G$33<37,"","AC (1-P)") ->  | I68: =IF(Organigrama!$G$33<40,"","AD (1-P)") ->  | J68: =IF(Organigrama!$G$33<43,"","AE (1-P)") ->  | K68: =IF(Organigrama!$G$33<46,"","AF (1-P)") -> 
G69: 10:00:00 | H69: =IF(Organigrama!$G$33<37,"","AC (2-3)") ->  | I69: =IF(Organigrama!$G$33<40,"","AD (2-3)") ->  | J69: =IF(Organigrama!$G$33<43,"","AE (2-3)") ->  | K69: =IF(Organigrama!$G$33<46,"","AF (2-3)") -> 
D71: DIUMENGE | F71: =IFERROR(IF(F51="","",F51-7),"") ->  | G71: HORA | H71: BILLAR | M71: =IF(D71="","",D71) -> DIUMENGE
H72: 1 | I72: 2 | J72: 3 | K72: 4
F73: PRE-PRE-PRÈVIA | G73: 18:00:00 | H73: =IF(Organigrama!$G$39=0,"","AG (1-G)") ->  | I73: =IF(Organigrama!$G$39=0,"","AH (1-G)") ->  | J73: =IF(Organigrama!$G$39=0,"","AI (1-G)") ->  | K73: =IF(Organigrama!$G$39=0,"","AJ (1-G)") -> 
G74: 16:30:00 | H74: =IF(Organigrama!$G$39=0,"","AG (1-P)") ->  | I74: =IF(Organigrama!$G$39=0,"","AH (1-P)") ->  | J74: =IF(Organigrama!$G$39=0,"","AI (1-P)") ->  | K74: =IF(Organigrama!$G$39=0,"","AJ (1-P)") -> 
G75: 15:00:00 | H75: =IF(Organigrama!$G$39=0,"","AG (2-3)") ->  | I75: =IF(Organigrama!$G$39=0,"","AH(2-3)") ->  | J75: =IF(Organigrama!$G$39=0,"","AI (2-3)") ->  | K75: =IF(Organigrama!$G$39=0,"","AJ (2-3)") -> 
G77: 13:00:00 | H77: =IF(Organigrama!$G$39<13,"","AK (1-G)") ->  | I77: =IF(Organigrama!$G$39<16,"","AL (1-G)") ->  | J77: =IF(Organigrama!$G$39<19,"","AM (1-G)") ->  | K77: =IF(Organigrama!$G$39<22,"","AN (1-G)") -> 
G78: 11:30:00 | H78: =IF(Organigrama!$G$39<13,"","AK (1-P)") ->  | I78: =IF(Organigrama!$G$39<16,"","AL (1-P)") ->  | J78: =IF(Organigrama!$G$39<19,"","AM (1-P)") ->  | K78: =IF(Organigrama!$G$39<22,"","AN (1-P)") -> 
G79: 10:00:00 | H79: =IF(Organigrama!$G$39<13,"","AK (2-3)") ->  | I79: =IF(Organigrama!$G$39<16,"","AL (2-3)") ->  | J79: =IF(Organigrama!$G$39<19,"","AM (2-3)") ->  | K79: =IF(Organigrama!$G$39<22,"","AN (2-3)") -> 
D81: DISSABTE | F81: =IFERROR(IF(F71="","",F71-1),"") ->  | G81: HORA | H81: BILLAR | M81: =IF(D81="","",D81) -> DISSABTE
H82: 1 | I82: 2 | J82: 3 | K82: 4
F83: PRE-PRE-PRÈVIA | G83: 18:00:00 | H83: =IF(Organigrama!$G$39<25,"","AO (1-G)") ->  | I83: =IF(Organigrama!$G$39<28,"","AP (1-G)") ->  | J83: =IF(Organigrama!$G$39<31,"","AQ (1-G)") ->  | K83: =IF(Organigrama!$G$39<34,"","AR (1-G)") -> 
G84: 16:30:00 | H84: =IF(Organigrama!$G$39<25,"","AO (1-P)") ->  | I84: =IF(Organigrama!$G$39<28,"","AP (1-P)") ->  | J84: =IF(Organigrama!$G$39<31,"","AQ (1-P)") ->  | K84: =IF(Organigrama!$G$39<34,"","AR (1-P)") -> 
G85: 15:00:00 | H85: =IF(Organigrama!$G$39<25,"","AO (2-3)") ->  | I85: =IF(Organigrama!$G$39<28,"","AP (2-3)") ->  | J85: =IF(Organigrama!$G$39<31,"","AQ (2-3)") ->  | K85: =IF(Organigrama!$G$39<34,"","AR (2-3)") -> 
G87: 13:00:00 | H87: =IF(Organigrama!$G$39<37,"","AS (1-G)") ->  | I87: =IF(Organigrama!$G$39<40,"","AT (1-G)") ->  | J87: =IF(Organigrama!$G$39<43,"","AU (1-G)") ->  | K87: =IF(Organigrama!$G$39<46,"","AV (1-G)") -> 
G88: 11:30:00 | H88: =IF(Organigrama!$G$39<37,"","AS (1-P)") ->  | I88: =IF(Organigrama!$G$39<40,"","AT (1-P)") ->  | J88: =IF(Organigrama!$G$39<43,"","AU (1-P)") ->  | K88: =IF(Organigrama!$G$39<46,"","AV (1-P)") -> 
G89: 10:00:00 | H89: =IF(Organigrama!$G$39<37,"","AS (2-3)") ->  | I89: =IF(Organigrama!$G$39<40,"","AT (2-3)") ->  | J89: =IF(Organigrama!$G$39<43,"","AU (2-3)") ->  | K89: =IF(Organigrama!$G$39<46,"","AV (2-3)") -> 
B91: Es recorda que l’hora oficial de presentació dels jugadors a la sala degudament uniformats és un quart d’hora abans de l’hora de començament del partit per poder tenir dret a l’entrenament de 5 minuts. El jugador que no arribi a l’hora de començament del partit i no doni una raó plausible al director esportiu de la prova, perdrà els punts del partit.

Sheet Grups PPP
B2: =IF(Inici!B2="INTRODUIR EN MAIÚSCULES EL NOM DE L'OPEN","Introduiu el nom de l'Open a la pantalla d'Inici!!!",Inici!B2) -> Introduiu el nom de l'Open a la pantalla d'Inici!!! | M2: ANAR A PÀGINA | N2: P-P-PRÈVIA | O2: P-PRÈVIA | P2: PRÈVIA | Q2: FASE FINAL
M3: Rànquing Inicial | N3: Grups PPP | O3: Grups PP | P3: Grups P | Q3: Setzens | R3: Vuitens
M4: Organigrama | N4: Result PPP | O4: Result PP | P4: Result P | Q4: Class SF | R4: Quarts/SF/F
M5: Horaris | N5: Classif PPP | O5: Classif PP | P5: Classif P
B8: =IF('Rànquing Inicial'!$D$141<97,"NO HI HA PRE-PRE-PRÈVIA","GRUPS PRE-PRE-PRÈVIA (PPP)") -> NO HI HA PRE-PRE-PRÈVIA | M8: Inici | N8: Participants
C10: =IF('Rànquing Inicial'!$D$141<97,"","Grup AG") ->  | D10: =Organigrama!B41 ->  | E10: =IF(D10="","",VLOOKUP(D10,'Rànquing Inicial'!$B:$D,2,FALSE)) ->  | G10: =IF('Rànquing Inicial'!$D$150<27,"","Grup AO") ->  | H10: =Organigrama!J41 ->  | I10: =IF(H10="","",VLOOKUP(H10,'Rànquing Inicial'!$B:$D,2,FALSE)) -> 
D11: =Organigrama!B42 ->  | E11: =IF(D11="","",VLOOKUP(D11,'Rànquing Inicial'!$B:$D,2,FALSE)) ->  | H11: =Organigrama!J42 ->  | I11: =IF(H11="","",VLOOKUP(H11,'Rànquing Inicial'!$B:$D,2,FALSE)) -> 
D12: =Organigrama!B43 ->  | E12: =IF(D12="","",VLOOKUP(D12,'Rànquing Inicial'!$B:$D,2,FALSE)) ->  | H12: =Organigrama!J43 ->  | I12: =IF(H12="","",VLOOKUP(H12,'Rànquing Inicial'!$B:$D,2,FALSE)) -> 
C14: =IF('Rànquing Inicial'!$D$141<97,"","Grup AH") ->  | D14: =Organigrama!C41 ->  | E14: =IF(D14="","",VLOOKUP(D14,'Rànquing Inicial'!$B:$D,2,FALSE)) ->  | G14: =IF('Rànquing Inicial'!$D$150<30,"","Grup AP") ->  | H14: =Organigrama!K41 ->  | I14: =IF(H14="","",VLOOKUP(H14,'Rànquing Inicial'!$B:$D,2,FALSE)) -> 
D15: =Organigrama!C42 ->  | E15: =IF(D15="","",VLOOKUP(D15,'Rànquing Inicial'!$B:$D,2,FALSE)) ->  | H15: =Organigrama!K42 ->  | I15: =IF(H15="","",VLOOKUP(H15,'Rànquing Inicial'!$B:$D,2,FALSE)) -> 
D16: =Organigrama!C43 ->  | E16: =IF(D16="","",VLOOKUP(D16,'Rànquing Inicial'!$B:$D,2,FALSE)) ->  | H16: =Organigrama!K43 ->  | I16: =IF(H16="","",VLOOKUP(H16,'Rànquing Inicial'!$B:$D,2,FALSE)) -> 
C18: =IF('Rànquing Inicial'!$D$141<97,"","Grup AI") ->  | D18: =Organigrama!D41 ->  | E18: =IF(D18="","",VLOOKUP(D18,'Rànquing Inicial'!$B:$D,2,FALSE)) ->  | G18: =IF('Rànquing Inicial'!$D$150<33,"","Grup AQ") ->  | H18: =Organigrama!L41 ->  | I18: =IF(H18="","",VLOOKUP(H18,'Rànquing Inicial'!$B:$D,2,FALSE)) -> 
D19: =Organigrama!D42 ->  | E19: =IF(D19="","",VLOOKUP(D19,'Rànquing Inicial'!$B:$D,2,FALSE)) ->  | H19: =Organigrama!L42 ->  | I19: =IF(H19="","",VLOOKUP(H19,'Rànquing Inicial'!$B:$D,2,FALSE)) -> 
D20: =Organigrama!D43 ->  | E20: =IF(D20="","",VLOOKUP(D20,'Rànquing Inicial'!$B:$D,2,FALSE)) ->  | H20: =Organigrama!L43 ->  | I20: =IF(H20="","",VLOOKUP(H20,'Rànquing Inicial'!$B:$D,2,FALSE)) -> 
C22: =IF('Rànquing Inicial'!$D$141<97,"","Grup AJ") ->  | D22: =Organigrama!E41 ->  | E22: =IF(D22="","",VLOOKUP(D22,'Rànquing Inicial'!$B:$D,2,FALSE)) ->  | G22: =IF('Rànquing Inicial'!$D$150<36,"","Grup AR") ->  | H22: =Organigrama!M41 ->  | I22: =IF(H22="","",VLOOKUP(H22,'Rànquing Inicial'!$B:$D,2,FALSE)) -> 
D23: =Organigrama!E42 ->  | E23: =IF(D23="","",VLOOKUP(D23,'Rànquing Inicial'!$B:$D,2,FALSE)) ->  | H23: =Organigrama!M42 ->  | I23: =IF(H23="","",VLOOKUP(H23,'Rànquing Inicial'!$B:$D,2,FALSE)) -> 
D24: =Organigrama!E43 ->  | E24: =IF(D24="","",VLOOKUP(D24,'Rànquing Inicial'!$B:$D,2,FALSE)) ->  | H24: =Organigrama!M43 ->  | I24: =IF(H24="","",VLOOKUP(H24,'Rànquing Inicial'!$B:$D,2,FALSE)) -> 
C26: =IF('Rànquing Inicial'!$D$150<15,"","Grup AK") ->  | D26: =Organigrama!F41 ->  | E26: =IF(D26="","",VLOOKUP(D26,'Rànquing Inicial'!$B:$D,2,FALSE)) ->  | G26: =IF('Rànquing Inicial'!$D$150<39,"","Grup AS") ->  | H26: =Organigrama!N41 ->  | I26: =IF(H26="","",VLOOKUP(H26,'Rànquing Inicial'!$B:$D,2,FALSE)) -> 
D27: =Organigrama!F42 ->  | E27: =IF(D27="","",VLOOKUP(D27,'Rànquing Inicial'!$B:$D,2,FALSE)) ->  | H27: =Organigrama!N42 ->  | I27: =IF(H27="","",VLOOKUP(H27,'Rànquing Inicial'!$B:$D,2,FALSE)) -> 
D28: =Organigrama!F43 ->  | E28: =IF(D28="","",VLOOKUP(D28,'Rànquing Inicial'!$B:$D,2,FALSE)) ->  | H28: =Organigrama!N43 ->  | I28: =IF(H28="","",VLOOKUP(H28,'Rànquing Inicial'!$B:$D,2,FALSE)) -> 
C30: =IF('Rànquing Inicial'!$D$150<18,"","Grup AL") ->  | D30: =Organigrama!G41 ->  | E30: =IF(D30="","",VLOOKUP(D30,'Rànquing Inicial'!$B:$D,2,FALSE)) ->  | G30: =IF('Rànquing Inicial'!$D$150<42,"","Grup AT") ->  | H30: =Organigrama!O41 ->  | I30: =IF(H30="","",VLOOKUP(H30,'Rànquing Inicial'!$B:$D,2,FALSE)) -> 
D31: =Organigrama!G42 ->  | E31: =IF(D31="","",VLOOKUP(D31,'Rànquing Inicial'!$B:$D,2,FALSE)) ->  | H31: =Organigrama!O42 ->  | I31: =IF(H31="","",VLOOKUP(H31,'Rànquing Inicial'!$B:$D,2,FALSE)) -> 
D32: =Organigrama!G43 ->  | E32: =IF(D32="","",VLOOKUP(D32,'Rànquing Inicial'!$B:$D,2,FALSE)) ->  | H32: =Organigrama!O43 ->  | I32: =IF(H32="","",VLOOKUP(H32,'Rànquing Inicial'!$B:$D,2,FALSE)) -> 
C34: =IF('Rànquing Inicial'!$D$150<21,"","Grup AM") ->  | D34: =Organigrama!H41 ->  | E34: =IF(D34="","",VLOOKUP(D34,'Rànquing Inicial'!$B:$D,2,FALSE)) ->  | G34: =IF('Rànquing Inicial'!$D$150<45,"","Grup AU") ->  | H34: =Organigrama!P41 ->  | I34: =IF(H34="","",VLOOKUP(H34,'Rànquing Inicial'!$B:$D,2,FALSE)) -> 
D35: =Organigrama!H42 ->  | E35: =IF(D35="","",VLOOKUP(D35,'Rànquing Inicial'!$B:$D,2,FALSE)) ->  | H35: =Organigrama!P42 ->  | I35: =IF(H35="","",VLOOKUP(H35,'Rànquing Inicial'!$B:$D,2,FALSE)) -> 
D36: =Organigrama!H43 ->  | E36: =IF(D36="","",VLOOKUP(D36,'Rànquing Inicial'!$B:$D,2,FALSE)) ->  | H36: =Organigrama!P43 ->  | I36: =IF(H36="","",VLOOKUP(H36,'Rànquing Inicial'!$B:$D,2,FALSE)) -> 
C38: =IF('Rànquing Inicial'!$D$150<24,"","Grup AN") ->  | D38: =Organigrama!I41 ->  | E38: =IF(D38="","",VLOOKUP(D38,'Rànquing Inicial'!$B:$D,2,FALSE)) ->  | G38: =IF('Rànquing Inicial'!$D$150<48,"","Grup AV") ->  | H38: =Organigrama!Q41 ->  | I38: =IF(H38="","",VLOOKUP(H38,'Rànquing Inicial'!$B:$D,2,FALSE)) -> 
D39: =Organigrama!I42 ->  | E39: =IF(D39="","",VLOOKUP(D39,'Rànquing Inicial'!$B:$D,2,FALSE)) ->  | H39: =Organigrama!Q42 ->  | I39: =IF(H39="","",VLOOKUP(H39,'Rànquing Inicial'!$B:$D,2,FALSE)) -> 
D40: =Organigrama!I43 ->  | E40: =IF(D40="","",VLOOKUP(D40,'Rànquing Inicial'!$B:$D,2,FALSE)) ->  | H40: =Organigrama!Q43 ->  | I40: =IF(H40="","",VLOOKUP(H40,'Rànquing Inicial'!$B:$D,2,FALSE)) -> 

Sheet Resultats PPP
B1: =IF(Inici!B2="INTRODUIR EN MAIÚSCULES EL NOM DE L'OPEN","Introduiu el nom de l'Open a la pantalla d'Inici!!!",Inici!B2) -> Introduiu el nom de l'Open a la pantalla d'Inici!!! | N1: ANAR A PÀGINA | O1: P-P-PRÈVIA | P1: P-PRÈVIA | Q1: PRÈVIA | R1: FASE FINAL
N2: Rànquing Inicial | O2: Grups PPP | P2: Grups PP | Q2: Grups P | R2: Setzens | S2: Vuitens
N3: Organigrama | O3: Result PPP | P3: Result PP | Q3: Result P | R3: Class SF | S3: Quarts/SF/F
N4: Horaris | O4: Classif PPP | P4: Classif PP | Q4: Classif P
B7: =IF('Rànquing Inicial'!$D$141<97,"NO HI HA PRE-PRE-PRÈVIA","RESULTATS PRE-PRE-PRÈVIA (PPP)") -> NO HI HA PRE-PRE-PRÈVIA
F9: Boles | G9: Ent | H9: Mitj | I9: SM1 | J9: SM2 | K9: Punts
B10: =IF('Rànquing Inicial'!$D$141<97,"","Grup AG") ->  | E10: =IF(D19>1,"",IF(OR(B21=TRUE,B22=TRUE),E20,E21)) ->  | H10: =IF(G10="","",ROUND(F10/G10,3)) ->  | K10: =IF(H10="","",IF(F10>F11,2,IF(F10<F11,0,1))) -> 
E11: =IF(D19>1,"",IF(B22=TRUE,E21,E22)) ->  | G11: =IF(G10="","",G10) ->  | H11: =IF(G11="","",ROUND(F11/G11,3)) ->  | K11: =IF(H11="","",IF(F11>F10,2,IF(F11<F10,0,1))) -> 
E13: =IF(D19>1,"",IF(B20=TRUE,E21,E20)) ->  | H13: =IF(G13="","",ROUND(F13/G13,3)) ->  | K13: =IF(H13="","",IF(F13>F14,2,IF(F13<F14,0,1))) -> 
E14: =IF(D19>1,"",IF(B22=TRUE,E21,E22)) ->  | G14: =IF(G13="","",G13) ->  | H14: =IF(G14="","",ROUND(F14/G14,3)) ->  | K14: =IF(H14="","",IF(F14>F13,2,IF(F14<F13,0,1))) -> 
E16: =IF(D19>1,"",IF(OR(B20=TRUE,B21=TRUE,B22=TRUE),"",E20)) ->  | H16: =IF(G16="","",ROUND(F16/G16,3)) ->  | K16: =IF(H16="","",IF(F16>F17,2,IF(F16<F17,0,1))) -> 
E17: =IF(OR(B20=TRUE,B21=TRUE,B22=TRUE),"",E21) ->  | G17: =IF(G16="","",G16) ->  | H17: =IF(G17="","",ROUND(F17/G17,3)) ->  | K17: =IF(H17="","",IF(F17>F16,2,IF(F17<F16,0,1))) -> 
B19: W.O. | D19: =COUNTIF(B20:B22,"VERDADERO") -> 0 | E19: Jugador | F19: Boles | G19: Ent | H19: Mitj | I19: SM1 | J19: SM2 | K19: P | L19: =B10 -> 
B20: FALSE | C20: =L20 -> 0 | D20: ='Grups PPP'!D10 ->  | E20: ='Grups PPP'!E10 ->  | F20: =SUMIF(E10:E17,E20,F10:F17) -> 0 | G20: =SUMIF(E10:E17,E20,G10:G17) -> 0 | H20: =IF(B20=TRUE,0,IF(G20=0,0,ROUND(F20/G20,3))) -> 0 | I20: =MAX(O20:Z20) -> 0 | J20: =LARGE((O20:Z20),2) -> 0 | K20: =SUMIF(E10:E17,E20,K10:K17) -> 0 | L20: =IF(B20=TRUE,"WO",IF(AND(B21=TRUE,B22=TRUE),1,IF(N20=0,0,RANK(N20,N20:N22,0)))) -> 0 | M20: =IF(B10="",0,IF(B20=TRUE,0+N20,3-L20+N20)) -> 0 | N20: =IF(OR(B20=TRUE,AND(B21=TRUE,B22=TRUE)),0.000000000048,K20*0.1+H20*0.01+I20*0.00000001+J20*0.00000000001) -> 0 | O20: =IF(E10=E20,I10,0) -> 0 | P20: =IF(E10=E20,J10,0) -> 0 | Q20: =IF(E11=E20,I11,0) -> 0 | R20: =IF(E11=E20,J11,0) -> 0 | S20: =IF(E13=E20,I13,0) -> 0 | T20: =IF(E13=E20,J13,0) -> 0 | U20: =IF(E14=E20,I14,0) -> 0 | V20: =IF(E14=E20,J14,0) -> 0 | W20: =IF(E16=E20,I16,0) -> 0 | X20: =IF(E16=E20,J16,0) -> 0 | Y20: =IF(E17=E20,I17,0) -> 0 | Z20: =IF(E17=E20,J17,0) -> 0
B21: FALSE | C21: =L21 -> 0 | D21: ='Grups PPP'!D11 ->  | E21: ='Grups PPP'!E11 ->  | F21: =SUMIF(E10:E17,E21,F10:F17) -> 0 | G21: =SUMIF(E10:E17,E21,G10:G17) -> 0 | H21: =IF(B21=TRUE,0,IF(G21=0,0,ROUND(F21/G21,3))) -> 0 | I21: =MAX(O21:Z21) -> 0 | J21: =LARGE((O21:Z21),2) -> 0 | K21: =SUMIF(E10:E17,E21,K10:K17) -> 0 | L21: =IF(B21=TRUE,"WO",IF(AND(B20=TRUE,B22=TRUE),1,IF(N21=0,0,RANK(N21,N20:N22,0)))) -> 0 | M21: =IF(B10="",0,IF(B21=TRUE,0+N21,3-L21+N21)) -> 0 | N21: =IF(OR(B21=TRUE,AND(B20=TRUE,B22=TRUE)),0.000000000017,K21*0.1+H21*0.01+I21*0.00000001+J21*0.00000000001) -> 0 | O21: =IF(E10=E21,I10,0) -> 0 | P21: =IF(E10=E21,J10,0) -> 0 | Q21: =IF(E11=E21,I11,0) -> 0 | R21: =IF(E11=E21,J11,0) -> 0 | S21: =IF(E13=E21,I13,0) -> 0 | T21: =IF(E13=E21,J13,0) -> 0 | U21: =IF(E14=E21,I14,0) -> 0 | V21: =IF(E14=E21,J14,0) -> 0 | W21: =IF(E16=E21,I16,0) -> 0 | X21: =IF(E16=E21,J16,0) -> 0 | Y21: =IF(E17=E21,I17,0) -> 0 | Z21: =IF(E17=E21,J17,0) -> 0
B22: FALSE | C22: =L22 -> 0 | D22: ='Grups PPP'!D12 ->  | E22: ='Grups PPP'!E12 ->  | F22: =SUMIF(E10:E17,E22,F10:F17) -> 0 | G22: =SUMIF(E10:E17,E22,G10:G17) -> 0 | H22: =IF(B22=TRUE,0,IF(G22=0,0,ROUND(F22/G22,3))) -> 0 | I22: =MAX(O22:Z22) -> 0 | J22: =LARGE((O22:Z22),2) -> 0 | K22: =SUMIF(E10:E17,E22,K10:K17) -> 0 | L22: =IF(B22=TRUE,"WO",IF(AND(B20=TRUE,B21=TRUE),1,IF(N22=0,0,RANK(N22,N20:N22,0)))) -> 0 | M22: =IF(B10="",0,IF(B22=TRUE,0+N22,3-L22+N22)) -> 0 | N22: =IF(OR(B22=TRUE,AND(B20=TRUE,B21=TRUE)),0.000000000001,K22*0.1+H22*0.01+I22*0.00000001+J22*0.00000000001) -> 0 | O22: =IF(E10=E22,I10,0) -> 0 | P22: =IF(E10=E22,J10,0) -> 0 | Q22: =IF(E11=E22,I11,0) -> 0 | R22: =IF(E11=E22,J11,0) -> 0 | S22: =IF(E13=E22,I13,0) -> 0 | T22: =IF(E13=E22,J13,0) -> 0 | U22: =IF(E14=E22,I14,0) -> 0 | V22: =IF(E14=E22,J14,0) -> 0 | W22: =IF(E16=E22,I16,0) -> 0 | X22: =IF(E16=E22,J16,0) -> 0 | Y22: =IF(E17=E22,I17,0) -> 0 | Z22: =IF(E17=E22,J17,0) -> 0
F24: Boles | G24: Ent | H24: Mitj | I24: SM1 | J24: SM2 | K24: Punts
B25: =IF('Rànquing Inicial'!$D$141<97,"","Grup AH") ->  | E25: =IF(D34>1,"",IF(OR(B36=TRUE,B37=TRUE),E35,E36)) ->  | H25: =IF(G25="","",ROUND(F25/G25,3)) ->  | K25: =IF(H25="","",IF(F25>F26,2,IF(F25<F26,0,1))) -> 
E26: =IF(D34>1,"",IF(B37=TRUE,E36,E37)) ->  | G26: =IF(G25="","",G25) ->  | H26: =IF(G26="","",ROUND(F26/G26,3)) ->  | K26: =IF(H26="","",IF(F26>F25,2,IF(F26<F25,0,1))) -> 
E28: =IF(D34>1,"",IF(B35=TRUE,E36,E35)) ->  | H28: =IF(G28="","",ROUND(F28/G28,3)) ->  | K28: =IF(H28="","",IF(F28>F29,2,IF(F28<F29,0,1))) -> 
E29: =IF(D34>1,"",IF(B37=TRUE,E36,E37)) ->  | G29: =IF(G28="","",G28) ->  | H29: =IF(G29="","",ROUND(F29/G29,3)) ->  | K29: =IF(H29="","",IF(F29>F28,2,IF(F29<F28,0,1))) -> 
E31: =IF(D34>1,"",IF(OR(B35=TRUE,B36=TRUE,B37=TRUE),"",E35)) ->  | H31: =IF(G31="","",ROUND(F31/G31,3)) ->  | K31: =IF(H31="","",IF(F31>F32,2,IF(F31<F32,0,1))) -> 
E32: =IF(OR(B35=TRUE,B36=TRUE,B37=TRUE),"",E36) ->  | G32: =IF(G31="","",G31) ->  | H32: =IF(G32="","",ROUND(F32/G32,3)) ->  | K32: =IF(H32="","",IF(F32>F31,2,IF(F32<F31,0,1))) -> 
B34: ¿WO? | D34: =COUNTIF(B35:B37,"VERDADERO") -> 0 | E34: Jugador | F34: Boles | G34: Ent | H34: Mitj | I34: SM1 | J34: SM2 | K34: P | L34: =B25 -> 
B35: FALSE | C35: =L35 -> 0 | D35: ='Grups PPP'!D14 ->  | E35: ='Grups PPP'!E14 ->  | F35: =SUMIF(E25:E32,E35,F25:F32) -> 0 | G35: =SUMIF(E25:E32,E35,G25:G32) -> 0 | H35: =IF(B35=TRUE,0,IF(G35=0,0,ROUND(F35/G35,3))) -> 0 | I35: =MAX(O35:Z35) -> 0 | J35: =LARGE((O35:Z35),2) -> 0 | K35: =SUMIF(E25:E32,E35,K25:K32) -> 0 | L35: =IF(B35=TRUE,"WO",IF(AND(B36=TRUE,B37=TRUE),1,IF(N35=0,0,RANK(N35,N35:N37,0)))) -> 0 | M35: =IF(B25="",0,IF(B35=TRUE,0+N35,3-L35+N35)) -> 0 | N35: =IF(OR(B35=TRUE,AND(B36=TRUE,B37=TRUE)),0.000000000047,K35*0.1+H35*0.01+I35*0.00000001+J35*0.00000000001) -> 0 | O35: =IF(E25=E35,I25,0) -> 0 | P35: =IF(E25=E35,J25,0) -> 0 | Q35: =IF(E26=E35,I26,0) -> 0 | R35: =IF(E26=E35,J26,0) -> 0 | S35: =IF(E28=E35,I28,0) -> 0 | T35: =IF(E28=E35,J28,0) -> 0 | U35: =IF(E29=E35,I29,0) -> 0 | V35: =IF(E29=E35,J29,0) -> 0 | W35: =IF(E31=E35,I31,0) -> 0 | X35: =IF(E31=E35,J31,0) -> 0 | Y35: =IF(E32=E35,I32,0) -> 0 | Z35: =IF(E32=E35,J32,0) -> 0
B36: FALSE | C36: =L36 -> 0 | D36: ='Grups PPP'!D15 ->  | E36: ='Grups PPP'!E15 ->  | F36: =SUMIF(E25:E32,E36,F25:F32) -> 0 | G36: =SUMIF(E25:E32,E36,G25:G32) -> 0 | H36: =IF(B36=TRUE,0,IF(G36=0,0,ROUND(F36/G36,3))) -> 0 | I36: =MAX(O36:Z36) -> 0 | J36: =LARGE((O36:Z36),2) -> 0 | K36: =SUMIF(E25:E32,E36,K25:K32) -> 0 | L36: =IF(B36=TRUE,"WO",IF(AND(B35=TRUE,B37=TRUE),1,IF(N36=0,0,RANK(N36,N35:N37,0)))) -> 0 | M36: =IF(B25="",0,IF(B36=TRUE,0+N36,3-L36+N36)) -> 0 | N36: =IF(OR(B36=TRUE,AND(B35=TRUE,B37=TRUE)),0.000000000018,K36*0.1+H36*0.01+I36*0.00000001+J36*0.00000000001) -> 0 | O36: =IF(E25=E36,I25,0) -> 0 | P36: =IF(E25=E36,J25,0) -> 0 | Q36: =IF(E26=E36,I26,0) -> 0 | R36: =IF(E26=E36,J26,0) -> 0 | S36: =IF(E28=E36,I28,0) -> 0 | T36: =IF(E28=E36,J28,0) -> 0 | U36: =IF(E29=E36,I29,0) -> 0 | V36: =IF(E29=E36,J29,0) -> 0 | W36: =IF(E31=E36,I31,0) -> 0 | X36: =IF(E31=E36,J31,0) -> 0 | Y36: =IF(E32=E36,I32,0) -> 0 | Z36: =IF(E32=E36,J32,0) -> 0
B37: FALSE | C37: =L37 -> 0 | D37: ='Grups PPP'!D16 ->  | E37: ='Grups PPP'!E16 ->  | F37: =SUMIF(E25:E32,E37,F25:F32) -> 0 | G37: =SUMIF(E25:E32,E37,G25:G32) -> 0 | H37: =IF(B37=TRUE,0,IF(G37=0,0,ROUND(F37/G37,3))) -> 0 | I37: =MAX(O37:Z37) -> 0 | J37: =LARGE((O37:Z37),2) -> 0 | K37: =SUMIF(E25:E32,E37,K25:K32) -> 0 | L37: =IF(B37=TRUE,"WO",IF(AND(B35=TRUE,B36=TRUE),1,IF(N37=0,0,RANK(N37,N35:N37,0)))) -> 0 | M37: =IF(B25="",0,IF(B37=TRUE,0+N37,3-L37+N37)) -> 0 | N37: =IF(OR(B37=TRUE,AND(B35=TRUE,B36=TRUE)),0.000000000002,K37*0.1+H37*0.01+I37*0.00000001+J37*0.00000000001) -> 0 | O37: =IF(E25=E37,I25,0) -> 0 | P37: =IF(E25=E37,J25,0) -> 0 | Q37: =IF(E26=E37,I26,0) -> 0 | R37: =IF(E26=E37,J26,0) -> 0 | S37: =IF(E28=E37,I28,0) -> 0 | T37: =IF(E28=E37,J28,0) -> 0 | U37: =IF(E29=E37,I29,0) -> 0 | V37: =IF(E29=E37,J29,0) -> 0 | W37: =IF(E31=E37,I31,0) -> 0 | X37: =IF(E31=E37,J31,0) -> 0 | Y37: =IF(E32=E37,I32,0) -> 0 | Z37: =IF(E32=E37,J32,0) -> 0
F39: Boles | G39: Ent | H39: Mitj | I39: SM1 | J39: SM2 | K39: Punts
B40: =IF('Rànquing Inicial'!$D$141<97,"","Grup AI") ->  | E40: =IF(D49>1,"",IF(OR(B51=TRUE,B52=TRUE),E50,E51)) ->  | H40: =IF(G40="","",ROUND(F40/G40,3)) ->  | K40: =IF(H40="","",IF(F40>F41,2,IF(F40<F41,0,1))) -> 
E41: =IF(D49>1,"",IF(B52=TRUE,E51,E52)) ->  | G41: =IF(G40="","",G40) ->  | H41: =IF(G41="","",ROUND(F41/G41,3)) ->  | K41: =IF(H41="","",IF(F41>F40,2,IF(F41<F40,0,1))) -> 
E43: =IF(D49>1,"",IF(B50=TRUE,E51,E50)) ->  | H43: =IF(G43="","",ROUND(F43/G43,3)) ->  | K43: =IF(H43="","",IF(F43>F44,2,IF(F43<F44,0,1))) -> 
E44: =IF(D49>1,"",IF(B52=TRUE,E51,E52)) ->  | G44: =IF(G43="","",G43) ->  | H44: =IF(G44="","",ROUND(F44/G44,3)) ->  | K44: =IF(H44="","",IF(F44>F43,2,IF(F44<F43,0,1))) -> 
E46: =IF(D49>1,"",IF(OR(B50=TRUE,B51=TRUE,B52=TRUE),"",E50)) ->  | H46: =IF(G46="","",ROUND(F46/G46,3)) ->  | K46: =IF(H46="","",IF(F46>F47,2,IF(F46<F47,0,1))) -> 
E47: =IF(OR(B50=TRUE,B51=TRUE,B52=TRUE),"",E51) ->  | G47: =IF(G46="","",G46) ->  | H47: =IF(G47="","",ROUND(F47/G47,3)) ->  | K47: =IF(H47="","",IF(F47>F46,2,IF(F47<F46,0,1))) -> 
B49: ¿WO? | D49: =COUNTIF(B50:B52,"VERDADERO") -> 0 | E49: Jugador | F49: Boles | G49: Ent | H49: Mitj | I49: SM1 | J49: SM2 | K49: P | L49: =B40 -> 
B50: FALSE | C50: =L50 -> 0 | D50: ='Grups PPP'!D18 ->  | E50: ='Grups PPP'!E18 ->  | F50: =SUMIF(E40:E47,E50,F40:F47) -> 0 | G50: =SUMIF(E40:E47,E50,G40:G47) -> 0 | H50: =IF(B50=TRUE,0,IF(G50=0,0,ROUND(F50/G50,3))) -> 0 | I50: =MAX(O50:Z50) -> 0 | J50: =LARGE((O50:Z50),2) -> 0 | K50: =SUMIF(E40:E47,E50,K40:K47) -> 0 | L50: =IF(B50=TRUE,"WO",IF(AND(B51=TRUE,B52=TRUE),1,IF(N50=0,0,RANK(N50,N50:N52,0)))) -> 0 | M50: =IF(B40="",0,IF(B50=TRUE,0+N50,3-L50+N50)) -> 0 | N50: =IF(OR(B50=TRUE,AND(B51=TRUE,B52=TRUE)),0.000000000046,K50*0.1+H50*0.01+I50*0.00000001+J50*0.00000000001) -> 0 | O50: =IF(E40=E50,I40,0) -> 0 | P50: =IF(E40=E50,J40,0) -> 0 | Q50: =IF(E41=E50,I41,0) -> 0 | R50: =IF(E41=E50,J41,0) -> 0 | S50: =IF(E43=E50,I43,0) -> 0 | T50: =IF(E43=E50,J43,0) -> 0 | U50: =IF(E44=E50,I44,0) -> 0 | V50: =IF(E44=E50,J44,0) -> 0 | W50: =IF(E46=E50,I46,0) -> 0 | X50: =IF(E46=E50,J46,0) -> 0 | Y50: =IF(E47=E50,I47,0) -> 0 | Z50: =IF(E47=E50,J47,0) -> 0
B51: FALSE | C51: =L51 -> 0 | D51: ='Grups PPP'!D19 ->  | E51: ='Grups PPP'!E19 ->  | F51: =SUMIF(E40:E47,E51,F40:F47) -> 0 | G51: =SUMIF(E40:E47,E51,G40:G47) -> 0 | H51: =IF(B51=TRUE,0,IF(G51=0,0,ROUND(F51/G51,3))) -> 0 | I51: =MAX(O51:Z51) -> 0 | J51: =LARGE((O51:Z51),2) -> 0 | K51: =SUMIF(E40:E47,E51,K40:K47) -> 0 | L51: =IF(B51=TRUE,"WO",IF(AND(B50=TRUE,B52=TRUE),1,IF(N51=0,0,RANK(N51,N50:N52,0)))) -> 0 | M51: =IF(B40="",0,IF(B51=TRUE,0+N51,3-L51+N51)) -> 0 | N51: =IF(OR(B51=TRUE,AND(B50=TRUE,B52=TRUE)),0.000000000019,K51*0.1+H51*0.01+I51*0.00000001+J51*0.00000000001) -> 0 | O51: =IF(E40=E51,I40,0) -> 0 | P51: =IF(E40=E51,J40,0) -> 0 | Q51: =IF(E41=E51,I41,0) -> 0 | R51: =IF(E41=E51,J41,0) -> 0 | S51: =IF(E43=E51,I43,0) -> 0 | T51: =IF(E43=E51,J43,0) -> 0 | U51: =IF(E44=E51,I44,0) -> 0 | V51: =IF(E44=E51,J44,0) -> 0 | W51: =IF(E46=E51,I46,0) -> 0 | X51: =IF(E46=E51,J46,0) -> 0 | Y51: =IF(E47=E51,I47,0) -> 0 | Z51: =IF(E47=E51,J47,0) -> 0
B52: FALSE | C52: =L52 -> 0 | D52: ='Grups PPP'!D20 ->  | E52: ='Grups PPP'!E20 ->  | F52: =SUMIF(E40:E47,E52,F40:F47) -> 0 | G52: =SUMIF(E40:E47,E52,G40:G47) -> 0 | H52: =IF(B52=TRUE,0,IF(G52=0,0,ROUND(F52/G52,3))) -> 0 | I52: =MAX(O52:Z52) -> 0 | J52: =LARGE((O52:Z52),2) -> 0 | K52: =SUMIF(E40:E47,E52,K40:K47) -> 0 | L52: =IF(B52=TRUE,"WO",IF(AND(B50=TRUE,B51=TRUE),1,IF(N52=0,0,RANK(N52,N50:N52,0)))) -> 0 | M52: =IF(B40="",0,IF(B52=TRUE,0+N52,3-L52+N52)) -> 0 | N52: =IF(OR(B52=TRUE,AND(B50=TRUE,B51=TRUE)),0.000000000003,K52*0.1+H52*0.01+I52*0.00000001+J52*0.00000000001) -> 0 | O52: =IF(E40=E52,I40,0) -> 0 | P52: =IF(E40=E52,J40,0) -> 0 | Q52: =IF(E41=E52,I41,0) -> 0 | R52: =IF(E41=E52,J41,0) -> 0 | S52: =IF(E43=E52,I43,0) -> 0 | T52: =IF(E43=E52,J43,0) -> 0 | U52: =IF(E44=E52,I44,0) -> 0 | V52: =IF(E44=E52,J44,0) -> 0 | W52: =IF(E46=E52,I46,0) -> 0 | X52: =IF(E46=E52,J46,0) -> 0 | Y52: =IF(E47=E52,I47,0) -> 0 | Z52: =IF(E47=E52,J47,0) -> 0
F54: Boles | G54: Ent | H54: Mitj | I54: SM1 | J54: SM2 | K54: Punts
B55: =IF('Rànquing Inicial'!$D$141<97,"","Grup AJ") ->  | E55: =IF(D64>1,"",IF(OR(B66=TRUE,B67=TRUE),E65,E66)) ->  | H55: =IF(G55="","",ROUND(F55/G55,3)) ->  | K55: =IF(H55="","",IF(F55>F56,2,IF(F55<F56,0,1))) -> 
E56: =IF(D64>1,"",IF(B67=TRUE,E66,E67)) ->  | G56: =IF(G55="","",G55) ->  | H56: =IF(G56="","",ROUND(F56/G56,3)) ->  | K56: =IF(H56="","",IF(F56>F55,2,IF(F56<F55,0,1))) -> 
E58: =IF(D64>1,"",IF(B65=TRUE,E66,E65)) ->  | H58: =IF(G58="","",ROUND(F58/G58,3)) ->  | K58: =IF(H58="","",IF(F58>F59,2,IF(F58<F59,0,1))) -> 
E59: =IF(D64>1,"",IF(B67=TRUE,E66,E67)) ->  | G59: =IF(G58="","",G58) ->  | H59: =IF(G59="","",ROUND(F59/G59,3)) ->  | K59: =IF(H59="","",IF(F59>F58,2,IF(F59<F58,0,1))) -> 
E61: =IF(D64>1,"",IF(OR(B65=TRUE,B66=TRUE,B67=TRUE),"",E65)) ->  | H61: =IF(G61="","",ROUND(F61/G61,3)) ->  | K61: =IF(H61="","",IF(F61>F62,2,IF(F61<F62,0,1))) -> 
E62: =IF(OR(B65=TRUE,B66=TRUE,B67=TRUE),"",E66) ->  | G62: =IF(G61="","",G61) ->  | H62: =IF(G62="","",ROUND(F62/G62,3)) ->  | K62: =IF(H62="","",IF(F62>F61,2,IF(F62<F61,0,1))) -> 
B64: ¿WO? | D64: =COUNTIF(B65:B67,"VERDADERO") -> 0 | E64: Jugador | F64: Boles | G64: Ent | H64: Mitj | I64: SM1 | J64: SM2 | K64: P | L64: =B55 -> 
B65: FALSE | C65: =L65 -> 0 | D65: ='Grups PPP'!D22 ->  | E65: ='Grups PPP'!E22 ->  | F65: =SUMIF(E55:E62,E65,F55:F62) -> 0 | G65: =SUMIF(E55:E62,E65,G55:G62) -> 0 | H65: =IF(B65=TRUE,0,IF(G65=0,0,ROUND(F65/G65,3))) -> 0 | I65: =MAX(O65:Z65) -> 0 | J65: =LARGE((O65:Z65),2) -> 0 | K65: =SUMIF(E55:E62,E65,K55:K62) -> 0 | L65: =IF(B65=TRUE,"WO",IF(AND(B66=TRUE,B67=TRUE),1,IF(N65=0,0,RANK(N65,N65:N67,0)))) -> 0 | M65: =IF(B55="",0,IF(B65=TRUE,0+N65,3-L65+N65)) -> 0 | N65: =IF(OR(B65=TRUE,AND(B66=TRUE,B67=TRUE)),0.000000000045,K65*0.1+H65*0.01+I65*0.00000001+J65*0.00000000001) -> 0 | O65: =IF(E55=E65,I55,0) -> 0 | P65: =IF(E55=E65,J55,0) -> 0 | Q65: =IF(E56=E65,I56,0) -> 0 | R65: =IF(E56=E65,J56,0) -> 0 | S65: =IF(E58=E65,I58,0) -> 0 | T65: =IF(E58=E65,J58,0) -> 0 | U65: =IF(E59=E65,I59,0) -> 0 | V65: =IF(E59=E65,J59,0) -> 0 | W65: =IF(E61=E65,I61,0) -> 0 | X65: =IF(E61=E65,J61,0) -> 0 | Y65: =IF(E62=E65,I62,0) -> 0 | Z65: =IF(E62=E65,J62,0) -> 0
B66: FALSE | C66: =L66 -> 0 | D66: ='Grups PPP'!D23 ->  | E66: ='Grups PPP'!E23 ->  | F66: =SUMIF(E55:E62,E66,F55:F62) -> 0 | G66: =SUMIF(E55:E62,E66,G55:G62) -> 0 | H66: =IF(B66=TRUE,0,IF(G66=0,0,ROUND(F66/G66,3))) -> 0 | I66: =MAX(O66:Z66) -> 0 | J66: =LARGE((O66:Z66),2) -> 0 | K66: =SUMIF(E55:E62,E66,K55:K62) -> 0 | L66: =IF(B66=TRUE,"WO",IF(AND(B65=TRUE,B67=TRUE),1,IF(N66=0,0,RANK(N66,N65:N67,0)))) -> 0 | M66: =IF(B55="",0,IF(B66=TRUE,0+N66,3-L66+N66)) -> 0 | N66: =IF(OR(B66=TRUE,AND(B65=TRUE,B67=TRUE)),0.00000000002,K66*0.1+H66*0.01+I66*0.00000001+J66*0.00000000001) -> 0 | O66: =IF(E55=E66,I55,0) -> 0 | P66: =IF(E55=E66,J55,0) -> 0 | Q66: =IF(E56=E66,I56,0) -> 0 | R66: =IF(E56=E66,J56,0) -> 0 | S66: =IF(E58=E66,I58,0) -> 0 | T66: =IF(E58=E66,J58,0) -> 0 | U66: =IF(E59=E66,I59,0) -> 0 | V66: =IF(E59=E66,J59,0) -> 0 | W66: =IF(E61=E66,I61,0) -> 0 | X66: =IF(E61=E66,J61,0) -> 0 | Y66: =IF(E62=E66,I62,0) -> 0 | Z66: =IF(E62=E66,J62,0) -> 0
B67: FALSE | C67: =L67 -> 0 | D67: ='Grups PPP'!D24 ->  | E67: ='Grups PPP'!E24 ->  | F67: =SUMIF(E55:E62,E67,F55:F62) -> 0 | G67: =SUMIF(E55:E62,E67,G55:G62) -> 0 | H67: =IF(B67=TRUE,0,IF(G67=0,0,ROUND(F67/G67,3))) -> 0 | I67: =MAX(O67:Z67) -> 0 | J67: =LARGE((O67:Z67),2) -> 0 | K67: =SUMIF(E55:E62,E67,K55:K62) -> 0 | L67: =IF(B67=TRUE,"WO",IF(AND(B65=TRUE,B66=TRUE),1,IF(N67=0,0,RANK(N67,N65:N67,0)))) -> 0 | M67: =IF(B55="",0,IF(B67=TRUE,0+N67,3-L67+N67)) -> 0 | N67: =IF(OR(B67=TRUE,AND(B65=TRUE,B66=TRUE)),0.000000000004,K67*0.1+H67*0.01+I67*0.00000001+J67*0.00000000001) -> 0 | O67: =IF(E55=E67,I55,0) -> 0 | P67: =IF(E55=E67,J55,0) -> 0 | Q67: =IF(E56=E67,I56,0) -> 0 | R67: =IF(E56=E67,J56,0) -> 0 | S67: =IF(E58=E67,I58,0) -> 0 | T67: =IF(E58=E67,J58,0) -> 0 | U67: =IF(E59=E67,I59,0) -> 0 | V67: =IF(E59=E67,J59,0) -> 0 | W67: =IF(E61=E67,I61,0) -> 0 | X67: =IF(E61=E67,J61,0) -> 0 | Y67: =IF(E62=E67,I62,0) -> 0 | Z67: =IF(E62=E67,J62,0) -> 0
F69: Boles | G69: Ent | H69: Mitj | I69: SM1 | J69: SM2 | K69: Punts
B70: =IF('Rànquing Inicial'!$D$150>12,"Grup AK","") ->  | E70: =IF(D79>1,"",IF(OR(B81=TRUE,B82=TRUE),E80,E81)) ->  | H70: =IF(G70="","",ROUND(F70/G70,3)) ->  | K70: =IF(H70="","",IF(F70>F71,2,IF(F70<F71,0,1))) -> 
E71: =IF(D79>1,"",IF(B82=TRUE,E81,E82)) ->  | G71: =IF(G70="","",G70) ->  | H71: =IF(G71="","",ROUND(F71/G71,3)) ->  | K71: =IF(H71="","",IF(F71>F70,2,IF(F71<F70,0,1))) -> 
E73: =IF(D79>1,"",IF(B80=TRUE,E81,E80)) ->  | H73: =IF(G73="","",ROUND(F73/G73,3)) ->  | K73: =IF(H73="","",IF(F73>F74,2,IF(F73<F74,0,1))) -> 
E74: =IF(D79>1,"",IF(B82=TRUE,E81,E82)) ->  | G74: =IF(G73="","",G73) ->  | H74: =IF(G74="","",ROUND(F74/G74,3)) ->  | K74: =IF(H74="","",IF(F74>F73,2,IF(F74<F73,0,1))) -> 
E76: =IF(D79>1,"",IF(OR(B80=TRUE,B81=TRUE,B82=TRUE),"",E80)) ->  | H76: =IF(G76="","",ROUND(F76/G76,3)) ->  | K76: =IF(H76="","",IF(F76>F77,2,IF(F76<F77,0,1))) -> 
E77: =IF(OR(B80=TRUE,B81=TRUE,B82=TRUE),"",E81) ->  | G77: =IF(G76="","",G76) ->  | H77: =IF(G77="","",ROUND(F77/G77,3)) ->  | K77: =IF(H77="","",IF(F77>F76,2,IF(F77<F76,0,1))) -> 
B79: ¿WO? | D79: =COUNTIF(B80:B82,"VERDADERO") -> 0 | E79: Jugador | F79: Boles | G79: Ent | H79: Mitj | I79: SM1 | J79: SM2 | K79: P | L79: =B70 -> 
B80: FALSE | C80: =L80 -> 0 | D80: ='Grups PPP'!D26 ->  | E80: ='Grups PPP'!E26 ->  | F80: =SUMIF(E70:E77,E80,F70:F77) -> 0 | G80: =SUMIF(E70:E77,E80,G70:G77) -> 0 | H80: =IF(B80=TRUE,0,IF(G80=0,0,ROUND(F80/G80,3))) -> 0 | I80: =MAX(O80:Z80) -> 0 | J80: =LARGE((O80:Z80),2) -> 0 | K80: =SUMIF(E70:E77,E80,K70:K77) -> 0 | L80: =IF(B80=TRUE,"WO",IF(AND(B81=TRUE,B82=TRUE),1,IF(N80=0,0,RANK(N80,N80:N82,0)))) -> 0 | M80: =IF(B70="",0,IF(B80=TRUE,0+N80,3-L80+N80)) -> 0 | N80: =IF(OR(B80=TRUE,AND(B81=TRUE,B82=TRUE)),0.000000000044,K80*0.1+H80*0.01+I80*0.00000001+J80*0.00000000001) -> 0 | O80: =IF(E70=E80,I70,0) -> 0 | P80: =IF(E70=E80,J70,0) -> 0 | Q80: =IF(E71=E80,I71,0) -> 0 | R80: =IF(E71=E80,J71,0) -> 0 | S80: =IF(E73=E80,I73,0) -> 0 | T80: =IF(E73=E80,J73,0) -> 0 | U80: =IF(E74=E80,I74,0) -> 0 | V80: =IF(E74=E80,J74,0) -> 0 | W80: =IF(E76=E80,I76,0) -> 0 | X80: =IF(E76=E80,J76,0) -> 0 | Y80: =IF(E77=E80,I77,0) -> 0 | Z80: =IF(E77=E80,J77,0) -> 0
B81: FALSE | C81: =L81 -> 0 | D81: ='Grups PPP'!D27 ->  | E81: ='Grups PPP'!E27 ->  | F81: =SUMIF(E70:E77,E81,F70:F77) -> 0 | G81: =SUMIF(E70:E77,E81,G70:G77) -> 0 | H81: =IF(B81=TRUE,0,IF(G81=0,0,ROUND(F81/G81,3))) -> 0 | I81: =MAX(O81:Z81) -> 0 | J81: =LARGE((O81:Z81),2) -> 0 | K81: =SUMIF(E70:E77,E81,K70:K77) -> 0 | L81: =IF(B81=TRUE,"WO",IF(AND(B80=TRUE,B82=TRUE),1,IF(N81=0,0,RANK(N81,N80:N82,0)))) -> 0 | M81: =IF(B70="",0,IF(B81=TRUE,0+N81,3-L81+N81)) -> 0 | N81: =IF(OR(B81=TRUE,AND(B80=TRUE,B82=TRUE)),0.000000000021,K81*0.1+H81*0.01+I81*0.00000001+J81*0.00000000001) -> 0 | O81: =IF(E70=E81,I70,0) -> 0 | P81: =IF(E70=E81,J70,0) -> 0 | Q81: =IF(E71=E81,I71,0) -> 0 | R81: =IF(E71=E81,J71,0) -> 0 | S81: =IF(E73=E81,I73,0) -> 0 | T81: =IF(E73=E81,J73,0) -> 0 | U81: =IF(E74=E81,I74,0) -> 0 | V81: =IF(E74=E81,J74,0) -> 0 | W81: =IF(E76=E81,I76,0) -> 0 | X81: =IF(E76=E81,J76,0) -> 0 | Y81: =IF(E77=E81,I77,0) -> 0 | Z81: =IF(E77=E81,J77,0) -> 0
B82: FALSE | C82: =L82 -> 0 | D82: ='Grups PPP'!D28 ->  | E82: ='Grups PPP'!E28 ->  | F82: =SUMIF(E70:E77,E82,F70:F77) -> 0 | G82: =SUMIF(E70:E77,E82,G70:G77) -> 0 | H82: =IF(B82=TRUE,0,IF(G82=0,0,ROUND(F82/G82,3))) -> 0 | I82: =MAX(O82:Z82) -> 0 | J82: =LARGE((O82:Z82),2) -> 0 | K82: =SUMIF(E70:E77,E82,K70:K77) -> 0 | L82: =IF(B82=TRUE,"WO",IF(AND(B80=TRUE,B81=TRUE),1,IF(N82=0,0,RANK(N82,N80:N82,0)))) -> 0 | M82: =IF(B70="",0,IF(B82=TRUE,0+N82,3-L82+N82)) -> 0 | N82: =IF(OR(B82=TRUE,AND(B80=TRUE,B81=TRUE)),0.000000000005,K82*0.1+H82*0.01+I82*0.00000001+J82*0.00000000001) -> 0 | O82: =IF(E70=E82,I70,0) -> 0 | P82: =IF(E70=E82,J70,0) -> 0 | Q82: =IF(E71=E82,I71,0) -> 0 | R82: =IF(E71=E82,J71,0) -> 0 | S82: =IF(E73=E82,I73,0) -> 0 | T82: =IF(E73=E82,J73,0) -> 0 | U82: =IF(E74=E82,I74,0) -> 0 | V82: =IF(E74=E82,J74,0) -> 0 | W82: =IF(E76=E82,I76,0) -> 0 | X82: =IF(E76=E82,J76,0) -> 0 | Y82: =IF(E77=E82,I77,0) -> 0 | Z82: =IF(E77=E82,J77,0) -> 0
F84: Boles | G84: Ent | H84: Mitj | I84: SM1 | J84: SM2 | K84: Punts
B85: =IF('Rànquing Inicial'!$D$150>15,"Grup AL","") ->  | E85: =IF(D94>1,"",IF(OR(B96=TRUE,B97=TRUE),E95,E96)) ->  | H85: =IF(G85="","",ROUND(F85/G85,3)) ->  | K85: =IF(H85="","",IF(F85>F86,2,IF(F85<F86,0,1))) -> 
E86: =IF(D94>1,"",IF(B97=TRUE,E96,E97)) ->  | G86: =IF(G85="","",G85) ->  | H86: =IF(G86="","",ROUND(F86/G86,3)) ->  | K86: =IF(H86="","",IF(F86>F85,2,IF(F86<F85,0,1))) -> 
E88: =IF(D94>1,"",IF(B95=TRUE,E96,E95)) ->  | H88: =IF(G88="","",ROUND(F88/G88,3)) ->  | K88: =IF(H88="","",IF(F88>F89,2,IF(F88<F89,0,1))) -> 
E89: =IF(D94>1,"",IF(B97=TRUE,E96,E97)) ->  | G89: =IF(G88="","",G88) ->  | H89: =IF(G89="","",ROUND(F89/G89,3)) ->  | K89: =IF(H89="","",IF(F89>F88,2,IF(F89<F88,0,1))) -> 
E91: =IF(D94>1,"",IF(OR(B95=TRUE,B96=TRUE,B97=TRUE),"",E95)) ->  | H91: =IF(G91="","",ROUND(F91/G91,3)) ->  | K91: =IF(H91="","",IF(F91>F92,2,IF(F91<F92,0,1))) -> 
E92: =IF(OR(B95=TRUE,B96=TRUE,B97=TRUE),"",E96) ->  | G92: =IF(G91="","",G91) ->  | H92: =IF(G92="","",ROUND(F92/G92,3)) ->  | K92: =IF(H92="","",IF(F92>F91,2,IF(F92<F91,0,1))) -> 
B94: ¿WO? | D94: =COUNTIF(B95:B97,"VERDADERO") -> 0 | E94: Jugador | F94: Boles | G94: Ent | H94: Mitj | I94: SM1 | J94: SM2 | K94: P | L94: =B85 -> 
B95: FALSE | C95: =L95 -> 0 | D95: ='Grups PPP'!D30 ->  | E95: ='Grups PPP'!E30 ->  | F95: =SUMIF(E85:E92,E95,F85:F92) -> 0 | G95: =SUMIF(E85:E92,E95,G85:G92) -> 0 | H95: =IF(B95=TRUE,0,IF(G95=0,0,ROUND(F95/G95,3))) -> 0 | I95: =MAX(O95:Z95) -> 0 | J95: =LARGE((O95:Z95),2) -> 0 | K95: =SUMIF(E85:E92,E95,K85:K92) -> 0 | L95: =IF(B95=TRUE,"WO",IF(AND(B96=TRUE,B97=TRUE),1,IF(N95=0,0,RANK(N95,N95:N97,0)))) -> 0 | M95: =IF(B85="",0,IF(B95=TRUE,0+N95,3-L95+N95)) -> 0 | N95: =IF(OR(B95=TRUE,AND(B96=TRUE,B97=TRUE)),0.000000000043,K95*0.1+H95*0.01+I95*0.00000001+J95*0.00000000001) -> 0 | O95: =IF(E85=E95,I85,0) -> 0 | P95: =IF(E85=E95,J85,0) -> 0 | Q95: =IF(E86=E95,I86,0) -> 0 | R95: =IF(E86=E95,J86,0) -> 0 | S95: =IF(E88=E95,I88,0) -> 0 | T95: =IF(E88=E95,J88,0) -> 0 | U95: =IF(E89=E95,I89,0) -> 0 | V95: =IF(E89=E95,J89,0) -> 0 | W95: =IF(E91=E95,I91,0) -> 0 | X95: =IF(E91=E95,J91,0) -> 0 | Y95: =IF(E92=E95,I92,0) -> 0 | Z95: =IF(E92=E95,J92,0) -> 0
B96: FALSE | C96: =L96 -> 0 | D96: ='Grups PPP'!D31 ->  | E96: ='Grups PPP'!E31 ->  | F96: =SUMIF(E85:E92,E96,F85:F92) -> 0 | G96: =SUMIF(E85:E92,E96,G85:G92) -> 0 | H96: =IF(B96=TRUE,0,IF(G96=0,0,ROUND(F96/G96,3))) -> 0 | I96: =MAX(O96:Z96) -> 0 | J96: =LARGE((O96:Z96),2) -> 0 | K96: =SUMIF(E85:E92,E96,K85:K92) -> 0 | L96: =IF(B96=TRUE,"WO",IF(AND(B95=TRUE,B97=TRUE),1,IF(N96=0,0,RANK(N96,N95:N97,0)))) -> 0 | M96: =IF(B85="",0,IF(B96=TRUE,0+N96,3-L96+N96)) -> 0 | N96: =IF(OR(B96=TRUE,AND(B95=TRUE,B97=TRUE)),0.000000000022,K96*0.1+H96*0.01+I96*0.00000001+J96*0.00000000001) -> 0 | O96: =IF(E85=E96,I85,0) -> 0 | P96: =IF(E85=E96,J85,0) -> 0 | Q96: =IF(E86=E96,I86,0) -> 0 | R96: =IF(E86=E96,J86,0) -> 0 | S96: =IF(E88=E96,I88,0) -> 0 | T96: =IF(E88=E96,J88,0) -> 0 | U96: =IF(E89=E96,I89,0) -> 0 | V96: =IF(E89=E96,J89,0) -> 0 | W96: =IF(E91=E96,I91,0) -> 0 | X96: =IF(E91=E96,J91,0) -> 0 | Y96: =IF(E92=E96,I92,0) -> 0 | Z96: =IF(E92=E96,J92,0) -> 0
B97: FALSE | C97: =L97 -> 0 | D97: ='Grups PPP'!D32 ->  | E97: ='Grups PPP'!E32 ->  | F97: =SUMIF(E85:E92,E97,F85:F92) -> 0 | G97: =SUMIF(E85:E92,E97,G85:G92) -> 0 | H97: =IF(B97=TRUE,0,IF(G97=0,0,ROUND(F97/G97,3))) -> 0 | I97: =MAX(O97:Z97) -> 0 | J97: =LARGE((O97:Z97),2) -> 0 | K97: =SUMIF(E85:E92,E97,K85:K92) -> 0 | L97: =IF(B97=TRUE,"WO",IF(AND(B95=TRUE,B96=TRUE),1,IF(N97=0,0,RANK(N97,N95:N97,0)))) -> 0 | M97: =IF(B85="",0,IF(B97=TRUE,0+N97,3-L97+N97)) -> 0 | N97: =IF(OR(B97=TRUE,AND(B95=TRUE,B96=TRUE)),0.000000000006,K97*0.1+H97*0.01+I97*0.00000001+J97*0.00000000001) -> 0 | O97: =IF(E85=E97,I85,0) -> 0 | P97: =IF(E85=E97,J85,0) -> 0 | Q97: =IF(E86=E97,I86,0) -> 0 | R97: =IF(E86=E97,J86,0) -> 0 | S97: =IF(E88=E97,I88,0) -> 0 | T97: =IF(E88=E97,J88,0) -> 0 | U97: =IF(E89=E97,I89,0) -> 0 | V97: =IF(E89=E97,J89,0) -> 0 | W97: =IF(E91=E97,I91,0) -> 0 | X97: =IF(E91=E97,J91,0) -> 0 | Y97: =IF(E92=E97,I92,0) -> 0 | Z97: =IF(E92=E97,J92,0) -> 0
F99: Boles | G99: Ent | H99: Mitj | I99: SM1 | J99: SM2 | K99: Punts
B100: =IF('Rànquing Inicial'!$D$150>18,"Grup AM","") ->  | E100: =IF(D109>1,"",IF(OR(B111=TRUE,B112=TRUE),E110,E111)) ->  | H100: =IF(G100="","",ROUND(F100/G100,3)) ->  | K100: =IF(H100="","",IF(F100>F101,2,IF(F100<F101,0,1))) -> 
E101: =IF(D109>1,"",IF(B112=TRUE,E111,E112)) ->  | G101: =IF(G100="","",G100) ->  | H101: =IF(G101="","",ROUND(F101/G101,3)) ->  | K101: =IF(H101="","",IF(F101>F100,2,IF(F101<F100,0,1))) -> 
E103: =IF(D109>1,"",IF(B110=TRUE,E111,E110)) ->  | H103: =IF(G103="","",ROUND(F103/G103,3)) ->  | K103: =IF(H103="","",IF(F103>F104,2,IF(F103<F104,0,1))) -> 
E104: =IF(D109>1,"",IF(B112=TRUE,E111,E112)) ->  | G104: =IF(G103="","",G103) ->  | H104: =IF(G104="","",ROUND(F104/G104,3)) ->  | K104: =IF(H104="","",IF(F104>F103,2,IF(F104<F103,0,1))) -> 
E106: =IF(D109>1,"",IF(OR(B110=TRUE,B111=TRUE,B112=TRUE),"",E110)) ->  | H106: =IF(G106="","",ROUND(F106/G106,3)) ->  | K106: =IF(H106="","",IF(F106>F107,2,IF(F106<F107,0,1))) -> 
E107: =IF(OR(B110=TRUE,B111=TRUE,B112=TRUE),"",E111) ->  | G107: =IF(G106="","",G106) ->  | H107: =IF(G107="","",ROUND(F107/G107,3)) ->  | K107: =IF(H107="","",IF(F107>F106,2,IF(F107<F106,0,1))) -> 
B109: ¿WO? | D109: =COUNTIF(B110:B112,"VERDADERO") -> 0 | E109: Jugador | F109: Boles | G109: Ent | H109: Mitj | I109: SM1 | J109: SM2 | K109: P | L109: =B100 -> 
B110: FALSE | C110: =L110 -> 0 | D110: ='Grups PPP'!D34 ->  | E110: ='Grups PPP'!E34 ->  | F110: =SUMIF(E100:E107,E110,F100:F107) -> 0 | G110: =SUMIF(E100:E107,E110,G100:G107) -> 0 | H110: =IF(B110=TRUE,0,IF(G110=0,0,ROUND(F110/G110,3))) -> 0 | I110: =MAX(O110:Z110) -> 0 | J110: =LARGE((O110:Z110),2) -> 0 | K110: =SUMIF(E100:E107,E110,K100:K107) -> 0 | L110: =IF(B110=TRUE,"WO",IF(AND(B111=TRUE,B112=TRUE),1,IF(N110=0,0,RANK(N110,N110:N112,0)))) -> 0 | M110: =IF(B100="",0,IF(B110=TRUE,0+N110,3-L110+N110)) -> 0 | N110: =IF(OR(B110=TRUE,AND(B111=TRUE,B112=TRUE)),0.000000000042,K110*0.1+H110*0.01+I110*0.00000001+J110*0.00000000001) -> 0 | O110: =IF(E100=E110,I100,0) -> 0 | P110: =IF(E100=E110,J100,0) -> 0 | Q110: =IF(E101=E110,I101,0) -> 0 | R110: =IF(E101=E110,J101,0) -> 0 | S110: =IF(E103=E110,I103,0) -> 0 | T110: =IF(E103=E110,J103,0) -> 0 | U110: =IF(E104=E110,I104,0) -> 0 | V110: =IF(E104=E110,J104,0) -> 0 | W110: =IF(E106=E110,I106,0) -> 0 | X110: =IF(E106=E110,J106,0) -> 0 | Y110: =IF(E107=E110,I107,0) -> 0 | Z110: =IF(E107=E110,J107,0) -> 0
B111: FALSE | C111: =L111 -> 0 | D111: ='Grups PPP'!D35 ->  | E111: ='Grups PPP'!E35 ->  | F111: =SUMIF(E100:E107,E111,F100:F107) -> 0 | G111: =SUMIF(E100:E107,E111,G100:G107) -> 0 | H111: =IF(B111=TRUE,0,IF(G111=0,0,ROUND(F111/G111,3))) -> 0 | I111: =MAX(O111:Z111) -> 0 | J111: =LARGE((O111:Z111),2) -> 0 | K111: =SUMIF(E100:E107,E111,K100:K107) -> 0 | L111: =IF(B111=TRUE,"WO",IF(AND(B110=TRUE,B112=TRUE),1,IF(N111=0,0,RANK(N111,N110:N112,0)))) -> 0 | M111: =IF(B100="",0,IF(B111=TRUE,0+N111,3-L111+N111)) -> 0 | N111: =IF(OR(B111=TRUE,AND(B110=TRUE,B112=TRUE)),0.000000000023,K111*0.1+H111*0.01+I111*0.00000001+J111*0.00000000001) -> 0 | O111: =IF(E100=E111,I100,0) -> 0 | P111: =IF(E100=E111,J100,0) -> 0 | Q111: =IF(E101=E111,I101,0) -> 0 | R111: =IF(E101=E111,J101,0) -> 0 | S111: =IF(E103=E111,I103,0) -> 0 | T111: =IF(E103=E111,J103,0) -> 0 | U111: =IF(E104=E111,I104,0) -> 0 | V111: =IF(E104=E111,J104,0) -> 0 | W111: =IF(E106=E111,I106,0) -> 0 | X111: =IF(E106=E111,J106,0) -> 0 | Y111: =IF(E107=E111,I107,0) -> 0 | Z111: =IF(E107=E111,J107,0) -> 0
B112: FALSE | C112: =L112 -> 0 | D112: ='Grups PPP'!D36 ->  | E112: ='Grups PPP'!E36 ->  | F112: =SUMIF(E100:E107,E112,F100:F107) -> 0 | G112: =SUMIF(E100:E107,E112,G100:G107) -> 0 | H112: =IF(B112=TRUE,0,IF(G112=0,0,ROUND(F112/G112,3))) -> 0 | I112: =MAX(O112:Z112) -> 0 | J112: =LARGE((O112:Z112),2) -> 0 | K112: =SUMIF(E100:E107,E112,K100:K107) -> 0 | L112: =IF(B112=TRUE,"WO",IF(AND(B110=TRUE,B111=TRUE),1,IF(N112=0,0,RANK(N112,N110:N112,0)))) -> 0 | M112: =IF(B100="",0,IF(B112=TRUE,0+N112,3-L112+N112)) -> 0 | N112: =IF(OR(B112=TRUE,AND(B110=TRUE,B111=TRUE)),0.000000000007,K112*0.1+H112*0.01+I112*0.00000001+J112*0.00000000001) -> 0 | O112: =IF(E100=E112,I100,0) -> 0 | P112: =IF(E100=E112,J100,0) -> 0 | Q112: =IF(E101=E112,I101,0) -> 0 | R112: =IF(E101=E112,J101,0) -> 0 | S112: =IF(E103=E112,I103,0) -> 0 | T112: =IF(E103=E112,J103,0) -> 0 | U112: =IF(E104=E112,I104,0) -> 0 | V112: =IF(E104=E112,J104,0) -> 0 | W112: =IF(E106=E112,I106,0) -> 0 | X112: =IF(E106=E112,J106,0) -> 0 | Y112: =IF(E107=E112,I107,0) -> 0 | Z112: =IF(E107=E112,J107,0) -> 0
F114: Boles | G114: Ent | H114: Mitj | I114: SM1 | J114: SM2 | K114: Punts
B115: =IF('Rànquing Inicial'!$D$150>21,"Grup AN","") ->  | E115: =IF(D124>1,"",IF(OR(B126=TRUE,B127=TRUE),E125,E126)) ->  | H115: =IF(G115="","",ROUND(F115/G115,3)) ->  | K115: =IF(H115="","",IF(F115>F116,2,IF(F115<F116,0,1))) -> 
E116: =IF(D124>1,"",IF(B127=TRUE,E126,E127)) ->  | G116: =IF(G115="","",G115) ->  | H116: =IF(G116="","",ROUND(F116/G116,3)) ->  | K116: =IF(H116="","",IF(F116>F115,2,IF(F116<F115,0,1))) -> 
E118: =IF(D124>1,"",IF(B125=TRUE,E126,E125)) ->  | H118: =IF(G118="","",ROUND(F118/G118,3)) ->  | K118: =IF(H118="","",IF(F118>F119,2,IF(F118<F119,0,1))) -> 
E119: =IF(D124>1,"",IF(B127=TRUE,E126,E127)) ->  | G119: =IF(G118="","",G118) ->  | H119: =IF(G119="","",ROUND(F119/G119,3)) ->  | K119: =IF(H119="","",IF(F119>F118,2,IF(F119<F118,0,1))) -> 
E121: =IF(D124>1,"",IF(OR(B125=TRUE,B126=TRUE,B127=TRUE),"",E125)) ->  | H121: =IF(G121="","",ROUND(F121/G121,3)) ->  | K121: =IF(H121="","",IF(F121>F122,2,IF(F121<F122,0,1))) -> 
E122: =IF(OR(B125=TRUE,B126=TRUE,B127=TRUE),"",E126) ->  | G122: =IF(G121="","",G121) ->  | H122: =IF(G122="","",ROUND(F122/G122,3)) ->  | K122: =IF(H122="","",IF(F122>F121,2,IF(F122<F121,0,1))) -> 
B124: ¿WO? | D124: =COUNTIF(B125:B127,"VERDADERO") -> 0 | E124: Jugador | F124: Boles | G124: Ent | H124: Mitj | I124: SM1 | J124: SM2 | K124: P | L124: =B115 -> 
B125: FALSE | C125: =L125 -> 0 | D125: ='Grups PPP'!D38 ->  | E125: ='Grups PPP'!E38 ->  | F125: =SUMIF(E115:E122,E125,F115:F122) -> 0 | G125: =SUMIF(E115:E122,E125,G115:G122) -> 0 | H125: =IF(B125=TRUE,0,IF(G125=0,0,ROUND(F125/G125,3))) -> 0 | I125: =MAX(O125:Z125) -> 0 | J125: =LARGE((O125:Z125),2) -> 0 | K125: =SUMIF(E115:E122,E125,K115:K122) -> 0 | L125: =IF(B125=TRUE,"WO",IF(AND(B126=TRUE,B127=TRUE),1,IF(N125=0,0,RANK(N125,N125:N127,0)))) -> 0 | M125: =IF(B115="",0,IF(B125=TRUE,0+N125,3-L125+N125)) -> 0 | N125: =IF(OR(B125=TRUE,AND(B126=TRUE,B127=TRUE)),0.000000000041,K125*0.1+H125*0.01+I125*0.00000001+J125*0.00000000001) -> 0 | O125: =IF(E115=E125,I115,0) -> 0 | P125: =IF(E115=E125,J115,0) -> 0 | Q125: =IF(E116=E125,I116,0) -> 0 | R125: =IF(E116=E125,J116,0) -> 0 | S125: =IF(E118=E125,I118,0) -> 0 | T125: =IF(E118=E125,J118,0) -> 0 | U125: =IF(E119=E125,I119,0) -> 0 | V125: =IF(E119=E125,J119,0) -> 0 | W125: =IF(E121=E125,I121,0) -> 0 | X125: =IF(E121=E125,J121,0) -> 0 | Y125: =IF(E122=E125,I122,0) -> 0 | Z125: =IF(E122=E125,J122,0) -> 0
B126: FALSE | C126: =L126 -> 0 | D126: ='Grups PPP'!D39 ->  | E126: ='Grups PPP'!E39 ->  | F126: =SUMIF(E115:E122,E126,F115:F122) -> 0 | G126: =SUMIF(E115:E122,E126,G115:G122) -> 0 | H126: =IF(B126=TRUE,0,IF(G126=0,0,ROUND(F126/G126,3))) -> 0 | I126: =MAX(O126:Z126) -> 0 | J126: =LARGE((O126:Z126),2) -> 0 | K126: =SUMIF(E115:E122,E126,K115:K122) -> 0 | L126: =IF(B126=TRUE,"WO",IF(AND(B125=TRUE,B127=TRUE),1,IF(N126=0,0,RANK(N126,N125:N127,0)))) -> 0 | M126: =IF(B115="",0,IF(B126=TRUE,0+N126,3-L126+N126)) -> 0 | N126: =IF(OR(B126=TRUE,AND(B125=TRUE,B127=TRUE)),0.000000000024,K126*0.1+H126*0.01+I126*0.00000001+J126*0.00000000001) -> 0 | O126: =IF(E115=E126,I115,0) -> 0 | P126: =IF(E115=E126,J115,0) -> 0 | Q126: =IF(E116=E126,I116,0) -> 0 | R126: =IF(E116=E126,J116,0) -> 0 | S126: =IF(E118=E126,I118,0) -> 0 | T126: =IF(E118=E126,J118,0) -> 0 | U126: =IF(E119=E126,I119,0) -> 0 | V126: =IF(E119=E126,J119,0) -> 0 | W126: =IF(E121=E126,I121,0) -> 0 | X126: =IF(E121=E126,J121,0) -> 0 | Y126: =IF(E122=E126,I122,0) -> 0 | Z126: =IF(E122=E126,J122,0) -> 0
B127: FALSE | C127: =L127 -> 0 | D127: ='Grups PPP'!D40 ->  | E127: ='Grups PPP'!E40 ->  | F127: =SUMIF(E115:E122,E127,F115:F122) -> 0 | G127: =SUMIF(E115:E122,E127,G115:G122) -> 0 | H127: =IF(B127=TRUE,0,IF(G127=0,0,ROUND(F127/G127,3))) -> 0 | I127: =MAX(O127:Z127) -> 0 | J127: =LARGE((O127:Z127),2) -> 0 | K127: =SUMIF(E115:E122,E127,K115:K122) -> 0 | L127: =IF(B127=TRUE,"WO",IF(AND(B125=TRUE,B126=TRUE),1,IF(N127=0,0,RANK(N127,N125:N127,0)))) -> 0 | M127: =IF(B115="",0,IF(B127=TRUE,0+N127,3-L127+N127)) -> 0 | N127: =IF(OR(B127=TRUE,AND(B125=TRUE,B126=TRUE)),0.000000000008,K127*0.1+H127*0.01+I127*0.00000001+J127*0.00000000001) -> 0 | O127: =IF(E115=E127,I115,0) -> 0 | P127: =IF(E115=E127,J115,0) -> 0 | Q127: =IF(E116=E127,I116,0) -> 0 | R127: =IF(E116=E127,J116,0) -> 0 | S127: =IF(E118=E127,I118,0) -> 0 | T127: =IF(E118=E127,J118,0) -> 0 | U127: =IF(E119=E127,I119,0) -> 0 | V127: =IF(E119=E127,J119,0) -> 0 | W127: =IF(E121=E127,I121,0) -> 0 | X127: =IF(E121=E127,J121,0) -> 0 | Y127: =IF(E122=E127,I122,0) -> 0 | Z127: =IF(E122=E127,J122,0) -> 0
F129: Boles | G129: Ent | H129: Mitj | I129: SM1 | J129: SM2 | K129: Punts
B130: =IF('Rànquing Inicial'!$D$150>24,"Grup AO","") ->  | E130: =IF(D139>1,"",IF(OR(B141=TRUE,B142=TRUE),E140,E141)) ->  | H130: =IF(G130="","",ROUND(F130/G130,3)) ->  | K130: =IF(H130="","",IF(F130>F131,2,IF(F130<F131,0,1))) -> 
E131: =IF(D139>1,"",IF(B142=TRUE,E141,E142)) ->  | G131: =IF(G130="","",G130) ->  | H131: =IF(G131="","",ROUND(F131/G131,3)) ->  | K131: =IF(H131="","",IF(F131>F130,2,IF(F131<F130,0,1))) -> 
E133: =IF(D139>1,"",IF(B140=TRUE,E141,E140)) ->  | H133: =IF(G133="","",ROUND(F133/G133,3)) ->  | K133: =IF(H133="","",IF(F133>F134,2,IF(F133<F134,0,1))) -> 
E134: =IF(D139>1,"",IF(B142=TRUE,E141,E142)) ->  | G134: =IF(G133="","",G133) ->  | H134: =IF(G134="","",ROUND(F134/G134,3)) ->  | K134: =IF(H134="","",IF(F134>F133,2,IF(F134<F133,0,1))) -> 
E136: =IF(D139>1,"",IF(OR(B140=TRUE,B141=TRUE,B142=TRUE),"",E140)) ->  | H136: =IF(G136="","",ROUND(F136/G136,3)) ->  | K136: =IF(H136="","",IF(F136>F137,2,IF(F136<F137,0,1))) -> 
E137: =IF(OR(B140=TRUE,B141=TRUE,B142=TRUE),"",E141) ->  | G137: =IF(G136="","",G136) ->  | H137: =IF(G137="","",ROUND(F137/G137,3)) ->  | K137: =IF(H137="","",IF(F137>F136,2,IF(F137<F136,0,1))) -> 
B139: ¿WO? | D139: =COUNTIF(B140:B142,"VERDADERO") -> 0 | E139: Jugador | F139: Boles | G139: Ent | H139: Mitj | I139: SM1 | J139: SM2 | K139: P | L139: =B130 -> 
B140: FALSE | C140: =L140 -> 0 | D140: ='Grups PPP'!H10 ->  | E140: ='Grups PPP'!I10 ->  | F140: =SUMIF(E130:E137,E140,F130:F137) -> 0 | G140: =SUMIF(E130:E137,E140,G130:G137) -> 0 | H140: =IF(B140=TRUE,0,IF(G140=0,0,ROUND(F140/G140,3))) -> 0 | I140: =MAX(O140:Z140) -> 0 | J140: =LARGE((O140:Z140),2) -> 0 | K140: =SUMIF(E130:E137,E140,K130:K137) -> 0 | L140: =IF(B140=TRUE,"WO",IF(AND(B141=TRUE,B142=TRUE),1,IF(N140=0,0,RANK(N140,N140:N142,0)))) -> 0 | M140: =IF(B130="",0,IF(B140=TRUE,0+N140,3-L140+N140)) -> 0 | N140: =IF(OR(B140=TRUE,AND(B141=TRUE,B142=TRUE)),0.00000000004,K140*0.1+H140*0.01+I140*0.00000001+J140*0.00000000001) -> 0 | O140: =IF(E130=E140,I130,0) -> 0 | P140: =IF(E130=E140,J130,0) -> 0 | Q140: =IF(E131=E140,I131,0) -> 0 | R140: =IF(E131=E140,J131,0) -> 0 | S140: =IF(E133=E140,I133,0) -> 0 | T140: =IF(E133=E140,J133,0) -> 0 | U140: =IF(E134=E140,I134,0) -> 0 | V140: =IF(E134=E140,J134,0) -> 0 | W140: =IF(E136=E140,I136,0) -> 0 | X140: =IF(E136=E140,J136,0) -> 0 | Y140: =IF(E137=E140,I137,0) -> 0 | Z140: =IF(E137=E140,J137,0) -> 0
B141: FALSE | C141: =L141 -> 0 | D141: ='Grups PPP'!H11 ->  | E141: ='Grups PPP'!I11 ->  | F141: =SUMIF(E130:E137,E141,F130:F137) -> 0 | G141: =SUMIF(E130:E137,E141,G130:G137) -> 0 | H141: =IF(B141=TRUE,0,IF(G141=0,0,ROUND(F141/G141,3))) -> 0 | I141: =MAX(O141:Z141) -> 0 | J141: =LARGE((O141:Z141),2) -> 0 | K141: =SUMIF(E130:E137,E141,K130:K137) -> 0 | L141: =IF(B141=TRUE,"WO",IF(AND(B140=TRUE,B142=TRUE),1,IF(N141=0,0,RANK(N141,N140:N142,0)))) -> 0 | M141: =IF(B130="",0,IF(B141=TRUE,0+N141,3-L141+N141)) -> 0 | N141: =IF(OR(B141=TRUE,AND(B140=TRUE,B142=TRUE)),0.000000000025,K141*0.1+H141*0.01+I141*0.00000001+J141*0.00000000001) -> 0 | O141: =IF(E130=E141,I130,0) -> 0 | P141: =IF(E130=E141,J130,0) -> 0 | Q141: =IF(E131=E141,I131,0) -> 0 | R141: =IF(E131=E141,J131,0) -> 0 | S141: =IF(E133=E141,I133,0) -> 0 | T141: =IF(E133=E141,J133,0) -> 0 | U141: =IF(E134=E141,I134,0) -> 0 | V141: =IF(E134=E141,J134,0) -> 0 | W141: =IF(E136=E141,I136,0) -> 0 | X141: =IF(E136=E141,J136,0) -> 0 | Y141: =IF(E137=E141,I137,0) -> 0 | Z141: =IF(E137=E141,J137,0) -> 0
B142: FALSE | C142: =L142 -> 0 | D142: ='Grups PPP'!H12 ->  | E142: ='Grups PPP'!I12 ->  | F142: =SUMIF(E130:E137,E142,F130:F137) -> 0 | G142: =SUMIF(E130:E137,E142,G130:G137) -> 0 | H142: =IF(B142=TRUE,0,IF(G142=0,0,ROUND(F142/G142,3))) -> 0 | I142: =MAX(O142:Z142) -> 0 | J142: =LARGE((O142:Z142),2) -> 0 | K142: =SUMIF(E130:E137,E142,K130:K137) -> 0 | L142: =IF(B142=TRUE,"WO",IF(AND(B140=TRUE,B141=TRUE),1,IF(N142=0,0,RANK(N142,N140:N142,0)))) -> 0 | M142: =IF(B130="",0,IF(B142=TRUE,0+N142,3-L142+N142)) -> 0 | N142: =IF(OR(B142=TRUE,AND(B140=TRUE,B141=TRUE)),0.000000000009,K142*0.1+H142*0.01+I142*0.00000001+J142*0.00000000001) -> 0 | O142: =IF(E130=E142,I130,0) -> 0 | P142: =IF(E130=E142,J130,0) -> 0 | Q142: =IF(E131=E142,I131,0) -> 0 | R142: =IF(E131=E142,J131,0) -> 0 | S142: =IF(E133=E142,I133,0) -> 0 | T142: =IF(E133=E142,J133,0) -> 0 | U142: =IF(E134=E142,I134,0) -> 0 | V142: =IF(E134=E142,J134,0) -> 0 | W142: =IF(E136=E142,I136,0) -> 0 | X142: =IF(E136=E142,J136,0) -> 0 | Y142: =IF(E137=E142,I137,0) -> 0 | Z142: =IF(E137=E142,J137,0) -> 0
F144: Boles | G144: Ent | H144: Mitj | I144: SM1 | J144: SM2 | K144: Punts
B145: =IF('Rànquing Inicial'!$D$150>27,"Grup AP","") ->  | E145: =IF(D154>1,"",IF(OR(B156=TRUE,B157=TRUE),E155,E156)) ->  | H145: =IF(G145="","",ROUND(F145/G145,3)) ->  | K145: =IF(H145="","",IF(F145>F146,2,IF(F145<F146,0,1))) -> 
E146: =IF(D154>1,"",IF(B157=TRUE,E156,E157)) ->  | G146: =IF(G145="","",G145) ->  | H146: =IF(G146="","",ROUND(F146/G146,3)) ->  | K146: =IF(H146="","",IF(F146>F145,2,IF(F146<F145,0,1))) -> 
E148: =IF(D154>1,"",IF(B155=TRUE,E156,E155)) ->  | H148: =IF(G148="","",ROUND(F148/G148,3)) ->  | K148: =IF(H148="","",IF(F148>F149,2,IF(F148<F149,0,1))) -> 
E149: =IF(D154>1,"",IF(B157=TRUE,E156,E157)) ->  | G149: =IF(G148="","",G148) ->  | H149: =IF(G149="","",ROUND(F149/G149,3)) ->  | K149: =IF(H149="","",IF(F149>F148,2,IF(F149<F148,0,1))) -> 
E151: =IF(D154>1,"",IF(OR(B155=TRUE,B156=TRUE,B157=TRUE),"",E155)) ->  | H151: =IF(G151="","",ROUND(F151/G151,3)) ->  | K151: =IF(H151="","",IF(F151>F152,2,IF(F151<F152,0,1))) -> 
E152: =IF(OR(B155=TRUE,B156=TRUE,B157=TRUE),"",E156) ->  | G152: =IF(G151="","",G151) ->  | H152: =IF(G152="","",ROUND(F152/G152,3)) ->  | K152: =IF(H152="","",IF(F152>F151,2,IF(F152<F151,0,1))) -> 
B154: ¿WO? | D154: =COUNTIF(B155:B157,"VERDADERO") -> 0 | E154: Jugador | F154: Boles | G154: Ent | H154: Mitj | I154: SM1 | J154: SM2 | K154: P | L154: =B145 -> 
B155: FALSE | C155: =L155 -> 0 | D155: ='Grups PPP'!H14 ->  | E155: ='Grups PPP'!I14 ->  | F155: =SUMIF(E145:E152,E155,F145:F152) -> 0 | G155: =SUMIF(E145:E152,E155,G145:G152) -> 0 | H155: =IF(B155=TRUE,0,IF(G155=0,0,ROUND(F155/G155,3))) -> 0 | I155: =MAX(O155:Z155) -> 0 | J155: =LARGE((O155:Z155),2) -> 0 | K155: =SUMIF(E145:E152,E155,K145:K152) -> 0 | L155: =IF(B155=TRUE,"WO",IF(AND(B156=TRUE,B157=TRUE),1,IF(N155=0,0,RANK(N155,N155:N157,0)))) -> 0 | M155: =IF(B145="",0,IF(B155=TRUE,0+N155,3-L155+N155)) -> 0 | N155: =IF(OR(B155=TRUE,AND(B156=TRUE,B157=TRUE)),0.000000000039,K155*0.1+H155*0.01+I155*0.00000001+J155*0.00000000001) -> 0 | O155: =IF(E145=E155,I145,0) -> 0 | P155: =IF(E145=E155,J145,0) -> 0 | Q155: =IF(E146=E155,I146,0) -> 0 | R155: =IF(E146=E155,J146,0) -> 0 | S155: =IF(E148=E155,I148,0) -> 0 | T155: =IF(E148=E155,J148,0) -> 0 | U155: =IF(E149=E155,I149,0) -> 0 | V155: =IF(E149=E155,J149,0) -> 0 | W155: =IF(E151=E155,I151,0) -> 0 | X155: =IF(E151=E155,J151,0) -> 0 | Y155: =IF(E152=E155,I152,0) -> 0 | Z155: =IF(E152=E155,J152,0) -> 0
B156: FALSE | C156: =L156 -> 0 | D156: ='Grups PPP'!H15 ->  | E156: ='Grups PPP'!I15 ->  | F156: =SUMIF(E145:E152,E156,F145:F152) -> 0 | G156: =SUMIF(E145:E152,E156,G145:G152) -> 0 | H156: =IF(B156=TRUE,0,IF(G156=0,0,ROUND(F156/G156,3))) -> 0 | I156: =MAX(O156:Z156) -> 0 | J156: =LARGE((O156:Z156),2) -> 0 | K156: =SUMIF(E145:E152,E156,K145:K152) -> 0 | L156: =IF(B156=TRUE,"WO",IF(AND(B155=TRUE,B157=TRUE),1,IF(N156=0,0,RANK(N156,N155:N157,0)))) -> 0 | M156: =IF(B145="",0,IF(B156=TRUE,0+N156,3-L156+N156)) -> 0 | N156: =IF(OR(B156=TRUE,AND(B155=TRUE,B157=TRUE)),0.000000000026,K156*0.1+H156*0.01+I156*0.00000001+J156*0.00000000001) -> 0 | O156: =IF(E145=E156,I145,0) -> 0 | P156: =IF(E145=E156,J145,0) -> 0 | Q156: =IF(E146=E156,I146,0) -> 0 | R156: =IF(E146=E156,J146,0) -> 0 | S156: =IF(E148=E156,I148,0) -> 0 | T156: =IF(E148=E156,J148,0) -> 0 | U156: =IF(E149=E156,I149,0) -> 0 | V156: =IF(E149=E156,J149,0) -> 0 | W156: =IF(E151=E156,I151,0) -> 0 | X156: =IF(E151=E156,J151,0) -> 0 | Y156: =IF(E152=E156,I152,0) -> 0 | Z156: =IF(E152=E156,J152,0) -> 0
B157: FALSE | C157: =L157 -> 0 | D157: ='Grups PPP'!H16 ->  | E157: ='Grups PPP'!I16 ->  | F157: =SUMIF(E145:E152,E157,F145:F152) -> 0 | G157: =SUMIF(E145:E152,E157,G145:G152) -> 0 | H157: =IF(B157=TRUE,0,IF(G157=0,0,ROUND(F157/G157,3))) -> 0 | I157: =MAX(O157:Z157) -> 0 | J157: =LARGE((O157:Z157),2) -> 0 | K157: =SUMIF(E145:E152,E157,K145:K152) -> 0 | L157: =IF(B157=TRUE,"WO",IF(AND(B155=TRUE,B156=TRUE),1,IF(N157=0,0,RANK(N157,N155:N157,0)))) -> 0 | M157: =IF(B145="",0,IF(B157=TRUE,0+N157,3-L157+N157)) -> 0 | N157: =IF(OR(B157=TRUE,AND(B155=TRUE,B156=TRUE)),0.00000000001,K157*0.1+H157*0.01+I157*0.00000001+J157*0.00000000001) -> 0 | O157: =IF(E145=E157,I145,0) -> 0 | P157: =IF(E145=E157,J145,0) -> 0 | Q157: =IF(E146=E157,I146,0) -> 0 | R157: =IF(E146=E157,J146,0) -> 0 | S157: =IF(E148=E157,I148,0) -> 0 | T157: =IF(E148=E157,J148,0) -> 0 | U157: =IF(E149=E157,I149,0) -> 0 | V157: =IF(E149=E157,J149,0) -> 0 | W157: =IF(E151=E157,I151,0) -> 0 | X157: =IF(E151=E157,J151,0) -> 0 | Y157: =IF(E152=E157,I152,0) -> 0 | Z157: =IF(E152=E157,J152,0) -> 0
F159: Boles | G159: Ent | H159: Mitj | I159: SM1 | J159: SM2 | K159: Punts
B160: =IF('Rànquing Inicial'!$D$150>30,"Grup AQ","") ->  | E160: =IF(D169>1,"",IF(OR(B171=TRUE,B172=TRUE),E170,E171)) ->  | H160: =IF(G160="","",ROUND(F160/G160,3)) ->  | K160: =IF(H160="","",IF(F160>F161,2,IF(F160<F161,0,1))) -> 
E161: =IF(D169>1,"",IF(B172=TRUE,E171,E172)) ->  | G161: =IF(G160="","",G160) ->  | H161: =IF(G161="","",ROUND(F161/G161,3)) ->  | K161: =IF(H161="","",IF(F161>F160,2,IF(F161<F160,0,1))) -> 
E163: =IF(D169>1,"",IF(B170=TRUE,E171,E170)) ->  | H163: =IF(G163="","",ROUND(F163/G163,3)) ->  | K163: =IF(H163="","",IF(F163>F164,2,IF(F163<F164,0,1))) -> 
E164: =IF(D169>1,"",IF(B172=TRUE,E171,E172)) ->  | G164: =IF(G163="","",G163) ->  | H164: =IF(G164="","",ROUND(F164/G164,3)) ->  | K164: =IF(H164="","",IF(F164>F163,2,IF(F164<F163,0,1))) -> 
E166: =IF(D169>1,"",IF(OR(B170=TRUE,B171=TRUE,B172=TRUE),"",E170)) ->  | H166: =IF(G166="","",ROUND(F166/G166,3)) ->  | K166: =IF(H166="","",IF(F166>F167,2,IF(F166<F167,0,1))) -> 
E167: =IF(OR(B170=TRUE,B171=TRUE,B172=TRUE),"",E171) ->  | G167: =IF(G166="","",G166) ->  | H167: =IF(G167="","",ROUND(F167/G167,3)) ->  | K167: =IF(H167="","",IF(F167>F166,2,IF(F167<F166,0,1))) -> 
B169: ¿WO? | D169: =COUNTIF(B170:B172,"VERDADERO") -> 0 | E169: Jugador | F169: Boles | G169: Ent | H169: Mitj | I169: SM1 | J169: SM2 | K169: P | L169: =B160 -> 
B170: FALSE | C170: =L170 -> 0 | D170: ='Grups PPP'!H18 ->  | E170: ='Grups PPP'!I18 ->  | F170: =SUMIF(E160:E167,E170,F160:F167) -> 0 | G170: =SUMIF(E160:E167,E170,G160:G167) -> 0 | H170: =IF(B170=TRUE,0,IF(G170=0,0,ROUND(F170/G170,3))) -> 0 | I170: =MAX(O170:Z170) -> 0 | J170: =LARGE((O170:Z170),2) -> 0 | K170: =SUMIF(E160:E167,E170,K160:K167) -> 0 | L170: =IF(B170=TRUE,"WO",IF(AND(B171=TRUE,B172=TRUE),1,IF(N170=0,0,RANK(N170,N170:N172,0)))) -> 0 | M170: =IF(B160="",0,IF(B170=TRUE,0+N170,3-L170+N170)) -> 0 | N170: =IF(OR(B170=TRUE,AND(B171=TRUE,B172=TRUE)),0.000000000038,K170*0.1+H170*0.01+I170*0.00000001+J170*0.00000000001) -> 0 | O170: =IF(E160=E170,I160,0) -> 0 | P170: =IF(E160=E170,J160,0) -> 0 | Q170: =IF(E161=E170,I161,0) -> 0 | R170: =IF(E161=E170,J161,0) -> 0 | S170: =IF(E163=E170,I163,0) -> 0 | T170: =IF(E163=E170,J163,0) -> 0 | U170: =IF(E164=E170,I164,0) -> 0 | V170: =IF(E164=E170,J164,0) -> 0 | W170: =IF(E166=E170,I166,0) -> 0 | X170: =IF(E166=E170,J166,0) -> 0 | Y170: =IF(E167=E170,I167,0) -> 0 | Z170: =IF(E167=E170,J167,0) -> 0
B171: FALSE | C171: =L171 -> 0 | D171: ='Grups PPP'!H19 ->  | E171: ='Grups PPP'!I19 ->  | F171: =SUMIF(E160:E167,E171,F160:F167) -> 0 | G171: =SUMIF(E160:E167,E171,G160:G167) -> 0 | H171: =IF(B171=TRUE,0,IF(G171=0,0,ROUND(F171/G171,3))) -> 0 | I171: =MAX(O171:Z171) -> 0 | J171: =LARGE((O171:Z171),2) -> 0 | K171: =SUMIF(E160:E167,E171,K160:K167) -> 0 | L171: =IF(B171=TRUE,"WO",IF(AND(B170=TRUE,B172=TRUE),1,IF(N171=0,0,RANK(N171,N170:N172,0)))) -> 0 | M171: =IF(B160="",0,IF(B171=TRUE,0+N171,3-L171+N171)) -> 0 | N171: =IF(OR(B171=TRUE,AND(B170=TRUE,B172=TRUE)),0.000000000027,K171*0.1+H171*0.01+I171*0.00000001+J171*0.00000000001) -> 0 | O171: =IF(E160=E171,I160,0) -> 0 | P171: =IF(E160=E171,J160,0) -> 0 | Q171: =IF(E161=E171,I161,0) -> 0 | R171: =IF(E161=E171,J161,0) -> 0 | S171: =IF(E163=E171,I163,0) -> 0 | T171: =IF(E163=E171,J163,0) -> 0 | U171: =IF(E164=E171,I164,0) -> 0 | V171: =IF(E164=E171,J164,0) -> 0 | W171: =IF(E166=E171,I166,0) -> 0 | X171: =IF(E166=E171,J166,0) -> 0 | Y171: =IF(E167=E171,I167,0) -> 0 | Z171: =IF(E167=E171,J167,0) -> 0
B172: FALSE | C172: =L172 -> 0 | D172: ='Grups PPP'!H20 ->  | E172: ='Grups PPP'!I20 ->  | F172: =SUMIF(E160:E167,E172,F160:F167) -> 0 | G172: =SUMIF(E160:E167,E172,G160:G167) -> 0 | H172: =IF(B172=TRUE,0,IF(G172=0,0,ROUND(F172/G172,3))) -> 0 | I172: =MAX(O172:Z172) -> 0 | J172: =LARGE((O172:Z172),2) -> 0 | K172: =SUMIF(E160:E167,E172,K160:K167) -> 0 | L172: =IF(B172=TRUE,"WO",IF(AND(B170=TRUE,B171=TRUE),1,IF(N172=0,0,RANK(N172,N170:N172,0)))) -> 0 | M172: =IF(B160="",0,IF(B172=TRUE,0+N172,3-L172+N172)) -> 0 | N172: =IF(OR(B172=TRUE,AND(B170=TRUE,B171=TRUE)),0.000000000011,K172*0.1+H172*0.01+I172*0.00000001+J172*0.00000000001) -> 0 | O172: =IF(E160=E172,I160,0) -> 0 | P172: =IF(E160=E172,J160,0) -> 0 | Q172: =IF(E161=E172,I161,0) -> 0 | R172: =IF(E161=E172,J161,0) -> 0 | S172: =IF(E163=E172,I163,0) -> 0 | T172: =IF(E163=E172,J163,0) -> 0 | U172: =IF(E164=E172,I164,0) -> 0 | V172: =IF(E164=E172,J164,0) -> 0 | W172: =IF(E166=E172,I166,0) -> 0 | X172: =IF(E166=E172,J166,0) -> 0 | Y172: =IF(E167=E172,I167,0) -> 0 | Z172: =IF(E167=E172,J167,0) -> 0
F174: Boles | G174: Ent | H174: Mitj | I174: SM1 | J174: SM2 | K174: Punts
B175: =IF('Rànquing Inicial'!$D$150>33,"Grup AR","") ->  | E175: =IF(D184>1,"",IF(OR(B186=TRUE,B187=TRUE),E185,E186)) ->  | H175: =IF(G175="","",ROUND(F175/G175,3)) ->  | K175: =IF(H175="","",IF(F175>F176,2,IF(F175<F176,0,1))) -> 
E176: =IF(D184>1,"",IF(B187=TRUE,E186,E187)) ->  | G176: =IF(G175="","",G175) ->  | H176: =IF(G176="","",ROUND(F176/G176,3)) ->  | K176: =IF(H176="","",IF(F176>F175,2,IF(F176<F175,0,1))) -> 
E178: =IF(D184>1,"",IF(B185=TRUE,E186,E185)) ->  | H178: =IF(G178="","",ROUND(F178/G178,3)) ->  | K178: =IF(H178="","",IF(F178>F179,2,IF(F178<F179,0,1))) -> 
E179: =IF(D184>1,"",IF(B187=TRUE,E186,E187)) ->  | G179: =IF(G178="","",G178) ->  | H179: =IF(G179="","",ROUND(F179/G179,3)) ->  | K179: =IF(H179="","",IF(F179>F178,2,IF(F179<F178,0,1))) -> 
E181: =IF(D184>1,"",IF(OR(B185=TRUE,B186=TRUE,B187=TRUE),"",E185)) ->  | H181: =IF(G181="","",ROUND(F181/G181,3)) ->  | K181: =IF(H181="","",IF(F181>F182,2,IF(F181<F182,0,1))) -> 
E182: =IF(OR(B185=TRUE,B186=TRUE,B187=TRUE),"",E186) ->  | G182: =IF(G181="","",G181) ->  | H182: =IF(G182="","",ROUND(F182/G182,3)) ->  | K182: =IF(H182="","",IF(F182>F181,2,IF(F182<F181,0,1))) -> 
B184: ¿WO? | D184: =COUNTIF(B185:B187,"VERDADERO") -> 0 | E184: Jugador | F184: Boles | G184: Ent | H184: Mitj | I184: SM1 | J184: SM2 | K184: P | L184: =B175 -> 
B185: FALSE | C185: =L185 -> 0 | D185: ='Grups PPP'!H22 ->  | E185: ='Grups PPP'!I22 ->  | F185: =SUMIF(E175:E182,E185,F175:F182) -> 0 | G185: =SUMIF(E175:E182,E185,G175:G182) -> 0 | H185: =IF(B185=TRUE,0,IF(G185=0,0,ROUND(F185/G185,3))) -> 0 | I185: =MAX(O185:Z185) -> 0 | J185: =LARGE((O185:Z185),2) -> 0 | K185: =SUMIF(E175:E182,E185,K175:K182) -> 0 | L185: =IF(B185=TRUE,"WO",IF(AND(B186=TRUE,B187=TRUE),1,IF(N185=0,0,RANK(N185,N185:N187,0)))) -> 0 | M185: =IF(B175="",0,IF(B185=TRUE,0+N185,3-L185+N185)) -> 0 | N185: =IF(OR(B185=TRUE,AND(B186=TRUE,B187=TRUE)),0.000000000037,K185*0.1+H185*0.01+I185*0.00000001+J185*0.00000000001) -> 0 | O185: =IF(E175=E185,I175,0) -> 0 | P185: =IF(E175=E185,J175,0) -> 0 | Q185: =IF(E176=E185,I176,0) -> 0 | R185: =IF(E176=E185,J176,0) -> 0 | S185: =IF(E178=E185,I178,0) -> 0 | T185: =IF(E178=E185,J178,0) -> 0 | U185: =IF(E179=E185,I179,0) -> 0 | V185: =IF(E179=E185,J179,0) -> 0 | W185: =IF(E181=E185,I181,0) -> 0 | X185: =IF(E181=E185,J181,0) -> 0 | Y185: =IF(E182=E185,I182,0) -> 0 | Z185: =IF(E182=E185,J182,0) -> 0
B186: FALSE | C186: =L186 -> 0 | D186: ='Grups PPP'!H23 ->  | E186: ='Grups PPP'!I23 ->  | F186: =SUMIF(E175:E182,E186,F175:F182) -> 0 | G186: =SUMIF(E175:E182,E186,G175:G182) -> 0 | H186: =IF(B186=TRUE,0,IF(G186=0,0,ROUND(F186/G186,3))) -> 0 | I186: =MAX(O186:Z186) -> 0 | J186: =LARGE((O186:Z186),2) -> 0 | K186: =SUMIF(E175:E182,E186,K175:K182) -> 0 | L186: =IF(B186=TRUE,"WO",IF(AND(B185=TRUE,B187=TRUE),1,IF(N186=0,0,RANK(N186,N185:N187,0)))) -> 0 | M186: =IF(B175="",0,IF(B186=TRUE,0+N186,3-L186+N186)) -> 0 | N186: =IF(OR(B186=TRUE,AND(B185=TRUE,B187=TRUE)),0.000000000028,K186*0.1+H186*0.01+I186*0.00000001+J186*0.00000000001) -> 0 | O186: =IF(E175=E186,I175,0) -> 0 | P186: =IF(E175=E186,J175,0) -> 0 | Q186: =IF(E176=E186,I176,0) -> 0 | R186: =IF(E176=E186,J176,0) -> 0 | S186: =IF(E178=E186,I178,0) -> 0 | T186: =IF(E178=E186,J178,0) -> 0 | U186: =IF(E179=E186,I179,0) -> 0 | V186: =IF(E179=E186,J179,0) -> 0 | W186: =IF(E181=E186,I181,0) -> 0 | X186: =IF(E181=E186,J181,0) -> 0 | Y186: =IF(E182=E186,I182,0) -> 0 | Z186: =IF(E182=E186,J182,0) -> 0
B187: FALSE | C187: =L187 -> 0 | D187: ='Grups PPP'!H24 ->  | E187: ='Grups PPP'!I24 ->  | F187: =SUMIF(E175:E182,E187,F175:F182) -> 0 | G187: =SUMIF(E175:E182,E187,G175:G182) -> 0 | H187: =IF(B187=TRUE,0,IF(G187=0,0,ROUND(F187/G187,3))) -> 0 | I187: =MAX(O187:Z187) -> 0 | J187: =LARGE((O187:Z187),2) -> 0 | K187: =SUMIF(E175:E182,E187,K175:K182) -> 0 | L187: =IF(B187=TRUE,"WO",IF(AND(B185=TRUE,B186=TRUE),1,IF(N187=0,0,RANK(N187,N185:N187,0)))) -> 0 | M187: =IF(B175="",0,IF(B187=TRUE,0+N187,3-L187+N187)) -> 0 | N187: =IF(OR(B187=TRUE,AND(B185=TRUE,B186=TRUE)),0.000000000012,K187*0.1+H187*0.01+I187*0.00000001+J187*0.00000000001) -> 0 | O187: =IF(E175=E187,I175,0) -> 0 | P187: =IF(E175=E187,J175,0) -> 0 | Q187: =IF(E176=E187,I176,0) -> 0 | R187: =IF(E176=E187,J176,0) -> 0 | S187: =IF(E178=E187,I178,0) -> 0 | T187: =IF(E178=E187,J178,0) -> 0 | U187: =IF(E179=E187,I179,0) -> 0 | V187: =IF(E179=E187,J179,0) -> 0 | W187: =IF(E181=E187,I181,0) -> 0 | X187: =IF(E181=E187,J181,0) -> 0 | Y187: =IF(E182=E187,I182,0) -> 0 | Z187: =IF(E182=E187,J182,0) -> 0
F189: Boles | G189: Ent | H189: Mitj | I189: SM1 | J189: SM2 | K189: Punts
B190: =IF('Rànquing Inicial'!$D$150>36,"Grup AS","") ->  | E190: =IF(D199>1,"",IF(OR(B201=TRUE,B202=TRUE),E200,E201)) ->  | H190: =IF(G190="","",ROUND(F190/G190,3)) ->  | K190: =IF(H190="","",IF(F190>F191,2,IF(F190<F191,0,1))) -> 
E191: =IF(D199>1,"",IF(B202=TRUE,E201,E202)) ->  | G191: =IF(G190="","",G190) ->  | H191: =IF(G191="","",ROUND(F191/G191,3)) ->  | K191: =IF(H191="","",IF(F191>F190,2,IF(F191<F190,0,1))) -> 
E193: =IF(D199>1,"",IF(B200=TRUE,E201,E200)) ->  | H193: =IF(G193="","",ROUND(F193/G193,3)) ->  | K193: =IF(H193="","",IF(F193>F194,2,IF(F193<F194,0,1))) -> 
E194: =IF(D199>1,"",IF(B202=TRUE,E201,E202)) ->  | G194: =IF(G193="","",G193) ->  | H194: =IF(G194="","",ROUND(F194/G194,3)) ->  | K194: =IF(H194="","",IF(F194>F193,2,IF(F194<F193,0,1))) -> 
E196: =IF(D199>1,"",IF(OR(B200=TRUE,B201=TRUE,B202=TRUE),"",E200)) ->  | H196: =IF(G196="","",ROUND(F196/G196,3)) ->  | K196: =IF(H196="","",IF(F196>F197,2,IF(F196<F197,0,1))) -> 
E197: =IF(OR(B200=TRUE,B201=TRUE,B202=TRUE),"",E201) ->  | G197: =IF(G196="","",G196) ->  | H197: =IF(G197="","",ROUND(F197/G197,3)) ->  | K197: =IF(H197="","",IF(F197>F196,2,IF(F197<F196,0,1))) -> 
B199: ¿WO? | D199: =COUNTIF(B200:B202,"VERDADERO") -> 0 | E199: Jugador | F199: Boles | G199: Ent | H199: Mitj | I199: SM1 | J199: SM2 | K199: P | L199: =B190 -> 
B200: FALSE | C200: =L200 -> 0 | D200: ='Grups PPP'!H26 ->  | E200: ='Grups PPP'!I26 ->  | F200: =SUMIF(E190:E197,E200,F190:F197) -> 0 | G200: =SUMIF(E190:E197,E200,G190:G197) -> 0 | H200: =IF(B200=TRUE,0,IF(G200=0,0,ROUND(F200/G200,3))) -> 0 | I200: =MAX(O200:Z200) -> 0 | J200: =LARGE((O200:Z200),2) -> 0 | K200: =SUMIF(E190:E197,E200,K190:K197) -> 0 | L200: =IF(B200=TRUE,"WO",IF(AND(B201=TRUE,B202=TRUE),1,IF(N200=0,0,RANK(N200,N200:N202,0)))) -> 0 | M200: =IF(B190="",0,IF(B200=TRUE,0+N200,3-L200+N200)) -> 0 | N200: =IF(OR(B200=TRUE,AND(B201=TRUE,B202=TRUE)),0.000000000036,K200*0.1+H200*0.01+I200*0.00000001+J200*0.00000000001) -> 0 | O200: =IF(E190=E200,I190,0) -> 0 | P200: =IF(E190=E200,J190,0) -> 0 | Q200: =IF(E191=E200,I191,0) -> 0 | R200: =IF(E191=E200,J191,0) -> 0 | S200: =IF(E193=E200,I193,0) -> 0 | T200: =IF(E193=E200,J193,0) -> 0 | U200: =IF(E194=E200,I194,0) -> 0 | V200: =IF(E194=E200,J194,0) -> 0 | W200: =IF(E196=E200,I196,0) -> 0 | X200: =IF(E196=E200,J196,0) -> 0 | Y200: =IF(E197=E200,I197,0) -> 0 | Z200: =IF(E197=E200,J197,0) -> 0
B201: FALSE | C201: =L201 -> 0 | D201: ='Grups PPP'!H27 ->  | E201: ='Grups PPP'!I27 ->  | F201: =SUMIF(E190:E197,E201,F190:F197) -> 0 | G201: =SUMIF(E190:E197,E201,G190:G197) -> 0 | H201: =IF(B201=TRUE,0,IF(G201=0,0,ROUND(F201/G201,3))) -> 0 | I201: =MAX(O201:Z201) -> 0 | J201: =LARGE((O201:Z201),2) -> 0 | K201: =SUMIF(E190:E197,E201,K190:K197) -> 0 | L201: =IF(B201=TRUE,"WO",IF(AND(B200=TRUE,B202=TRUE),1,IF(N201=0,0,RANK(N201,N200:N202,0)))) -> 0 | M201: =IF(B190="",0,IF(B201=TRUE,0+N201,3-L201+N201)) -> 0 | N201: =IF(OR(B201=TRUE,AND(B200=TRUE,B202=TRUE)),0.000000000029,K201*0.1+H201*0.01+I201*0.00000001+J201*0.00000000001) -> 0 | O201: =IF(E190=E201,I190,0) -> 0 | P201: =IF(E190=E201,J190,0) -> 0 | Q201: =IF(E191=E201,I191,0) -> 0 | R201: =IF(E191=E201,J191,0) -> 0 | S201: =IF(E193=E201,I193,0) -> 0 | T201: =IF(E193=E201,J193,0) -> 0 | U201: =IF(E194=E201,I194,0) -> 0 | V201: =IF(E194=E201,J194,0) -> 0 | W201: =IF(E196=E201,I196,0) -> 0 | X201: =IF(E196=E201,J196,0) -> 0 | Y201: =IF(E197=E201,I197,0) -> 0 | Z201: =IF(E197=E201,J197,0) -> 0
B202: FALSE | C202: =L202 -> 0 | D202: ='Grups PPP'!H28 ->  | E202: ='Grups PPP'!I28 ->  | F202: =SUMIF(E190:E197,E202,F190:F197) -> 0 | G202: =SUMIF(E190:E197,E202,G190:G197) -> 0 | H202: =IF(B202=TRUE,0,IF(G202=0,0,ROUND(F202/G202,3))) -> 0 | I202: =MAX(O202:Z202) -> 0 | J202: =LARGE((O202:Z202),2) -> 0 | K202: =SUMIF(E190:E197,E202,K190:K197) -> 0 | L202: =IF(B202=TRUE,"WO",IF(AND(B200=TRUE,B201=TRUE),1,IF(N202=0,0,RANK(N202,N200:N202,0)))) -> 0 | M202: =IF(B190="",0,IF(B202=TRUE,0+N202,3-L202+N202)) -> 0 | N202: =IF(OR(B202=TRUE,AND(B200=TRUE,B201=TRUE)),0.000000000013,K202*0.1+H202*0.01+I202*0.00000001+J202*0.00000000001) -> 0 | O202: =IF(E190=E202,I190,0) -> 0 | P202: =IF(E190=E202,J190,0) -> 0 | Q202: =IF(E191=E202,I191,0) -> 0 | R202: =IF(E191=E202,J191,0) -> 0 | S202: =IF(E193=E202,I193,0) -> 0 | T202: =IF(E193=E202,J193,0) -> 0 | U202: =IF(E194=E202,I194,0) -> 0 | V202: =IF(E194=E202,J194,0) -> 0 | W202: =IF(E196=E202,I196,0) -> 0 | X202: =IF(E196=E202,J196,0) -> 0 | Y202: =IF(E197=E202,I197,0) -> 0 | Z202: =IF(E197=E202,J197,0) -> 0
F204: Boles | G204: Ent | H204: Mitj | I204: SM1 | J204: SM2 | K204: Punts
B205: =IF('Rànquing Inicial'!$D$150>39,"Grup AT","") ->  | E205: =IF(D214>1,"",IF(OR(B216=TRUE,B217=TRUE),E215,E216)) ->  | H205: =IF(G205="","",ROUND(F205/G205,3)) ->  | K205: =IF(H205="","",IF(F205>F206,2,IF(F205<F206,0,1))) -> 
E206: =IF(D214>1,"",IF(B217=TRUE,E216,E217)) ->  | G206: =IF(G205="","",G205) ->  | H206: =IF(G206="","",ROUND(F206/G206,3)) ->  | K206: =IF(H206="","",IF(F206>F205,2,IF(F206<F205,0,1))) -> 
E208: =IF(D214>1,"",IF(B215=TRUE,E216,E215)) ->  | H208: =IF(G208="","",ROUND(F208/G208,3)) ->  | K208: =IF(H208="","",IF(F208>F209,2,IF(F208<F209,0,1))) -> 
E209: =IF(D214>1,"",IF(B217=TRUE,E216,E217)) ->  | G209: =IF(G208="","",G208) ->  | H209: =IF(G209="","",ROUND(F209/G209,3)) ->  | K209: =IF(H209="","",IF(F209>F208,2,IF(F209<F208,0,1))) -> 
E211: =IF(D214>1,"",IF(OR(B215=TRUE,B216=TRUE,B217=TRUE),"",E215)) ->  | H211: =IF(G211="","",ROUND(F211/G211,3)) ->  | K211: =IF(H211="","",IF(F211>F212,2,IF(F211<F212,0,1))) -> 
E212: =IF(OR(B215=TRUE,B216=TRUE,B217=TRUE),"",E216) ->  | G212: =IF(G211="","",G211) ->  | H212: =IF(G212="","",ROUND(F212/G212,3)) ->  | K212: =IF(H212="","",IF(F212>F211,2,IF(F212<F211,0,1))) -> 
B214: ¿WO? | D214: =COUNTIF(B215:B217,"VERDADERO") -> 0 | E214: Jugador | F214: Boles | G214: Ent | H214: Mitj | I214: SM1 | J214: SM2 | K214: P | L214: =B205 -> 
B215: FALSE | C215: =L215 -> 0 | D215: ='Grups PPP'!H30 ->  | E215: ='Grups PPP'!I30 ->  | F215: =SUMIF(E205:E212,E215,F205:F212) -> 0 | G215: =SUMIF(E205:E212,E215,G205:G212) -> 0 | H215: =IF(B215=TRUE,0,IF(G215=0,0,ROUND(F215/G215,3))) -> 0 | I215: =MAX(O215:Z215) -> 0 | J215: =LARGE((O215:Z215),2) -> 0 | K215: =SUMIF(E205:E212,E215,K205:K212) -> 0 | L215: =IF(B215=TRUE,"WO",IF(AND(B216=TRUE,B217=TRUE),1,IF(N215=0,0,RANK(N215,N215:N217,0)))) -> 0 | M215: =IF(B205="",0,IF(B215=TRUE,0+N215,3-L215+N215)) -> 0 | N215: =IF(OR(B215=TRUE,AND(B216=TRUE,B217=TRUE)),0.000000000035,K215*0.1+H215*0.01+I215*0.00000001+J215*0.00000000001) -> 0 | O215: =IF(E205=E215,I205,0) -> 0 | P215: =IF(E205=E215,J205,0) -> 0 | Q215: =IF(E206=E215,I206,0) -> 0 | R215: =IF(E206=E215,J206,0) -> 0 | S215: =IF(E208=E215,I208,0) -> 0 | T215: =IF(E208=E215,J208,0) -> 0 | U215: =IF(E209=E215,I209,0) -> 0 | V215: =IF(E209=E215,J209,0) -> 0 | W215: =IF(E211=E215,I211,0) -> 0 | X215: =IF(E211=E215,J211,0) -> 0 | Y215: =IF(E212=E215,I212,0) -> 0 | Z215: =IF(E212=E215,J212,0) -> 0
B216: FALSE | C216: =L216 -> 0 | D216: ='Grups PPP'!H31 ->  | E216: ='Grups PPP'!I31 ->  | F216: =SUMIF(E205:E212,E216,F205:F212) -> 0 | G216: =SUMIF(E205:E212,E216,G205:G212) -> 0 | H216: =IF(B216=TRUE,0,IF(G216=0,0,ROUND(F216/G216,3))) -> 0 | I216: =MAX(O216:Z216) -> 0 | J216: =LARGE((O216:Z216),2) -> 0 | K216: =SUMIF(E205:E212,E216,K205:K212) -> 0 | L216: =IF(B216=TRUE,"WO",IF(AND(B215=TRUE,B217=TRUE),1,IF(N216=0,0,RANK(N216,N215:N217,0)))) -> 0 | M216: =IF(B205="",0,IF(B216=TRUE,0+N216,3-L216+N216)) -> 0 | N216: =IF(OR(B216=TRUE,AND(B215=TRUE,B217=TRUE)),0.00000000003,K216*0.1+H216*0.01+I216*0.00000001+J216*0.00000000001) -> 0 | O216: =IF(E205=E216,I205,0) -> 0 | P216: =IF(E205=E216,J205,0) -> 0 | Q216: =IF(E206=E216,I206,0) -> 0 | R216: =IF(E206=E216,J206,0) -> 0 | S216: =IF(E208=E216,I208,0) -> 0 | T216: =IF(E208=E216,J208,0) -> 0 | U216: =IF(E209=E216,I209,0) -> 0 | V216: =IF(E209=E216,J209,0) -> 0 | W216: =IF(E211=E216,I211,0) -> 0 | X216: =IF(E211=E216,J211,0) -> 0 | Y216: =IF(E212=E216,I212,0) -> 0 | Z216: =IF(E212=E216,J212,0) -> 0
B217: FALSE | C217: =L217 -> 0 | D217: ='Grups PPP'!H32 ->  | E217: ='Grups PPP'!I32 ->  | F217: =SUMIF(E205:E212,E217,F205:F212) -> 0 | G217: =SUMIF(E205:E212,E217,G205:G212) -> 0 | H217: =IF(B217=TRUE,0,IF(G217=0,0,ROUND(F217/G217,3))) -> 0 | I217: =MAX(O217:Z217) -> 0 | J217: =LARGE((O217:Z217),2) -> 0 | K217: =SUMIF(E205:E212,E217,K205:K212) -> 0 | L217: =IF(B217=TRUE,"WO",IF(AND(B215=TRUE,B216=TRUE),1,IF(N217=0,0,RANK(N217,N215:N217,0)))) -> 0 | M217: =IF(B205="",0,IF(B217=TRUE,0+N217,3-L217+N217)) -> 0 | N217: =IF(OR(B217=TRUE,AND(B215=TRUE,B216=TRUE)),0.000000000014,K217*0.1+H217*0.01+I217*0.00000001+J217*0.00000000001) -> 0 | O217: =IF(E205=E217,I205,0) -> 0 | P217: =IF(E205=E217,J205,0) -> 0 | Q217: =IF(E206=E217,I206,0) -> 0 | R217: =IF(E206=E217,J206,0) -> 0 | S217: =IF(E208=E217,I208,0) -> 0 | T217: =IF(E208=E217,J208,0) -> 0 | U217: =IF(E209=E217,I209,0) -> 0 | V217: =IF(E209=E217,J209,0) -> 0 | W217: =IF(E211=E217,I211,0) -> 0 | X217: =IF(E211=E217,J211,0) -> 0 | Y217: =IF(E212=E217,I212,0) -> 0 | Z217: =IF(E212=E217,J212,0) -> 0
F219: Boles | G219: Ent | H219: Mitj | I219: SM1 | J219: SM2 | K219: Punts
B220: =IF('Rànquing Inicial'!$D$150>42,"Grup AU","") ->  | E220: =IF(D229>1,"",IF(OR(B231=TRUE,B232=TRUE),E230,E231)) ->  | H220: =IF(G220="","",ROUND(F220/G220,3)) ->  | K220: =IF(H220="","",IF(F220>F221,2,IF(F220<F221,0,1))) -> 
E221: =IF(D229>1,"",IF(B232=TRUE,E231,E232)) ->  | G221: =IF(G220="","",G220) ->  | H221: =IF(G221="","",ROUND(F221/G221,3)) ->  | K221: =IF(H221="","",IF(F221>F220,2,IF(F221<F220,0,1))) -> 
E223: =IF(D229>1,"",IF(B230=TRUE,E231,E230)) ->  | H223: =IF(G223="","",ROUND(F223/G223,3)) ->  | K223: =IF(H223="","",IF(F223>F224,2,IF(F223<F224,0,1))) -> 
E224: =IF(D229>1,"",IF(B232=TRUE,E231,E232)) ->  | G224: =IF(G223="","",G223) ->  | H224: =IF(G224="","",ROUND(F224/G224,3)) ->  | K224: =IF(H224="","",IF(F224>F223,2,IF(F224<F223,0,1))) -> 
E226: =IF(D229>1,"",IF(OR(B230=TRUE,B231=TRUE,B232=TRUE),"",E230)) ->  | H226: =IF(G226="","",ROUND(F226/G226,3)) ->  | K226: =IF(H226="","",IF(F226>F227,2,IF(F226<F227,0,1))) -> 
E227: =IF(OR(B230=TRUE,B231=TRUE,B232=TRUE),"",E231) ->  | G227: =IF(G226="","",G226) ->  | H227: =IF(G227="","",ROUND(F227/G227,3)) ->  | K227: =IF(H227="","",IF(F227>F226,2,IF(F227<F226,0,1))) -> 
B229: ¿WO? | D229: =COUNTIF(B230:B232,"VERDADERO") -> 0 | E229: Jugador | F229: Boles | G229: Ent | H229: Mitj | I229: SM1 | J229: SM2 | K229: P | L229: =B220 -> 
B230: FALSE | C230: =L230 -> 0 | D230: ='Grups PPP'!H34 ->  | E230: ='Grups PPP'!I34 ->  | F230: =SUMIF(E220:E227,E230,F220:F227) -> 0 | G230: =SUMIF(E220:E227,E230,G220:G227) -> 0 | H230: =IF(B230=TRUE,0,IF(G230=0,0,ROUND(F230/G230,3))) -> 0 | I230: =MAX(O230:Z230) -> 0 | J230: =LARGE((O230:Z230),2) -> 0 | K230: =SUMIF(E220:E227,E230,K220:K227) -> 0 | L230: =IF(B230=TRUE,"WO",IF(AND(B231=TRUE,B232=TRUE),1,IF(N230=0,0,RANK(N230,N230:N232,0)))) -> 0 | M230: =IF(B220="",0,IF(B230=TRUE,0+N230,3-L230+N230)) -> 0 | N230: =IF(OR(B230=TRUE,AND(B231=TRUE,B232=TRUE)),0.000000000034,K230*0.1+H230*0.01+I230*0.00000001+J230*0.00000000001) -> 0 | O230: =IF(E220=E230,I220,0) -> 0 | P230: =IF(E220=E230,J220,0) -> 0 | Q230: =IF(E221=E230,I221,0) -> 0 | R230: =IF(E221=E230,J221,0) -> 0 | S230: =IF(E223=E230,I223,0) -> 0 | T230: =IF(E223=E230,J223,0) -> 0 | U230: =IF(E224=E230,I224,0) -> 0 | V230: =IF(E224=E230,J224,0) -> 0 | W230: =IF(E226=E230,I226,0) -> 0 | X230: =IF(E226=E230,J226,0) -> 0 | Y230: =IF(E227=E230,I227,0) -> 0 | Z230: =IF(E227=E230,J227,0) -> 0
B231: FALSE | C231: =L231 -> 0 | D231: ='Grups PPP'!H35 ->  | E231: ='Grups PPP'!I35 ->  | F231: =SUMIF(E220:E227,E231,F220:F227) -> 0 | G231: =SUMIF(E220:E227,E231,G220:G227) -> 0 | H231: =IF(B231=TRUE,0,IF(G231=0,0,ROUND(F231/G231,3))) -> 0 | I231: =MAX(O231:Z231) -> 0 | J231: =LARGE((O231:Z231),2) -> 0 | K231: =SUMIF(E220:E227,E231,K220:K227) -> 0 | L231: =IF(B231=TRUE,"WO",IF(AND(B230=TRUE,B232=TRUE),1,IF(N231=0,0,RANK(N231,N230:N232,0)))) -> 0 | M231: =IF(B220="",0,IF(B231=TRUE,0+N231,3-L231+N231)) -> 0 | N231: =IF(OR(B231=TRUE,AND(B230=TRUE,B232=TRUE)),0.000000000031,K231*0.1+H231*0.01+I231*0.00000001+J231*0.00000000001) -> 0 | O231: =IF(E220=E231,I220,0) -> 0 | P231: =IF(E220=E231,J220,0) -> 0 | Q231: =IF(E221=E231,I221,0) -> 0 | R231: =IF(E221=E231,J221,0) -> 0 | S231: =IF(E223=E231,I223,0) -> 0 | T231: =IF(E223=E231,J223,0) -> 0 | U231: =IF(E224=E231,I224,0) -> 0 | V231: =IF(E224=E231,J224,0) -> 0 | W231: =IF(E226=E231,I226,0) -> 0 | X231: =IF(E226=E231,J226,0) -> 0 | Y231: =IF(E227=E231,I227,0) -> 0 | Z231: =IF(E227=E231,J227,0) -> 0
B232: FALSE | C232: =L232 -> 0 | D232: ='Grups PPP'!H36 ->  | E232: ='Grups PPP'!I36 ->  | F232: =SUMIF(E220:E227,E232,F220:F227) -> 0 | G232: =SUMIF(E220:E227,E232,G220:G227) -> 0 | H232: =IF(B232=TRUE,0,IF(G232=0,0,ROUND(F232/G232,3))) -> 0 | I232: =MAX(O232:Z232) -> 0 | J232: =LARGE((O232:Z232),2) -> 0 | K232: =SUMIF(E220:E227,E232,K220:K227) -> 0 | L232: =IF(B232=TRUE,"WO",IF(AND(B230=TRUE,B231=TRUE),1,IF(N232=0,0,RANK(N232,N230:N232,0)))) -> 0 | M232: =IF(B220="",0,IF(B232=TRUE,0+N232,3-L232+N232)) -> 0 | N232: =IF(OR(B232=TRUE,AND(B230=TRUE,B231=TRUE)),0.000000000015,K232*0.1+H232*0.01+I232*0.00000001+J232*0.00000000001) -> 0 | O232: =IF(E220=E232,I220,0) -> 0 | P232: =IF(E220=E232,J220,0) -> 0 | Q232: =IF(E221=E232,I221,0) -> 0 | R232: =IF(E221=E232,J221,0) -> 0 | S232: =IF(E223=E232,I223,0) -> 0 | T232: =IF(E223=E232,J223,0) -> 0 | U232: =IF(E224=E232,I224,0) -> 0 | V232: =IF(E224=E232,J224,0) -> 0 | W232: =IF(E226=E232,I226,0) -> 0 | X232: =IF(E226=E232,J226,0) -> 0 | Y232: =IF(E227=E232,I227,0) -> 0 | Z232: =IF(E227=E232,J227,0) -> 0
F234: Boles | G234: Ent | H234: Mitj | I234: SM1 | J234: SM2 | K234: Punts
B235: =IF('Rànquing Inicial'!$D$150>45,"Grup AV","") ->  | E235: =IF(D244>1,"",IF(OR(B246=TRUE,B247=TRUE),E245,E246)) ->  | H235: =IF(G235="","",ROUND(F235/G235,3)) ->  | K235: =IF(H235="","",IF(F235>F236,2,IF(F235<F236,0,1))) -> 
E236: =IF(D244>1,"",IF(B247=TRUE,E246,E247)) ->  | G236: =IF(G235="","",G235) ->  | H236: =IF(G236="","",ROUND(F236/G236,3)) ->  | K236: =IF(H236="","",IF(F236>F235,2,IF(F236<F235,0,1))) -> 
E238: =IF(D244>1,"",IF(B245=TRUE,E246,E245)) ->  | H238: =IF(G238="","",ROUND(F238/G238,3)) ->  | K238: =IF(H238="","",IF(F238>F239,2,IF(F238<F239,0,1))) -> 
E239: =IF(D244>1,"",IF(B247=TRUE,E246,E247)) ->  | G239: =IF(G238="","",G238) ->  | H239: =IF(G239="","",ROUND(F239/G239,3)) ->  | K239: =IF(H239="","",IF(F239>F238,2,IF(F239<F238,0,1))) -> 
E241: =IF(D244>1,"",IF(OR(B245=TRUE,B246=TRUE,B247=TRUE),"",E245)) ->  | H241: =IF(G241="","",ROUND(F241/G241,3)) ->  | K241: =IF(H241="","",IF(F241>F242,2,IF(F241<F242,0,1))) -> 
E242: =IF(OR(B245=TRUE,B246=TRUE,B247=TRUE),"",E246) ->  | G242: =IF(G241="","",G241) ->  | H242: =IF(G242="","",ROUND(F242/G242,3)) ->  | K242: =IF(H242="","",IF(F242>F241,2,IF(F242<F241,0,1))) -> 
B244: ¿WO? | D244: =COUNTIF(B245:B247,"VERDADERO") -> 0 | E244: Jugador | F244: Boles | G244: Ent | H244: Mitj | I244: SM1 | J244: SM2 | K244: P | L244: =B235 -> 
B245: FALSE | C245: =L245 -> 0 | D245: ='Grups PPP'!H38 ->  | E245: ='Grups PPP'!I38 ->  | F245: =SUMIF(E235:E242,E245,F235:F242) -> 0 | G245: =SUMIF(E235:E242,E245,G235:G242) -> 0 | H245: =IF(B245=TRUE,0,IF(G245=0,0,ROUND(F245/G245,3))) -> 0 | I245: =MAX(O245:Z245) -> 0 | J245: =LARGE((O245:Z245),2) -> 0 | K245: =SUMIF(E235:E242,E245,K235:K242) -> 0 | L245: =IF(B245=TRUE,"WO",IF(AND(B246=TRUE,B247=TRUE),1,IF(N245=0,0,RANK(N245,N245:N247,0)))) -> 0 | M245: =IF(B235="",0,IF(B245=TRUE,0+N245,3-L245+N245)) -> 0 | N245: =IF(OR(B245=TRUE,AND(B246=TRUE,B247=TRUE)),0.000000000033,K245*0.1+H245*0.01+I245*0.00000001+J245*0.00000000001) -> 0 | O245: =IF(E235=E245,I235,0) -> 0 | P245: =IF(E235=E245,J235,0) -> 0 | Q245: =IF(E236=E245,I236,0) -> 0 | R245: =IF(E236=E245,J236,0) -> 0 | S245: =IF(E238=E245,I238,0) -> 0 | T245: =IF(E238=E245,J238,0) -> 0 | U245: =IF(E239=E245,I239,0) -> 0 | V245: =IF(E239=E245,J239,0) -> 0 | W245: =IF(E241=E245,I241,0) -> 0 | X245: =IF(E241=E245,J241,0) -> 0 | Y245: =IF(E242=E245,I242,0) -> 0 | Z245: =IF(E242=E245,J242,0) -> 0
B246: FALSE | C246: =L246 -> 0 | D246: ='Grups PPP'!H39 ->  | E246: ='Grups PPP'!I39 ->  | F246: =SUMIF(E235:E242,E246,F235:F242) -> 0 | G246: =SUMIF(E235:E242,E246,G235:G242) -> 0 | H246: =IF(B246=TRUE,0,IF(G246=0,0,ROUND(F246/G246,3))) -> 0 | I246: =MAX(O246:Z246) -> 0 | J246: =LARGE((O246:Z246),2) -> 0 | K246: =SUMIF(E235:E242,E246,K235:K242) -> 0 | L246: =IF(B246=TRUE,"WO",IF(AND(B245=TRUE,B247=TRUE),1,IF(N246=0,0,RANK(N246,N245:N247,0)))) -> 0 | M246: =IF(B235="",0,IF(B246=TRUE,0+N246,3-L246+N246)) -> 0 | N246: =IF(OR(B246=TRUE,AND(B245=TRUE,B247=TRUE)),0.000000000032,K246*0.1+H246*0.01+I246*0.00000001+J246*0.00000000001) -> 0 | O246: =IF(E235=E246,I235,0) -> 0 | P246: =IF(E235=E246,J235,0) -> 0 | Q246: =IF(E236=E246,I236,0) -> 0 | R246: =IF(E236=E246,J236,0) -> 0 | S246: =IF(E238=E246,I238,0) -> 0 | T246: =IF(E238=E246,J238,0) -> 0 | U246: =IF(E239=E246,I239,0) -> 0 | V246: =IF(E239=E246,J239,0) -> 0 | W246: =IF(E241=E246,I241,0) -> 0 | X246: =IF(E241=E246,J241,0) -> 0 | Y246: =IF(E242=E246,I242,0) -> 0 | Z246: =IF(E242=E246,J242,0) -> 0
B247: FALSE | C247: =L247 -> 0 | D247: ='Grups PPP'!H40 ->  | E247: ='Grups PPP'!I40 ->  | F247: =SUMIF(E235:E242,E247,F235:F242) -> 0 | G247: =SUMIF(E235:E242,E247,G235:G242) -> 0 | H247: =IF(B247=TRUE,0,IF(G247=0,0,ROUND(F247/G247,3))) -> 0 | I247: =MAX(O247:Z247) -> 0 | J247: =LARGE((O247:Z247),2) -> 0 | K247: =SUMIF(E235:E242,E247,K235:K242) -> 0 | L247: =IF(B247=TRUE,"WO",IF(AND(B245=TRUE,B246=TRUE),1,IF(N247=0,0,RANK(N247,N245:N247,0)))) -> 0 | M247: =IF(B235="",0,IF(B247=TRUE,0+N247,3-L247+N247)) -> 0 | N247: =IF(OR(B247=TRUE,AND(B245=TRUE,B246=TRUE)),0.000000000016,K247*0.1+H247*0.01+I247*0.00000001+J247*0.00000000001) -> 0 | O247: =IF(E235=E247,I235,0) -> 0 | P247: =IF(E235=E247,J235,0) -> 0 | Q247: =IF(E236=E247,I236,0) -> 0 | R247: =IF(E236=E247,J236,0) -> 0 | S247: =IF(E238=E247,I238,0) -> 0 | T247: =IF(E238=E247,J238,0) -> 0 | U247: =IF(E239=E247,I239,0) -> 0 | V247: =IF(E239=E247,J239,0) -> 0 | W247: =IF(E241=E247,I241,0) -> 0 | X247: =IF(E241=E247,J241,0) -> 0 | Y247: =IF(E242=E247,I242,0) -> 0 | Z247: =IF(E242=E247,J242,0) -> 0

Sheet PPP (C) (hidden)
A1: CLASSIFICACIÓ PRE-PRE-PRÈVIA (PPP)
A3: Classificació | B3: Posició | C3: Jugador | D3: Punts | E3: Mitjana | F3: SM (1) | G3: SM (2) | H3: Puntuació
A4: =IF(H4=0,"",RANK(H4,$H$4:$H$51,)) ->  | B4: ='Resultats PPP'!L20 -> 0 | C4: ='Resultats PPP'!E20 ->  | D4: ='Resultats PPP'!K20 -> 0 | E4: ='Resultats PPP'!H20 -> 0 | F4: ='Resultats PPP'!I20 -> 0 | G4: ='Resultats PPP'!J20 -> 0 | H4: =IF('Resultats PPP'!M20=3,0,'Resultats PPP'!M20) -> 0
A5: =IF(H5=0,"",RANK(H5,$H$4:$H$51,)) ->  | B5: ='Resultats PPP'!L21 -> 0 | C5: ='Resultats PPP'!E21 ->  | D5: ='Resultats PPP'!K21 -> 0 | E5: ='Resultats PPP'!H21 -> 0 | F5: ='Resultats PPP'!I21 -> 0 | G5: ='Resultats PPP'!J21 -> 0 | H5: =IF('Resultats PPP'!M21=3,0,'Resultats PPP'!M21) -> 0
B6: ='Resultats PPP'!L22 -> 0 | C6: ='Resultats PPP'!E22 ->  | D6: ='Resultats PPP'!K22 -> 0 | E6: ='Resultats PPP'!H22 -> 0 | F6: ='Resultats PPP'!I22 -> 0 | G6: ='Resultats PPP'!J22 -> 0 | H6: =IF('Resultats PPP'!M22=3,0,'Resultats PPP'!M22) -> 0
B7: ='Resultats PPP'!L35 -> 0 | C7: ='Resultats PPP'!E35 ->  | D7: ='Resultats PPP'!K35 -> 0 | E7: ='Resultats PPP'!H35 -> 0 | F7: ='Resultats PPP'!I35 -> 0 | G7: ='Resultats PPP'!J35 -> 0 | H7: =IF('Resultats PPP'!M35=3,0,'Resultats PPP'!M35) -> 0
B8: ='Resultats PPP'!L36 -> 0 | C8: ='Resultats PPP'!E36 ->  | D8: ='Resultats PPP'!K36 -> 0 | E8: ='Resultats PPP'!H36 -> 0 | F8: ='Resultats PPP'!I36 -> 0 | G8: ='Resultats PPP'!J36 -> 0 | H8: =IF('Resultats PPP'!M36=3,0,'Resultats PPP'!M36) -> 0
B9: ='Resultats PPP'!L37 -> 0 | C9: ='Resultats PPP'!E37 ->  | D9: ='Resultats PPP'!K37 -> 0 | E9: ='Resultats PPP'!H37 -> 0 | F9: ='Resultats PPP'!I37 -> 0 | G9: ='Resultats PPP'!J37 -> 0 | H9: =IF('Resultats PPP'!M37=3,0,'Resultats PPP'!M37) -> 0
B10: ='Resultats PPP'!L50 -> 0 | C10: ='Resultats PPP'!E50 ->  | D10: ='Resultats PPP'!K50 -> 0 | E10: ='Resultats PPP'!H50 -> 0 | F10: ='Resultats PPP'!I50 -> 0 | G10: ='Resultats PPP'!J50 -> 0 | H10: =IF('Resultats PPP'!M50=3,0,'Resultats PPP'!M50) -> 0
B11: ='Resultats PPP'!L51 -> 0 | C11: ='Resultats PPP'!E51 ->  | D11: ='Resultats PPP'!K51 -> 0 | E11: ='Resultats PPP'!H51 -> 0 | F11: ='Resultats PPP'!I51 -> 0 | G11: ='Resultats PPP'!J51 -> 0 | H11: =IF('Resultats PPP'!M51=3,0,'Resultats PPP'!M51) -> 0
B12: ='Resultats PPP'!L52 -> 0 | C12: ='Resultats PPP'!E52 ->  | D12: ='Resultats PPP'!K52 -> 0 | E12: ='Resultats PPP'!H52 -> 0 | F12: ='Resultats PPP'!I52 -> 0 | G12: ='Resultats PPP'!J52 -> 0 | H12: =IF('Resultats PPP'!M52=3,0,'Resultats PPP'!M52) -> 0
B13: ='Resultats PPP'!L65 -> 0 | C13: ='Resultats PPP'!E65 ->  | D13: ='Resultats PPP'!K65 -> 0 | E13: ='Resultats PPP'!H65 -> 0 | F13: ='Resultats PPP'!I65 -> 0 | G13: ='Resultats PPP'!J65 -> 0 | H13: =IF('Resultats PPP'!M65=3,0,'Resultats PPP'!M65) -> 0
B14: ='Resultats PPP'!L66 -> 0 | C14: ='Resultats PPP'!E66 ->  | D14: ='Resultats PPP'!K66 -> 0 | E14: ='Resultats PPP'!H66 -> 0 | F14: ='Resultats PPP'!I66 -> 0 | G14: ='Resultats PPP'!J66 -> 0 | H14: =IF('Resultats PPP'!M66=3,0,'Resultats PPP'!M66) -> 0
B15: ='Resultats PPP'!L67 -> 0 | C15: ='Resultats PPP'!E67 ->  | D15: ='Resultats PPP'!K67 -> 0 | E15: ='Resultats PPP'!H67 -> 0 | F15: ='Resultats PPP'!I67 -> 0 | G15: ='Resultats PPP'!J67 -> 0 | H15: =IF('Resultats PPP'!M67=3,0,'Resultats PPP'!M67) -> 0
B16: ='Resultats PPP'!L80 -> 0 | C16: ='Resultats PPP'!E80 ->  | D16: ='Resultats PPP'!K80 -> 0 | E16: ='Resultats PPP'!H80 -> 0 | F16: ='Resultats PPP'!I80 -> 0 | G16: ='Resultats PPP'!J80 -> 0 | H16: =IF('Resultats PPP'!M80=3,0,'Resultats PPP'!M80) -> 0
B17: ='Resultats PPP'!L81 -> 0 | C17: ='Resultats PPP'!E81 ->  | D17: ='Resultats PPP'!K81 -> 0 | E17: ='Resultats PPP'!H81 -> 0 | F17: ='Resultats PPP'!I81 -> 0 | G17: ='Resultats PPP'!J81 -> 0 | H17: =IF('Resultats PPP'!M81=3,0,'Resultats PPP'!M81) -> 0
B18: ='Resultats PPP'!L82 -> 0 | C18: ='Resultats PPP'!E82 ->  | D18: ='Resultats PPP'!K82 -> 0 | E18: ='Resultats PPP'!H82 -> 0 | F18: ='Resultats PPP'!I82 -> 0 | G18: ='Resultats PPP'!J82 -> 0 | H18: =IF('Resultats PPP'!M82=3,0,'Resultats PPP'!M82) -> 0
B19: ='Resultats PPP'!L95 -> 0 | C19: ='Resultats PPP'!E95 ->  | D19: ='Resultats PPP'!K95 -> 0 | E19: ='Resultats PPP'!H95 -> 0 | F19: ='Resultats PPP'!I95 -> 0 | G19: ='Resultats PPP'!J95 -> 0 | H19: =IF('Resultats PPP'!M95=3,0,'Resultats PPP'!M95) -> 0
B20: ='Resultats PPP'!L96 -> 0 | C20: ='Resultats PPP'!E96 ->  | D20: ='Resultats PPP'!K96 -> 0 | E20: ='Resultats PPP'!H96 -> 0 | F20: ='Resultats PPP'!I96 -> 0 | G20: ='Resultats PPP'!J96 -> 0 | H20: =IF('Resultats PPP'!M96=3,0,'Resultats PPP'!M96) -> 0
B21: ='Resultats PPP'!L97 -> 0 | C21: ='Resultats PPP'!E97 ->  | D21: ='Resultats PPP'!K97 -> 0 | E21: ='Resultats PPP'!H97 -> 0 | F21: ='Resultats PPP'!I97 -> 0 | G21: ='Resultats PPP'!J97 -> 0 | H21: =IF('Resultats PPP'!M97=3,0,'Resultats PPP'!M97) -> 0
B22: ='Resultats PPP'!L110 -> 0 | C22: ='Resultats PPP'!E110 ->  | D22: ='Resultats PPP'!K110 -> 0 | E22: ='Resultats PPP'!H110 -> 0 | F22: ='Resultats PPP'!I110 -> 0 | G22: ='Resultats PPP'!J110 -> 0 | H22: =IF('Resultats PPP'!M110=3,0,'Resultats PPP'!M110) -> 0
B23: ='Resultats PPP'!L111 -> 0 | C23: ='Resultats PPP'!E111 ->  | D23: ='Resultats PPP'!K111 -> 0 | E23: ='Resultats PPP'!H111 -> 0 | F23: ='Resultats PPP'!I111 -> 0 | G23: ='Resultats PPP'!J111 -> 0 | H23: =IF('Resultats PPP'!M111=3,0,'Resultats PPP'!M111) -> 0
B24: ='Resultats PPP'!L112 -> 0 | C24: ='Resultats PPP'!E112 ->  | D24: ='Resultats PPP'!K112 -> 0 | E24: ='Resultats PPP'!H112 -> 0 | F24: ='Resultats PPP'!I112 -> 0 | G24: ='Resultats PPP'!J112 -> 0 | H24: =IF('Resultats PPP'!M112=3,0,'Resultats PPP'!M112) -> 0
B25: ='Resultats PPP'!L125 -> 0 | C25: ='Resultats PPP'!E125 ->  | D25: ='Resultats PPP'!K125 -> 0 | E25: ='Resultats PPP'!H125 -> 0 | F25: ='Resultats PPP'!I125 -> 0 | G25: ='Resultats PPP'!J125 -> 0 | H25: =IF('Resultats PPP'!M125=3,0,'Resultats PPP'!M125) -> 0
B26: ='Resultats PPP'!L126 -> 0 | C26: ='Resultats PPP'!E126 ->  | D26: ='Resultats PPP'!K126 -> 0 | E26: ='Resultats PPP'!H126 -> 0 | F26: ='Resultats PPP'!I126 -> 0 | G26: ='Resultats PPP'!J126 -> 0 | H26: =IF('Resultats PPP'!M126=3,0,'Resultats PPP'!M126) -> 0
B27: ='Resultats PPP'!L127 -> 0 | C27: ='Resultats PPP'!E127 ->  | D27: ='Resultats PPP'!K127 -> 0 | E27: ='Resultats PPP'!H127 -> 0 | F27: ='Resultats PPP'!I127 -> 0 | G27: ='Resultats PPP'!J127 -> 0 | H27: =IF('Resultats PPP'!M127=3,0,'Resultats PPP'!M127) -> 0
B28: ='Resultats PPP'!L140 -> 0 | C28: ='Resultats PPP'!E140 ->  | D28: ='Resultats PPP'!K140 -> 0 | E28: ='Resultats PPP'!H140 -> 0 | F28: ='Resultats PPP'!I140 -> 0 | G28: ='Resultats PPP'!J140 -> 0 | H28: =IF('Resultats PPP'!M140=3,0,'Resultats PPP'!M140) -> 0
B29: ='Resultats PPP'!L141 -> 0 | C29: ='Resultats PPP'!E141 ->  | D29: ='Resultats PPP'!K141 -> 0 | E29: ='Resultats PPP'!H141 -> 0 | F29: ='Resultats PPP'!I141 -> 0 | G29: ='Resultats PPP'!J141 -> 0 | H29: =IF('Resultats PPP'!M141=3,0,'Resultats PPP'!M141) -> 0
B30: ='Resultats PPP'!L142 -> 0 | C30: ='Resultats PPP'!E142 ->  | D30: ='Resultats PPP'!K142 -> 0 | E30: ='Resultats PPP'!H142 -> 0 | F30: ='Resultats PPP'!I142 -> 0 | G30: ='Resultats PPP'!J142 -> 0 | H30: =IF('Resultats PPP'!M142=3,0,'Resultats PPP'!M142) -> 0
B31: ='Resultats PPP'!L155 -> 0 | C31: ='Resultats PPP'!E155 ->  | D31: ='Resultats PPP'!K155 -> 0 | E31: ='Resultats PPP'!H155 -> 0 | F31: ='Resultats PPP'!I155 -> 0 | G31: ='Resultats PPP'!J155 -> 0 | H31: =IF('Resultats PPP'!M155=3,0,'Resultats PPP'!M155) -> 0
B32: ='Resultats PPP'!L156 -> 0 | C32: ='Resultats PPP'!E156 ->  | D32: ='Resultats PPP'!K156 -> 0 | E32: ='Resultats PPP'!H156 -> 0 | F32: ='Resultats PPP'!I156 -> 0 | G32: ='Resultats PPP'!J156 -> 0 | H32: =IF('Resultats PPP'!M156=3,0,'Resultats PPP'!M156) -> 0
B33: ='Resultats PPP'!L157 -> 0 | C33: ='Resultats PPP'!E157 ->  | D33: ='Resultats PPP'!K157 -> 0 | E33: ='Resultats PPP'!H157 -> 0 | F33: ='Resultats PPP'!I157 -> 0 | G33: ='Resultats PPP'!J157 -> 0 | H33: =IF('Resultats PPP'!M157=3,0,'Resultats PPP'!M157) -> 0
B34: ='Resultats PPP'!L170 -> 0 | C34: ='Resultats PPP'!E170 ->  | D34: ='Resultats PPP'!K170 -> 0 | E34: ='Resultats PPP'!H170 -> 0 | F34: ='Resultats PPP'!I170 -> 0 | G34: ='Resultats PPP'!J170 -> 0 | H34: =IF('Resultats PPP'!M170=3,0,'Resultats PPP'!M170) -> 0
B35: ='Resultats PPP'!L171 -> 0 | C35: ='Resultats PPP'!E171 ->  | D35: ='Resultats PPP'!K171 -> 0 | E35: ='Resultats PPP'!H171 -> 0 | F35: ='Resultats PPP'!I171 -> 0 | G35: ='Resultats PPP'!J171 -> 0 | H35: =IF('Resultats PPP'!M171=3,0,'Resultats PPP'!M171) -> 0
B36: ='Resultats PPP'!L172 -> 0 | C36: ='Resultats PPP'!E172 ->  | D36: ='Resultats PPP'!K172 -> 0 | E36: ='Resultats PPP'!H172 -> 0 | F36: ='Resultats PPP'!I172 -> 0 | G36: ='Resultats PPP'!J172 -> 0 | H36: =IF('Resultats PPP'!M172=3,0,'Resultats PPP'!M172) -> 0
B37: ='Resultats PPP'!L185 -> 0 | C37: ='Resultats PPP'!E185 ->  | D37: ='Resultats PPP'!K185 -> 0 | E37: ='Resultats PPP'!H185 -> 0 | F37: ='Resultats PPP'!I185 -> 0 | G37: ='Resultats PPP'!J185 -> 0 | H37: =IF('Resultats PPP'!M185=3,0,'Resultats PPP'!M185) -> 0
B38: ='Resultats PPP'!L186 -> 0 | C38: ='Resultats PPP'!E186 ->  | D38: ='Resultats PPP'!K186 -> 0 | E38: ='Resultats PPP'!H186 -> 0 | F38: ='Resultats PPP'!I186 -> 0 | G38: ='Resultats PPP'!J186 -> 0 | H38: =IF('Resultats PPP'!M186=3,0,'Resultats PPP'!M186) -> 0
B39: ='Resultats PPP'!L187 -> 0 | C39: ='Resultats PPP'!E187 ->  | D39: ='Resultats PPP'!K187 -> 0 | E39: ='Resultats PPP'!H187 -> 0 | F39: ='Resultats PPP'!I187 -> 0 | G39: ='Resultats PPP'!J187 -> 0 | H39: =IF('Resultats PPP'!M187=3,0,'Resultats PPP'!M187) -> 0
B40: ='Resultats PPP'!L200 -> 0 | C40: ='Resultats PPP'!E200 ->  | D40: ='Resultats PPP'!K200 -> 0 | E40: ='Resultats PPP'!H200 -> 0 | F40: ='Resultats PPP'!I200 -> 0 | G40: ='Resultats PPP'!J200 -> 0 | H40: =IF('Resultats PPP'!M200=3,0,'Resultats PPP'!M200) -> 0
B41: ='Resultats PPP'!L201 -> 0 | C41: ='Resultats PPP'!E201 ->  | D41: ='Resultats PPP'!K201 -> 0 | E41: ='Resultats PPP'!H201 -> 0 | F41: ='Resultats PPP'!I201 -> 0 | G41: ='Resultats PPP'!J201 -> 0 | H41: =IF('Resultats PPP'!M201=3,0,'Resultats PPP'!M201) -> 0
B42: ='Resultats PPP'!L202 -> 0 | C42: ='Resultats PPP'!E202 ->  | D42: ='Resultats PPP'!K202 -> 0 | E42: ='Resultats PPP'!H202 -> 0 | F42: ='Resultats PPP'!I202 -> 0 | G42: ='Resultats PPP'!J202 -> 0 | H42: =IF('Resultats PPP'!M202=3,0,'Resultats PPP'!M202) -> 0
B43: ='Resultats PPP'!L215 -> 0 | C43: ='Resultats PPP'!E215 ->  | D43: ='Resultats PPP'!K215 -> 0 | E43: ='Resultats PPP'!H215 -> 0 | F43: ='Resultats PPP'!I215 -> 0 | G43: ='Resultats PPP'!J215 -> 0 | H43: =IF('Resultats PPP'!M215=3,0,'Resultats PPP'!M215) -> 0
B44: ='Resultats PPP'!L216 -> 0 | C44: ='Resultats PPP'!E216 ->  | D44: ='Resultats PPP'!K216 -> 0 | E44: ='Resultats PPP'!H216 -> 0 | F44: ='Resultats PPP'!I216 -> 0 | G44: ='Resultats PPP'!J216 -> 0 | H44: =IF('Resultats PPP'!M216=3,0,'Resultats PPP'!M216) -> 0
B45: ='Resultats PPP'!L217 -> 0 | C45: ='Resultats PPP'!E217 ->  | D45: ='Resultats PPP'!K217 -> 0 | E45: ='Resultats PPP'!H217 -> 0 | F45: ='Resultats PPP'!I217 -> 0 | G45: ='Resultats PPP'!J217 -> 0 | H45: =IF('Resultats PPP'!M217=3,0,'Resultats PPP'!M217) -> 0
B46: ='Resultats PPP'!L230 -> 0 | C46: ='Resultats PPP'!E230 ->  | D46: ='Resultats PPP'!K230 -> 0 | E46: ='Resultats PPP'!H230 -> 0 | F46: ='Resultats PPP'!I230 -> 0 | G46: ='Resultats PPP'!J230 -> 0 | H46: =IF('Resultats PPP'!M230=3,0,'Resultats PPP'!M230) -> 0
B47: ='Resultats PPP'!L231 -> 0 | C47: ='Resultats PPP'!E231 ->  | D47: ='Resultats PPP'!K231 -> 0 | E47: ='Resultats PPP'!H231 -> 0 | F47: ='Resultats PPP'!I231 -> 0 | G47: ='Resultats PPP'!J231 -> 0 | H47: =IF('Resultats PPP'!M231=3,0,'Resultats PPP'!M231) -> 0
B48: ='Resultats PPP'!L232 -> 0 | C48: ='Resultats PPP'!E232 ->  | D48: ='Resultats PPP'!K232 -> 0 | E48: ='Resultats PPP'!H232 -> 0 | F48: ='Resultats PPP'!I232 -> 0 | G48: ='Resultats PPP'!J232 -> 0 | H48: =IF('Resultats PPP'!M232=3,0,'Resultats PPP'!M232) -> 0
B49: ='Resultats PPP'!L245 -> 0 | C49: ='Resultats PPP'!E245 ->  | D49: ='Resultats PPP'!K245 -> 0 | E49: ='Resultats PPP'!H245 -> 0 | F49: ='Resultats PPP'!I245 -> 0 | G49: ='Resultats PPP'!J245 -> 0 | H49: =IF('Resultats PPP'!M245=3,0,'Resultats PPP'!M245) -> 0
B50: ='Resultats PPP'!L246 -> 0 | C50: ='Resultats PPP'!E246 ->  | D50: ='Resultats PPP'!K246 -> 0 | E50: ='Resultats PPP'!H246 -> 0 | F50: ='Resultats PPP'!I246 -> 0 | G50: ='Resultats PPP'!J246 -> 0 | H50: =IF('Resultats PPP'!M246=3,0,'Resultats PPP'!M246) -> 0
A51: =IF(OR(H51=0,C51="(Jugador Virtual)"),"",RANK(H51,$H$4:$H$51,)) ->  | B51: ='Resultats PPP'!L247 -> 0 | C51: ='Resultats PPP'!E247 ->  | D51: ='Resultats PPP'!K247 -> 0 | E51: ='Resultats PPP'!H247 -> 0 | F51: ='Resultats PPP'!I247 -> 0 | G51: ='Resultats PPP'!J247 -> 0 | H51: =IF('Resultats PPP'!M247=3,0,'Resultats PPP'!M247) -> 0

Sheet Classificació PPP
B2: =IF(Inici!B2="INTRODUIR EN MAIÚSCULES EL NOM DE L'OPEN","Introduiu el nom de l'Open a la pantalla d'Inici!!!",Inici!B2) -> Introduiu el nom de l'Open a la pantalla d'Inici!!! | K2: ANAR A PÀGINA | L2: P-P-PRÈVIA | M2: P-PRÈVIA | N2: PRÈVIA | O2: FASE FINAL
K3: Rànquing Inicial | L3: Grups PPP | M3: Grups PP | N3: Grups P | O3: Setzens | P3: Vuitens
K4: Organigrama | L4: Result PPP | M4: Result PP | N4: Result P | O4: Class SF | P4: Quarts/SF/F
K5: Horaris | L5: Classif PPP | M5: Classif PP | N5: Classif P
B8: CLASSIFICACIÓ FINAL PRE-PRE-PRÈVIA (PPP) | K8: Inici | L8: Participants
B10: =Organigrama!G39 -> 0 | C10: =CONCATENATE("Passen a la Pre-Prèvia (PP) ",I10," jugadors d'un total de ",B10) -> Passen a la Pre-Prèvia (PP) 0 jugadors d'un total de 0 | I10: =Organigrama!K39 -> 0
B12: Posició | D12: Jugador | E12: Posició al grup | F12: Punts | G12: Mitjana | H12: SM (1) | I12: SM (2)
B13: 1 | C13: 1-PPP | D13: =IFERROR(VLOOKUP(B13,'PPP (C)'!$A$4:$H$51,3,FALSE),"") ->  | E13: =IFERROR(IF(D13="","",VLOOKUP(B13,'PPP (C)'!$A$4:$H$51,2,FALSE)),"") ->  | F13: =IFERROR(IF(D13="","",VLOOKUP(B13,'PPP (C)'!$A$4:$H$51,4,FALSE)),"") ->  | G13: =IFERROR(IF(D13="","",VLOOKUP(B13,'PPP (C)'!$A$4:$H$51,5,FALSE)),"") ->  | H13: =IFERROR(IF(D13="","",VLOOKUP(B13,'PPP (C)'!$A$4:$H$51,6,FALSE)),"") ->  | I13: =IFERROR(IF(D13="","",VLOOKUP(B13,'PPP (C)'!$A$4:$H$51,7,FALSE)),"") -> 
B14: 2 | C14: 2-PPP | D14: =IFERROR(VLOOKUP(B14,'PPP (C)'!$A$4:$H$51,3,FALSE),"") ->  | E14: =IFERROR(IF(D14="","",VLOOKUP(B14,'PPP (C)'!$A$4:$H$51,2,FALSE)),"") ->  | F14: =IFERROR(IF(D14="","",VLOOKUP(B14,'PPP (C)'!$A$4:$H$51,4,FALSE)),"") ->  | G14: =IFERROR(IF(D14="","",VLOOKUP(B14,'PPP (C)'!$A$4:$H$51,5,FALSE)),"") ->  | H14: =IFERROR(IF(D14="","",VLOOKUP(B14,'PPP (C)'!$A$4:$H$51,6,FALSE)),"") ->  | I14: =IFERROR(IF(D14="","",VLOOKUP(B14,'PPP (C)'!$A$4:$H$51,7,FALSE)),"") -> 
B15: 3 | C15: 3-PPP | D15: =IFERROR(VLOOKUP(B15,'PPP (C)'!$A$4:$H$51,3,FALSE),"") ->  | E15: =IFERROR(IF(D15="","",VLOOKUP(B15,'PPP (C)'!$A$4:$H$51,2,FALSE)),"") ->  | F15: =IFERROR(IF(D15="","",VLOOKUP(B15,'PPP (C)'!$A$4:$H$51,4,FALSE)),"") ->  | G15: =IFERROR(IF(D15="","",VLOOKUP(B15,'PPP (C)'!$A$4:$H$51,5,FALSE)),"") ->  | H15: =IFERROR(IF(D15="","",VLOOKUP(B15,'PPP (C)'!$A$4:$H$51,6,FALSE)),"") ->  | I15: =IFERROR(IF(D15="","",VLOOKUP(B15,'PPP (C)'!$A$4:$H$51,7,FALSE)),"") -> 
B16: 4 | C16: 4-PPP | D16: =IFERROR(VLOOKUP(B16,'PPP (C)'!$A$4:$H$51,3,FALSE),"") ->  | E16: =IFERROR(IF(D16="","",VLOOKUP(B16,'PPP (C)'!$A$4:$H$51,2,FALSE)),"") ->  | F16: =IFERROR(IF(D16="","",VLOOKUP(B16,'PPP (C)'!$A$4:$H$51,4,FALSE)),"") ->  | G16: =IFERROR(IF(D16="","",VLOOKUP(B16,'PPP (C)'!$A$4:$H$51,5,FALSE)),"") ->  | H16: =IFERROR(IF(D16="","",VLOOKUP(B16,'PPP (C)'!$A$4:$H$51,6,FALSE)),"") ->  | I16: =IFERROR(IF(D16="","",VLOOKUP(B16,'PPP (C)'!$A$4:$H$51,7,FALSE)),"") -> 
B17: 5 | C17: 5-PPP | D17: =IFERROR(VLOOKUP(B17,'PPP (C)'!$A$4:$H$51,3,FALSE),"") ->  | E17: =IFERROR(IF(D17="","",VLOOKUP(B17,'PPP (C)'!$A$4:$H$51,2,FALSE)),"") ->  | F17: =IFERROR(IF(D17="","",VLOOKUP(B17,'PPP (C)'!$A$4:$H$51,4,FALSE)),"") ->  | G17: =IFERROR(IF(D17="","",VLOOKUP(B17,'PPP (C)'!$A$4:$H$51,5,FALSE)),"") ->  | H17: =IFERROR(IF(D17="","",VLOOKUP(B17,'PPP (C)'!$A$4:$H$51,6,FALSE)),"") ->  | I17: =IFERROR(IF(D17="","",VLOOKUP(B17,'PPP (C)'!$A$4:$H$51,7,FALSE)),"") -> 
B18: 6 | C18: 6-PPP | D18: =IFERROR(VLOOKUP(B18,'PPP (C)'!$A$4:$H$51,3,FALSE),"") ->  | E18: =IFERROR(IF(D18="","",VLOOKUP(B18,'PPP (C)'!$A$4:$H$51,2,FALSE)),"") ->  | F18: =IFERROR(IF(D18="","",VLOOKUP(B18,'PPP (C)'!$A$4:$H$51,4,FALSE)),"") ->  | G18: =IFERROR(IF(D18="","",VLOOKUP(B18,'PPP (C)'!$A$4:$H$51,5,FALSE)),"") ->  | H18: =IFERROR(IF(D18="","",VLOOKUP(B18,'PPP (C)'!$A$4:$H$51,6,FALSE)),"") ->  | I18: =IFERROR(IF(D18="","",VLOOKUP(B18,'PPP (C)'!$A$4:$H$51,7,FALSE)),"") -> 
B19: 7 | C19: 7-PPP | D19: =IFERROR(VLOOKUP(B19,'PPP (C)'!$A$4:$H$51,3,FALSE),"") ->  | E19: =IFERROR(IF(D19="","",VLOOKUP(B19,'PPP (C)'!$A$4:$H$51,2,FALSE)),"") ->  | F19: =IFERROR(IF(D19="","",VLOOKUP(B19,'PPP (C)'!$A$4:$H$51,4,FALSE)),"") ->  | G19: =IFERROR(IF(D19="","",VLOOKUP(B19,'PPP (C)'!$A$4:$H$51,5,FALSE)),"") ->  | H19: =IFERROR(IF(D19="","",VLOOKUP(B19,'PPP (C)'!$A$4:$H$51,6,FALSE)),"") ->  | I19: =IFERROR(IF(D19="","",VLOOKUP(B19,'PPP (C)'!$A$4:$H$51,7,FALSE)),"") -> 
B20: 8 | C20: 8-PPP | D20: =IFERROR(VLOOKUP(B20,'PPP (C)'!$A$4:$H$51,3,FALSE),"") ->  | E20: =IFERROR(IF(D20="","",VLOOKUP(B20,'PPP (C)'!$A$4:$H$51,2,FALSE)),"") ->  | F20: =IFERROR(IF(D20="","",VLOOKUP(B20,'PPP (C)'!$A$4:$H$51,4,FALSE)),"") ->  | G20: =IFERROR(IF(D20="","",VLOOKUP(B20,'PPP (C)'!$A$4:$H$51,5,FALSE)),"") ->  | H20: =IFERROR(IF(D20="","",VLOOKUP(B20,'PPP (C)'!$A$4:$H$51,6,FALSE)),"") ->  | I20: =IFERROR(IF(D20="","",VLOOKUP(B20,'PPP (C)'!$A$4:$H$51,7,FALSE)),"") -> 
B21: 9 | C21: 9-PPP | D21: =IFERROR(VLOOKUP(B21,'PPP (C)'!$A$4:$H$51,3,FALSE),"") ->  | E21: =IFERROR(IF(D21="","",VLOOKUP(B21,'PPP (C)'!$A$4:$H$51,2,FALSE)),"") ->  | F21: =IFERROR(IF(D21="","",VLOOKUP(B21,'PPP (C)'!$A$4:$H$51,4,FALSE)),"") ->  | G21: =IFERROR(IF(D21="","",VLOOKUP(B21,'PPP (C)'!$A$4:$H$51,5,FALSE)),"") ->  | H21: =IFERROR(IF(D21="","",VLOOKUP(B21,'PPP (C)'!$A$4:$H$51,6,FALSE)),"") ->  | I21: =IFERROR(IF(D21="","",VLOOKUP(B21,'PPP (C)'!$A$4:$H$51,7,FALSE)),"") -> 
B22: 10 | C22: 10-PPP | D22: =IFERROR(VLOOKUP(B22,'PPP (C)'!$A$4:$H$51,3,FALSE),"") ->  | E22: =IFERROR(IF(D22="","",VLOOKUP(B22,'PPP (C)'!$A$4:$H$51,2,FALSE)),"") ->  | F22: =IFERROR(IF(D22="","",VLOOKUP(B22,'PPP (C)'!$A$4:$H$51,4,FALSE)),"") ->  | G22: =IFERROR(IF(D22="","",VLOOKUP(B22,'PPP (C)'!$A$4:$H$51,5,FALSE)),"") ->  | H22: =IFERROR(IF(D22="","",VLOOKUP(B22,'PPP (C)'!$A$4:$H$51,6,FALSE)),"") ->  | I22: =IFERROR(IF(D22="","",VLOOKUP(B22,'PPP (C)'!$A$4:$H$51,7,FALSE)),"") -> 
B23: 11 | C23: 11-PPP | D23: =IFERROR(VLOOKUP(B23,'PPP (C)'!$A$4:$H$51,3,FALSE),"") ->  | E23: =IFERROR(IF(D23="","",VLOOKUP(B23,'PPP (C)'!$A$4:$H$51,2,FALSE)),"") ->  | F23: =IFERROR(IF(D23="","",VLOOKUP(B23,'PPP (C)'!$A$4:$H$51,4,FALSE)),"") ->  | G23: =IFERROR(IF(D23="","",VLOOKUP(B23,'PPP (C)'!$A$4:$H$51,5,FALSE)),"") ->  | H23: =IFERROR(IF(D23="","",VLOOKUP(B23,'PPP (C)'!$A$4:$H$51,6,FALSE)),"") ->  | I23: =IFERROR(IF(D23="","",VLOOKUP(B23,'PPP (C)'!$A$4:$H$51,7,FALSE)),"") -> 
B24: 12 | C24: 12-PPP | D24: =IFERROR(VLOOKUP(B24,'PPP (C)'!$A$4:$H$51,3,FALSE),"") ->  | E24: =IFERROR(IF(D24="","",VLOOKUP(B24,'PPP (C)'!$A$4:$H$51,2,FALSE)),"") ->  | F24: =IFERROR(IF(D24="","",VLOOKUP(B24,'PPP (C)'!$A$4:$H$51,4,FALSE)),"") ->  | G24: =IFERROR(IF(D24="","",VLOOKUP(B24,'PPP (C)'!$A$4:$H$51,5,FALSE)),"") ->  | H24: =IFERROR(IF(D24="","",VLOOKUP(B24,'PPP (C)'!$A$4:$H$51,6,FALSE)),"") ->  | I24: =IFERROR(IF(D24="","",VLOOKUP(B24,'PPP (C)'!$A$4:$H$51,7,FALSE)),"") -> 
B25: 13 | C25: 13-PPP | D25: =IFERROR(VLOOKUP(B25,'PPP (C)'!$A$4:$H$51,3,FALSE),"") ->  | E25: =IFERROR(IF(D25="","",VLOOKUP(B25,'PPP (C)'!$A$4:$H$51,2,FALSE)),"") ->  | F25: =IFERROR(IF(D25="","",VLOOKUP(B25,'PPP (C)'!$A$4:$H$51,4,FALSE)),"") ->  | G25: =IFERROR(IF(D25="","",VLOOKUP(B25,'PPP (C)'!$A$4:$H$51,5,FALSE)),"") ->  | H25: =IFERROR(IF(D25="","",VLOOKUP(B25,'PPP (C)'!$A$4:$H$51,6,FALSE)),"") ->  | I25: =IFERROR(IF(D25="","",VLOOKUP(B25,'PPP (C)'!$A$4:$H$51,7,FALSE)),"") -> 
B26: 14 | C26: 14-PPP | D26: =IFERROR(VLOOKUP(B26,'PPP (C)'!$A$4:$H$51,3,FALSE),"") ->  | E26: =IFERROR(IF(D26="","",VLOOKUP(B26,'PPP (C)'!$A$4:$H$51,2,FALSE)),"") ->  | F26: =IFERROR(IF(D26="","",VLOOKUP(B26,'PPP (C)'!$A$4:$H$51,4,FALSE)),"") ->  | G26: =IFERROR(IF(D26="","",VLOOKUP(B26,'PPP (C)'!$A$4:$H$51,5,FALSE)),"") ->  | H26: =IFERROR(IF(D26="","",VLOOKUP(B26,'PPP (C)'!$A$4:$H$51,6,FALSE)),"") ->  | I26: =IFERROR(IF(D26="","",VLOOKUP(B26,'PPP (C)'!$A$4:$H$51,7,FALSE)),"") -> 
B27: 15 | C27: 15-PPP | D27: =IFERROR(VLOOKUP(B27,'PPP (C)'!$A$4:$H$51,3,FALSE),"") ->  | E27: =IFERROR(IF(D27="","",VLOOKUP(B27,'PPP (C)'!$A$4:$H$51,2,FALSE)),"") ->  | F27: =IFERROR(IF(D27="","",VLOOKUP(B27,'PPP (C)'!$A$4:$H$51,4,FALSE)),"") ->  | G27: =IFERROR(IF(D27="","",VLOOKUP(B27,'PPP (C)'!$A$4:$H$51,5,FALSE)),"") ->  | H27: =IFERROR(IF(D27="","",VLOOKUP(B27,'PPP (C)'!$A$4:$H$51,6,FALSE)),"") ->  | I27: =IFERROR(IF(D27="","",VLOOKUP(B27,'PPP (C)'!$A$4:$H$51,7,FALSE)),"") -> 
B28: 16 | C28: 16-PPP | D28: =IFERROR(VLOOKUP(B28,'PPP (C)'!$A$4:$H$51,3,FALSE),"") ->  | E28: =IFERROR(IF(D28="","",VLOOKUP(B28,'PPP (C)'!$A$4:$H$51,2,FALSE)),"") ->  | F28: =IFERROR(IF(D28="","",VLOOKUP(B28,'PPP (C)'!$A$4:$H$51,4,FALSE)),"") ->  | G28: =IFERROR(IF(D28="","",VLOOKUP(B28,'PPP (C)'!$A$4:$H$51,5,FALSE)),"") ->  | H28: =IFERROR(IF(D28="","",VLOOKUP(B28,'PPP (C)'!$A$4:$H$51,6,FALSE)),"") ->  | I28: =IFERROR(IF(D28="","",VLOOKUP(B28,'PPP (C)'!$A$4:$H$51,7,FALSE)),"") -> 
B29: 17 | C29: 17-PPP | D29: =IFERROR(VLOOKUP(B29,'PPP (C)'!$A$4:$H$51,3,FALSE),"") ->  | E29: =IFERROR(IF(D29="","",VLOOKUP(B29,'PPP (C)'!$A$4:$H$51,2,FALSE)),"") ->  | F29: =IFERROR(IF(D29="","",VLOOKUP(B29,'PPP (C)'!$A$4:$H$51,4,FALSE)),"") ->  | G29: =IFERROR(IF(D29="","",VLOOKUP(B29,'PPP (C)'!$A$4:$H$51,5,FALSE)),"") ->  | H29: =IFERROR(IF(D29="","",VLOOKUP(B29,'PPP (C)'!$A$4:$H$51,6,FALSE)),"") ->  | I29: =IFERROR(IF(D29="","",VLOOKUP(B29,'PPP (C)'!$A$4:$H$51,7,FALSE)),"") -> 
B30: 18 | C30: 18-PPP | D30: =IFERROR(VLOOKUP(B30,'PPP (C)'!$A$4:$H$51,3,FALSE),"") ->  | E30: =IFERROR(IF(D30="","",VLOOKUP(B30,'PPP (C)'!$A$4:$H$51,2,FALSE)),"") ->  | F30: =IFERROR(IF(D30="","",VLOOKUP(B30,'PPP (C)'!$A$4:$H$51,4,FALSE)),"") ->  | G30: =IFERROR(IF(D30="","",VLOOKUP(B30,'PPP (C)'!$A$4:$H$51,5,FALSE)),"") ->  | H30: =IFERROR(IF(D30="","",VLOOKUP(B30,'PPP (C)'!$A$4:$H$51,6,FALSE)),"") ->  | I30: =IFERROR(IF(D30="","",VLOOKUP(B30,'PPP (C)'!$A$4:$H$51,7,FALSE)),"") -> 
B31: 19 | C31: 19-PPP | D31: =IFERROR(VLOOKUP(B31,'PPP (C)'!$A$4:$H$51,3,FALSE),"") ->  | E31: =IFERROR(IF(D31="","",VLOOKUP(B31,'PPP (C)'!$A$4:$H$51,2,FALSE)),"") ->  | F31: =IFERROR(IF(D31="","",VLOOKUP(B31,'PPP (C)'!$A$4:$H$51,4,FALSE)),"") ->  | G31: =IFERROR(IF(D31="","",VLOOKUP(B31,'PPP (C)'!$A$4:$H$51,5,FALSE)),"") ->  | H31: =IFERROR(IF(D31="","",VLOOKUP(B31,'PPP (C)'!$A$4:$H$51,6,FALSE)),"") ->  | I31: =IFERROR(IF(D31="","",VLOOKUP(B31,'PPP (C)'!$A$4:$H$51,7,FALSE)),"") -> 
B32: 20 | C32: 20-PPP | D32: =IFERROR(VLOOKUP(B32,'PPP (C)'!$A$4:$H$51,3,FALSE),"") ->  | E32: =IFERROR(IF(D32="","",VLOOKUP(B32,'PPP (C)'!$A$4:$H$51,2,FALSE)),"") ->  | F32: =IFERROR(IF(D32="","",VLOOKUP(B32,'PPP (C)'!$A$4:$H$51,4,FALSE)),"") ->  | G32: =IFERROR(IF(D32="","",VLOOKUP(B32,'PPP (C)'!$A$4:$H$51,5,FALSE)),"") ->  | H32: =IFERROR(IF(D32="","",VLOOKUP(B32,'PPP (C)'!$A$4:$H$51,6,FALSE)),"") ->  | I32: =IFERROR(IF(D32="","",VLOOKUP(B32,'PPP (C)'!$A$4:$H$51,7,FALSE)),"") -> 
B33: 21 | C33: 21-PPP | D33: =IFERROR(VLOOKUP(B33,'PPP (C)'!$A$4:$H$51,3,FALSE),"") ->  | E33: =IFERROR(IF(D33="","",VLOOKUP(B33,'PPP (C)'!$A$4:$H$51,2,FALSE)),"") ->  | F33: =IFERROR(IF(D33="","",VLOOKUP(B33,'PPP (C)'!$A$4:$H$51,4,FALSE)),"") ->  | G33: =IFERROR(IF(D33="","",VLOOKUP(B33,'PPP (C)'!$A$4:$H$51,5,FALSE)),"") ->  | H33: =IFERROR(IF(D33="","",VLOOKUP(B33,'PPP (C)'!$A$4:$H$51,6,FALSE)),"") ->  | I33: =IFERROR(IF(D33="","",VLOOKUP(B33,'PPP (C)'!$A$4:$H$51,7,FALSE)),"") -> 
B34: 22 | C34: 22-PPP | D34: =IFERROR(VLOOKUP(B34,'PPP (C)'!$A$4:$H$51,3,FALSE),"") ->  | E34: =IFERROR(IF(D34="","",VLOOKUP(B34,'PPP (C)'!$A$4:$H$51,2,FALSE)),"") ->  | F34: =IFERROR(IF(D34="","",VLOOKUP(B34,'PPP (C)'!$A$4:$H$51,4,FALSE)),"") ->  | G34: =IFERROR(IF(D34="","",VLOOKUP(B34,'PPP (C)'!$A$4:$H$51,5,FALSE)),"") ->  | H34: =IFERROR(IF(D34="","",VLOOKUP(B34,'PPP (C)'!$A$4:$H$51,6,FALSE)),"") ->  | I34: =IFERROR(IF(D34="","",VLOOKUP(B34,'PPP (C)'!$A$4:$H$51,7,FALSE)),"") -> 
B35: 23 | C35: 23-PPP | D35: =IFERROR(VLOOKUP(B35,'PPP (C)'!$A$4:$H$51,3,FALSE),"") ->  | E35: =IFERROR(IF(D35="","",VLOOKUP(B35,'PPP (C)'!$A$4:$H$51,2,FALSE)),"") ->  | F35: =IFERROR(IF(D35="","",VLOOKUP(B35,'PPP (C)'!$A$4:$H$51,4,FALSE)),"") ->  | G35: =IFERROR(IF(D35="","",VLOOKUP(B35,'PPP (C)'!$A$4:$H$51,5,FALSE)),"") ->  | H35: =IFERROR(IF(D35="","",VLOOKUP(B35,'PPP (C)'!$A$4:$H$51,6,FALSE)),"") ->  | I35: =IFERROR(IF(D35="","",VLOOKUP(B35,'PPP (C)'!$A$4:$H$51,7,FALSE)),"") -> 
B36: 24 | C36: 24-PPP | D36: =IFERROR(VLOOKUP(B36,'PPP (C)'!$A$4:$H$51,3,FALSE),"") ->  | E36: =IFERROR(IF(D36="","",VLOOKUP(B36,'PPP (C)'!$A$4:$H$51,2,FALSE)),"") ->  | F36: =IFERROR(IF(D36="","",VLOOKUP(B36,'PPP (C)'!$A$4:$H$51,4,FALSE)),"") ->  | G36: =IFERROR(IF(D36="","",VLOOKUP(B36,'PPP (C)'!$A$4:$H$51,5,FALSE)),"") ->  | H36: =IFERROR(IF(D36="","",VLOOKUP(B36,'PPP (C)'!$A$4:$H$51,6,FALSE)),"") ->  | I36: =IFERROR(IF(D36="","",VLOOKUP(B36,'PPP (C)'!$A$4:$H$51,7,FALSE)),"") -> 
B37: 25 | C37: 25-PPP | D37: =IFERROR(VLOOKUP(B37,'PPP (C)'!$A$4:$H$51,3,FALSE),"") ->  | E37: =IFERROR(IF(D37="","",VLOOKUP(B37,'PPP (C)'!$A$4:$H$51,2,FALSE)),"") ->  | F37: =IFERROR(IF(D37="","",VLOOKUP(B37,'PPP (C)'!$A$4:$H$51,4,FALSE)),"") ->  | G37: =IFERROR(IF(D37="","",VLOOKUP(B37,'PPP (C)'!$A$4:$H$51,5,FALSE)),"") ->  | H37: =IFERROR(IF(D37="","",VLOOKUP(B37,'PPP (C)'!$A$4:$H$51,6,FALSE)),"") ->  | I37: =IFERROR(IF(D37="","",VLOOKUP(B37,'PPP (C)'!$A$4:$H$51,7,FALSE)),"") -> 
B38: 26 | C38: 26-PPP | D38: =IFERROR(VLOOKUP(B38,'PPP (C)'!$A$4:$H$51,3,FALSE),"") ->  | E38: =IFERROR(IF(D38="","",VLOOKUP(B38,'PPP (C)'!$A$4:$H$51,2,FALSE)),"") ->  | F38: =IFERROR(IF(D38="","",VLOOKUP(B38,'PPP (C)'!$A$4:$H$51,4,FALSE)),"") ->  | G38: =IFERROR(IF(D38="","",VLOOKUP(B38,'PPP (C)'!$A$4:$H$51,5,FALSE)),"") ->  | H38: =IFERROR(IF(D38="","",VLOOKUP(B38,'PPP (C)'!$A$4:$H$51,6,FALSE)),"") ->  | I38: =IFERROR(IF(D38="","",VLOOKUP(B38,'PPP (C)'!$A$4:$H$51,7,FALSE)),"") -> 
B39: 27 | C39: 27-PPP | D39: =IFERROR(VLOOKUP(B39,'PPP (C)'!$A$4:$H$51,3,FALSE),"") ->  | E39: =IFERROR(IF(D39="","",VLOOKUP(B39,'PPP (C)'!$A$4:$H$51,2,FALSE)),"") ->  | F39: =IFERROR(IF(D39="","",VLOOKUP(B39,'PPP (C)'!$A$4:$H$51,4,FALSE)),"") ->  | G39: =IFERROR(IF(D39="","",VLOOKUP(B39,'PPP (C)'!$A$4:$H$51,5,FALSE)),"") ->  | H39: =IFERROR(IF(D39="","",VLOOKUP(B39,'PPP (C)'!$A$4:$H$51,6,FALSE)),"") ->  | I39: =IFERROR(IF(D39="","",VLOOKUP(B39,'PPP (C)'!$A$4:$H$51,7,FALSE)),"") -> 
B40: 28 | C40: 28-PPP | D40: =IFERROR(VLOOKUP(B40,'PPP (C)'!$A$4:$H$51,3,FALSE),"") ->  | E40: =IFERROR(IF(D40="","",VLOOKUP(B40,'PPP (C)'!$A$4:$H$51,2,FALSE)),"") ->  | F40: =IFERROR(IF(D40="","",VLOOKUP(B40,'PPP (C)'!$A$4:$H$51,4,FALSE)),"") ->  | G40: =IFERROR(IF(D40="","",VLOOKUP(B40,'PPP (C)'!$A$4:$H$51,5,FALSE)),"") ->  | H40: =IFERROR(IF(D40="","",VLOOKUP(B40,'PPP (C)'!$A$4:$H$51,6,FALSE)),"") ->  | I40: =IFERROR(IF(D40="","",VLOOKUP(B40,'PPP (C)'!$A$4:$H$51,7,FALSE)),"") -> 
B41: 29 | C41: 29-PPP | D41: =IFERROR(VLOOKUP(B41,'PPP (C)'!$A$4:$H$51,3,FALSE),"") ->  | E41: =IFERROR(IF(D41="","",VLOOKUP(B41,'PPP (C)'!$A$4:$H$51,2,FALSE)),"") ->  | F41: =IFERROR(IF(D41="","",VLOOKUP(B41,'PPP (C)'!$A$4:$H$51,4,FALSE)),"") ->  | G41: =IFERROR(IF(D41="","",VLOOKUP(B41,'PPP (C)'!$A$4:$H$51,5,FALSE)),"") ->  | H41: =IFERROR(IF(D41="","",VLOOKUP(B41,'PPP (C)'!$A$4:$H$51,6,FALSE)),"") ->  | I41: =IFERROR(IF(D41="","",VLOOKUP(B41,'PPP (C)'!$A$4:$H$51,7,FALSE)),"") -> 
B42: 30 | C42: 30-PPP | D42: =IFERROR(VLOOKUP(B42,'PPP (C)'!$A$4:$H$51,3,FALSE),"") ->  | E42: =IFERROR(IF(D42="","",VLOOKUP(B42,'PPP (C)'!$A$4:$H$51,2,FALSE)),"") ->  | F42: =IFERROR(IF(D42="","",VLOOKUP(B42,'PPP (C)'!$A$4:$H$51,4,FALSE)),"") ->  | G42: =IFERROR(IF(D42="","",VLOOKUP(B42,'PPP (C)'!$A$4:$H$51,5,FALSE)),"") ->  | H42: =IFERROR(IF(D42="","",VLOOKUP(B42,'PPP (C)'!$A$4:$H$51,6,FALSE)),"") ->  | I42: =IFERROR(IF(D42="","",VLOOKUP(B42,'PPP (C)'!$A$4:$H$51,7,FALSE)),"") -> 
B43: 31 | C43: 31-PPP | D43: =IFERROR(VLOOKUP(B43,'PPP (C)'!$A$4:$H$51,3,FALSE),"") ->  | E43: =IFERROR(IF(D43="","",VLOOKUP(B43,'PPP (C)'!$A$4:$H$51,2,FALSE)),"") ->  | F43: =IFERROR(IF(D43="","",VLOOKUP(B43,'PPP (C)'!$A$4:$H$51,4,FALSE)),"") ->  | G43: =IFERROR(IF(D43="","",VLOOKUP(B43,'PPP (C)'!$A$4:$H$51,5,FALSE)),"") ->  | H43: =IFERROR(IF(D43="","",VLOOKUP(B43,'PPP (C)'!$A$4:$H$51,6,FALSE)),"") ->  | I43: =IFERROR(IF(D43="","",VLOOKUP(B43,'PPP (C)'!$A$4:$H$51,7,FALSE)),"") -> 
B44: 32 | C44: 32-PPP | D44: =IFERROR(VLOOKUP(B44,'PPP (C)'!$A$4:$H$51,3,FALSE),"") ->  | E44: =IFERROR(IF(D44="","",VLOOKUP(B44,'PPP (C)'!$A$4:$H$51,2,FALSE)),"") ->  | F44: =IFERROR(IF(D44="","",VLOOKUP(B44,'PPP (C)'!$A$4:$H$51,4,FALSE)),"") ->  | G44: =IFERROR(IF(D44="","",VLOOKUP(B44,'PPP (C)'!$A$4:$H$51,5,FALSE)),"") ->  | H44: =IFERROR(IF(D44="","",VLOOKUP(B44,'PPP (C)'!$A$4:$H$51,6,FALSE)),"") ->  | I44: =IFERROR(IF(D44="","",VLOOKUP(B44,'PPP (C)'!$A$4:$H$51,7,FALSE)),"") -> 
B45: 33 | C45: 33-PPP | D45: =IFERROR(VLOOKUP(B45,'PPP (C)'!$A$4:$H$51,3,FALSE),"") ->  | E45: =IFERROR(IF(D45="","",VLOOKUP(B45,'PPP (C)'!$A$4:$H$51,2,FALSE)),"") ->  | F45: =IFERROR(IF(D45="","",VLOOKUP(B45,'PPP (C)'!$A$4:$H$51,4,FALSE)),"") ->  | G45: =IFERROR(IF(D45="","",VLOOKUP(B45,'PPP (C)'!$A$4:$H$51,5,FALSE)),"") ->  | H45: =IFERROR(IF(D45="","",VLOOKUP(B45,'PPP (C)'!$A$4:$H$51,6,FALSE)),"") ->  | I45: =IFERROR(IF(D45="","",VLOOKUP(B45,'PPP (C)'!$A$4:$H$51,7,FALSE)),"") -> 
B46: 34 | C46: 34-PPP | D46: =IFERROR(VLOOKUP(B46,'PPP (C)'!$A$4:$H$51,3,FALSE),"") ->  | E46: =IFERROR(IF(D46="","",VLOOKUP(B46,'PPP (C)'!$A$4:$H$51,2,FALSE)),"") ->  | F46: =IFERROR(IF(D46="","",VLOOKUP(B46,'PPP (C)'!$A$4:$H$51,4,FALSE)),"") ->  | G46: =IFERROR(IF(D46="","",VLOOKUP(B46,'PPP (C)'!$A$4:$H$51,5,FALSE)),"") ->  | H46: =IFERROR(IF(D46="","",VLOOKUP(B46,'PPP (C)'!$A$4:$H$51,6,FALSE)),"") ->  | I46: =IFERROR(IF(D46="","",VLOOKUP(B46,'PPP (C)'!$A$4:$H$51,7,FALSE)),"") -> 
B47: 35 | C47: 35-PPP | D47: =IFERROR(VLOOKUP(B47,'PPP (C)'!$A$4:$H$51,3,FALSE),"") ->  | E47: =IFERROR(IF(D47="","",VLOOKUP(B47,'PPP (C)'!$A$4:$H$51,2,FALSE)),"") ->  | F47: =IFERROR(IF(D47="","",VLOOKUP(B47,'PPP (C)'!$A$4:$H$51,4,FALSE)),"") ->  | G47: =IFERROR(IF(D47="","",VLOOKUP(B47,'PPP (C)'!$A$4:$H$51,5,FALSE)),"") ->  | H47: =IFERROR(IF(D47="","",VLOOKUP(B47,'PPP (C)'!$A$4:$H$51,6,FALSE)),"") ->  | I47: =IFERROR(IF(D47="","",VLOOKUP(B47,'PPP (C)'!$A$4:$H$51,7,FALSE)),"") -> 
B48: 36 | C48: 36-PPP | D48: =IFERROR(VLOOKUP(B48,'PPP (C)'!$A$4:$H$51,3,FALSE),"") ->  | E48: =IFERROR(IF(D48="","",VLOOKUP(B48,'PPP (C)'!$A$4:$H$51,2,FALSE)),"") ->  | F48: =IFERROR(IF(D48="","",VLOOKUP(B48,'PPP (C)'!$A$4:$H$51,4,FALSE)),"") ->  | G48: =IFERROR(IF(D48="","",VLOOKUP(B48,'PPP (C)'!$A$4:$H$51,5,FALSE)),"") ->  | H48: =IFERROR(IF(D48="","",VLOOKUP(B48,'PPP (C)'!$A$4:$H$51,6,FALSE)),"") ->  | I48: =IFERROR(IF(D48="","",VLOOKUP(B48,'PPP (C)'!$A$4:$H$51,7,FALSE)),"") -> 
B49: 37 | C49: 37-PPP | D49: =IFERROR(VLOOKUP(B49,'PPP (C)'!$A$4:$H$51,3,FALSE),"") ->  | E49: =IFERROR(IF(D49="","",VLOOKUP(B49,'PPP (C)'!$A$4:$H$51,2,FALSE)),"") ->  | F49: =IFERROR(IF(D49="","",VLOOKUP(B49,'PPP (C)'!$A$4:$H$51,4,FALSE)),"") ->  | G49: =IFERROR(IF(D49="","",VLOOKUP(B49,'PPP (C)'!$A$4:$H$51,5,FALSE)),"") ->  | H49: =IFERROR(IF(D49="","",VLOOKUP(B49,'PPP (C)'!$A$4:$H$51,6,FALSE)),"") ->  | I49: =IFERROR(IF(D49="","",VLOOKUP(B49,'PPP (C)'!$A$4:$H$51,7,FALSE)),"") -> 
B50: 38 | C50: 38-PPP | D50: =IFERROR(VLOOKUP(B50,'PPP (C)'!$A$4:$H$51,3,FALSE),"") ->  | E50: =IFERROR(IF(D50="","",VLOOKUP(B50,'PPP (C)'!$A$4:$H$51,2,FALSE)),"") ->  | F50: =IFERROR(IF(D50="","",VLOOKUP(B50,'PPP (C)'!$A$4:$H$51,4,FALSE)),"") ->  | G50: =IFERROR(IF(D50="","",VLOOKUP(B50,'PPP (C)'!$A$4:$H$51,5,FALSE)),"") ->  | H50: =IFERROR(IF(D50="","",VLOOKUP(B50,'PPP (C)'!$A$4:$H$51,6,FALSE)),"") ->  | I50: =IFERROR(IF(D50="","",VLOOKUP(B50,'PPP (C)'!$A$4:$H$51,7,FALSE)),"") -> 
B51: 39 | C51: 39-PPP | D51: =IFERROR(VLOOKUP(B51,'PPP (C)'!$A$4:$H$51,3,FALSE),"") ->  | E51: =IFERROR(IF(D51="","",VLOOKUP(B51,'PPP (C)'!$A$4:$H$51,2,FALSE)),"") ->  | F51: =IFERROR(IF(D51="","",VLOOKUP(B51,'PPP (C)'!$A$4:$H$51,4,FALSE)),"") ->  | G51: =IFERROR(IF(D51="","",VLOOKUP(B51,'PPP (C)'!$A$4:$H$51,5,FALSE)),"") ->  | H51: =IFERROR(IF(D51="","",VLOOKUP(B51,'PPP (C)'!$A$4:$H$51,6,FALSE)),"") ->  | I51: =IFERROR(IF(D51="","",VLOOKUP(B51,'PPP (C)'!$A$4:$H$51,7,FALSE)),"") -> 
B52: 40 | C52: 40-PPP | D52: =IFERROR(VLOOKUP(B52,'PPP (C)'!$A$4:$H$51,3,FALSE),"") ->  | E52: =IFERROR(IF(D52="","",VLOOKUP(B52,'PPP (C)'!$A$4:$H$51,2,FALSE)),"") ->  | F52: =IFERROR(IF(D52="","",VLOOKUP(B52,'PPP (C)'!$A$4:$H$51,4,FALSE)),"") ->  | G52: =IFERROR(IF(D52="","",VLOOKUP(B52,'PPP (C)'!$A$4:$H$51,5,FALSE)),"") ->  | H52: =IFERROR(IF(D52="","",VLOOKUP(B52,'PPP (C)'!$A$4:$H$51,6,FALSE)),"") ->  | I52: =IFERROR(IF(D52="","",VLOOKUP(B52,'PPP (C)'!$A$4:$H$51,7,FALSE)),"") -> 
B53: 41 | C53: 41-PPP | D53: =IFERROR(VLOOKUP(B53,'PPP (C)'!$A$4:$H$51,3,FALSE),"") ->  | E53: =IFERROR(IF(D53="","",VLOOKUP(B53,'PPP (C)'!$A$4:$H$51,2,FALSE)),"") ->  | F53: =IFERROR(IF(D53="","",VLOOKUP(B53,'PPP (C)'!$A$4:$H$51,4,FALSE)),"") ->  | G53: =IFERROR(IF(D53="","",VLOOKUP(B53,'PPP (C)'!$A$4:$H$51,5,FALSE)),"") ->  | H53: =IFERROR(IF(D53="","",VLOOKUP(B53,'PPP (C)'!$A$4:$H$51,6,FALSE)),"") ->  | I53: =IFERROR(IF(D53="","",VLOOKUP(B53,'PPP (C)'!$A$4:$H$51,7,FALSE)),"") -> 
B54: 42 | C54: 42-PPP | D54: =IFERROR(VLOOKUP(B54,'PPP (C)'!$A$4:$H$51,3,FALSE),"") ->  | E54: =IFERROR(IF(D54="","",VLOOKUP(B54,'PPP (C)'!$A$4:$H$51,2,FALSE)),"") ->  | F54: =IFERROR(IF(D54="","",VLOOKUP(B54,'PPP (C)'!$A$4:$H$51,4,FALSE)),"") ->  | G54: =IFERROR(IF(D54="","",VLOOKUP(B54,'PPP (C)'!$A$4:$H$51,5,FALSE)),"") ->  | H54: =IFERROR(IF(D54="","",VLOOKUP(B54,'PPP (C)'!$A$4:$H$51,6,FALSE)),"") ->  | I54: =IFERROR(IF(D54="","",VLOOKUP(B54,'PPP (C)'!$A$4:$H$51,7,FALSE)),"") -> 
B55: 43 | C55: 43-PPP | D55: =IFERROR(VLOOKUP(B55,'PPP (C)'!$A$4:$H$51,3,FALSE),"") ->  | E55: =IFERROR(IF(D55="","",VLOOKUP(B55,'PPP (C)'!$A$4:$H$51,2,FALSE)),"") ->  | F55: =IFERROR(IF(D55="","",VLOOKUP(B55,'PPP (C)'!$A$4:$H$51,4,FALSE)),"") ->  | G55: =IFERROR(IF(D55="","",VLOOKUP(B55,'PPP (C)'!$A$4:$H$51,5,FALSE)),"") ->  | H55: =IFERROR(IF(D55="","",VLOOKUP(B55,'PPP (C)'!$A$4:$H$51,6,FALSE)),"") ->  | I55: =IFERROR(IF(D55="","",VLOOKUP(B55,'PPP (C)'!$A$4:$H$51,7,FALSE)),"") -> 
B56: 44 | C56: 44-PPP | D56: =IFERROR(VLOOKUP(B56,'PPP (C)'!$A$4:$H$51,3,FALSE),"") ->  | E56: =IFERROR(IF(D56="","",VLOOKUP(B56,'PPP (C)'!$A$4:$H$51,2,FALSE)),"") ->  | F56: =IFERROR(IF(D56="","",VLOOKUP(B56,'PPP (C)'!$A$4:$H$51,4,FALSE)),"") ->  | G56: =IFERROR(IF(D56="","",VLOOKUP(B56,'PPP (C)'!$A$4:$H$51,5,FALSE)),"") ->  | H56: =IFERROR(IF(D56="","",VLOOKUP(B56,'PPP (C)'!$A$4:$H$51,6,FALSE)),"") ->  | I56: =IFERROR(IF(D56="","",VLOOKUP(B56,'PPP (C)'!$A$4:$H$51,7,FALSE)),"") -> 
B57: 45 | C57: 45-PPP | D57: =IFERROR(VLOOKUP(B57,'PPP (C)'!$A$4:$H$51,3,FALSE),"") ->  | E57: =IFERROR(IF(D57="","",VLOOKUP(B57,'PPP (C)'!$A$4:$H$51,2,FALSE)),"") ->  | F57: =IFERROR(IF(D57="","",VLOOKUP(B57,'PPP (C)'!$A$4:$H$51,4,FALSE)),"") ->  | G57: =IFERROR(IF(D57="","",VLOOKUP(B57,'PPP (C)'!$A$4:$H$51,5,FALSE)),"") ->  | H57: =IFERROR(IF(D57="","",VLOOKUP(B57,'PPP (C)'!$A$4:$H$51,6,FALSE)),"") ->  | I57: =IFERROR(IF(D57="","",VLOOKUP(B57,'PPP (C)'!$A$4:$H$51,7,FALSE)),"") -> 
B58: 46 | C58: 46-PPP | D58: =IFERROR(VLOOKUP(B58,'PPP (C)'!$A$4:$H$51,3,FALSE),"") ->  | E58: =IFERROR(IF(D58="","",VLOOKUP(B58,'PPP (C)'!$A$4:$H$51,2,FALSE)),"") ->  | F58: =IFERROR(IF(D58="","",VLOOKUP(B58,'PPP (C)'!$A$4:$H$51,4,FALSE)),"") ->  | G58: =IFERROR(IF(D58="","",VLOOKUP(B58,'PPP (C)'!$A$4:$H$51,5,FALSE)),"") ->  | H58: =IFERROR(IF(D58="","",VLOOKUP(B58,'PPP (C)'!$A$4:$H$51,6,FALSE)),"") ->  | I58: =IFERROR(IF(D58="","",VLOOKUP(B58,'PPP (C)'!$A$4:$H$51,7,FALSE)),"") -> 
B59: 47 | C59: 47-PPP | D59: =IFERROR(VLOOKUP(B59,'PPP (C)'!$A$4:$H$51,3,FALSE),"") ->  | E59: =IFERROR(IF(D59="","",VLOOKUP(B59,'PPP (C)'!$A$4:$H$51,2,FALSE)),"") ->  | F59: =IFERROR(IF(D59="","",VLOOKUP(B59,'PPP (C)'!$A$4:$H$51,4,FALSE)),"") ->  | G59: =IFERROR(IF(D59="","",VLOOKUP(B59,'PPP (C)'!$A$4:$H$51,5,FALSE)),"") ->  | H59: =IFERROR(IF(D59="","",VLOOKUP(B59,'PPP (C)'!$A$4:$H$51,6,FALSE)),"") ->  | I59: =IFERROR(IF(D59="","",VLOOKUP(B59,'PPP (C)'!$A$4:$H$51,7,FALSE)),"") -> 
B60: 48 | C60: 48-PPP | D60: =IFERROR(VLOOKUP(B60,'PPP (C)'!$A$4:$H$51,3,FALSE),"") ->  | E60: =IFERROR(IF(D60="","",VLOOKUP(B60,'PPP (C)'!$A$4:$H$51,2,FALSE)),"") ->  | F60: =IFERROR(IF(D60="","",VLOOKUP(B60,'PPP (C)'!$A$4:$H$51,4,FALSE)),"") ->  | G60: =IFERROR(IF(D60="","",VLOOKUP(B60,'PPP (C)'!$A$4:$H$51,5,FALSE)),"") ->  | H60: =IFERROR(IF(D60="","",VLOOKUP(B60,'PPP (C)'!$A$4:$H$51,6,FALSE)),"") ->  | I60: =IFERROR(IF(D60="","",VLOOKUP(B60,'PPP (C)'!$A$4:$H$51,7,FALSE)),"") -> 

Sheet Grups PP
B2: =IF(Inici!B2="INTRODUIR EN MAIÚSCULES EL NOM DE L'OPEN","Introduiu el nom de l'Open a la pantalla d'Inici!!!",Inici!B2) -> Introduiu el nom de l'Open a la pantalla d'Inici!!! | M2: ANAR A PÀGINA | N2: P-P-PRÈVIA | O2: P-PRÈVIA | P2: PRÈVIA | Q2: FASE FINAL
M3: Rànquing Inicial | N3: Grups PPP | O3: Grups PP | P3: Grups P | Q3: Setzens | R3: Vuitens
M4: Organigrama | N4: Result PPP | O4: Result PP | P4: Result P | Q4: Class SF | R4: Quarts/SF/F
M5: Horaris | N5: Classif PPP | O5: Classif PP | P5: Classif P
B8: =IF('Rànquing Inicial'!$D$141<65,"NO HI HA PRE-PRÈVIA","PRE-PRÈVIA (PP)") -> NO HI HA PRE-PRÈVIA | M8: Inici | N8: Participants
C10: =IF('Rànquing Inicial'!$D$141<65,"","Grup Q") ->  | D10: =Organigrama!B35 ->  | E10: =IF(D10="","",IF(AND(D10>0,D10<129),VLOOKUP(D10,'Rànquing Inicial'!$B$11:$G$138,2,FALSE),VLOOKUP(D10,'Classificació PPP'!$C$13:$I$60,2,FALSE))) ->  | G10: =IF('Rànquing Inicial'!$D$147<27,"","Grup Y") ->  | H10: =Organigrama!J35 ->  | I10: =IF(H10="","",IF(AND(H10>0,H10<129),VLOOKUP(H10,'Rànquing Inicial'!$B$11:$G$138,2,FALSE),VLOOKUP(H10,'Classificació PPP'!$C$13:$I$60,2,FALSE))) -> 
D11: =Organigrama!B36 ->  | E11: =IF(D11="","",IF(AND(D11>0,D11<129),VLOOKUP(D11,'Rànquing Inicial'!$B$11:$G$138,2,FALSE),VLOOKUP(D11,'Classificació PPP'!$C$13:$I$60,2,FALSE))) ->  | H11: =Organigrama!J36 ->  | I11: =IF(H11="","",IF(AND(H11>0,H11<129),VLOOKUP(H11,'Rànquing Inicial'!$B$11:$G$138,2,FALSE),VLOOKUP(H11,'Classificació PPP'!$C$13:$I$60,2,FALSE))) -> 
D12: =Organigrama!B37 ->  | E12: =IFERROR(IF(D12="","",IF(AND(D12>0,D12<129),VLOOKUP(D12,'Rànquing Inicial'!$B$11:$G$138,2,FALSE),VLOOKUP(D12,'Classificació PPP'!$C$13:$I$60,2,FALSE))),"") ->  | H12: =Organigrama!J37 ->  | I12: =IFERROR(IF(H12="","",IF(AND(H12>0,H12<129),VLOOKUP(H12,'Rànquing Inicial'!$B$11:$G$138,2,FALSE),VLOOKUP(H12,'Classificació PPP'!$C$13:$I$60,2,FALSE))),"") -> 
C14: =IF('Rànquing Inicial'!$D$141<65,"","Grup R") ->  | D14: =Organigrama!C35 ->  | E14: =IF(D14="","",IF(AND(D14>0,D14<129),VLOOKUP(D14,'Rànquing Inicial'!$B$11:$G$138,2,FALSE),VLOOKUP(D14,'Classificació PPP'!$C$13:$I$60,2,FALSE))) ->  | G14: =IF('Rànquing Inicial'!$D$147<30,"","Grup Z") ->  | H14: =Organigrama!K35 ->  | I14: =IF(H14="","",IF(AND(H14>0,H14<129),VLOOKUP(H14,'Rànquing Inicial'!$B$11:$G$138,2,FALSE),VLOOKUP(H14,'Classificació PPP'!$C$13:$I$60,2,FALSE))) -> 
D15: =Organigrama!C36 ->  | E15: =IF(D15="","",IF(AND(D15>0,D15<129),VLOOKUP(D15,'Rànquing Inicial'!$B$11:$G$138,2,FALSE),VLOOKUP(D15,'Classificació PPP'!$C$13:$I$60,2,FALSE))) ->  | H15: =Organigrama!K36 ->  | I15: =IF(H15="","",IF(AND(H15>0,H15<129),VLOOKUP(H15,'Rànquing Inicial'!$B$11:$G$138,2,FALSE),VLOOKUP(H15,'Classificació PPP'!$C$13:$I$60,2,FALSE))) -> 
D16: =Organigrama!C37 ->  | E16: =IFERROR(IF(D16="","",IF(AND(D16>0,D16<129),VLOOKUP(D16,'Rànquing Inicial'!$B$11:$G$138,2,FALSE),VLOOKUP(D16,'Classificació PPP'!$C$13:$I$60,2,FALSE))),"") ->  | H16: =Organigrama!K37 ->  | I16: =IFERROR(IF(H16="","",IF(AND(H16>0,H16<129),VLOOKUP(H16,'Rànquing Inicial'!$B$11:$G$138,2,FALSE),VLOOKUP(H16,'Classificació PPP'!$C$13:$I$60,2,FALSE))),"") -> 
C18: =IF('Rànquing Inicial'!$D$141<65,"","Grup S") ->  | D18: =Organigrama!D35 ->  | E18: =IF(D18="","",IF(AND(D18>0,D18<129),VLOOKUP(D18,'Rànquing Inicial'!$B$11:$G$138,2,FALSE),VLOOKUP(D18,'Classificació PPP'!$C$13:$I$60,2,FALSE))) ->  | G18: =IF('Rànquing Inicial'!$D$147<33,"","Grup AA") ->  | H18: =Organigrama!L35 ->  | I18: =IF(H18="","",IF(AND(H18>0,H18<129),VLOOKUP(H18,'Rànquing Inicial'!$B$11:$G$138,2,FALSE),VLOOKUP(H18,'Classificació PPP'!$C$13:$I$60,2,FALSE))) -> 
D19: =Organigrama!D36 ->  | E19: =IF(D19="","",IF(AND(D19>0,D19<129),VLOOKUP(D19,'Rànquing Inicial'!$B$11:$G$138,2,FALSE),VLOOKUP(D19,'Classificació PPP'!$C$13:$I$60,2,FALSE))) ->  | H19: =Organigrama!L36 ->  | I19: =IF(H19="","",IF(AND(H19>0,H19<129),VLOOKUP(H19,'Rànquing Inicial'!$B$11:$G$138,2,FALSE),VLOOKUP(H19,'Classificació PPP'!$C$13:$I$60,2,FALSE))) -> 
D20: =Organigrama!D37 ->  | E20: =IFERROR(IF(D20="","",IF(AND(D20>0,D20<129),VLOOKUP(D20,'Rànquing Inicial'!$B$11:$G$138,2,FALSE),VLOOKUP(D20,'Classificació PPP'!$C$13:$I$60,2,FALSE))),"") ->  | H20: =Organigrama!L37 ->  | I20: =IFERROR(IF(H20="","",IF(AND(H20>0,H20<129),VLOOKUP(H20,'Rànquing Inicial'!$B$11:$G$138,2,FALSE),VLOOKUP(H20,'Classificació PPP'!$C$13:$I$60,2,FALSE))),"") -> 
C22: =IF('Rànquing Inicial'!$D$141<65,"","Grup T") ->  | D22: =Organigrama!E35 ->  | E22: =IF(D22="","",IF(AND(D22>0,D22<129),VLOOKUP(D22,'Rànquing Inicial'!$B$11:$G$138,2,FALSE),VLOOKUP(D22,'Classificació PPP'!$C$13:$I$60,2,FALSE))) ->  | G22: =IF('Rànquing Inicial'!$D$147<36,"","Grup AB") ->  | H22: =Organigrama!M35 ->  | I22: =IF(H22="","",IF(AND(H22>0,H22<129),VLOOKUP(H22,'Rànquing Inicial'!$B$11:$G$138,2,FALSE),VLOOKUP(H22,'Classificació PPP'!$C$13:$I$60,2,FALSE))) -> 
D23: =Organigrama!E36 ->  | E23: =IF(D23="","",IF(AND(D23>0,D23<129),VLOOKUP(D23,'Rànquing Inicial'!$B$11:$G$138,2,FALSE),VLOOKUP(D23,'Classificació PPP'!$C$13:$I$60,2,FALSE))) ->  | H23: =Organigrama!M36 ->  | I23: =IF(H23="","",IF(AND(H23>0,H23<129),VLOOKUP(H23,'Rànquing Inicial'!$B$11:$G$138,2,FALSE),VLOOKUP(H23,'Classificació PPP'!$C$13:$I$60,2,FALSE))) -> 
D24: =Organigrama!E37 ->  | E24: =IFERROR(IF(D24="","",IF(AND(D24>0,D24<129),VLOOKUP(D24,'Rànquing Inicial'!$B$11:$G$138,2,FALSE),VLOOKUP(D24,'Classificació PPP'!$C$13:$I$60,2,FALSE))),"") ->  | H24: =Organigrama!M37 ->  | I24: =IFERROR(IF(H24="","",IF(AND(H24>0,H24<129),VLOOKUP(H24,'Rànquing Inicial'!$B$11:$G$138,2,FALSE),VLOOKUP(H24,'Classificació PPP'!$C$13:$I$60,2,FALSE))),"") -> 
C26: =IF('Rànquing Inicial'!$D$147<15,"","Grup U") ->  | D26: =Organigrama!F35 ->  | E26: =IF(D26="","",IF(AND(D26>0,D26<129),VLOOKUP(D26,'Rànquing Inicial'!$B$11:$G$138,2,FALSE),VLOOKUP(D26,'Classificació PPP'!$C$13:$I$60,2,FALSE))) ->  | G26: =IF('Rànquing Inicial'!$D$147<39,"","Grup AC") ->  | H26: =Organigrama!N35 ->  | I26: =IF(H26="","",IF(AND(H26>0,H26<129),VLOOKUP(H26,'Rànquing Inicial'!$B$11:$G$138,2,FALSE),VLOOKUP(H26,'Classificació PPP'!$C$13:$I$60,2,FALSE))) -> 
D27: =Organigrama!F36 ->  | E27: =IF(D27="","",IF(AND(D27>0,D27<129),VLOOKUP(D27,'Rànquing Inicial'!$B$11:$G$138,2,FALSE),VLOOKUP(D27,'Classificació PPP'!$C$13:$I$60,2,FALSE))) ->  | H27: =Organigrama!N36 ->  | I27: =IF(H27="","",IF(AND(H27>0,H27<129),VLOOKUP(H27,'Rànquing Inicial'!$B$11:$G$138,2,FALSE),VLOOKUP(H27,'Classificació PPP'!$C$13:$I$60,2,FALSE))) -> 
D28: =Organigrama!F37 ->  | E28: =IFERROR(IF(D28="","",IF(AND(D28>0,D28<129),VLOOKUP(D28,'Rànquing Inicial'!$B$11:$G$138,2,FALSE),VLOOKUP(D28,'Classificació PPP'!$C$13:$I$60,2,FALSE))),"") ->  | H28: =Organigrama!N37 ->  | I28: =IFERROR(IF(H28="","",IF(AND(H28>0,H28<129),VLOOKUP(H28,'Rànquing Inicial'!$B$11:$G$138,2,FALSE),VLOOKUP(H28,'Classificació PPP'!$C$13:$I$60,2,FALSE))),"") -> 
C30: =IF('Rànquing Inicial'!$D$147<18,"","Grup V") ->  | D30: =Organigrama!G35 ->  | E30: =IF(D30="","",IF(AND(D30>0,D30<129),VLOOKUP(D30,'Rànquing Inicial'!$B$11:$G$138,2,FALSE),VLOOKUP(D30,'Classificació PPP'!$C$13:$I$60,2,FALSE))) ->  | G30: =IF('Rànquing Inicial'!$D$147<42,"","Grup AD") ->  | H30: =Organigrama!O35 ->  | I30: =IF(H30="","",IF(AND(H30>0,H30<129),VLOOKUP(H30,'Rànquing Inicial'!$B$11:$G$138,2,FALSE),VLOOKUP(H30,'Classificació PPP'!$C$13:$I$60,2,FALSE))) -> 
D31: =Organigrama!G36 ->  | E31: =IF(D31="","",IF(AND(D31>0,D31<129),VLOOKUP(D31,'Rànquing Inicial'!$B$11:$G$138,2,FALSE),VLOOKUP(D31,'Classificació PPP'!$C$13:$I$60,2,FALSE))) ->  | H31: =Organigrama!O36 ->  | I31: =IF(H31="","",IF(AND(H31>0,H31<129),VLOOKUP(H31,'Rànquing Inicial'!$B$11:$G$138,2,FALSE),VLOOKUP(H31,'Classificació PPP'!$C$13:$I$60,2,FALSE))) -> 
D32: =Organigrama!G37 ->  | E32: =IFERROR(IF(D32="","",IF(AND(D32>0,D32<129),VLOOKUP(D32,'Rànquing Inicial'!$B$11:$G$138,2,FALSE),VLOOKUP(D32,'Classificació PPP'!$C$13:$I$60,2,FALSE))),"") ->  | H32: =Organigrama!O37 ->  | I32: =IFERROR(IF(H32="","",IF(AND(H32>0,H32<129),VLOOKUP(H32,'Rànquing Inicial'!$B$11:$G$138,2,FALSE),VLOOKUP(H32,'Classificació PPP'!$C$13:$I$60,2,FALSE))),"") -> 
C34: =IF('Rànquing Inicial'!$D$147<21,"","Grup W") ->  | D34: =Organigrama!H35 ->  | E34: =IF(D34="","",IF(AND(D34>0,D34<129),VLOOKUP(D34,'Rànquing Inicial'!$B$11:$G$138,2,FALSE),VLOOKUP(D34,'Classificació PPP'!$C$13:$I$60,2,FALSE))) ->  | G34: =IF('Rànquing Inicial'!$D$147<45,"","Grup AE") ->  | H34: =Organigrama!P35 ->  | I34: =IF(H34="","",IF(AND(H34>0,H34<129),VLOOKUP(H34,'Rànquing Inicial'!$B$11:$G$138,2,FALSE),VLOOKUP(H34,'Classificació PPP'!$C$13:$I$60,2,FALSE))) -> 
D35: =Organigrama!H36 ->  | E35: =IF(D35="","",IF(AND(D35>0,D35<129),VLOOKUP(D35,'Rànquing Inicial'!$B$11:$G$138,2,FALSE),VLOOKUP(D35,'Classificació PPP'!$C$13:$I$60,2,FALSE))) ->  | H35: =Organigrama!P36 ->  | I35: =IF(H35="","",IF(AND(H35>0,H35<129),VLOOKUP(H35,'Rànquing Inicial'!$B$11:$G$138,2,FALSE),VLOOKUP(H35,'Classificació PPP'!$C$13:$I$60,2,FALSE))) -> 
D36: =Organigrama!H37 ->  | E36: =IFERROR(IF(D36="","",IF(AND(D36>0,D36<129),VLOOKUP(D36,'Rànquing Inicial'!$B$11:$G$138,2,FALSE),VLOOKUP(D36,'Classificació PPP'!$C$13:$I$60,2,FALSE))),"") ->  | H36: =Organigrama!P37 ->  | I36: =IFERROR(IF(H36="","",IF(AND(H36>0,H36<129),VLOOKUP(H36,'Rànquing Inicial'!$B$11:$G$138,2,FALSE),VLOOKUP(H36,'Classificació PPP'!$C$13:$I$60,2,FALSE))),"") -> 
C38: =IF('Rànquing Inicial'!$D$147<24,"","Grup X") ->  | D38: =Organigrama!I35 ->  | E38: =IF(D38="","",IF(AND(D38>0,D38<129),VLOOKUP(D38,'Rànquing Inicial'!$B$11:$G$138,2,FALSE),VLOOKUP(D38,'Classificació PPP'!$C$13:$I$60,2,FALSE))) ->  | G38: =IF('Rànquing Inicial'!$D$147<48,"","Grup AF") ->  | H38: =Organigrama!Q35 ->  | I38: =IF(H38="","",IF(AND(H38>0,H38<129),VLOOKUP(H38,'Rànquing Inicial'!$B$11:$G$138,2,FALSE),VLOOKUP(H38,'Classificació PPP'!$C$13:$I$60,2,FALSE))) -> 
D39: =Organigrama!I36 ->  | E39: =IF(D39="","",IF(AND(D39>0,D39<129),VLOOKUP(D39,'Rànquing Inicial'!$B$11:$G$138,2,FALSE),VLOOKUP(D39,'Classificació PPP'!$C$13:$I$60,2,FALSE))) ->  | H39: =Organigrama!Q36 ->  | I39: =IF(H39="","",IF(AND(H39>0,H39<129),VLOOKUP(H39,'Rànquing Inicial'!$B$11:$G$138,2,FALSE),VLOOKUP(H39,'Classificació PPP'!$C$13:$I$60,2,FALSE))) -> 
D40: =Organigrama!I37 ->  | E40: =IFERROR(IF(D40="","",IF(AND(D40>0,D40<129),VLOOKUP(D40,'Rànquing Inicial'!$B$11:$G$138,2,FALSE),VLOOKUP(D40,'Classificació PPP'!$C$13:$I$60,2,FALSE))),"") ->  | H40: =Organigrama!Q37 ->  | I40: =IFERROR(IF(H40="","",IF(AND(H40>0,H40<129),VLOOKUP(H40,'Rànquing Inicial'!$B$11:$G$138,2,FALSE),VLOOKUP(H40,'Classificació PPP'!$C$13:$I$60,2,FALSE))),"") -> 

Sheet Resultats PP
B1: =IF(Inici!B2="INTRODUIR EN MAIÚSCULES EL NOM DE L'OPEN","Introduiu el nom de l'Open a la pantalla d'Inici!!!",Inici!B2) -> Introduiu el nom de l'Open a la pantalla d'Inici!!! | N1: ANAR A PÀGINA | O1: P-P-PRÈVIA | P1: P-PRÈVIA | Q1: PRÈVIA | R1: FASE FINAL
N2: Rànquing Inicial | O2: Grups PPP | P2: Grups PP | Q2: Grups P | R2: Setzens | S2: Vuitens
N3: Organigrama | O3: Result PPP | P3: Result PP | Q3: Result P | R3: Class SF | S3: Quarts/SF/F
N4: Horaris | O4: Classif PPP | P4: Classif PP | Q4: Classif P
B7: =IF('Rànquing Inicial'!$D$141<65,"NO HI HA PRE-PRÈVIA","RESULTATS PRE-PRÈVIA (PP)") -> NO HI HA PRE-PRÈVIA
F9: Boles | G9: Ent | H9: Mitj | I9: SM1 | J9: SM2 | K9: Punts
B10: =IF('Rànquing Inicial'!$D$141<65,"","Grup Q") ->  | E10: =IF(D19>1,"",IF(OR(B21=TRUE,B22=TRUE),E20,E21)) ->  | H10: =IF(G10="","",ROUND(F10/G10,3)) ->  | K10: =IF(H10="","",IF(F10>F11,2,IF(F10<F11,0,1))) -> 
E11: =IF(D19>1,"",IF(B22=TRUE,E21,E22)) ->  | G11: =IF(G10="","",G10) ->  | H11: =IF(G11="","",ROUND(F11/G11,3)) ->  | K11: =IF(H11="","",IF(F11>F10,2,IF(F11<F10,0,1))) -> 
E13: =IF(D19>1,"",IF(B20=TRUE,E21,E20)) ->  | H13: =IF(G13="","",ROUND(F13/G13,3)) ->  | K13: =IF(H13="","",IF(F13>F14,2,IF(F13<F14,0,1))) -> 
E14: =IF(D19>1,"",IF(B22=TRUE,E21,E22)) ->  | G14: =IF(G13="","",G13) ->  | H14: =IF(G14="","",ROUND(F14/G14,3)) ->  | K14: =IF(H14="","",IF(F14>F13,2,IF(F14<F13,0,1))) -> 
E16: =IF(D19>1,"",IF(OR(B20=TRUE,B21=TRUE,B22=TRUE),"",E20)) ->  | H16: =IF(G16="","",ROUND(F16/G16,3)) ->  | K16: =IF(H16="","",IF(F16>F17,2,IF(F16<F17,0,1))) -> 
E17: =IF(OR(B20=TRUE,B21=TRUE,B22=TRUE),"",E21) ->  | G17: =IF(G16="","",G16) ->  | H17: =IF(G17="","",ROUND(F17/G17,3)) ->  | K17: =IF(H17="","",IF(F17>F16,2,IF(F17<F16,0,1))) -> 
B19: W.O. | D19: =COUNTIF(B20:B22,"VERDADERO") -> 0 | E19: Jugador | F19: Boles | G19: Ent | H19: Mitj | I19: SM1 | J19: SM2 | K19: P | L19: =B10 -> 
B20: FALSE | C20: =L20 -> 0 | D20: ='Grups PP'!D10 ->  | E20: ='Grups PP'!E10 ->  | F20: =SUMIF(E10:E17,E20,F10:F17) -> 0 | G20: =SUMIF(E10:E17,E20,G10:G17) -> 0 | H20: =IF(B20=TRUE,0,IF(G20=0,0,ROUND(F20/G20,3))) -> 0 | I20: =MAX(O20:Z20) -> 0 | J20: =LARGE((O20:Z20),2) -> 0 | K20: =SUMIF(E10:E17,E20,K10:K17) -> 0 | L20: =IF(B20=TRUE,"WO",IF(AND(B21=TRUE,B22=TRUE),1,IF(N20=0,0,RANK(N20,N20:N22,0)))) -> 0 | M20: =IF(B10="",0,IF(B20=TRUE,0+N20,3-L20+N20)) -> 0 | N20: =IF(OR(B20=TRUE,AND(B21=TRUE,B22=TRUE)),0.000000000048,K20*0.1+H20*0.01+I20*0.00000001+J20*0.00000000001) -> 0 | O20: =IF(E10=E20,I10,0) -> 0 | P20: =IF(E10=E20,J10,0) -> 0 | Q20: =IF(E11=E20,I11,0) -> 0 | R20: =IF(E11=E20,J11,0) -> 0 | S20: =IF(E13=E20,I13,0) -> 0 | T20: =IF(E13=E20,J13,0) -> 0 | U20: =IF(E14=E20,I14,0) -> 0 | V20: =IF(E14=E20,J14,0) -> 0 | W20: =IF(E16=E20,I16,0) -> 0 | X20: =IF(E16=E20,J16,0) -> 0 | Y20: =IF(E17=E20,I17,0) -> 0 | Z20: =IF(E17=E20,J17,0) -> 0
B21: FALSE | C21: =L21 -> 0 | D21: ='Grups PP'!D11 ->  | E21: ='Grups PP'!E11 ->  | F21: =SUMIF(E10:E17,E21,F10:F17) -> 0 | G21: =SUMIF(E10:E17,E21,G10:G17) -> 0 | H21: =IF(B21=TRUE,0,IF(G21=0,0,ROUND(F21/G21,3))) -> 0 | I21: =MAX(O21:Z21) -> 0 | J21: =LARGE((O21:Z21),2) -> 0 | K21: =SUMIF(E10:E17,E21,K10:K17) -> 0 | L21: =IF(B21=TRUE,"WO",IF(AND(B20=TRUE,B22=TRUE),1,IF(N21=0,0,RANK(N21,N20:N22,0)))) -> 0 | M21: =IF(B10="",0,IF(B21=TRUE,0+N21,3-L21+N21)) -> 0 | N21: =IF(OR(B21=TRUE,AND(B20=TRUE,B22=TRUE)),0.000000000017,K21*0.1+H21*0.01+I21*0.00000001+J21*0.00000000001) -> 0 | O21: =IF(E10=E21,I10,0) -> 0 | P21: =IF(E10=E21,J10,0) -> 0 | Q21: =IF(E11=E21,I11,0) -> 0 | R21: =IF(E11=E21,J11,0) -> 0 | S21: =IF(E13=E21,I13,0) -> 0 | T21: =IF(E13=E21,J13,0) -> 0 | U21: =IF(E14=E21,I14,0) -> 0 | V21: =IF(E14=E21,J14,0) -> 0 | W21: =IF(E16=E21,I16,0) -> 0 | X21: =IF(E16=E21,J16,0) -> 0 | Y21: =IF(E17=E21,I17,0) -> 0 | Z21: =IF(E17=E21,J17,0) -> 0
B22: FALSE | C22: =L22 -> 0 | D22: ='Grups PP'!D12 ->  | E22: ='Grups PP'!E12 ->  | F22: =SUMIF(E10:E17,E22,F10:F17) -> 0 | G22: =SUMIF(E10:E17,E22,G10:G17) -> 0 | H22: =IF(B22=TRUE,0,IF(G22=0,0,ROUND(F22/G22,3))) -> 0 | I22: =MAX(O22:Z22) -> 0 | J22: =LARGE((O22:Z22),2) -> 0 | K22: =SUMIF(E10:E17,E22,K10:K17) -> 0 | L22: =IF(B22=TRUE,"WO",IF(AND(B20=TRUE,B21=TRUE),1,IF(N22=0,0,RANK(N22,N20:N22,0)))) -> 0 | M22: =IF(B10="",0,IF(B22=TRUE,0+N22,3-L22+N22)) -> 0 | N22: =IF(OR(B22=TRUE,AND(B20=TRUE,B21=TRUE)),0.000000000001,K22*0.1+H22*0.01+I22*0.00000001+J22*0.00000000001) -> 0 | O22: =IF(E10=E22,I10,0) -> 0 | P22: =IF(E10=E22,J10,0) -> 0 | Q22: =IF(E11=E22,I11,0) -> 0 | R22: =IF(E11=E22,J11,0) -> 0 | S22: =IF(E13=E22,I13,0) -> 0 | T22: =IF(E13=E22,J13,0) -> 0 | U22: =IF(E14=E22,I14,0) -> 0 | V22: =IF(E14=E22,J14,0) -> 0 | W22: =IF(E16=E22,I16,0) -> 0 | X22: =IF(E16=E22,J16,0) -> 0 | Y22: =IF(E17=E22,I17,0) -> 0 | Z22: =IF(E17=E22,J17,0) -> 0
F24: Boles | G24: Ent | H24: Mitj | I24: SM1 | J24: SM2 | K24: Punts
B25: =IF('Rànquing Inicial'!$D$141<65,"","Grup R") ->  | E25: =IF(D34>1,"",IF(OR(B36=TRUE,B37=TRUE),E35,E36)) ->  | H25: =IF(G25="","",ROUND(F25/G25,3)) ->  | K25: =IF(H25="","",IF(F25>F26,2,IF(F25<F26,0,1))) -> 
E26: =IF(D34>1,"",IF(B37=TRUE,E36,E37)) ->  | G26: =IF(G25="","",G25) ->  | H26: =IF(G26="","",ROUND(F26/G26,3)) ->  | K26: =IF(H26="","",IF(F26>F25,2,IF(F26<F25,0,1))) -> 
E28: =IF(D34>1,"",IF(B35=TRUE,E36,E35)) ->  | H28: =IF(G28="","",ROUND(F28/G28,3)) ->  | K28: =IF(H28="","",IF(F28>F29,2,IF(F28<F29,0,1))) -> 
E29: =IF(D34>1,"",IF(B37=TRUE,E36,E37)) ->  | G29: =IF(G28="","",G28) ->  | H29: =IF(G29="","",ROUND(F29/G29,3)) ->  | K29: =IF(H29="","",IF(F29>F28,2,IF(F29<F28,0,1))) -> 
E31: =IF(D34>1,"",IF(OR(B35=TRUE,B36=TRUE,B37=TRUE),"",E35)) ->  | H31: =IF(G31="","",ROUND(F31/G31,3)) ->  | K31: =IF(H31="","",IF(F31>F32,2,IF(F31<F32,0,1))) -> 
E32: =IF(OR(B35=TRUE,B36=TRUE,B37=TRUE),"",E36) ->  | G32: =IF(G31="","",G31) ->  | H32: =IF(G32="","",ROUND(F32/G32,3)) ->  | K32: =IF(H32="","",IF(F32>F31,2,IF(F32<F31,0,1))) -> 
B34: ¿WO? | D34: =COUNTIF(B35:B37,"VERDADERO") -> 0 | E34: Jugador | F34: Boles | G34: Ent | H34: Mitj | I34: SM1 | J34: SM2 | K34: P | L34: =B25 -> 
B35: FALSE | C35: =L35 -> 0 | D35: ='Grups PP'!D14 ->  | E35: ='Grups PP'!E14 ->  | F35: =SUMIF(E25:E32,E35,F25:F32) -> 0 | G35: =SUMIF(E25:E32,E35,G25:G32) -> 0 | H35: =IF(B35=TRUE,0,IF(G35=0,0,ROUND(F35/G35,3))) -> 0 | I35: =MAX(O35:Z35) -> 0 | J35: =LARGE((O35:Z35),2) -> 0 | K35: =SUMIF(E25:E32,E35,K25:K32) -> 0 | L35: =IF(B35=TRUE,"WO",IF(AND(B36=TRUE,B37=TRUE),1,IF(N35=0,0,RANK(N35,N35:N37,0)))) -> 0 | M35: =IF(B25="",0,IF(B35=TRUE,0+N35,3-L35+N35)) -> 0 | N35: =IF(OR(B35=TRUE,AND(B36=TRUE,B37=TRUE)),0.000000000047,K35*0.1+H35*0.01+I35*0.00000001+J35*0.00000000001) -> 0 | O35: =IF(E25=E35,I25,0) -> 0 | P35: =IF(E25=E35,J25,0) -> 0 | Q35: =IF(E26=E35,I26,0) -> 0 | R35: =IF(E26=E35,J26,0) -> 0 | S35: =IF(E28=E35,I28,0) -> 0 | T35: =IF(E28=E35,J28,0) -> 0 | U35: =IF(E29=E35,I29,0) -> 0 | V35: =IF(E29=E35,J29,0) -> 0 | W35: =IF(E31=E35,I31,0) -> 0 | X35: =IF(E31=E35,J31,0) -> 0 | Y35: =IF(E32=E35,I32,0) -> 0 | Z35: =IF(E32=E35,J32,0) -> 0
B36: FALSE | C36: =L36 -> 0 | D36: ='Grups PP'!D15 ->  | E36: ='Grups PP'!E15 ->  | F36: =SUMIF(E25:E32,E36,F25:F32) -> 0 | G36: =SUMIF(E25:E32,E36,G25:G32) -> 0 | H36: =IF(B36=TRUE,0,IF(G36=0,0,ROUND(F36/G36,3))) -> 0 | I36: =MAX(O36:Z36) -> 0 | J36: =LARGE((O36:Z36),2) -> 0 | K36: =SUMIF(E25:E32,E36,K25:K32) -> 0 | L36: =IF(B36=TRUE,"WO",IF(AND(B35=TRUE,B37=TRUE),1,IF(N36=0,0,RANK(N36,N35:N37,0)))) -> 0 | M36: =IF(B25="",0,IF(B36=TRUE,0+N36,3-L36+N36)) -> 0 | N36: =IF(OR(B36=TRUE,AND(B35=TRUE,B37=TRUE)),0.000000000018,K36*0.1+H36*0.01+I36*0.00000001+J36*0.00000000001) -> 0 | O36: =IF(E25=E36,I25,0) -> 0 | P36: =IF(E25=E36,J25,0) -> 0 | Q36: =IF(E26=E36,I26,0) -> 0 | R36: =IF(E26=E36,J26,0) -> 0 | S36: =IF(E28=E36,I28,0) -> 0 | T36: =IF(E28=E36,J28,0) -> 0 | U36: =IF(E29=E36,I29,0) -> 0 | V36: =IF(E29=E36,J29,0) -> 0 | W36: =IF(E31=E36,I31,0) -> 0 | X36: =IF(E31=E36,J31,0) -> 0 | Y36: =IF(E32=E36,I32,0) -> 0 | Z36: =IF(E32=E36,J32,0) -> 0
B37: FALSE | C37: =L37 -> 0 | D37: ='Grups PP'!D16 ->  | E37: ='Grups PP'!E16 ->  | F37: =SUMIF(E25:E32,E37,F25:F32) -> 0 | G37: =SUMIF(E25:E32,E37,G25:G32) -> 0 | H37: =IF(B37=TRUE,0,IF(G37=0,0,ROUND(F37/G37,3))) -> 0 | I37: =MAX(O37:Z37) -> 0 | J37: =LARGE((O37:Z37),2) -> 0 | K37: =SUMIF(E25:E32,E37,K25:K32) -> 0 | L37: =IF(B37=TRUE,"WO",IF(AND(B35=TRUE,B36=TRUE),1,IF(N37=0,0,RANK(N37,N35:N37,0)))) -> 0 | M37: =IF(B25="",0,IF(B37=TRUE,0+N37,3-L37+N37)) -> 0 | N37: =IF(OR(B37=TRUE,AND(B35=TRUE,B36=TRUE)),0.000000000002,K37*0.1+H37*0.01+I37*0.00000001+J37*0.00000000001) -> 0 | O37: =IF(E25=E37,I25,0) -> 0 | P37: =IF(E25=E37,J25,0) -> 0 | Q37: =IF(E26=E37,I26,0) -> 0 | R37: =IF(E26=E37,J26,0) -> 0 | S37: =IF(E28=E37,I28,0) -> 0 | T37: =IF(E28=E37,J28,0) -> 0 | U37: =IF(E29=E37,I29,0) -> 0 | V37: =IF(E29=E37,J29,0) -> 0 | W37: =IF(E31=E37,I31,0) -> 0 | X37: =IF(E31=E37,J31,0) -> 0 | Y37: =IF(E32=E37,I32,0) -> 0 | Z37: =IF(E32=E37,J32,0) -> 0
F39: Boles | G39: Ent | H39: Mitj | I39: SM1 | J39: SM2 | K39: Punts
B40: =IF('Rànquing Inicial'!$D$141<65,"","Grup S") ->  | E40: =IF(D49>1,"",IF(OR(B51=TRUE,B52=TRUE),E50,E51)) ->  | H40: =IF(G40="","",ROUND(F40/G40,3)) ->  | K40: =IF(H40="","",IF(F40>F41,2,IF(F40<F41,0,1))) -> 
E41: =IF(D49>1,"",IF(B52=TRUE,E51,E52)) ->  | G41: =IF(G40="","",G40) ->  | H41: =IF(G41="","",ROUND(F41/G41,3)) ->  | K41: =IF(H41="","",IF(F41>F40,2,IF(F41<F40,0,1))) -> 
E43: =IF(D49>1,"",IF(B50=TRUE,E51,E50)) ->  | H43: =IF(G43="","",ROUND(F43/G43,3)) ->  | K43: =IF(H43="","",IF(F43>F44,2,IF(F43<F44,0,1))) -> 
E44: =IF(D49>1,"",IF(B52=TRUE,E51,E52)) ->  | G44: =IF(G43="","",G43) ->  | H44: =IF(G44="","",ROUND(F44/G44,3)) ->  | K44: =IF(H44="","",IF(F44>F43,2,IF(F44<F43,0,1))) -> 
E46: =IF(D49>1,"",IF(OR(B50=TRUE,B51=TRUE,B52=TRUE),"",E50)) ->  | H46: =IF(G46="","",ROUND(F46/G46,3)) ->  | K46: =IF(H46="","",IF(F46>F47,2,IF(F46<F47,0,1))) -> 
E47: =IF(OR(B50=TRUE,B51=TRUE,B52=TRUE),"",E51) ->  | G47: =IF(G46="","",G46) ->  | H47: =IF(G47="","",ROUND(F47/G47,3)) ->  | K47: =IF(H47="","",IF(F47>F46,2,IF(F47<F46,0,1))) -> 
B49: ¿WO? | D49: =COUNTIF(B50:B52,"VERDADERO") -> 0 | E49: Jugador | F49: Boles | G49: Ent | H49: Mitj | I49: SM1 | J49: SM2 | K49: P | L49: =B40 -> 
B50: FALSE | C50: =L50 -> 0 | D50: ='Grups PP'!D18 ->  | E50: ='Grups PP'!E18 ->  | F50: =SUMIF(E40:E47,E50,F40:F47) -> 0 | G50: =SUMIF(E40:E47,E50,G40:G47) -> 0 | H50: =IF(B50=TRUE,0,IF(G50=0,0,ROUND(F50/G50,3))) -> 0 | I50: =MAX(O50:Z50) -> 0 | J50: =LARGE((O50:Z50),2) -> 0 | K50: =SUMIF(E40:E47,E50,K40:K47) -> 0 | L50: =IF(B50=TRUE,"WO",IF(AND(B51=TRUE,B52=TRUE),1,IF(N50=0,0,RANK(N50,N50:N52,0)))) -> 0 | M50: =IF(B40="",0,IF(B50=TRUE,0+N50,3-L50+N50)) -> 0 | N50: =IF(OR(B50=TRUE,AND(B51=TRUE,B52=TRUE)),0.000000000046,K50*0.1+H50*0.01+I50*0.00000001+J50*0.00000000001) -> 0 | O50: =IF(E40=E50,I40,0) -> 0 | P50: =IF(E40=E50,J40,0) -> 0 | Q50: =IF(E41=E50,I41,0) -> 0 | R50: =IF(E41=E50,J41,0) -> 0 | S50: =IF(E43=E50,I43,0) -> 0 | T50: =IF(E43=E50,J43,0) -> 0 | U50: =IF(E44=E50,I44,0) -> 0 | V50: =IF(E44=E50,J44,0) -> 0 | W50: =IF(E46=E50,I46,0) -> 0 | X50: =IF(E46=E50,J46,0) -> 0 | Y50: =IF(E47=E50,I47,0) -> 0 | Z50: =IF(E47=E50,J47,0) -> 0
B51: FALSE | C51: =L51 -> 0 | D51: ='Grups PP'!D19 ->  | E51: ='Grups PP'!E19 ->  | F51: =SUMIF(E40:E47,E51,F40:F47) -> 0 | G51: =SUMIF(E40:E47,E51,G40:G47) -> 0 | H51: =IF(B51=TRUE,0,IF(G51=0,0,ROUND(F51/G51,3))) -> 0 | I51: =MAX(O51:Z51) -> 0 | J51: =LARGE((O51:Z51),2) -> 0 | K51: =SUMIF(E40:E47,E51,K40:K47) -> 0 | L51: =IF(B51=TRUE,"WO",IF(AND(B50=TRUE,B52=TRUE),1,IF(N51=0,0,RANK(N51,N50:N52,0)))) -> 0 | M51: =IF(B40="",0,IF(B51=TRUE,0+N51,3-L51+N51)) -> 0 | N51: =IF(OR(B51=TRUE,AND(B50=TRUE,B52=TRUE)),0.000000000019,K51*0.1+H51*0.01+I51*0.00000001+J51*0.00000000001) -> 0 | O51: =IF(E40=E51,I40,0) -> 0 | P51: =IF(E40=E51,J40,0) -> 0 | Q51: =IF(E41=E51,I41,0) -> 0 | R51: =IF(E41=E51,J41,0) -> 0 | S51: =IF(E43=E51,I43,0) -> 0 | T51: =IF(E43=E51,J43,0) -> 0 | U51: =IF(E44=E51,I44,0) -> 0 | V51: =IF(E44=E51,J44,0) -> 0 | W51: =IF(E46=E51,I46,0) -> 0 | X51: =IF(E46=E51,J46,0) -> 0 | Y51: =IF(E47=E51,I47,0) -> 0 | Z51: =IF(E47=E51,J47,0) -> 0
B52: FALSE | C52: =L52 -> 0 | D52: ='Grups PP'!D20 ->  | E52: ='Grups PP'!E20 ->  | F52: =SUMIF(E40:E47,E52,F40:F47) -> 0 | G52: =SUMIF(E40:E47,E52,G40:G47) -> 0 | H52: =IF(B52=TRUE,0,IF(G52=0,0,ROUND(F52/G52,3))) -> 0 | I52: =MAX(O52:Z52) -> 0 | J52: =LARGE((O52:Z52),2) -> 0 | K52: =SUMIF(E40:E47,E52,K40:K47) -> 0 | L52: =IF(B52=TRUE,"WO",IF(AND(B50=TRUE,B51=TRUE),1,IF(N52=0,0,RANK(N52,N50:N52,0)))) -> 0 | M52: =IF(B40="",0,IF(B52=TRUE,0+N52,3-L52+N52)) -> 0 | N52: =IF(OR(B52=TRUE,AND(B50=TRUE,B51=TRUE)),0.000000000003,K52*0.1+H52*0.01+I52*0.00000001+J52*0.00000000001) -> 0 | O52: =IF(E40=E52,I40,0) -> 0 | P52: =IF(E40=E52,J40,0) -> 0 | Q52: =IF(E41=E52,I41,0) -> 0 | R52: =IF(E41=E52,J41,0) -> 0 | S52: =IF(E43=E52,I43,0) -> 0 | T52: =IF(E43=E52,J43,0) -> 0 | U52: =IF(E44=E52,I44,0) -> 0 | V52: =IF(E44=E52,J44,0) -> 0 | W52: =IF(E46=E52,I46,0) -> 0 | X52: =IF(E46=E52,J46,0) -> 0 | Y52: =IF(E47=E52,I47,0) -> 0 | Z52: =IF(E47=E52,J47,0) -> 0
F54: Boles | G54: Ent | H54: Mitj | I54: SM1 | J54: SM2 | K54: Punts
B55: =IF('Rànquing Inicial'!$D$141<65,"","Grup T") ->  | E55: =IF(D64>1,"",IF(OR(B66=TRUE,B67=TRUE),E65,E66)) ->  | H55: =IF(G55="","",ROUND(F55/G55,3)) ->  | K55: =IF(H55="","",IF(F55>F56,2,IF(F55<F56,0,1))) -> 
E56: =IF(D64>1,"",IF(B67=TRUE,E66,E67)) ->  | G56: =IF(G55="","",G55) ->  | H56: =IF(G56="","",ROUND(F56/G56,3)) ->  | K56: =IF(H56="","",IF(F56>F55,2,IF(F56<F55,0,1))) -> 
E58: =IF(D64>1,"",IF(B65=TRUE,E66,E65)) ->  | H58: =IF(G58="","",ROUND(F58/G58,3)) ->  | K58: =IF(H58="","",IF(F58>F59,2,IF(F58<F59,0,1))) -> 
E59: =IF(D64>1,"",IF(B67=TRUE,E66,E67)) ->  | G59: =IF(G58="","",G58) ->  | H59: =IF(G59="","",ROUND(F59/G59,3)) ->  | K59: =IF(H59="","",IF(F59>F58,2,IF(F59<F58,0,1))) -> 
E61: =IF(D64>1,"",IF(OR(B65=TRUE,B66=TRUE,B67=TRUE),"",E65)) ->  | H61: =IF(G61="","",ROUND(F61/G61,3)) ->  | K61: =IF(H61="","",IF(F61>F62,2,IF(F61<F62,0,1))) -> 
E62: =IF(OR(B65=TRUE,B66=TRUE,B67=TRUE),"",E66) ->  | G62: =IF(G61="","",G61) ->  | H62: =IF(G62="","",ROUND(F62/G62,3)) ->  | K62: =IF(H62="","",IF(F62>F61,2,IF(F62<F61,0,1))) -> 
B64: ¿WO? | D64: =COUNTIF(B65:B67,"VERDADERO") -> 0 | E64: Jugador | F64: Boles | G64: Ent | H64: Mitj | I64: SM1 | J64: SM2 | K64: P | L64: =B55 -> 
B65: FALSE | C65: =L65 -> 0 | D65: ='Grups PP'!D22 ->  | E65: ='Grups PP'!E22 ->  | F65: =SUMIF(E55:E62,E65,F55:F62) -> 0 | G65: =SUMIF(E55:E62,E65,G55:G62) -> 0 | H65: =IF(B65=TRUE,0,IF(G65=0,0,ROUND(F65/G65,3))) -> 0 | I65: =MAX(O65:Z65) -> 0 | J65: =LARGE((O65:Z65),2) -> 0 | K65: =SUMIF(E55:E62,E65,K55:K62) -> 0 | L65: =IF(B65=TRUE,"WO",IF(AND(B66=TRUE,B67=TRUE),1,IF(N65=0,0,RANK(N65,N65:N67,0)))) -> 0 | M65: =IF(B55="",0,IF(B65=TRUE,0+N65,3-L65+N65)) -> 0 | N65: =IF(OR(B65=TRUE,AND(B66=TRUE,B67=TRUE)),0.000000000045,K65*0.1+H65*0.01+I65*0.00000001+J65*0.00000000001) -> 0 | O65: =IF(E55=E65,I55,0) -> 0 | P65: =IF(E55=E65,J55,0) -> 0 | Q65: =IF(E56=E65,I56,0) -> 0 | R65: =IF(E56=E65,J56,0) -> 0 | S65: =IF(E58=E65,I58,0) -> 0 | T65: =IF(E58=E65,J58,0) -> 0 | U65: =IF(E59=E65,I59,0) -> 0 | V65: =IF(E59=E65,J59,0) -> 0 | W65: =IF(E61=E65,I61,0) -> 0 | X65: =IF(E61=E65,J61,0) -> 0 | Y65: =IF(E62=E65,I62,0) -> 0 | Z65: =IF(E62=E65,J62,0) -> 0
B66: FALSE | C66: =L66 -> 0 | D66: ='Grups PP'!D23 ->  | E66: ='Grups PP'!E23 ->  | F66: =SUMIF(E55:E62,E66,F55:F62) -> 0 | G66: =SUMIF(E55:E62,E66,G55:G62) -> 0 | H66: =IF(B66=TRUE,0,IF(G66=0,0,ROUND(F66/G66,3))) -> 0 | I66: =MAX(O66:Z66) -> 0 | J66: =LARGE((O66:Z66),2) -> 0 | K66: =SUMIF(E55:E62,E66,K55:K62) -> 0 | L66: =IF(B66=TRUE,"WO",IF(AND(B65=TRUE,B67=TRUE),1,IF(N66=0,0,RANK(N66,N65:N67,0)))) -> 0 | M66: =IF(B55="",0,IF(B66=TRUE,0+N66,3-L66+N66)) -> 0 | N66: =IF(OR(B66=TRUE,AND(B65=TRUE,B67=TRUE)),0.00000000002,K66*0.1+H66*0.01+I66*0.00000001+J66*0.00000000001) -> 0 | O66: =IF(E55=E66,I55,0) -> 0 | P66: =IF(E55=E66,J55,0) -> 0 | Q66: =IF(E56=E66,I56,0) -> 0 | R66: =IF(E56=E66,J56,0) -> 0 | S66: =IF(E58=E66,I58,0) -> 0 | T66: =IF(E58=E66,J58,0) -> 0 | U66: =IF(E59=E66,I59,0) -> 0 | V66: =IF(E59=E66,J59,0) -> 0 | W66: =IF(E61=E66,I61,0) -> 0 | X66: =IF(E61=E66,J61,0) -> 0 | Y66: =IF(E62=E66,I62,0) -> 0 | Z66: =IF(E62=E66,J62,0) -> 0
B67: FALSE | C67: =L67 -> 0 | D67: ='Grups PP'!D24 ->  | E67: ='Grups PP'!E24 ->  | F67: =SUMIF(E55:E62,E67,F55:F62) -> 0 | G67: =SUMIF(E55:E62,E67,G55:G62) -> 0 | H67: =IF(B67=TRUE,0,IF(G67=0,0,ROUND(F67/G67,3))) -> 0 | I67: =MAX(O67:Z67) -> 0 | J67: =LARGE((O67:Z67),2) -> 0 | K67: =SUMIF(E55:E62,E67,K55:K62) -> 0 | L67: =IF(B67=TRUE,"WO",IF(AND(B65=TRUE,B66=TRUE),1,IF(N67=0,0,RANK(N67,N65:N67,0)))) -> 0 | M67: =IF(B55="",0,IF(B67=TRUE,0+N67,3-L67+N67)) -> 0 | N67: =IF(OR(B67=TRUE,AND(B65=TRUE,B66=TRUE)),0.000000000004,K67*0.1+H67*0.01+I67*0.00000001+J67*0.00000000001) -> 0 | O67: =IF(E55=E67,I55,0) -> 0 | P67: =IF(E55=E67,J55,0) -> 0 | Q67: =IF(E56=E67,I56,0) -> 0 | R67: =IF(E56=E67,J56,0) -> 0 | S67: =IF(E58=E67,I58,0) -> 0 | T67: =IF(E58=E67,J58,0) -> 0 | U67: =IF(E59=E67,I59,0) -> 0 | V67: =IF(E59=E67,J59,0) -> 0 | W67: =IF(E61=E67,I61,0) -> 0 | X67: =IF(E61=E67,J61,0) -> 0 | Y67: =IF(E62=E67,I62,0) -> 0 | Z67: =IF(E62=E67,J62,0) -> 0
F69: Boles | G69: Ent | H69: Mitj | I69: SM1 | J69: SM2 | K69: Punts
B70: =IF('Rànquing Inicial'!$D$147>12,"Grup U","") ->  | E70: =IF(D79>1,"",IF(OR(B81=TRUE,B82=TRUE),E80,E81)) ->  | H70: =IF(G70="","",ROUND(F70/G70,3)) ->  | K70: =IF(H70="","",IF(F70>F71,2,IF(F70<F71,0,1))) -> 
E71: =IF(D79>1,"",IF(B82=TRUE,E81,E82)) ->  | G71: =IF(G70="","",G70) ->  | H71: =IF(G71="","",ROUND(F71/G71,3)) ->  | K71: =IF(H71="","",IF(F71>F70,2,IF(F71<F70,0,1))) -> 
E73: =IF(D79>1,"",IF(B80=TRUE,E81,E80)) ->  | H73: =IF(G73="","",ROUND(F73/G73,3)) ->  | K73: =IF(H73="","",IF(F73>F74,2,IF(F73<F74,0,1))) -> 
E74: =IF(D79>1,"",IF(B82=TRUE,E81,E82)) ->  | G74: =IF(G73="","",G73) ->  | H74: =IF(G74="","",ROUND(F74/G74,3)) ->  | K74: =IF(H74="","",IF(F74>F73,2,IF(F74<F73,0,1))) -> 
E76: =IF(D79>1,"",IF(OR(B80=TRUE,B81=TRUE,B82=TRUE),"",E80)) ->  | H76: =IF(G76="","",ROUND(F76/G76,3)) ->  | K76: =IF(H76="","",IF(F76>F77,2,IF(F76<F77,0,1))) -> 
E77: =IF(OR(B80=TRUE,B81=TRUE,B82=TRUE),"",E81) ->  | G77: =IF(G76="","",G76) ->  | H77: =IF(G77="","",ROUND(F77/G77,3)) ->  | K77: =IF(H77="","",IF(F77>F76,2,IF(F77<F76,0,1))) -> 
B79: ¿WO? | D79: =COUNTIF(B80:B82,"VERDADERO") -> 0 | E79: Jugador | F79: Boles | G79: Ent | H79: Mitj | I79: SM1 | J79: SM2 | K79: P | L79: =B70 -> 
B80: FALSE | C80: =L80 -> 0 | D80: ='Grups PP'!D26 ->  | E80: ='Grups PP'!E26 ->  | F80: =SUMIF(E70:E77,E80,F70:F77) -> 0 | G80: =SUMIF(E70:E77,E80,G70:G77) -> 0 | H80: =IF(B80=TRUE,0,IF(G80=0,0,ROUND(F80/G80,3))) -> 0 | I80: =MAX(O80:Z80) -> 0 | J80: =LARGE((O80:Z80),2) -> 0 | K80: =SUMIF(E70:E77,E80,K70:K77) -> 0 | L80: =IF(B80=TRUE,"WO",IF(AND(B81=TRUE,B82=TRUE),1,IF(N80=0,0,RANK(N80,N80:N82,0)))) -> 0 | M80: =IF(B70="",0,IF(B80=TRUE,0+N80,3-L80+N80)) -> 0 | N80: =IF(OR(B80=TRUE,AND(B81=TRUE,B82=TRUE)),0.000000000044,K80*0.1+H80*0.01+I80*0.00000001+J80*0.00000000001) -> 0 | O80: =IF(E70=E80,I70,0) -> 0 | P80: =IF(E70=E80,J70,0) -> 0 | Q80: =IF(E71=E80,I71,0) -> 0 | R80: =IF(E71=E80,J71,0) -> 0 | S80: =IF(E73=E80,I73,0) -> 0 | T80: =IF(E73=E80,J73,0) -> 0 | U80: =IF(E74=E80,I74,0) -> 0 | V80: =IF(E74=E80,J74,0) -> 0 | W80: =IF(E76=E80,I76,0) -> 0 | X80: =IF(E76=E80,J76,0) -> 0 | Y80: =IF(E77=E80,I77,0) -> 0 | Z80: =IF(E77=E80,J77,0) -> 0
B81: FALSE | C81: =L81 -> 0 | D81: ='Grups PP'!D27 ->  | E81: ='Grups PP'!E27 ->  | F81: =SUMIF(E70:E77,E81,F70:F77) -> 0 | G81: =SUMIF(E70:E77,E81,G70:G77) -> 0 | H81: =IF(B81=TRUE,0,IF(G81=0,0,ROUND(F81/G81,3))) -> 0 | I81: =MAX(O81:Z81) -> 0 | J81: =LARGE((O81:Z81),2) -> 0 | K81: =SUMIF(E70:E77,E81,K70:K77) -> 0 | L81: =IF(B81=TRUE,"WO",IF(AND(B80=TRUE,B82=TRUE),1,IF(N81=0,0,RANK(N81,N80:N82,0)))) -> 0 | M81: =IF(B70="",0,IF(B81=TRUE,0+N81,3-L81+N81)) -> 0 | N81: =IF(OR(B81=TRUE,AND(B80=TRUE,B82=TRUE)),0.000000000021,K81*0.1+H81*0.01+I81*0.00000001+J81*0.00000000001) -> 0 | O81: =IF(E70=E81,I70,0) -> 0 | P81: =IF(E70=E81,J70,0) -> 0 | Q81: =IF(E71=E81,I71,0) -> 0 | R81: =IF(E71=E81,J71,0) -> 0 | S81: =IF(E73=E81,I73,0) -> 0 | T81: =IF(E73=E81,J73,0) -> 0 | U81: =IF(E74=E81,I74,0) -> 0 | V81: =IF(E74=E81,J74,0) -> 0 | W81: =IF(E76=E81,I76,0) -> 0 | X81: =IF(E76=E81,J76,0) -> 0 | Y81: =IF(E77=E81,I77,0) -> 0 | Z81: =IF(E77=E81,J77,0) -> 0
B82: FALSE | C82: =L82 -> 0 | D82: ='Grups PP'!D28 ->  | E82: ='Grups PP'!E28 ->  | F82: =SUMIF(E70:E77,E82,F70:F77) -> 0 | G82: =SUMIF(E70:E77,E82,G70:G77) -> 0 | H82: =IF(B82=TRUE,0,IF(G82=0,0,ROUND(F82/G82,3))) -> 0 | I82: =MAX(O82:Z82) -> 0 | J82: =LARGE((O82:Z82),2) -> 0 | K82: =SUMIF(E70:E77,E82,K70:K77) -> 0 | L82: =IF(B82=TRUE,"WO",IF(AND(B80=TRUE,B81=TRUE),1,IF(N82=0,0,RANK(N82,N80:N82,0)))) -> 0 | M82: =IF(B70="",0,IF(B82=TRUE,0+N82,3-L82+N82)) -> 0 | N82: =IF(OR(B82=TRUE,AND(B80=TRUE,B81=TRUE)),0.000000000005,K82*0.1+H82*0.01+I82*0.00000001+J82*0.00000000001) -> 0 | O82: =IF(E70=E82,I70,0) -> 0 | P82: =IF(E70=E82,J70,0) -> 0 | Q82: =IF(E71=E82,I71,0) -> 0 | R82: =IF(E71=E82,J71,0) -> 0 | S82: =IF(E73=E82,I73,0) -> 0 | T82: =IF(E73=E82,J73,0) -> 0 | U82: =IF(E74=E82,I74,0) -> 0 | V82: =IF(E74=E82,J74,0) -> 0 | W82: =IF(E76=E82,I76,0) -> 0 | X82: =IF(E76=E82,J76,0) -> 0 | Y82: =IF(E77=E82,I77,0) -> 0 | Z82: =IF(E77=E82,J77,0) -> 0
F84: Boles | G84: Ent | H84: Mitj | I84: SM1 | J84: SM2 | K84: Punts
B85: =IF('Rànquing Inicial'!$D$147>15,"Grup V","") ->  | E85: =IF(D94>1,"",IF(OR(B96=TRUE,B97=TRUE),E95,E96)) ->  | H85: =IF(G85="","",ROUND(F85/G85,3)) ->  | K85: =IF(H85="","",IF(F85>F86,2,IF(F85<F86,0,1))) -> 
E86: =IF(D94>1,"",IF(B97=TRUE,E96,E97)) ->  | G86: =IF(G85="","",G85) ->  | H86: =IF(G86="","",ROUND(F86/G86,3)) ->  | K86: =IF(H86="","",IF(F86>F85,2,IF(F86<F85,0,1))) -> 
E88: =IF(D94>1,"",IF(B95=TRUE,E96,E95)) ->  | H88: =IF(G88="","",ROUND(F88/G88,3)) ->  | K88: =IF(H88="","",IF(F88>F89,2,IF(F88<F89,0,1))) -> 
E89: =IF(D94>1,"",IF(B97=TRUE,E96,E97)) ->  | G89: =IF(G88="","",G88) ->  | H89: =IF(G89="","",ROUND(F89/G89,3)) ->  | K89: =IF(H89="","",IF(F89>F88,2,IF(F89<F88,0,1))) -> 
E91: =IF(D94>1,"",IF(OR(B95=TRUE,B96=TRUE,B97=TRUE),"",E95)) ->  | H91: =IF(G91="","",ROUND(F91/G91,3)) ->  | K91: =IF(H91="","",IF(F91>F92,2,IF(F91<F92,0,1))) -> 
E92: =IF(OR(B95=TRUE,B96=TRUE,B97=TRUE),"",E96) ->  | G92: =IF(G91="","",G91) ->  | H92: =IF(G92="","",ROUND(F92/G92,3)) ->  | K92: =IF(H92="","",IF(F92>F91,2,IF(F92<F91,0,1))) -> 
B94: ¿WO? | D94: =COUNTIF(B95:B97,"VERDADERO") -> 0 | E94: Jugador | F94: Boles | G94: Ent | H94: Mitj | I94: SM1 | J94: SM2 | K94: P | L94: =B85 -> 
B95: FALSE | C95: =L95 -> 0 | D95: ='Grups PP'!D30 ->  | E95: ='Grups PP'!E30 ->  | F95: =SUMIF(E85:E92,E95,F85:F92) -> 0 | G95: =SUMIF(E85:E92,E95,G85:G92) -> 0 | H95: =IF(B95=TRUE,0,IF(G95=0,0,ROUND(F95/G95,3))) -> 0 | I95: =MAX(O95:Z95) -> 0 | J95: =LARGE((O95:Z95),2) -> 0 | K95: =SUMIF(E85:E92,E95,K85:K92) -> 0 | L95: =IF(B95=TRUE,"WO",IF(AND(B96=TRUE,B97=TRUE),1,IF(N95=0,0,RANK(N95,N95:N97,0)))) -> 0 | M95: =IF(B85="",0,IF(B95=TRUE,0+N95,3-L95+N95)) -> 0 | N95: =IF(OR(B95=TRUE,AND(B96=TRUE,B97=TRUE)),0.000000000043,K95*0.1+H95*0.01+I95*0.00000001+J95*0.00000000001) -> 0 | O95: =IF(E85=E95,I85,0) -> 0 | P95: =IF(E85=E95,J85,0) -> 0 | Q95: =IF(E86=E95,I86,0) -> 0 | R95: =IF(E86=E95,J86,0) -> 0 | S95: =IF(E88=E95,I88,0) -> 0 | T95: =IF(E88=E95,J88,0) -> 0 | U95: =IF(E89=E95,I89,0) -> 0 | V95: =IF(E89=E95,J89,0) -> 0 | W95: =IF(E91=E95,I91,0) -> 0 | X95: =IF(E91=E95,J91,0) -> 0 | Y95: =IF(E92=E95,I92,0) -> 0 | Z95: =IF(E92=E95,J92,0) -> 0
B96: FALSE | C96: =L96 -> 0 | D96: ='Grups PP'!D31 ->  | E96: ='Grups PP'!E31 ->  | F96: =SUMIF(E85:E92,E96,F85:F92) -> 0 | G96: =SUMIF(E85:E92,E96,G85:G92) -> 0 | H96: =IF(B96=TRUE,0,IF(G96=0,0,ROUND(F96/G96,3))) -> 0 | I96: =MAX(O96:Z96) -> 0 | J96: =LARGE((O96:Z96),2) -> 0 | K96: =SUMIF(E85:E92,E96,K85:K92) -> 0 | L96: =IF(B96=TRUE,"WO",IF(AND(B95=TRUE,B97=TRUE),1,IF(N96=0,0,RANK(N96,N95:N97,0)))) -> 0 | M96: =IF(B85="",0,IF(B96=TRUE,0+N96,3-L96+N96)) -> 0 | N96: =IF(OR(B96=TRUE,AND(B95=TRUE,B97=TRUE)),0.000000000022,K96*0.1+H96*0.01+I96*0.00000001+J96*0.00000000001) -> 0 | O96: =IF(E85=E96,I85,0) -> 0 | P96: =IF(E85=E96,J85,0) -> 0 | Q96: =IF(E86=E96,I86,0) -> 0 | R96: =IF(E86=E96,J86,0) -> 0 | S96: =IF(E88=E96,I88,0) -> 0 | T96: =IF(E88=E96,J88,0) -> 0 | U96: =IF(E89=E96,I89,0) -> 0 | V96: =IF(E89=E96,J89,0) -> 0 | W96: =IF(E91=E96,I91,0) -> 0 | X96: =IF(E91=E96,J91,0) -> 0 | Y96: =IF(E92=E96,I92,0) -> 0 | Z96: =IF(E92=E96,J92,0) -> 0
B97: FALSE | C97: =L97 -> 0 | D97: ='Grups PP'!D32 ->  | E97: ='Grups PP'!E32 ->  | F97: =SUMIF(E85:E92,E97,F85:F92) -> 0 | G97: =SUMIF(E85:E92,E97,G85:G92) -> 0 | H97: =IF(B97=TRUE,0,IF(G97=0,0,ROUND(F97/G97,3))) -> 0 | I97: =MAX(O97:Z97) -> 0 | J97: =LARGE((O97:Z97),2) -> 0 | K97: =SUMIF(E85:E92,E97,K85:K92) -> 0 | L97: =IF(B97=TRUE,"WO",IF(AND(B95=TRUE,B96=TRUE),1,IF(N97=0,0,RANK(N97,N95:N97,0)))) -> 0 | M97: =IF(B85="",0,IF(B97=TRUE,0+N97,3-L97+N97)) -> 0 | N97: =IF(OR(B97=TRUE,AND(B95=TRUE,B96=TRUE)),0.000000000006,K97*0.1+H97*0.01+I97*0.00000001+J97*0.00000000001) -> 0 | O97: =IF(E85=E97,I85,0) -> 0 | P97: =IF(E85=E97,J85,0) -> 0 | Q97: =IF(E86=E97,I86,0) -> 0 | R97: =IF(E86=E97,J86,0) -> 0 | S97: =IF(E88=E97,I88,0) -> 0 | T97: =IF(E88=E97,J88,0) -> 0 | U97: =IF(E89=E97,I89,0) -> 0 | V97: =IF(E89=E97,J89,0) -> 0 | W97: =IF(E91=E97,I91,0) -> 0 | X97: =IF(E91=E97,J91,0) -> 0 | Y97: =IF(E92=E97,I92,0) -> 0 | Z97: =IF(E92=E97,J92,0) -> 0
F99: Boles | G99: Ent | H99: Mitj | I99: SM1 | J99: SM2 | K99: Punts
B100: =IF('Rànquing Inicial'!$D$147>18,"Grup W","") ->  | E100: =IF(D109>1,"",IF(OR(B111=TRUE,B112=TRUE),E110,E111)) ->  | H100: =IF(G100="","",ROUND(F100/G100,3)) ->  | K100: =IF(H100="","",IF(F100>F101,2,IF(F100<F101,0,1))) -> 
E101: =IF(D109>1,"",IF(B112=TRUE,E111,E112)) ->  | G101: =IF(G100="","",G100) ->  | H101: =IF(G101="","",ROUND(F101/G101,3)) ->  | K101: =IF(H101="","",IF(F101>F100,2,IF(F101<F100,0,1))) -> 
E103: =IF(D109>1,"",IF(B110=TRUE,E111,E110)) ->  | H103: =IF(G103="","",ROUND(F103/G103,3)) ->  | K103: =IF(H103="","",IF(F103>F104,2,IF(F103<F104,0,1))) -> 
E104: =IF(D109>1,"",IF(B112=TRUE,E111,E112)) ->  | G104: =IF(G103="","",G103) ->  | H104: =IF(G104="","",ROUND(F104/G104,3)) ->  | K104: =IF(H104="","",IF(F104>F103,2,IF(F104<F103,0,1))) -> 
E106: =IF(D109>1,"",IF(OR(B110=TRUE,B111=TRUE,B112=TRUE),"",E110)) ->  | H106: =IF(G106="","",ROUND(F106/G106,3)) ->  | K106: =IF(H106="","",IF(F106>F107,2,IF(F106<F107,0,1))) -> 
E107: =IF(OR(B110=TRUE,B111=TRUE,B112=TRUE),"",E111) ->  | G107: =IF(G106="","",G106) ->  | H107: =IF(G107="","",ROUND(F107/G107,3)) ->  | K107: =IF(H107="","",IF(F107>F106,2,IF(F107<F106,0,1))) -> 
B109: ¿WO? | D109: =COUNTIF(B110:B112,"VERDADERO") -> 0 | E109: Jugador | F109: Boles | G109: Ent | H109: Mitj | I109: SM1 | J109: SM2 | K109: P | L109: =B100 -> 
B110: FALSE | C110: =L110 -> 0 | D110: ='Grups PP'!D34 ->  | E110: ='Grups PP'!E34 ->  | F110: =SUMIF(E100:E107,E110,F100:F107) -> 0 | G110: =SUMIF(E100:E107,E110,G100:G107) -> 0 | H110: =IF(B110=TRUE,0,IF(G110=0,0,ROUND(F110/G110,3))) -> 0 | I110: =MAX(O110:Z110) -> 0 | J110: =LARGE((O110:Z110),2) -> 0 | K110: =SUMIF(E100:E107,E110,K100:K107) -> 0 | L110: =IF(B110=TRUE,"WO",IF(AND(B111=TRUE,B112=TRUE),1,IF(N110=0,0,RANK(N110,N110:N112,0)))) -> 0 | M110: =IF(B100="",0,IF(B110=TRUE,0+N110,3-L110+N110)) -> 0 | N110: =IF(OR(B110=TRUE,AND(B111=TRUE,B112=TRUE)),0.000000000042,K110*0.1+H110*0.01+I110*0.00000001+J110*0.00000000001) -> 0 | O110: =IF(E100=E110,I100,0) -> 0 | P110: =IF(E100=E110,J100,0) -> 0 | Q110: =IF(E101=E110,I101,0) -> 0 | R110: =IF(E101=E110,J101,0) -> 0 | S110: =IF(E103=E110,I103,0) -> 0 | T110: =IF(E103=E110,J103,0) -> 0 | U110: =IF(E104=E110,I104,0) -> 0 | V110: =IF(E104=E110,J104,0) -> 0 | W110: =IF(E106=E110,I106,0) -> 0 | X110: =IF(E106=E110,J106,0) -> 0 | Y110: =IF(E107=E110,I107,0) -> 0 | Z110: =IF(E107=E110,J107,0) -> 0
B111: FALSE | C111: =L111 -> 0 | D111: ='Grups PP'!D35 ->  | E111: ='Grups PP'!E35 ->  | F111: =SUMIF(E100:E107,E111,F100:F107) -> 0 | G111: =SUMIF(E100:E107,E111,G100:G107) -> 0 | H111: =IF(B111=TRUE,0,IF(G111=0,0,ROUND(F111/G111,3))) -> 0 | I111: =MAX(O111:Z111) -> 0 | J111: =LARGE((O111:Z111),2) -> 0 | K111: =SUMIF(E100:E107,E111,K100:K107) -> 0 | L111: =IF(B111=TRUE,"WO",IF(AND(B110=TRUE,B112=TRUE),1,IF(N111=0,0,RANK(N111,N110:N112,0)))) -> 0 | M111: =IF(B100="",0,IF(B111=TRUE,0+N111,3-L111+N111)) -> 0 | N111: =IF(OR(B111=TRUE,AND(B110=TRUE,B112=TRUE)),0.000000000023,K111*0.1+H111*0.01+I111*0.00000001+J111*0.00000000001) -> 0 | O111: =IF(E100=E111,I100,0) -> 0 | P111: =IF(E100=E111,J100,0) -> 0 | Q111: =IF(E101=E111,I101,0) -> 0 | R111: =IF(E101=E111,J101,0) -> 0 | S111: =IF(E103=E111,I103,0) -> 0 | T111: =IF(E103=E111,J103,0) -> 0 | U111: =IF(E104=E111,I104,0) -> 0 | V111: =IF(E104=E111,J104,0) -> 0 | W111: =IF(E106=E111,I106,0) -> 0 | X111: =IF(E106=E111,J106,0) -> 0 | Y111: =IF(E107=E111,I107,0) -> 0 | Z111: =IF(E107=E111,J107,0) -> 0
B112: FALSE | C112: =L112 -> 0 | D112: ='Grups PP'!D36 ->  | E112: ='Grups PP'!E36 ->  | F112: =SUMIF(E100:E107,E112,F100:F107) -> 0 | G112: =SUMIF(E100:E107,E112,G100:G107) -> 0 | H112: =IF(B112=TRUE,0,IF(G112=0,0,ROUND(F112/G112,3))) -> 0 | I112: =MAX(O112:Z112) -> 0 | J112: =LARGE((O112:Z112),2) -> 0 | K112: =SUMIF(E100:E107,E112,K100:K107) -> 0 | L112: =IF(B112=TRUE,"WO",IF(AND(B110=TRUE,B111=TRUE),1,IF(N112=0,0,RANK(N112,N110:N112,0)))) -> 0 | M112: =IF(B100="",0,IF(B112=TRUE,0+N112,3-L112+N112)) -> 0 | N112: =IF(OR(B112=TRUE,AND(B110=TRUE,B111=TRUE)),0.000000000007,K112*0.1+H112*0.01+I112*0.00000001+J112*0.00000000001) -> 0 | O112: =IF(E100=E112,I100,0) -> 0 | P112: =IF(E100=E112,J100,0) -> 0 | Q112: =IF(E101=E112,I101,0) -> 0 | R112: =IF(E101=E112,J101,0) -> 0 | S112: =IF(E103=E112,I103,0) -> 0 | T112: =IF(E103=E112,J103,0) -> 0 | U112: =IF(E104=E112,I104,0) -> 0 | V112: =IF(E104=E112,J104,0) -> 0 | W112: =IF(E106=E112,I106,0) -> 0 | X112: =IF(E106=E112,J106,0) -> 0 | Y112: =IF(E107=E112,I107,0) -> 0 | Z112: =IF(E107=E112,J107,0) -> 0
F114: Boles | G114: Ent | H114: Mitj | I114: SM1 | J114: SM2 | K114: Punts
B115: =IF('Rànquing Inicial'!$D$147>21,"Grup X","") ->  | E115: =IF(D124>1,"",IF(OR(B126=TRUE,B127=TRUE),E125,E126)) ->  | H115: =IF(G115="","",ROUND(F115/G115,3)) ->  | K115: =IF(H115="","",IF(F115>F116,2,IF(F115<F116,0,1))) -> 
E116: =IF(D124>1,"",IF(B127=TRUE,E126,E127)) ->  | G116: =IF(G115="","",G115) ->  | H116: =IF(G116="","",ROUND(F116/G116,3)) ->  | K116: =IF(H116="","",IF(F116>F115,2,IF(F116<F115,0,1))) -> 
E118: =IF(D124>1,"",IF(B125=TRUE,E126,E125)) ->  | H118: =IF(G118="","",ROUND(F118/G118,3)) ->  | K118: =IF(H118="","",IF(F118>F119,2,IF(F118<F119,0,1))) -> 
E119: =IF(D124>1,"",IF(B127=TRUE,E126,E127)) ->  | G119: =IF(G118="","",G118) ->  | H119: =IF(G119="","",ROUND(F119/G119,3)) ->  | K119: =IF(H119="","",IF(F119>F118,2,IF(F119<F118,0,1))) -> 
E121: =IF(D124>1,"",IF(OR(B125=TRUE,B126=TRUE,B127=TRUE),"",E125)) ->  | H121: =IF(G121="","",ROUND(F121/G121,3)) ->  | K121: =IF(H121="","",IF(F121>F122,2,IF(F121<F122,0,1))) -> 
E122: =IF(OR(B125=TRUE,B126=TRUE,B127=TRUE),"",E126) ->  | G122: =IF(G121="","",G121) ->  | H122: =IF(G122="","",ROUND(F122/G122,3)) ->  | K122: =IF(H122="","",IF(F122>F121,2,IF(F122<F121,0,1))) -> 
B124: ¿WO? | D124: =COUNTIF(B125:B127,"VERDADERO") -> 0 | E124: Jugador | F124: Boles | G124: Ent | H124: Mitj | I124: SM1 | J124: SM2 | K124: P | L124: =B115 -> 
B125: FALSE | C125: =L125 -> 0 | D125: ='Grups PP'!D38 ->  | E125: ='Grups PP'!E38 ->  | F125: =SUMIF(E115:E122,E125,F115:F122) -> 0 | G125: =SUMIF(E115:E122,E125,G115:G122) -> 0 | H125: =IF(B125=TRUE,0,IF(G125=0,0,ROUND(F125/G125,3))) -> 0 | I125: =MAX(O125:Z125) -> 0 | J125: =LARGE((O125:Z125),2) -> 0 | K125: =SUMIF(E115:E122,E125,K115:K122) -> 0 | L125: =IF(B125=TRUE,"WO",IF(AND(B126=TRUE,B127=TRUE),1,IF(N125=0,0,RANK(N125,N125:N127,0)))) -> 0 | M125: =IF(B115="",0,IF(B125=TRUE,0+N125,3-L125+N125)) -> 0 | N125: =IF(OR(B125=TRUE,AND(B126=TRUE,B127=TRUE)),0.000000000041,K125*0.1+H125*0.01+I125*0.00000001+J125*0.00000000001) -> 0 | O125: =IF(E115=E125,I115,0) -> 0 | P125: =IF(E115=E125,J115,0) -> 0 | Q125: =IF(E116=E125,I116,0) -> 0 | R125: =IF(E116=E125,J116,0) -> 0 | S125: =IF(E118=E125,I118,0) -> 0 | T125: =IF(E118=E125,J118,0) -> 0 | U125: =IF(E119=E125,I119,0) -> 0 | V125: =IF(E119=E125,J119,0) -> 0 | W125: =IF(E121=E125,I121,0) -> 0 | X125: =IF(E121=E125,J121,0) -> 0 | Y125: =IF(E122=E125,I122,0) -> 0 | Z125: =IF(E122=E125,J122,0) -> 0
B126: FALSE | C126: =L126 -> 0 | D126: ='Grups PP'!D39 ->  | E126: ='Grups PP'!E39 ->  | F126: =SUMIF(E115:E122,E126,F115:F122) -> 0 | G126: =SUMIF(E115:E122,E126,G115:G122) -> 0 | H126: =IF(B126=TRUE,0,IF(G126=0,0,ROUND(F126/G126,3))) -> 0 | I126: =MAX(O126:Z126) -> 0 | J126: =LARGE((O126:Z126),2) -> 0 | K126: =SUMIF(E115:E122,E126,K115:K122) -> 0 | L126: =IF(B126=TRUE,"WO",IF(AND(B125=TRUE,B127=TRUE),1,IF(N126=0,0,RANK(N126,N125:N127,0)))) -> 0 | M126: =IF(B115="",0,IF(B126=TRUE,0+N126,3-L126+N126)) -> 0 | N126: =IF(OR(B126=TRUE,AND(B125=TRUE,B127=TRUE)),0.000000000024,K126*0.1+H126*0.01+I126*0.00000001+J126*0.00000000001) -> 0 | O126: =IF(E115=E126,I115,0) -> 0 | P126: =IF(E115=E126,J115,0) -> 0 | Q126: =IF(E116=E126,I116,0) -> 0 | R126: =IF(E116=E126,J116,0) -> 0 | S126: =IF(E118=E126,I118,0) -> 0 | T126: =IF(E118=E126,J118,0) -> 0 | U126: =IF(E119=E126,I119,0) -> 0 | V126: =IF(E119=E126,J119,0) -> 0 | W126: =IF(E121=E126,I121,0) -> 0 | X126: =IF(E121=E126,J121,0) -> 0 | Y126: =IF(E122=E126,I122,0) -> 0 | Z126: =IF(E122=E126,J122,0) -> 0
B127: FALSE | C127: =L127 -> 0 | D127: ='Grups PP'!D40 ->  | E127: ='Grups PP'!E40 ->  | F127: =SUMIF(E115:E122,E127,F115:F122) -> 0 | G127: =SUMIF(E115:E122,E127,G115:G122) -> 0 | H127: =IF(B127=TRUE,0,IF(G127=0,0,ROUND(F127/G127,3))) -> 0 | I127: =MAX(O127:Z127) -> 0 | J127: =LARGE((O127:Z127),2) -> 0 | K127: =SUMIF(E115:E122,E127,K115:K122) -> 0 | L127: =IF(B127=TRUE,"WO",IF(AND(B125=TRUE,B126=TRUE),1,IF(N127=0,0,RANK(N127,N125:N127,0)))) -> 0 | M127: =IF(B115="",0,IF(B127=TRUE,0+N127,3-L127+N127)) -> 0 | N127: =IF(OR(B127=TRUE,AND(B125=TRUE,B126=TRUE)),0.000000000008,K127*0.1+H127*0.01+I127*0.00000001+J127*0.00000000001) -> 0 | O127: =IF(E115=E127,I115,0) -> 0 | P127: =IF(E115=E127,J115,0) -> 0 | Q127: =IF(E116=E127,I116,0) -> 0 | R127: =IF(E116=E127,J116,0) -> 0 | S127: =IF(E118=E127,I118,0) -> 0 | T127: =IF(E118=E127,J118,0) -> 0 | U127: =IF(E119=E127,I119,0) -> 0 | V127: =IF(E119=E127,J119,0) -> 0 | W127: =IF(E121=E127,I121,0) -> 0 | X127: =IF(E121=E127,J121,0) -> 0 | Y127: =IF(E122=E127,I122,0) -> 0 | Z127: =IF(E122=E127,J122,0) -> 0
F129: Boles | G129: Ent | H129: Mitj | I129: SM1 | J129: SM2 | K129: Punts
B130: =IF('Rànquing Inicial'!$D$147>24,"Grup Y","") ->  | E130: =IF(D139>1,"",IF(OR(B141=TRUE,B142=TRUE),E140,E141)) ->  | H130: =IF(G130="","",ROUND(F130/G130,3)) ->  | K130: =IF(H130="","",IF(F130>F131,2,IF(F130<F131,0,1))) -> 
E131: =IF(D139>1,"",IF(B142=TRUE,E141,E142)) ->  | G131: =IF(G130="","",G130) ->  | H131: =IF(G131="","",ROUND(F131/G131,3)) ->  | K131: =IF(H131="","",IF(F131>F130,2,IF(F131<F130,0,1))) -> 
E133: =IF(D139>1,"",IF(B140=TRUE,E141,E140)) ->  | H133: =IF(G133="","",ROUND(F133/G133,3)) ->  | K133: =IF(H133="","",IF(F133>F134,2,IF(F133<F134,0,1))) -> 
E134: =IF(D139>1,"",IF(B142=TRUE,E141,E142)) ->  | G134: =IF(G133="","",G133) ->  | H134: =IF(G134="","",ROUND(F134/G134,3)) ->  | K134: =IF(H134="","",IF(F134>F133,2,IF(F134<F133,0,1))) -> 
E136: =IF(D139>1,"",IF(OR(B140=TRUE,B141=TRUE,B142=TRUE),"",E140)) ->  | H136: =IF(G136="","",ROUND(F136/G136,3)) ->  | K136: =IF(H136="","",IF(F136>F137,2,IF(F136<F137,0,1))) -> 
E137: =IF(OR(B140=TRUE,B141=TRUE,B142=TRUE),"",E141) ->  | G137: =IF(G136="","",G136) ->  | H137: =IF(G137="","",ROUND(F137/G137,3)) ->  | K137: =IF(H137="","",IF(F137>F136,2,IF(F137<F136,0,1))) -> 
B139: ¿WO? | D139: =COUNTIF(B140:B142,"VERDADERO") -> 0 | E139: Jugador | F139: Boles | G139: Ent | H139: Mitj | I139: SM1 | J139: SM2 | K139: P | L139: =B130 -> 
B140: FALSE | C140: =L140 -> 0 | D140: ='Grups PP'!H10 ->  | E140: ='Grups PP'!I10 ->  | F140: =SUMIF(E130:E137,E140,F130:F137) -> 0 | G140: =SUMIF(E130:E137,E140,G130:G137) -> 0 | H140: =IF(B140=TRUE,0,IF(G140=0,0,ROUND(F140/G140,3))) -> 0 | I140: =MAX(O140:Z140) -> 0 | J140: =LARGE((O140:Z140),2) -> 0 | K140: =SUMIF(E130:E137,E140,K130:K137) -> 0 | L140: =IF(B140=TRUE,"WO",IF(AND(B141=TRUE,B142=TRUE),1,IF(N140=0,0,RANK(N140,N140:N142,0)))) -> 0 | M140: =IF(B130="",0,IF(B140=TRUE,0+N140,3-L140+N140)) -> 0 | N140: =IF(OR(B140=TRUE,AND(B141=TRUE,B142=TRUE)),0.00000000004,K140*0.1+H140*0.01+I140*0.00000001+J140*0.00000000001) -> 0 | O140: =IF(E130=E140,I130,0) -> 0 | P140: =IF(E130=E140,J130,0) -> 0 | Q140: =IF(E131=E140,I131,0) -> 0 | R140: =IF(E131=E140,J131,0) -> 0 | S140: =IF(E133=E140,I133,0) -> 0 | T140: =IF(E133=E140,J133,0) -> 0 | U140: =IF(E134=E140,I134,0) -> 0 | V140: =IF(E134=E140,J134,0) -> 0 | W140: =IF(E136=E140,I136,0) -> 0 | X140: =IF(E136=E140,J136,0) -> 0 | Y140: =IF(E137=E140,I137,0) -> 0 | Z140: =IF(E137=E140,J137,0) -> 0
B141: FALSE | C141: =L141 -> 0 | D141: ='Grups PP'!H11 ->  | E141: ='Grups PP'!I11 ->  | F141: =SUMIF(E130:E137,E141,F130:F137) -> 0 | G141: =SUMIF(E130:E137,E141,G130:G137) -> 0 | H141: =IF(B141=TRUE,0,IF(G141=0,0,ROUND(F141/G141,3))) -> 0 | I141: =MAX(O141:Z141) -> 0 | J141: =LARGE((O141:Z141),2) -> 0 | K141: =SUMIF(E130:E137,E141,K130:K137) -> 0 | L141: =IF(B141=TRUE,"WO",IF(AND(B140=TRUE,B142=TRUE),1,IF(N141=0,0,RANK(N141,N140:N142,0)))) -> 0 | M141: =IF(B130="",0,IF(B141=TRUE,0+N141,3-L141+N141)) -> 0 | N141: =IF(OR(B141=TRUE,AND(B140=TRUE,B142=TRUE)),0.000000000025,K141*0.1+H141*0.01+I141*0.00000001+J141*0.00000000001) -> 0 | O141: =IF(E130=E141,I130,0) -> 0 | P141: =IF(E130=E141,J130,0) -> 0 | Q141: =IF(E131=E141,I131,0) -> 0 | R141: =IF(E131=E141,J131,0) -> 0 | S141: =IF(E133=E141,I133,0) -> 0 | T141: =IF(E133=E141,J133,0) -> 0 | U141: =IF(E134=E141,I134,0) -> 0 | V141: =IF(E134=E141,J134,0) -> 0 | W141: =IF(E136=E141,I136,0) -> 0 | X141: =IF(E136=E141,J136,0) -> 0 | Y141: =IF(E137=E141,I137,0) -> 0 | Z141: =IF(E137=E141,J137,0) -> 0
B142: FALSE | C142: =L142 -> 0 | D142: ='Grups PP'!H12 ->  | E142: ='Grups PP'!I12 ->  | F142: =SUMIF(E130:E137,E142,F130:F137) -> 0 | G142: =SUMIF(E130:E137,E142,G130:G137) -> 0 | H142: =IF(B142=TRUE,0,IF(G142=0,0,ROUND(F142/G142,3))) -> 0 | I142: =MAX(O142:Z142) -> 0 | J142: =LARGE((O142:Z142),2) -> 0 | K142: =SUMIF(E130:E137,E142,K130:K137) -> 0 | L142: =IF(B142=TRUE,"WO",IF(AND(B140=TRUE,B141=TRUE),1,IF(N142=0,0,RANK(N142,N140:N142,0)))) -> 0 | M142: =IF(B130="",0,IF(B142=TRUE,0+N142,3-L142+N142)) -> 0 | N142: =IF(OR(B142=TRUE,AND(B140=TRUE,B141=TRUE)),0.000000000009,K142*0.1+H142*0.01+I142*0.00000001+J142*0.00000000001) -> 0 | O142: =IF(E130=E142,I130,0) -> 0 | P142: =IF(E130=E142,J130,0) -> 0 | Q142: =IF(E131=E142,I131,0) -> 0 | R142: =IF(E131=E142,J131,0) -> 0 | S142: =IF(E133=E142,I133,0) -> 0 | T142: =IF(E133=E142,J133,0) -> 0 | U142: =IF(E134=E142,I134,0) -> 0 | V142: =IF(E134=E142,J134,0) -> 0 | W142: =IF(E136=E142,I136,0) -> 0 | X142: =IF(E136=E142,J136,0) -> 0 | Y142: =IF(E137=E142,I137,0) -> 0 | Z142: =IF(E137=E142,J137,0) -> 0
F144: Boles | G144: Ent | H144: Mitj | I144: SM1 | J144: SM2 | K144: Punts
B145: =IF('Rànquing Inicial'!$D$147>27,"Grup Z","") ->  | E145: =IF(D154>1,"",IF(OR(B156=TRUE,B157=TRUE),E155,E156)) ->  | H145: =IF(G145="","",ROUND(F145/G145,3)) ->  | K145: =IF(H145="","",IF(F145>F146,2,IF(F145<F146,0,1))) -> 
E146: =IF(D154>1,"",IF(B157=TRUE,E156,E157)) ->  | G146: =IF(G145="","",G145) ->  | H146: =IF(G146="","",ROUND(F146/G146,3)) ->  | K146: =IF(H146="","",IF(F146>F145,2,IF(F146<F145,0,1))) -> 
E148: =IF(D154>1,"",IF(B155=TRUE,E156,E155)) ->  | H148: =IF(G148="","",ROUND(F148/G148,3)) ->  | K148: =IF(H148="","",IF(F148>F149,2,IF(F148<F149,0,1))) -> 
E149: =IF(D154>1,"",IF(B157=TRUE,E156,E157)) ->  | G149: =IF(G148="","",G148) ->  | H149: =IF(G149="","",ROUND(F149/G149,3)) ->  | K149: =IF(H149="","",IF(F149>F148,2,IF(F149<F148,0,1))) -> 
E151: =IF(D154>1,"",IF(OR(B155=TRUE,B156=TRUE,B157=TRUE),"",E155)) ->  | H151: =IF(G151="","",ROUND(F151/G151,3)) ->  | K151: =IF(H151="","",IF(F151>F152,2,IF(F151<F152,0,1))) -> 
E152: =IF(OR(B155=TRUE,B156=TRUE,B157=TRUE),"",E156) ->  | G152: =IF(G151="","",G151) ->  | H152: =IF(G152="","",ROUND(F152/G152,3)) ->  | K152: =IF(H152="","",IF(F152>F151,2,IF(F152<F151,0,1))) -> 
B154: ¿WO? | D154: =COUNTIF(B155:B157,"VERDADERO") -> 0 | E154: Jugador | F154: Boles | G154: Ent | H154: Mitj | I154: SM1 | J154: SM2 | K154: P | L154: =B145 -> 
B155: FALSE | C155: =L155 -> 0 | D155: ='Grups PP'!H14 ->  | E155: ='Grups PP'!I14 ->  | F155: =SUMIF(E145:E152,E155,F145:F152) -> 0 | G155: =SUMIF(E145:E152,E155,G145:G152) -> 0 | H155: =IF(B155=TRUE,0,IF(G155=0,0,ROUND(F155/G155,3))) -> 0 | I155: =MAX(O155:Z155) -> 0 | J155: =LARGE((O155:Z155),2) -> 0 | K155: =SUMIF(E145:E152,E155,K145:K152) -> 0 | L155: =IF(B155=TRUE,"WO",IF(AND(B156=TRUE,B157=TRUE),1,IF(N155=0,0,RANK(N155,N155:N157,0)))) -> 0 | M155: =IF(B145="",0,IF(B155=TRUE,0+N155,3-L155+N155)) -> 0 | N155: =IF(OR(B155=TRUE,AND(B156=TRUE,B157=TRUE)),0.000000000039,K155*0.1+H155*0.01+I155*0.00000001+J155*0.00000000001) -> 0 | O155: =IF(E145=E155,I145,0) -> 0 | P155: =IF(E145=E155,J145,0) -> 0 | Q155: =IF(E146=E155,I146,0) -> 0 | R155: =IF(E146=E155,J146,0) -> 0 | S155: =IF(E148=E155,I148,0) -> 0 | T155: =IF(E148=E155,J148,0) -> 0 | U155: =IF(E149=E155,I149,0) -> 0 | V155: =IF(E149=E155,J149,0) -> 0 | W155: =IF(E151=E155,I151,0) -> 0 | X155: =IF(E151=E155,J151,0) -> 0 | Y155: =IF(E152=E155,I152,0) -> 0 | Z155: =IF(E152=E155,J152,0) -> 0
B156: FALSE | C156: =L156 -> 0 | D156: ='Grups PP'!H15 ->  | E156: ='Grups PP'!I15 ->  | F156: =SUMIF(E145:E152,E156,F145:F152) -> 0 | G156: =SUMIF(E145:E152,E156,G145:G152) -> 0 | H156: =IF(B156=TRUE,0,IF(G156=0,0,ROUND(F156/G156,3))) -> 0 | I156: =MAX(O156:Z156) -> 0 | J156: =LARGE((O156:Z156),2) -> 0 | K156: =SUMIF(E145:E152,E156,K145:K152) -> 0 | L156: =IF(B156=TRUE,"WO",IF(AND(B155=TRUE,B157=TRUE),1,IF(N156=0,0,RANK(N156,N155:N157,0)))) -> 0 | M156: =IF(B145="",0,IF(B156=TRUE,0+N156,3-L156+N156)) -> 0 | N156: =IF(OR(B156=TRUE,AND(B155=TRUE,B157=TRUE)),0.000000000026,K156*0.1+H156*0.01+I156*0.00000001+J156*0.00000000001) -> 0 | O156: =IF(E145=E156,I145,0) -> 0 | P156: =IF(E145=E156,J145,0) -> 0 | Q156: =IF(E146=E156,I146,0) -> 0 | R156: =IF(E146=E156,J146,0) -> 0 | S156: =IF(E148=E156,I148,0) -> 0 | T156: =IF(E148=E156,J148,0) -> 0 | U156: =IF(E149=E156,I149,0) -> 0 | V156: =IF(E149=E156,J149,0) -> 0 | W156: =IF(E151=E156,I151,0) -> 0 | X156: =IF(E151=E156,J151,0) -> 0 | Y156: =IF(E152=E156,I152,0) -> 0 | Z156: =IF(E152=E156,J152,0) -> 0
B157: FALSE | C157: =L157 -> 0 | D157: ='Grups PP'!H16 ->  | E157: ='Grups PP'!I16 ->  | F157: =SUMIF(E145:E152,E157,F145:F152) -> 0 | G157: =SUMIF(E145:E152,E157,G145:G152) -> 0 | H157: =IF(B157=TRUE,0,IF(G157=0,0,ROUND(F157/G157,3))) -> 0 | I157: =MAX(O157:Z157) -> 0 | J157: =LARGE((O157:Z157),2) -> 0 | K157: =SUMIF(E145:E152,E157,K145:K152) -> 0 | L157: =IF(B157=TRUE,"WO",IF(AND(B155=TRUE,B156=TRUE),1,IF(N157=0,0,RANK(N157,N155:N157,0)))) -> 0 | M157: =IF(B145="",0,IF(B157=TRUE,0+N157,3-L157+N157)) -> 0 | N157: =IF(OR(B157=TRUE,AND(B155=TRUE,B156=TRUE)),0.00000000001,K157*0.1+H157*0.01+I157*0.00000001+J157*0.00000000001) -> 0 | O157: =IF(E145=E157,I145,0) -> 0 | P157: =IF(E145=E157,J145,0) -> 0 | Q157: =IF(E146=E157,I146,0) -> 0 | R157: =IF(E146=E157,J146,0) -> 0 | S157: =IF(E148=E157,I148,0) -> 0 | T157: =IF(E148=E157,J148,0) -> 0 | U157: =IF(E149=E157,I149,0) -> 0 | V157: =IF(E149=E157,J149,0) -> 0 | W157: =IF(E151=E157,I151,0) -> 0 | X157: =IF(E151=E157,J151,0) -> 0 | Y157: =IF(E152=E157,I152,0) -> 0 | Z157: =IF(E152=E157,J152,0) -> 0
F159: Boles | G159: Ent | H159: Mitj | I159: SM1 | J159: SM2 | K159: Punts
B160: =IF('Rànquing Inicial'!$D$147>30,"Grup AA","") ->  | E160: =IF(D169>1,"",IF(OR(B171=TRUE,B172=TRUE),E170,E171)) ->  | H160: =IF(G160="","",ROUND(F160/G160,3)) ->  | K160: =IF(H160="","",IF(F160>F161,2,IF(F160<F161,0,1))) -> 
E161: =IF(D169>1,"",IF(B172=TRUE,E171,E172)) ->  | G161: =IF(G160="","",G160) ->  | H161: =IF(G161="","",ROUND(F161/G161,3)) ->  | K161: =IF(H161="","",IF(F161>F160,2,IF(F161<F160,0,1))) -> 
E163: =IF(D169>1,"",IF(B170=TRUE,E171,E170)) ->  | H163: =IF(G163="","",ROUND(F163/G163,3)) ->  | K163: =IF(H163="","",IF(F163>F164,2,IF(F163<F164,0,1))) -> 
E164: =IF(D169>1,"",IF(B172=TRUE,E171,E172)) ->  | G164: =IF(G163="","",G163) ->  | H164: =IF(G164="","",ROUND(F164/G164,3)) ->  | K164: =IF(H164="","",IF(F164>F163,2,IF(F164<F163,0,1))) -> 
E166: =IF(D169>1,"",IF(OR(B170=TRUE,B171=TRUE,B172=TRUE),"",E170)) ->  | H166: =IF(G166="","",ROUND(F166/G166,3)) ->  | K166: =IF(H166="","",IF(F166>F167,2,IF(F166<F167,0,1))) -> 
E167: =IF(OR(B170=TRUE,B171=TRUE,B172=TRUE),"",E171) ->  | G167: =IF(G166="","",G166) ->  | H167: =IF(G167="","",ROUND(F167/G167,3)) ->  | K167: =IF(H167="","",IF(F167>F166,2,IF(F167<F166,0,1))) -> 
B169: ¿WO? | D169: =COUNTIF(B170:B172,"VERDADERO") -> 0 | E169: Jugador | F169: Boles | G169: Ent | H169: Mitj | I169: SM1 | J169: SM2 | K169: P | L169: =B160 -> 
B170: FALSE | C170: =L170 -> 0 | D170: ='Grups PP'!H18 ->  | E170: ='Grups PP'!I18 ->  | F170: =SUMIF(E160:E167,E170,F160:F167) -> 0 | G170: =SUMIF(E160:E167,E170,G160:G167) -> 0 | H170: =IF(B170=TRUE,0,IF(G170=0,0,ROUND(F170/G170,3))) -> 0 | I170: =MAX(O170:Z170) -> 0 | J170: =LARGE((O170:Z170),2) -> 0 | K170: =SUMIF(E160:E167,E170,K160:K167) -> 0 | L170: =IF(B170=TRUE,"WO",IF(AND(B171=TRUE,B172=TRUE),1,IF(N170=0,0,RANK(N170,N170:N172,0)))) -> 0 | M170: =IF(B160="",0,IF(B170=TRUE,0+N170,3-L170+N170)) -> 0 | N170: =IF(OR(B170=TRUE,AND(B171=TRUE,B172=TRUE)),0.000000000038,K170*0.1+H170*0.01+I170*0.00000001+J170*0.00000000001) -> 0 | O170: =IF(E160=E170,I160,0) -> 0 | P170: =IF(E160=E170,J160,0) -> 0 | Q170: =IF(E161=E170,I161,0) -> 0 | R170: =IF(E161=E170,J161,0) -> 0 | S170: =IF(E163=E170,I163,0) -> 0 | T170: =IF(E163=E170,J163,0) -> 0 | U170: =IF(E164=E170,I164,0) -> 0 | V170: =IF(E164=E170,J164,0) -> 0 | W170: =IF(E166=E170,I166,0) -> 0 | X170: =IF(E166=E170,J166,0) -> 0 | Y170: =IF(E167=E170,I167,0) -> 0 | Z170: =IF(E167=E170,J167,0) -> 0
B171: FALSE | C171: =L171 -> 0 | D171: ='Grups PP'!H19 ->  | E171: ='Grups PP'!I19 ->  | F171: =SUMIF(E160:E167,E171,F160:F167) -> 0 | G171: =SUMIF(E160:E167,E171,G160:G167) -> 0 | H171: =IF(B171=TRUE,0,IF(G171=0,0,ROUND(F171/G171,3))) -> 0 | I171: =MAX(O171:Z171) -> 0 | J171: =LARGE((O171:Z171),2) -> 0 | K171: =SUMIF(E160:E167,E171,K160:K167) -> 0 | L171: =IF(B171=TRUE,"WO",IF(AND(B170=TRUE,B172=TRUE),1,IF(N171=0,0,RANK(N171,N170:N172,0)))) -> 0 | M171: =IF(B160="",0,IF(B171=TRUE,0+N171,3-L171+N171)) -> 0 | N171: =IF(OR(B171=TRUE,AND(B170=TRUE,B172=TRUE)),0.000000000027,K171*0.1+H171*0.01+I171*0.00000001+J171*0.00000000001) -> 0 | O171: =IF(E160=E171,I160,0) -> 0 | P171: =IF(E160=E171,J160,0) -> 0 | Q171: =IF(E161=E171,I161,0) -> 0 | R171: =IF(E161=E171,J161,0) -> 0 | S171: =IF(E163=E171,I163,0) -> 0 | T171: =IF(E163=E171,J163,0) -> 0 | U171: =IF(E164=E171,I164,0) -> 0 | V171: =IF(E164=E171,J164,0) -> 0 | W171: =IF(E166=E171,I166,0) -> 0 | X171: =IF(E166=E171,J166,0) -> 0 | Y171: =IF(E167=E171,I167,0) -> 0 | Z171: =IF(E167=E171,J167,0) -> 0
B172: FALSE | C172: =L172 -> 0 | D172: ='Grups PP'!H20 ->  | E172: ='Grups PP'!I20 ->  | F172: =SUMIF(E160:E167,E172,F160:F167) -> 0 | G172: =SUMIF(E160:E167,E172,G160:G167) -> 0 | H172: =IF(B172=TRUE,0,IF(G172=0,0,ROUND(F172/G172,3))) -> 0 | I172: =MAX(O172:Z172) -> 0 | J172: =LARGE((O172:Z172),2) -> 0 | K172: =SUMIF(E160:E167,E172,K160:K167) -> 0 | L172: =IF(B172=TRUE,"WO",IF(AND(B170=TRUE,B171=TRUE),1,IF(N172=0,0,RANK(N172,N170:N172,0)))) -> 0 | M172: =IF(B160="",0,IF(B172=TRUE,0+N172,3-L172+N172)) -> 0 | N172: =IF(OR(B172=TRUE,AND(B170=TRUE,B171=TRUE)),0.000000000011,K172*0.1+H172*0.01+I172*0.00000001+J172*0.00000000001) -> 0 | O172: =IF(E160=E172,I160,0) -> 0 | P172: =IF(E160=E172,J160,0) -> 0 | Q172: =IF(E161=E172,I161,0) -> 0 | R172: =IF(E161=E172,J161,0) -> 0 | S172: =IF(E163=E172,I163,0) -> 0 | T172: =IF(E163=E172,J163,0) -> 0 | U172: =IF(E164=E172,I164,0) -> 0 | V172: =IF(E164=E172,J164,0) -> 0 | W172: =IF(E166=E172,I166,0) -> 0 | X172: =IF(E166=E172,J166,0) -> 0 | Y172: =IF(E167=E172,I167,0) -> 0 | Z172: =IF(E167=E172,J167,0) -> 0
F174: Boles | G174: Ent | H174: Mitj | I174: SM1 | J174: SM2 | K174: Punts
B175: =IF('Rànquing Inicial'!$D$147>33,"Grup AB","") ->  | E175: =IF(D184>1,"",IF(OR(B186=TRUE,B187=TRUE),E185,E186)) ->  | H175: =IF(G175="","",ROUND(F175/G175,3)) ->  | K175: =IF(H175="","",IF(F175>F176,2,IF(F175<F176,0,1))) -> 
E176: =IF(D184>1,"",IF(B187=TRUE,E186,E187)) ->  | G176: =IF(G175="","",G175) ->  | H176: =IF(G176="","",ROUND(F176/G176,3)) ->  | K176: =IF(H176="","",IF(F176>F175,2,IF(F176<F175,0,1))) -> 
E178: =IF(D184>1,"",IF(B185=TRUE,E186,E185)) ->  | H178: =IF(G178="","",ROUND(F178/G178,3)) ->  | K178: =IF(H178="","",IF(F178>F179,2,IF(F178<F179,0,1))) -> 
E179: =IF(D184>1,"",IF(B187=TRUE,E186,E187)) ->  | G179: =IF(G178="","",G178) ->  | H179: =IF(G179="","",ROUND(F179/G179,3)) ->  | K179: =IF(H179="","",IF(F179>F178,2,IF(F179<F178,0,1))) -> 
E181: =IF(D184>1,"",IF(OR(B185=TRUE,B186=TRUE,B187=TRUE),"",E185)) ->  | H181: =IF(G181="","",ROUND(F181/G181,3)) ->  | K181: =IF(H181="","",IF(F181>F182,2,IF(F181<F182,0,1))) -> 
E182: =IF(OR(B185=TRUE,B186=TRUE,B187=TRUE),"",E186) ->  | G182: =IF(G181="","",G181) ->  | H182: =IF(G182="","",ROUND(F182/G182,3)) ->  | K182: =IF(H182="","",IF(F182>F181,2,IF(F182<F181,0,1))) -> 
B184: ¿WO? | D184: =COUNTIF(B185:B187,"VERDADERO") -> 0 | E184: Jugador | F184: Boles | G184: Ent | H184: Mitj | I184: SM1 | J184: SM2 | K184: P | L184: =B175 -> 
B185: FALSE | C185: =L185 -> 0 | D185: ='Grups PP'!H22 ->  | E185: ='Grups PP'!I22 ->  | F185: =SUMIF(E175:E182,E185,F175:F182) -> 0 | G185: =SUMIF(E175:E182,E185,G175:G182) -> 0 | H185: =IF(B185=TRUE,0,IF(G185=0,0,ROUND(F185/G185,3))) -> 0 | I185: =MAX(O185:Z185) -> 0 | J185: =LARGE((O185:Z185),2) -> 0 | K185: =SUMIF(E175:E182,E185,K175:K182) -> 0 | L185: =IF(B185=TRUE,"WO",IF(AND(B186=TRUE,B187=TRUE),1,IF(N185=0,0,RANK(N185,N185:N187,0)))) -> 0 | M185: =IF(B175="",0,IF(B185=TRUE,0+N185,3-L185+N185)) -> 0 | N185: =IF(OR(B185=TRUE,AND(B186=TRUE,B187=TRUE)),0.000000000037,K185*0.1+H185*0.01+I185*0.00000001+J185*0.00000000001) -> 0 | O185: =IF(E175=E185,I175,0) -> 0 | P185: =IF(E175=E185,J175,0) -> 0 | Q185: =IF(E176=E185,I176,0) -> 0 | R185: =IF(E176=E185,J176,0) -> 0 | S185: =IF(E178=E185,I178,0) -> 0 | T185: =IF(E178=E185,J178,0) -> 0 | U185: =IF(E179=E185,I179,0) -> 0 | V185: =IF(E179=E185,J179,0) -> 0 | W185: =IF(E181=E185,I181,0) -> 0 | X185: =IF(E181=E185,J181,0) -> 0 | Y185: =IF(E182=E185,I182,0) -> 0 | Z185: =IF(E182=E185,J182,0) -> 0
B186: FALSE | C186: =L186 -> 0 | D186: ='Grups PP'!H23 ->  | E186: ='Grups PP'!I23 ->  | F186: =SUMIF(E175:E182,E186,F175:F182) -> 0 | G186: =SUMIF(E175:E182,E186,G175:G182) -> 0 | H186: =IF(B186=TRUE,0,IF(G186=0,0,ROUND(F186/G186,3))) -> 0 | I186: =MAX(O186:Z186) -> 0 | J186: =LARGE((O186:Z186),2) -> 0 | K186: =SUMIF(E175:E182,E186,K175:K182) -> 0 | L186: =IF(B186=TRUE,"WO",IF(AND(B185=TRUE,B187=TRUE),1,IF(N186=0,0,RANK(N186,N185:N187,0)))) -> 0 | M186: =IF(B175="",0,IF(B186=TRUE,0+N186,3-L186+N186)) -> 0 | N186: =IF(OR(B186=TRUE,AND(B185=TRUE,B187=TRUE)),0.000000000028,K186*0.1+H186*0.01+I186*0.00000001+J186*0.00000000001) -> 0 | O186: =IF(E175=E186,I175,0) -> 0 | P186: =IF(E175=E186,J175,0) -> 0 | Q186: =IF(E176=E186,I176,0) -> 0 | R186: =IF(E176=E186,J176,0) -> 0 | S186: =IF(E178=E186,I178,0) -> 0 | T186: =IF(E178=E186,J178,0) -> 0 | U186: =IF(E179=E186,I179,0) -> 0 | V186: =IF(E179=E186,J179,0) -> 0 | W186: =IF(E181=E186,I181,0) -> 0 | X186: =IF(E181=E186,J181,0) -> 0 | Y186: =IF(E182=E186,I182,0) -> 0 | Z186: =IF(E182=E186,J182,0) -> 0
B187: FALSE | C187: =L187 -> 0 | D187: ='Grups PP'!H24 ->  | E187: ='Grups PP'!I24 ->  | F187: =SUMIF(E175:E182,E187,F175:F182) -> 0 | G187: =SUMIF(E175:E182,E187,G175:G182) -> 0 | H187: =IF(B187=TRUE,0,IF(G187=0,0,ROUND(F187/G187,3))) -> 0 | I187: =MAX(O187:Z187) -> 0 | J187: =LARGE((O187:Z187),2) -> 0 | K187: =SUMIF(E175:E182,E187,K175:K182) -> 0 | L187: =IF(B187=TRUE,"WO",IF(AND(B185=TRUE,B186=TRUE),1,IF(N187=0,0,RANK(N187,N185:N187,0)))) -> 0 | M187: =IF(B175="",0,IF(B187=TRUE,0+N187,3-L187+N187)) -> 0 | N187: =IF(OR(B187=TRUE,AND(B185=TRUE,B186=TRUE)),0.000000000012,K187*0.1+H187*0.01+I187*0.00000001+J187*0.00000000001) -> 0 | O187: =IF(E175=E187,I175,0) -> 0 | P187: =IF(E175=E187,J175,0) -> 0 | Q187: =IF(E176=E187,I176,0) -> 0 | R187: =IF(E176=E187,J176,0) -> 0 | S187: =IF(E178=E187,I178,0) -> 0 | T187: =IF(E178=E187,J178,0) -> 0 | U187: =IF(E179=E187,I179,0) -> 0 | V187: =IF(E179=E187,J179,0) -> 0 | W187: =IF(E181=E187,I181,0) -> 0 | X187: =IF(E181=E187,J181,0) -> 0 | Y187: =IF(E182=E187,I182,0) -> 0 | Z187: =IF(E182=E187,J182,0) -> 0
F189: Boles | G189: Ent | H189: Mitj | I189: SM1 | J189: SM2 | K189: Punts
B190: =IF('Rànquing Inicial'!$D$147>36,"Grup AC","") ->  | E190: =IF(D199>1,"",IF(OR(B201=TRUE,B202=TRUE),E200,E201)) ->  | H190: =IF(G190="","",ROUND(F190/G190,3)) ->  | K190: =IF(H190="","",IF(F190>F191,2,IF(F190<F191,0,1))) -> 
E191: =IF(D199>1,"",IF(B202=TRUE,E201,E202)) ->  | G191: =IF(G190="","",G190) ->  | H191: =IF(G191="","",ROUND(F191/G191,3)) ->  | K191: =IF(H191="","",IF(F191>F190,2,IF(F191<F190,0,1))) -> 
E193: =IF(D199>1,"",IF(B200=TRUE,E201,E200)) ->  | H193: =IF(G193="","",ROUND(F193/G193,3)) ->  | K193: =IF(H193="","",IF(F193>F194,2,IF(F193<F194,0,1))) -> 
E194: =IF(D199>1,"",IF(B202=TRUE,E201,E202)) ->  | G194: =IF(G193="","",G193) ->  | H194: =IF(G194="","",ROUND(F194/G194,3)) ->  | K194: =IF(H194="","",IF(F194>F193,2,IF(F194<F193,0,1))) -> 
E196: =IF(D199>1,"",IF(OR(B200=TRUE,B201=TRUE,B202=TRUE),"",E200)) ->  | H196: =IF(G196="","",ROUND(F196/G196,3)) ->  | K196: =IF(H196="","",IF(F196>F197,2,IF(F196<F197,0,1))) -> 
E197: =IF(OR(B200=TRUE,B201=TRUE,B202=TRUE),"",E201) ->  | G197: =IF(G196="","",G196) ->  | H197: =IF(G197="","",ROUND(F197/G197,3)) ->  | K197: =IF(H197="","",IF(F197>F196,2,IF(F197<F196,0,1))) -> 
B199: ¿WO? | D199: =COUNTIF(B200:B202,"VERDADERO") -> 0 | E199: Jugador | F199: Boles | G199: Ent | H199: Mitj | I199: SM1 | J199: SM2 | K199: P | L199: =B190 -> 
B200: FALSE | C200: =L200 -> 0 | D200: ='Grups PP'!H26 ->  | E200: ='Grups PP'!I26 ->  | F200: =SUMIF(E190:E197,E200,F190:F197) -> 0 | G200: =SUMIF(E190:E197,E200,G190:G197) -> 0 | H200: =IF(B200=TRUE,0,IF(G200=0,0,ROUND(F200/G200,3))) -> 0 | I200: =MAX(O200:Z200) -> 0 | J200: =LARGE((O200:Z200),2) -> 0 | K200: =SUMIF(E190:E197,E200,K190:K197) -> 0 | L200: =IF(B200=TRUE,"WO",IF(AND(B201=TRUE,B202=TRUE),1,IF(N200=0,0,RANK(N200,N200:N202,0)))) -> 0 | M200: =IF(B190="",0,IF(B200=TRUE,0+N200,3-L200+N200)) -> 0 | N200: =IF(OR(B200=TRUE,AND(B201=TRUE,B202=TRUE)),0.000000000036,K200*0.1+H200*0.01+I200*0.00000001+J200*0.00000000001) -> 0 | O200: =IF(E190=E200,I190,0) -> 0 | P200: =IF(E190=E200,J190,0) -> 0 | Q200: =IF(E191=E200,I191,0) -> 0 | R200: =IF(E191=E200,J191,0) -> 0 | S200: =IF(E193=E200,I193,0) -> 0 | T200: =IF(E193=E200,J193,0) -> 0 | U200: =IF(E194=E200,I194,0) -> 0 | V200: =IF(E194=E200,J194,0) -> 0 | W200: =IF(E196=E200,I196,0) -> 0 | X200: =IF(E196=E200,J196,0) -> 0 | Y200: =IF(E197=E200,I197,0) -> 0 | Z200: =IF(E197=E200,J197,0) -> 0
B201: FALSE | C201: =L201 -> 0 | D201: ='Grups PP'!H27 ->  | E201: ='Grups PP'!I27 ->  | F201: =SUMIF(E190:E197,E201,F190:F197) -> 0 | G201: =SUMIF(E190:E197,E201,G190:G197) -> 0 | H201: =IF(B201=TRUE,0,IF(G201=0,0,ROUND(F201/G201,3))) -> 0 | I201: =MAX(O201:Z201) -> 0 | J201: =LARGE((O201:Z201),2) -> 0 | K201: =SUMIF(E190:E197,E201,K190:K197) -> 0 | L201: =IF(B201=TRUE,"WO",IF(AND(B200=TRUE,B202=TRUE),1,IF(N201=0,0,RANK(N201,N200:N202,0)))) -> 0 | M201: =IF(B190="",0,IF(B201=TRUE,0+N201,3-L201+N201)) -> 0 | N201: =IF(OR(B201=TRUE,AND(B200=TRUE,B202=TRUE)),0.000000000029,K201*0.1+H201*0.01+I201*0.00000001+J201*0.00000000001) -> 0 | O201: =IF(E190=E201,I190,0) -> 0 | P201: =IF(E190=E201,J190,0) -> 0 | Q201: =IF(E191=E201,I191,0) -> 0 | R201: =IF(E191=E201,J191,0) -> 0 | S201: =IF(E193=E201,I193,0) -> 0 | T201: =IF(E193=E201,J193,0) -> 0 | U201: =IF(E194=E201,I194,0) -> 0 | V201: =IF(E194=E201,J194,0) -> 0 | W201: =IF(E196=E201,I196,0) -> 0 | X201: =IF(E196=E201,J196,0) -> 0 | Y201: =IF(E197=E201,I197,0) -> 0 | Z201: =IF(E197=E201,J197,0) -> 0
B202: FALSE | C202: =L202 -> 0 | D202: ='Grups PP'!H28 ->  | E202: ='Grups PP'!I28 ->  | F202: =SUMIF(E190:E197,E202,F190:F197) -> 0 | G202: =SUMIF(E190:E197,E202,G190:G197) -> 0 | H202: =IF(B202=TRUE,0,IF(G202=0,0,ROUND(F202/G202,3))) -> 0 | I202: =MAX(O202:Z202) -> 0 | J202: =LARGE((O202:Z202),2) -> 0 | K202: =SUMIF(E190:E197,E202,K190:K197) -> 0 | L202: =IF(B202=TRUE,"WO",IF(AND(B200=TRUE,B201=TRUE),1,IF(N202=0,0,RANK(N202,N200:N202,0)))) -> 0 | M202: =IF(B190="",0,IF(B202=TRUE,0+N202,3-L202+N202)) -> 0 | N202: =IF(OR(B202=TRUE,AND(B200=TRUE,B201=TRUE)),0.000000000013,K202*0.1+H202*0.01+I202*0.00000001+J202*0.00000000001) -> 0 | O202: =IF(E190=E202,I190,0) -> 0 | P202: =IF(E190=E202,J190,0) -> 0 | Q202: =IF(E191=E202,I191,0) -> 0 | R202: =IF(E191=E202,J191,0) -> 0 | S202: =IF(E193=E202,I193,0) -> 0 | T202: =IF(E193=E202,J193,0) -> 0 | U202: =IF(E194=E202,I194,0) -> 0 | V202: =IF(E194=E202,J194,0) -> 0 | W202: =IF(E196=E202,I196,0) -> 0 | X202: =IF(E196=E202,J196,0) -> 0 | Y202: =IF(E197=E202,I197,0) -> 0 | Z202: =IF(E197=E202,J197,0) -> 0
F204: Boles | G204: Ent | H204: Mitj | I204: SM1 | J204: SM2 | K204: Punts
B205: =IF('Rànquing Inicial'!$D$147>39,"Grup AD","") ->  | E205: =IF(D214>1,"",IF(OR(B216=TRUE,B217=TRUE),E215,E216)) ->  | H205: =IF(G205="","",ROUND(F205/G205,3)) ->  | K205: =IF(H205="","",IF(F205>F206,2,IF(F205<F206,0,1))) -> 
E206: =IF(D214>1,"",IF(B217=TRUE,E216,E217)) ->  | G206: =IF(G205="","",G205) ->  | H206: =IF(G206="","",ROUND(F206/G206,3)) ->  | K206: =IF(H206="","",IF(F206>F205,2,IF(F206<F205,0,1))) -> 
E208: =IF(D214>1,"",IF(B215=TRUE,E216,E215)) ->  | H208: =IF(G208="","",ROUND(F208/G208,3)) ->  | K208: =IF(H208="","",IF(F208>F209,2,IF(F208<F209,0,1))) -> 
E209: =IF(D214>1,"",IF(B217=TRUE,E216,E217)) ->  | G209: =IF(G208="","",G208) ->  | H209: =IF(G209="","",ROUND(F209/G209,3)) ->  | K209: =IF(H209="","",IF(F209>F208,2,IF(F209<F208,0,1))) -> 
E211: =IF(D214>1,"",IF(OR(B215=TRUE,B216=TRUE,B217=TRUE),"",E215)) ->  | H211: =IF(G211="","",ROUND(F211/G211,3)) ->  | K211: =IF(H211="","",IF(F211>F212,2,IF(F211<F212,0,1))) -> 
E212: =IF(OR(B215=TRUE,B216=TRUE,B217=TRUE),"",E216) ->  | G212: =IF(G211="","",G211) ->  | H212: =IF(G212="","",ROUND(F212/G212,3)) ->  | K212: =IF(H212="","",IF(F212>F211,2,IF(F212<F211,0,1))) -> 
B214: ¿WO? | D214: =COUNTIF(B215:B217,"VERDADERO") -> 0 | E214: Jugador | F214: Boles | G214: Ent | H214: Mitj | I214: SM1 | J214: SM2 | K214: P | L214: =B205 -> 
B215: FALSE | C215: =L215 -> 0 | D215: ='Grups PP'!H30 ->  | E215: ='Grups PP'!I30 ->  | F215: =SUMIF(E205:E212,E215,F205:F212) -> 0 | G215: =SUMIF(E205:E212,E215,G205:G212) -> 0 | H215: =IF(B215=TRUE,0,IF(G215=0,0,ROUND(F215/G215,3))) -> 0 | I215: =MAX(O215:Z215) -> 0 | J215: =LARGE((O215:Z215),2) -> 0 | K215: =SUMIF(E205:E212,E215,K205:K212) -> 0 | L215: =IF(B215=TRUE,"WO",IF(AND(B216=TRUE,B217=TRUE),1,IF(N215=0,0,RANK(N215,N215:N217,0)))) -> 0 | M215: =IF(B205="",0,IF(B215=TRUE,0+N215,3-L215+N215)) -> 0 | N215: =IF(OR(B215=TRUE,AND(B216=TRUE,B217=TRUE)),0.000000000035,K215*0.1+H215*0.01+I215*0.00000001+J215*0.00000000001) -> 0 | O215: =IF(E205=E215,I205,0) -> 0 | P215: =IF(E205=E215,J205,0) -> 0 | Q215: =IF(E206=E215,I206,0) -> 0 | R215: =IF(E206=E215,J206,0) -> 0 | S215: =IF(E208=E215,I208,0) -> 0 | T215: =IF(E208=E215,J208,0) -> 0 | U215: =IF(E209=E215,I209,0) -> 0 | V215: =IF(E209=E215,J209,0) -> 0 | W215: =IF(E211=E215,I211,0) -> 0 | X215: =IF(E211=E215,J211,0) -> 0 | Y215: =IF(E212=E215,I212,0) -> 0 | Z215: =IF(E212=E215,J212,0) -> 0
B216: FALSE | C216: =L216 -> 0 | D216: ='Grups PP'!H31 ->  | E216: ='Grups PP'!I31 ->  | F216: =SUMIF(E205:E212,E216,F205:F212) -> 0 | G216: =SUMIF(E205:E212,E216,G205:G212) -> 0 | H216: =IF(B216=TRUE,0,IF(G216=0,0,ROUND(F216/G216,3))) -> 0 | I216: =MAX(O216:Z216) -> 0 | J216: =LARGE((O216:Z216),2) -> 0 | K216: =SUMIF(E205:E212,E216,K205:K212) -> 0 | L216: =IF(B216=TRUE,"WO",IF(AND(B215=TRUE,B217=TRUE),1,IF(N216=0,0,RANK(N216,N215:N217,0)))) -> 0 | M216: =IF(B205="",0,IF(B216=TRUE,0+N216,3-L216+N216)) -> 0 | N216: =IF(OR(B216=TRUE,AND(B215=TRUE,B217=TRUE)),0.00000000003,K216*0.1+H216*0.01+I216*0.00000001+J216*0.00000000001) -> 0 | O216: =IF(E205=E216,I205,0) -> 0 | P216: =IF(E205=E216,J205,0) -> 0 | Q216: =IF(E206=E216,I206,0) -> 0 | R216: =IF(E206=E216,J206,0) -> 0 | S216: =IF(E208=E216,I208,0) -> 0 | T216: =IF(E208=E216,J208,0) -> 0 | U216: =IF(E209=E216,I209,0) -> 0 | V216: =IF(E209=E216,J209,0) -> 0 | W216: =IF(E211=E216,I211,0) -> 0 | X216: =IF(E211=E216,J211,0) -> 0 | Y216: =IF(E212=E216,I212,0) -> 0 | Z216: =IF(E212=E216,J212,0) -> 0
B217: FALSE | C217: =L217 -> 0 | D217: ='Grups PP'!H32 ->  | E217: ='Grups PP'!I32 ->  | F217: =SUMIF(E205:E212,E217,F205:F212) -> 0 | G217: =SUMIF(E205:E212,E217,G205:G212) -> 0 | H217: =IF(B217=TRUE,0,IF(G217=0,0,ROUND(F217/G217,3))) -> 0 | I217: =MAX(O217:Z217) -> 0 | J217: =LARGE((O217:Z217),2) -> 0 | K217: =SUMIF(E205:E212,E217,K205:K212) -> 0 | L217: =IF(B217=TRUE,"WO",IF(AND(B215=TRUE,B216=TRUE),1,IF(N217=0,0,RANK(N217,N215:N217,0)))) -> 0 | M217: =IF(B205="",0,IF(B217=TRUE,0+N217,3-L217+N217)) -> 0 | N217: =IF(OR(B217=TRUE,AND(B215=TRUE,B216=TRUE)),0.000000000014,K217*0.1+H217*0.01+I217*0.00000001+J217*0.00000000001) -> 0 | O217: =IF(E205=E217,I205,0) -> 0 | P217: =IF(E205=E217,J205,0) -> 0 | Q217: =IF(E206=E217,I206,0) -> 0 | R217: =IF(E206=E217,J206,0) -> 0 | S217: =IF(E208=E217,I208,0) -> 0 | T217: =IF(E208=E217,J208,0) -> 0 | U217: =IF(E209=E217,I209,0) -> 0 | V217: =IF(E209=E217,J209,0) -> 0 | W217: =IF(E211=E217,I211,0) -> 0 | X217: =IF(E211=E217,J211,0) -> 0 | Y217: =IF(E212=E217,I212,0) -> 0 | Z217: =IF(E212=E217,J212,0) -> 0
F219: Boles | G219: Ent | H219: Mitj | I219: SM1 | J219: SM2 | K219: Punts
B220: =IF('Rànquing Inicial'!$D$147>42,"Grup AE","") ->  | E220: =IF(D229>1,"",IF(OR(B231=TRUE,B232=TRUE),E230,E231)) ->  | H220: =IF(G220="","",ROUND(F220/G220,3)) ->  | K220: =IF(H220="","",IF(F220>F221,2,IF(F220<F221,0,1))) -> 
E221: =IF(D229>1,"",IF(B232=TRUE,E231,E232)) ->  | G221: =IF(G220="","",G220) ->  | H221: =IF(G221="","",ROUND(F221/G221,3)) ->  | K221: =IF(H221="","",IF(F221>F220,2,IF(F221<F220,0,1))) -> 
E223: =IF(D229>1,"",IF(B230=TRUE,E231,E230)) ->  | H223: =IF(G223="","",ROUND(F223/G223,3)) ->  | K223: =IF(H223="","",IF(F223>F224,2,IF(F223<F224,0,1))) -> 
E224: =IF(D229>1,"",IF(B232=TRUE,E231,E232)) ->  | G224: =IF(G223="","",G223) ->  | H224: =IF(G224="","",ROUND(F224/G224,3)) ->  | K224: =IF(H224="","",IF(F224>F223,2,IF(F224<F223,0,1))) -> 
E226: =IF(D229>1,"",IF(OR(B230=TRUE,B231=TRUE,B232=TRUE),"",E230)) ->  | H226: =IF(G226="","",ROUND(F226/G226,3)) ->  | K226: =IF(H226="","",IF(F226>F227,2,IF(F226<F227,0,1))) -> 
E227: =IF(OR(B230=TRUE,B231=TRUE,B232=TRUE),"",E231) ->  | G227: =IF(G226="","",G226) ->  | H227: =IF(G227="","",ROUND(F227/G227,3)) ->  | K227: =IF(H227="","",IF(F227>F226,2,IF(F227<F226,0,1))) -> 
B229: ¿WO? | D229: =COUNTIF(B230:B232,"VERDADERO") -> 0 | E229: Jugador | F229: Boles | G229: Ent | H229: Mitj | I229: SM1 | J229: SM2 | K229: P | L229: =B220 -> 
B230: FALSE | C230: =L230 -> 0 | D230: ='Grups PP'!H34 ->  | E230: ='Grups PP'!I34 ->  | F230: =SUMIF(E220:E227,E230,F220:F227) -> 0 | G230: =SUMIF(E220:E227,E230,G220:G227) -> 0 | H230: =IF(B230=TRUE,0,IF(G230=0,0,ROUND(F230/G230,3))) -> 0 | I230: =MAX(O230:Z230) -> 0 | J230: =LARGE((O230:Z230),2) -> 0 | K230: =SUMIF(E220:E227,E230,K220:K227) -> 0 | L230: =IF(B230=TRUE,"WO",IF(AND(B231=TRUE,B232=TRUE),1,IF(N230=0,0,RANK(N230,N230:N232,0)))) -> 0 | M230: =IF(B220="",0,IF(B230=TRUE,0+N230,3-L230+N230)) -> 0 | N230: =IF(OR(B230=TRUE,AND(B231=TRUE,B232=TRUE)),0.000000000034,K230*0.1+H230*0.01+I230*0.00000001+J230*0.00000000001) -> 0 | O230: =IF(E220=E230,I220,0) -> 0 | P230: =IF(E220=E230,J220,0) -> 0 | Q230: =IF(E221=E230,I221,0) -> 0 | R230: =IF(E221=E230,J221,0) -> 0 | S230: =IF(E223=E230,I223,0) -> 0 | T230: =IF(E223=E230,J223,0) -> 0 | U230: =IF(E224=E230,I224,0) -> 0 | V230: =IF(E224=E230,J224,0) -> 0 | W230: =IF(E226=E230,I226,0) -> 0 | X230: =IF(E226=E230,J226,0) -> 0 | Y230: =IF(E227=E230,I227,0) -> 0 | Z230: =IF(E227=E230,J227,0) -> 0
B231: FALSE | C231: =L231 -> 0 | D231: ='Grups PP'!H35 ->  | E231: ='Grups PP'!I35 ->  | F231: =SUMIF(E220:E227,E231,F220:F227) -> 0 | G231: =SUMIF(E220:E227,E231,G220:G227) -> 0 | H231: =IF(B231=TRUE,0,IF(G231=0,0,ROUND(F231/G231,3))) -> 0 | I231: =MAX(O231:Z231) -> 0 | J231: =LARGE((O231:Z231),2) -> 0 | K231: =SUMIF(E220:E227,E231,K220:K227) -> 0 | L231: =IF(B231=TRUE,"WO",IF(AND(B230=TRUE,B232=TRUE),1,IF(N231=0,0,RANK(N231,N230:N232,0)))) -> 0 | M231: =IF(B220="",0,IF(B231=TRUE,0+N231,3-L231+N231)) -> 0 | N231: =IF(OR(B231=TRUE,AND(B230=TRUE,B232=TRUE)),0.000000000031,K231*0.1+H231*0.01+I231*0.00000001+J231*0.00000000001) -> 0 | O231: =IF(E220=E231,I220,0) -> 0 | P231: =IF(E220=E231,J220,0) -> 0 | Q231: =IF(E221=E231,I221,0) -> 0 | R231: =IF(E221=E231,J221,0) -> 0 | S231: =IF(E223=E231,I223,0) -> 0 | T231: =IF(E223=E231,J223,0) -> 0 | U231: =IF(E224=E231,I224,0) -> 0 | V231: =IF(E224=E231,J224,0) -> 0 | W231: =IF(E226=E231,I226,0) -> 0 | X231: =IF(E226=E231,J226,0) -> 0 | Y231: =IF(E227=E231,I227,0) -> 0 | Z231: =IF(E227=E231,J227,0) -> 0
B232: FALSE | C232: =L232 -> 0 | D232: ='Grups PP'!H36 ->  | E232: ='Grups PP'!I36 ->  | F232: =SUMIF(E220:E227,E232,F220:F227) -> 0 | G232: =SUMIF(E220:E227,E232,G220:G227) -> 0 | H232: =IF(B232=TRUE,0,IF(G232=0,0,ROUND(F232/G232,3))) -> 0 | I232: =MAX(O232:Z232) -> 0 | J232: =LARGE((O232:Z232),2) -> 0 | K232: =SUMIF(E220:E227,E232,K220:K227) -> 0 | L232: =IF(B232=TRUE,"WO",IF(AND(B230=TRUE,B231=TRUE),1,IF(N232=0,0,RANK(N232,N230:N232,0)))) -> 0 | M232: =IF(B220="",0,IF(B232=TRUE,0+N232,3-L232+N232)) -> 0 | N232: =IF(OR(B232=TRUE,AND(B230=TRUE,B231=TRUE)),0.000000000015,K232*0.1+H232*0.01+I232*0.00000001+J232*0.00000000001) -> 0 | O232: =IF(E220=E232,I220,0) -> 0 | P232: =IF(E220=E232,J220,0) -> 0 | Q232: =IF(E221=E232,I221,0) -> 0 | R232: =IF(E221=E232,J221,0) -> 0 | S232: =IF(E223=E232,I223,0) -> 0 | T232: =IF(E223=E232,J223,0) -> 0 | U232: =IF(E224=E232,I224,0) -> 0 | V232: =IF(E224=E232,J224,0) -> 0 | W232: =IF(E226=E232,I226,0) -> 0 | X232: =IF(E226=E232,J226,0) -> 0 | Y232: =IF(E227=E232,I227,0) -> 0 | Z232: =IF(E227=E232,J227,0) -> 0
F234: Boles | G234: Ent | H234: Mitj | I234: SM1 | J234: SM2 | K234: Punts
B235: =IF('Rànquing Inicial'!$D$147>45,"Grup AF","") ->  | E235: =IF(D244>1,"",IF(OR(B246=TRUE,B247=TRUE),E245,E246)) ->  | H235: =IF(G235="","",ROUND(F235/G235,3)) ->  | K235: =IF(H235="","",IF(F235>F236,2,IF(F235<F236,0,1))) -> 
E236: =IF(D244>1,"",IF(B247=TRUE,E246,E247)) ->  | G236: =IF(G235="","",G235) ->  | H236: =IF(G236="","",ROUND(F236/G236,3)) ->  | K236: =IF(H236="","",IF(F236>F235,2,IF(F236<F235,0,1))) -> 
E238: =IF(D244>1,"",IF(B245=TRUE,E246,E245)) ->  | H238: =IF(G238="","",ROUND(F238/G238,3)) ->  | K238: =IF(H238="","",IF(F238>F239,2,IF(F238<F239,0,1))) -> 
E239: =IF(D244>1,"",IF(B247=TRUE,E246,E247)) ->  | G239: =IF(G238="","",G238) ->  | H239: =IF(G239="","",ROUND(F239/G239,3)) ->  | K239: =IF(H239="","",IF(F239>F238,2,IF(F239<F238,0,1))) -> 
E241: =IF(D244>1,"",IF(OR(B245=TRUE,B246=TRUE,B247=TRUE),"",E245)) ->  | H241: =IF(G241="","",ROUND(F241/G241,3)) ->  | K241: =IF(H241="","",IF(F241>F242,2,IF(F241<F242,0,1))) -> 
E242: =IF(OR(B245=TRUE,B246=TRUE,B247=TRUE),"",E246) ->  | G242: =IF(G241="","",G241) ->  | H242: =IF(G242="","",ROUND(F242/G242,3)) ->  | K242: =IF(H242="","",IF(F242>F241,2,IF(F242<F241,0,1))) -> 
B244: ¿WO? | D244: =COUNTIF(B245:B247,"VERDADERO") -> 0 | E244: Jugador | F244: Boles | G244: Ent | H244: Mitj | I244: SM1 | J244: SM2 | K244: P | L244: =B235 -> 
B245: FALSE | C245: =L245 -> 0 | D245: ='Grups PP'!H38 ->  | E245: ='Grups PP'!I38 ->  | F245: =SUMIF(E235:E242,E245,F235:F242) -> 0 | G245: =SUMIF(E235:E242,E245,G235:G242) -> 0 | H245: =IF(B245=TRUE,0,IF(G245=0,0,ROUND(F245/G245,3))) -> 0 | I245: =MAX(O245:Z245) -> 0 | J245: =LARGE((O245:Z245),2) -> 0 | K245: =SUMIF(E235:E242,E245,K235:K242) -> 0 | L245: =IF(B245=TRUE,"WO",IF(AND(B246=TRUE,B247=TRUE),1,IF(N245=0,0,RANK(N245,N245:N247,0)))) -> 0 | M245: =IF(B235="",0,IF(B245=TRUE,0+N245,3-L245+N245)) -> 0 | N245: =IF(OR(B245=TRUE,AND(B246=TRUE,B247=TRUE)),0.000000000033,K245*0.1+H245*0.01+I245*0.00000001+J245*0.00000000001) -> 0 | O245: =IF(E235=E245,I235,0) -> 0 | P245: =IF(E235=E245,J235,0) -> 0 | Q245: =IF(E236=E245,I236,0) -> 0 | R245: =IF(E236=E245,J236,0) -> 0 | S245: =IF(E238=E245,I238,0) -> 0 | T245: =IF(E238=E245,J238,0) -> 0 | U245: =IF(E239=E245,I239,0) -> 0 | V245: =IF(E239=E245,J239,0) -> 0 | W245: =IF(E241=E245,I241,0) -> 0 | X245: =IF(E241=E245,J241,0) -> 0 | Y245: =IF(E242=E245,I242,0) -> 0 | Z245: =IF(E242=E245,J242,0) -> 0
B246: FALSE | C246: =L246 -> 0 | D246: ='Grups PP'!H39 ->  | E246: ='Grups PP'!I39 ->  | F246: =SUMIF(E235:E242,E246,F235:F242) -> 0 | G246: =SUMIF(E235:E242,E246,G235:G242) -> 0 | H246: =IF(B246=TRUE,0,IF(G246=0,0,ROUND(F246/G246,3))) -> 0 | I246: =MAX(O246:Z246) -> 0 | J246: =LARGE((O246:Z246),2) -> 0 | K246: =SUMIF(E235:E242,E246,K235:K242) -> 0 | L246: =IF(B246=TRUE,"WO",IF(AND(B245=TRUE,B247=TRUE),1,IF(N246=0,0,RANK(N246,N245:N247,0)))) -> 0 | M246: =IF(B235="",0,IF(B246=TRUE,0+N246,3-L246+N246)) -> 0 | N246: =IF(OR(B246=TRUE,AND(B245=TRUE,B247=TRUE)),0.000000000032,K246*0.1+H246*0.01+I246*0.00000001+J246*0.00000000001) -> 0 | O246: =IF(E235=E246,I235,0) -> 0 | P246: =IF(E235=E246,J235,0) -> 0 | Q246: =IF(E236=E246,I236,0) -> 0 | R246: =IF(E236=E246,J236,0) -> 0 | S246: =IF(E238=E246,I238,0) -> 0 | T246: =IF(E238=E246,J238,0) -> 0 | U246: =IF(E239=E246,I239,0) -> 0 | V246: =IF(E239=E246,J239,0) -> 0 | W246: =IF(E241=E246,I241,0) -> 0 | X246: =IF(E241=E246,J241,0) -> 0 | Y246: =IF(E242=E246,I242,0) -> 0 | Z246: =IF(E242=E246,J242,0) -> 0
B247: FALSE | C247: =L247 -> 0 | D247: ='Grups PP'!H40 ->  | E247: ='Grups PP'!I40 ->  | F247: =SUMIF(E235:E242,E247,F235:F242) -> 0 | G247: =SUMIF(E235:E242,E247,G235:G242) -> 0 | H247: =IF(B247=TRUE,0,IF(G247=0,0,ROUND(F247/G247,3))) -> 0 | I247: =MAX(O247:Z247) -> 0 | J247: =LARGE((O247:Z247),2) -> 0 | K247: =SUMIF(E235:E242,E247,K235:K242) -> 0 | L247: =IF(B247=TRUE,"WO",IF(AND(B245=TRUE,B246=TRUE),1,IF(N247=0,0,RANK(N247,N245:N247,0)))) -> 0 | M247: =IF(B235="",0,IF(B247=TRUE,0+N247,3-L247+N247)) -> 0 | N247: =IF(OR(B247=TRUE,AND(B245=TRUE,B246=TRUE)),0.000000000016,K247*0.1+H247*0.01+I247*0.00000001+J247*0.00000000001) -> 0 | O247: =IF(E235=E247,I235,0) -> 0 | P247: =IF(E235=E247,J235,0) -> 0 | Q247: =IF(E236=E247,I236,0) -> 0 | R247: =IF(E236=E247,J236,0) -> 0 | S247: =IF(E238=E247,I238,0) -> 0 | T247: =IF(E238=E247,J238,0) -> 0 | U247: =IF(E239=E247,I239,0) -> 0 | V247: =IF(E239=E247,J239,0) -> 0 | W247: =IF(E241=E247,I241,0) -> 0 | X247: =IF(E241=E247,J241,0) -> 0 | Y247: =IF(E242=E247,I242,0) -> 0 | Z247: =IF(E242=E247,J242,0) -> 0

Sheet PP (C) (hidden)
A1: CLASSIFICACIÓ PRE-PRÈVIA (PP)
A3: Classificació | B3: Posició | C3: Jugador | D3: Punts | E3: Mitjana | F3: SM (1) | G3: SM (2) | H3: Puntuació
A4: =IF(H4=0,"",RANK(H4,$H$4:$H$51,)) ->  | B4: ='Resultats PP'!L20 -> 0 | C4: ='Resultats PP'!E20 ->  | D4: ='Resultats PP'!K20 -> 0 | E4: ='Resultats PP'!H20 -> 0 | F4: ='Resultats PP'!I20 -> 0 | G4: ='Resultats PP'!J20 -> 0 | H4: =IF('Resultats PP'!M20=3,0,'Resultats PP'!M20) -> 0
A5: =IF(H5=0,"",RANK(H5,$H$4:$H$51,)) ->  | B5: ='Resultats PP'!L21 -> 0 | C5: ='Resultats PP'!E21 ->  | D5: ='Resultats PP'!K21 -> 0 | E5: ='Resultats PP'!H21 -> 0 | F5: ='Resultats PP'!I21 -> 0 | G5: ='Resultats PP'!J21 -> 0 | H5: =IF('Resultats PP'!M21=3,0,'Resultats PP'!M21) -> 0
B6: ='Resultats PP'!L22 -> 0 | C6: ='Resultats PP'!E22 ->  | D6: ='Resultats PP'!K22 -> 0 | E6: ='Resultats PP'!H22 -> 0 | F6: ='Resultats PP'!I22 -> 0 | G6: ='Resultats PP'!J22 -> 0 | H6: =IF('Resultats PP'!M22=3,0,'Resultats PP'!M22) -> 0
B7: ='Resultats PP'!L35 -> 0 | C7: ='Resultats PP'!E35 ->  | D7: ='Resultats PP'!K35 -> 0 | E7: ='Resultats PP'!H35 -> 0 | F7: ='Resultats PP'!I35 -> 0 | G7: ='Resultats PP'!J35 -> 0 | H7: =IF('Resultats PP'!M35=3,0,'Resultats PP'!M35) -> 0
B8: ='Resultats PP'!L36 -> 0 | C8: ='Resultats PP'!E36 ->  | D8: ='Resultats PP'!K36 -> 0 | E8: ='Resultats PP'!H36 -> 0 | F8: ='Resultats PP'!I36 -> 0 | G8: ='Resultats PP'!J36 -> 0 | H8: =IF('Resultats PP'!M36=3,0,'Resultats PP'!M36) -> 0
B9: ='Resultats PP'!L37 -> 0 | C9: ='Resultats PP'!E37 ->  | D9: ='Resultats PP'!K37 -> 0 | E9: ='Resultats PP'!H37 -> 0 | F9: ='Resultats PP'!I37 -> 0 | G9: ='Resultats PP'!J37 -> 0 | H9: =IF('Resultats PP'!M37=3,0,'Resultats PP'!M37) -> 0
B10: ='Resultats PP'!L50 -> 0 | C10: ='Resultats PP'!E50 ->  | D10: ='Resultats PP'!K50 -> 0 | E10: ='Resultats PP'!H50 -> 0 | F10: ='Resultats PP'!I50 -> 0 | G10: ='Resultats PP'!J50 -> 0 | H10: =IF('Resultats PP'!M50=3,0,'Resultats PP'!M50) -> 0
B11: ='Resultats PP'!L51 -> 0 | C11: ='Resultats PP'!E51 ->  | D11: ='Resultats PP'!K51 -> 0 | E11: ='Resultats PP'!H51 -> 0 | F11: ='Resultats PP'!I51 -> 0 | G11: ='Resultats PP'!J51 -> 0 | H11: =IF('Resultats PP'!M51=3,0,'Resultats PP'!M51) -> 0
B12: ='Resultats PP'!L52 -> 0 | C12: ='Resultats PP'!E52 ->  | D12: ='Resultats PP'!K52 -> 0 | E12: ='Resultats PP'!H52 -> 0 | F12: ='Resultats PP'!I52 -> 0 | G12: ='Resultats PP'!J52 -> 0 | H12: =IF('Resultats PP'!M52=3,0,'Resultats PP'!M52) -> 0
B13: ='Resultats PP'!L65 -> 0 | C13: ='Resultats PP'!E65 ->  | D13: ='Resultats PP'!K65 -> 0 | E13: ='Resultats PP'!H65 -> 0 | F13: ='Resultats PP'!I65 -> 0 | G13: ='Resultats PP'!J65 -> 0 | H13: =IF('Resultats PP'!M65=3,0,'Resultats PP'!M65) -> 0
B14: ='Resultats PP'!L66 -> 0 | C14: ='Resultats PP'!E66 ->  | D14: ='Resultats PP'!K66 -> 0 | E14: ='Resultats PP'!H66 -> 0 | F14: ='Resultats PP'!I66 -> 0 | G14: ='Resultats PP'!J66 -> 0 | H14: =IF('Resultats PP'!M66=3,0,'Resultats PP'!M66) -> 0
B15: ='Resultats PP'!L67 -> 0 | C15: ='Resultats PP'!E67 ->  | D15: ='Resultats PP'!K67 -> 0 | E15: ='Resultats PP'!H67 -> 0 | F15: ='Resultats PP'!I67 -> 0 | G15: ='Resultats PP'!J67 -> 0 | H15: =IF('Resultats PP'!M67=3,0,'Resultats PP'!M67) -> 0
B16: ='Resultats PP'!L80 -> 0 | C16: ='Resultats PP'!E80 ->  | D16: ='Resultats PP'!K80 -> 0 | E16: ='Resultats PP'!H80 -> 0 | F16: ='Resultats PP'!I80 -> 0 | G16: ='Resultats PP'!J80 -> 0 | H16: =IF('Resultats PP'!M80=3,0,'Resultats PP'!M80) -> 0
B17: ='Resultats PP'!L81 -> 0 | C17: ='Resultats PP'!E81 ->  | D17: ='Resultats PP'!K81 -> 0 | E17: ='Resultats PP'!H81 -> 0 | F17: ='Resultats PP'!I81 -> 0 | G17: ='Resultats PP'!J81 -> 0 | H17: =IF('Resultats PP'!M81=3,0,'Resultats PP'!M81) -> 0
B18: ='Resultats PP'!L82 -> 0 | C18: ='Resultats PP'!E82 ->  | D18: ='Resultats PP'!K82 -> 0 | E18: ='Resultats PP'!H82 -> 0 | F18: ='Resultats PP'!I82 -> 0 | G18: ='Resultats PP'!J82 -> 0 | H18: =IF('Resultats PP'!M82=3,0,'Resultats PP'!M82) -> 0
B19: ='Resultats PP'!L95 -> 0 | C19: ='Resultats PP'!E95 ->  | D19: ='Resultats PP'!K95 -> 0 | E19: ='Resultats PP'!H95 -> 0 | F19: ='Resultats PP'!I95 -> 0 | G19: ='Resultats PP'!J95 -> 0 | H19: =IF('Resultats PP'!M95=3,0,'Resultats PP'!M95) -> 0
B20: ='Resultats PP'!L96 -> 0 | C20: ='Resultats PP'!E96 ->  | D20: ='Resultats PP'!K96 -> 0 | E20: ='Resultats PP'!H96 -> 0 | F20: ='Resultats PP'!I96 -> 0 | G20: ='Resultats PP'!J96 -> 0 | H20: =IF('Resultats PP'!M96=3,0,'Resultats PP'!M96) -> 0
B21: ='Resultats PP'!L97 -> 0 | C21: ='Resultats PP'!E97 ->  | D21: ='Resultats PP'!K97 -> 0 | E21: ='Resultats PP'!H97 -> 0 | F21: ='Resultats PP'!I97 -> 0 | G21: ='Resultats PP'!J97 -> 0 | H21: =IF('Resultats PP'!M97=3,0,'Resultats PP'!M97) -> 0
